Workbook

Sheet часть 1 (hidden)
O1: Приложение
O2: к постановлению Правительства Тверской области Тверской области от 24.02.2016 № 82-пп
O3: от №
A6: Краткосрочный план
A7: реализации в 2016 году региональной программы по проведению капитального ремонта общего имущества
A8: в многоквартирных домах на территории Тверской области на 2014-2043 годы
A10: I. Перечень многоквартирных домов, которые подлежат капитальному ремонту
A11: № п/п | B11: Адрес многоквартирного дома (далее - МКД) | C11: Год | E11: Материал стен | F11: Количество этажей | G11: Количество подъездов | H11: Общая площадь МКД, всего | I11: Площадь помещений МКД: | K11: Количество жителей, зарегистрированных в МКД на дату утверждения краткосрочного плана | L11: Стоимость капитального ремонта: | Q11: Удельная стоимость капитального ремонта 1 кв. м общей площади помещений МКД | R11: Предельная стоимость капитального ремонта 1 кв. м общей площади помещений МКД | S11: Плановая дата завершения работ
C12: ввода в эксплуатацию | D12: завершения последнего капитального ремонта | I12: всего: | J12: в том числе жилых помещений, находящихся в собственности граждан | L12: всего: | M12: в том числе
M13: за счет средств областного бюджета Тверской области | N13: за счет средств местного бюджета | O13: за счет средств собственников помещений в МКД | P13: за счет привлеченных средств
H14: кв. м | I14: кв. м | J14: кв. м | K14: чел. | L14: руб. | M14: руб. | N14: руб. | O14: руб. | P14: руб. | Q14: руб/кв. м | R14: руб/кв. м
A15: 1 | B15: 2 | C15: 3 | D15: 4 | E15: 5 | F15: 6 | G15: 7 | H15: 8 | I15: 9 | J15: 10 | K15: 11 | L15: 12 | M15: 13 | N15: 14 | O15: 15 | P15: 16 | Q15: 17 | R15: 18 | S15: 19
B16: Итого по Тверской области | H16: =H18+H521 -> 479,481.47 | I16: 398,294.75 | J16: 358,677.09 | K16: 15,980 | L16: 699,893,215.89 | M16: 0.00 | N16: 8,635,753.96 | O16: 691,001,542.93 | P16: =P188+P205+P207+P231+P244+P260+P269+P281++P284+P303+P307+P320+P324+P331+P338+P352+P363+P376+P384+P429+P434+P445+P424+P449+P460+P469+P476+P479+P485+P496+P503+P536+P19+P515 -> 255,919.00 | Q16: Х | R16: Х | S16: Х
A17: Формирование фонда капитального ремонта многоквартирного дома на счете некоммерческой организации - Фонд капитального ремонта многоквартирных домов Тверской области (далее - региональный оператор)
B18: Всего по Тверской области | H18: =H19+H188+H205+H207+H231+H244+H260+H269+H281+H284+H303+H307+H320+H324+H331+H338+H352+H363+H376+H384+H424+H429+H434+H445+H449+H466+H460+H469+H476+H479+H485+H491+H496+H503+H515 -> 426,694.57 | I18: 351,421.05 | J18: 312,616.09 | K18: 14,351 | L18: 692,506,037.25 | M18: 0.00 | N18: 7,269,861.96 | O18: 684,980,256.29 | P18: =P19+P188+P205+P207+P231+P244+P260+P269+P281+P284+P303+P307+P320+P324+P331+P338+P352+P363+P376+P384+P424+P429+P434+P445+P449+P466+P460+P469+P476+P479+P485+P496+P503+P515 -> 255,919.00 | Q18: Х | R18: Х | S18: Х
B19: Итого по город Тверь | H19: =SUM(H20:H187) -> 0.00 | I19: =SUM(I20:I187) -> 0.00 | J19: =SUM(J20:J187) -> 0.00 | K19: =SUM(K20:K187) -> 0 | L19: 336,230,870.63 | M19: =SUM(M20:M187) -> 0.00 | N19: 0.00 | O19: =SUM(O20:O187) -> 336,230,870.63 | P19: 0.00 | Q19: Х | R19: Х | S19: Х
A20: 1 | B20: б-р Гусева, д. 25 | C20: 1975 | E20: Панельные | F20: 5 | G20: 10 | L20: 5,982,216.00 | M20: 0.00 | N20: 0.00 | O20: =L20 -> 5,982,216.00 | P20: 0.00 | Q20: =L20/I20 ->  | S20: 2017-12-31
A21: =A20+1 -> 2 | B21: б-р Гусева, д. 39 | C21: 1978 | E21: Панельные | F21: 9 | G21: 5 | L21: 9,379,653.00 | M21: 0.00 | N21: 0.00 | O21: 9,379,653.00 | P21: 0.00 | S21: 2017-12-31
A22: =A21+1 -> 3 | B22: б-р Гусева, д. 41 | C22: 1982 | E22: Панельные | F22: 9 | G22: 2 | L22: 3,763,756.00 | M22: 0.00 | N22: 0.00 | O22: 3,763,756.00 | P22: 0.00 | S22: 2017-12-31
A23: 4 | B23: б-р Гусева, д. 45, корп. 1 | C23: 1982 | E23: Панельные | F23: 9 | G23: 1 | L23: 1,095,812.00 | M23: 0.00 | N23: 0.00 | O23: 1,095,812.00 | P23: 0.00 | S23: 2017-12-31
A24: 5 | B24: б-р Гусева, д. 9 | C24: 1976 | E24: Панельные | F24: 9 | G24: 3 | L24: 5,619,141.00 | M24: 0.00 | N24: 0.00 | O24: 5,619,141.00 | P24: 0.00 | S24: 2017-12-31
A25: 6 | B25: б-р Ногина, д. 2 | C25: 1982 | E25: Панельные | F25: 9 | G25: 2 | L25: 3,748,388.00 | M25: 0.00 | N25: 0.00 | O25: 3,748,388.00 | P25: 0.00 | S25: 2017-12-31
A26: 7 | B26: б-р Ногина, д. 4 | C26: 1981 | E26: Панельные | F26: 9 | G26: 8 | L26: 15,157,748.00 | M26: 0.00 | N26: 0.00 | O26: 15,157,748.00 | P26: 0.00 | S26: 2017-12-31
A27: 8 | B27: б-р Профсоюзов, д. 21 | C27: 1954 | E27: Каменные, кирпичные | F27: 2 | G27: 2 | L27: 1,030,213.00 | M27: 0.00 | N27: 0.00 | O27: 1,030,213.00 | P27: 0.00 | S27: 2017-12-31
A28: 9 | B28: б-р Радищева, д. 26 | C28: 1860 | E28: Каменные, кирпичные | F28: 3 | G28: 1 | L28: 530,465.00 | M28: 0.00 | N28: 0.00 | O28: 530,465.00 | P28: 0.00 | S28: 2017-12-31
A29: 10 | B29: б-р Цанова, д. 10 | C29: 1958 | E29: Каменные, кирпичные | F29: 2 | G29: 2 | L29: 1,983,854.00 | M29: 0.00 | N29: 0.00 | O29: 1,983,854.00 | P29: 0.00 | S29: 2017-12-31
A30: 11 | B30: наб. Афанасия Никитина, д. 24 | C30: 1961 | E30: Каменные, кирпичные | F30: 5 | G30: 2 | L30: 1,206,304.00 | M30: 0.00 | N30: 0.00 | O30: 1,206,304.00 | P30: 0.00 | S30: 2017-12-31
A31: 12 | B31: наб. Афанасия Никитина, д. 24А | C31: 1961 | E31: Каменные, кирпичные | F31: 5 | G31: 3 | L31: 402,530.20 | M31: 0.00 | N31: 0.00 | O31: 402,530.20 | P31: 0.00 | S31: 2017-12-31
A32: 13 | B32: наб. Мигаловская, д. 10А | C32: 1967 | E32: Каменные, кирпичные | F32: 5 | G32: 8 | L32: 2,861,497.00 | M32: 0.00 | N32: 0.00 | O32: 2,861,497.00 | P32: 0.00 | S32: 2017-12-31
A33: 14 | B33: п. Литвинки, д. 27 | C33: 1974 | E33: Панельные | F33: 5 | G33: 4 | L33: 1,535,065.47 | M33: 0.00 | N33: 0.00 | O33: 1,535,065.47 | P33: 0.00 | S33: 2017-12-31
A34: 15 | B34: п. Химинститута, д. 13 | C34: 1966 | E34: Панельные | F34: 5 | G34: 4 | L34: 930,534.00 | M34: 0.00 | N34: 0.00 | O34: 930,534.00 | P34: 0.00 | S34: 2017-12-31
A35: 16 | B35: п. Химинститута, д. 20 | C35: 1970 | E35: Панельные | F35: 5 | G35: 4 | L35: 662,518.00 | M35: 0.00 | N35: 0.00 | O35: 662,518.00 | P35: 0.00 | S35: 2017-12-31
A36: 17 | B36: п. Химинститута, д. 32 | C36: 1979 | E36: Каменные, кирпичные | F36: 5 | G36: 4 | L36: 2,346,663.00 | M36: 0.00 | N36: 0.00 | O36: 2,346,663.00 | P36: 0.00 | S36: 2017-12-31
A37: 18 | B37: п. Химинститута, д. 38 | C37: 1972 | E37: Панельные | F37: 5 | G37: 4 | L37: 727,019.00 | M37: 0.00 | N37: 0.00 | O37: 727,019.00 | P37: 0.00 | S37: 2017-12-31
A38: 19 | B38: п. Химинститута, д. 7 | C38: 1963 | E38: Каменные, кирпичные | F38: 4 | G38: 3 | L38: 538,121.00 | M38: 0.00 | N38: 0.00 | O38: 538,121.00 | P38: 0.00 | S38: 2017-12-31
A39: 20 | B39: п. Химинститута, д. 9 | C39: 1963 | E39: Каменные, кирпичные | F39: 4 | G39: 3 | L39: 1,756,852.00 | M39: 0.00 | N39: 0.00 | O39: 1,756,852.00 | P39: 0.00 | S39: 2017-12-31
A40: 21 | B40: пер. Артиллерийский, д. 12 | C40: 1974 | E40: Панельные | F40: 5 | G40: 4 | L40: 676,398.28 | M40: 0.00 | N40: 0.00 | O40: 676,398.28 | P40: 0.00 | S40: 2017-12-31
A41: 22 | B41: пер. Коллективный, д. 6 | C41: 1951 | E41: Каменные, кирпичные | F41: 2 | G41: 1 | L41: 766,539.00 | M41: 0.00 | N41: 0.00 | O41: 766,539.00 | P41: 0.00 | S41: 2017-12-31
A42: 23 | B42: пер. Никитина, д. 5 | C42: 1983 | E42: Каменные, кирпичные | F42: 9 | G42: 2 | L42: 1,186,114.00 | M42: 0.00 | N42: 0.00 | O42: 1,186,114.00 | P42: 0.00 | S42: 2017-12-31
A43: 24 | B43: пер. Перекопский, д. 11А | C43: 1958 | E43: Каменные, кирпичные | F43: 3 | G43: 2 | L43: 178,272.59 | M43: 0.00 | N43: 0.00 | O43: 178,272.59 | P43: 0.00 | S43: 2017-12-31
A44: 25 | B44: пер. Перекопский, д. 15 | C44: 1963 | E44: Каменные, кирпичные | F44: 4 | G44: 2 | L44: 1,087,116.00 | M44: 0.00 | N44: 0.00 | O44: 1,087,116.00 | P44: 0.00 | S44: 2017-12-31
A45: 26 | B45: пер. Смоленский, д. 8, корп. 1 | C45: 1984 | E45: Каменные, кирпичные | F45: 9 | G45: 2 | L45: 1,411,363.00 | M45: 0.00 | N45: 0.00 | O45: 1,411,363.00 | P45: 0.00 | S45: 2017-12-31
A46: 27 | B46: пер. Университетский, д. 3 | C46: 1964 | E46: Каменные, кирпичные | F46: 4 | G46: 2 | L46: 1,136,666.00 | M46: 0.00 | N46: 0.00 | O46: 1,136,666.00 | P46: 0.00 | S46: 2017-12-31
A47: 28 | B47: пр-кт 50 лет Октября, д. 2/19 | C47: 1959 | E47: Каменные, кирпичные | F47: 4 | G47: 6 | L47: 1,385,674.00 | M47: 0.00 | N47: 0.00 | O47: 1,385,674.00 | P47: 0.00 | S47: 2017-12-31
A48: 29 | B48: пр-кт Калинина, д. 9 | C48: 1937 | E48: Каменные, кирпичные | F48: 4 | G48: 9 | L48: 4,619,990.00 | M48: 0.00 | N48: 0.00 | O48: 4,619,990.00 | P48: 0.00 | S48: 2017-12-31
A49: 30 | B49: пр-кт Ленина, д. 14, корп. 2 | C49: 1960 | E49: Каменные, кирпичные | F49: 4 | G49: 3 | L49: 1,865,304.00 | M49: 0.00 | N49: 0.00 | O49: 1,865,304.00 | P49: 0.00 | S49: 2017-12-31
A50: 31 | B50: пр-кт Ленина, д. 40 | C50: 1961 | E50: Каменные, кирпичные | F50: 5 | G50: 4 | L50: 1,870,910.00 | M50: 0.00 | N50: 0.00 | O50: 1,870,910.00 | P50: 0.00 | S50: 2017-12-31
A51: 32 | B51: пр-кт Ленина, д. 43 | C51: 1960 | E51: Каменные, кирпичные | F51: 5 | G51: 4 | L51: 1,533,757.00 | M51: 0.00 | N51: 0.00 | O51: 1,533,757.00 | P51: 0.00 | S51: 2017-12-31
A52: 33 | B52: пр-кт Ленина, д. 43А | C52: 1960 | E52: Каменные, кирпичные | F52: 5 | G52: 4 | L52: 939,858.00 | M52: 0.00 | N52: 0.00 | O52: =L52 -> 939,858.00 | P52: 0.00 | Q52: =L52/I52 ->  | S52: 2017-12-31
A53: 34 | B53: пр-кт Октябрьский, д. 69 | C53: 1973 | E53: Панельные | F53: 5 | G53: 6 | L53: 2,368,392.00 | M53: 0.00 | N53: 0.00 | O53: 2,368,392.00 | P53: 0.00 | S53: 2017-12-31
A54: 35 | B54: пр-кт Победы, д. 28, корп. 1 | C54: 1961 | E54: Каменные, кирпичные | F54: 5 | G54: 2 | L54: 2,433,930.91 | M54: 0.00 | N54: 0.00 | O54: 2,433,930.91 | P54: 0.00 | S54: 2017-12-31
A55: 36 | B55: пр-кт Победы, д. 2А | C55: 1964 | E55: Каменные, кирпичные | F55: 5 | G55: 4 | L55: 1,721,850.00 | M55: 0.00 | N55: 0.00 | O55: 1,721,850.00 | P55: 0.00 | S55: 2017-12-31
A56: 37 | B56: пр-кт Победы, д. 32/3 | C56: 1957 | E56: Каменные, кирпичные | F56: 4 | G56: 4 | L56: 814,117.00 | M56: 0.00 | N56: 0.00 | O56: 814,117.00 | P56: 0.00 | S56: 2017-12-31
A57: 38 | B57: пр-кт Победы, д. 36/46 | C57: 1957 | E57: Каменные, кирпичные | F57: 4 | G57: 4 | L57: 3,045,081.00 | M57: 0.00 | N57: 0.00 | O57: 3,045,081.00 | P57: 0.00 | S57: 2017-12-31
A58: 39 | B58: пр-кт Победы, д. 38/45 | C58: 1954 | E58: Каменные, кирпичные | F58: 3 | G58: 3 | L58: 2,244,806.00 | M58: 0.00 | N58: 0.00 | O58: 2,244,806.00 | P58: 0.00 | S58: 2017-12-31
A59: 40 | B59: пр-кт Победы, д. 4А | C59: 1963 | E59: Каменные, кирпичные | F59: 4 | G59: 2 | L59: 1,361,273.00 | M59: 0.00 | N59: 0.00 | O59: 1,361,273.00 | P59: 0.00 | S59: 2017-12-31
A60: 41 | B60: пр-кт Победы, д. 22/15 | C60: 1959 | E60: Каменные, кирпичные | F60: 4 | G60: 4 | L60: 2,421,596.00 | M60: 0.00 | N60: 0.00 | O60: 2,421,596.00 | P60: 0.00 | S60: 2017-12-31
A61: 42 | B61: пр-кт Чайковского, д. 24/2Б | C61: 1967 | E61: Каменные, кирпичные | F61: 6 | G61: 5 | L61: 2,056,315.00 | M61: 0.00 | N61: 0.00 | O61: 2,056,315.00 | P61: 0.00 | S61: 2017-12-31
A62: 43 | B62: пр-кт Чайковского, д. 37 | C62: 1975 | E62: Каменные, кирпичные | F62: 9 | G62: 5 | L62: 9,473,593.00 | M62: 0.00 | N62: 0.00 | O62: 9,473,593.00 | P62: 0.00 | S62: 2017-12-31
A63: 44 | B63: проезд Зеленый, д. 47, корп. 1 | C63: 1968 | E63: Каменные, кирпичные | F63: 5 | G63: 6 | L63: 4,441,828.00 | M63: 0.00 | N63: 0.00 | O63: 4,441,828.00 | P63: 0.00 | S63: 2017-12-31
A64: 45 | B64: проезд Зеленый, д. 47, корп. 2 | C64: 1977 | E64: Панельные | F64: 5 | G64: 8 | L64: 3,051,089.00 | M64: 0.00 | N64: 0.00 | O64: 3,051,089.00 | P64: 0.00 | S64: 2017-12-31
A65: 46 | B65: проезд Карпинского 1-й, д. 2/60 | C65: 1956 | E65: Каменные, кирпичные | F65: 2 | G65: 2 | L65: 869,749.00 | M65: 0.00 | N65: 0.00 | O65: 869,749.00 | P65: 0.00 | S65: 2017-12-31
A66: 47 | B66: проезд Карпинского 1-й, д. 4 | C66: 1956 | E66: Каменные, кирпичные | F66: 2 | G66: 2 | L66: 869,880.00 | M66: 0.00 | N66: 0.00 | O66: 869,880.00 | P66: 0.00 | S66: 2017-12-31
A67: 48 | B67: проезд Розы Люксембург 1-й, д. 6 | C67: 1959 | E67: Каменные, кирпичные | F67: 2 | G67: 2 | L67: 172,302.00 | M67: 0.00 | N67: 0.00 | O67: 172,302.00 | P67: 0.00 | S67: 2017-12-31
A68: 49 | B68: тер. Двор Пролетарки, д. 119 | C68: 1910 | E68: Каменные, кирпичные | F68: 4 | G68: 1 | L68: 3,706,393.00 | M68: 0.00 | N68: 0.00 | O68: 3,706,393.00 | P68: 0.00 | S68: 2017-12-31
A69: 50 | B69: тер. Двор Пролетарки, д. 43 | C69: 1914 | E69: Каменные, кирпичные | F69: 4 | G69: 5 | L69: 698,585.00 | M69: 0.00 | N69: 0.00 | O69: 698,585.00 | P69: 0.00 | S69: 2017-12-31
A70: 51 | B70: тер. Товарный двор, д. 483А | C70: до 1917 | E70: Каменные, кирпичные | F70: 2 | G70: 3 | L70: 951,740.00 | M70: 0.00 | N70: 0.00 | O70: 951,740.00 | P70: 0.00 | S70: 2017-12-31
A71: 52 | B71: ул. 15 лет Октября, д. 47 | C71: 1953 | E71: Каменные, кирпичные | F71: 3 | G71: 3 | L71: 2,056,139.00 | M71: 0.00 | N71: 0.00 | O71: 2,056,139.00 | P71: 0.00 | S71: 2017-12-31
A72: 53 | B72: ул. 15 лет Октября, д. 56 | C72: 1958 | E72: Каменные, кирпичные | F72: 2 | G72: 2 | L72: 1,321,356.00 | M72: 0.00 | N72: 0.00 | O72: 1,321,356.00 | P72: 0.00 | S72: 2017-12-31
A73: 54 | B73: ул. 15 лет Октября, д. 58, корп. 1 | C73: 1959 | E73: Каменные, кирпичные | F73: 2 | G73: 2 | L73: 1,679,278.00 | M73: 0.00 | N73: 0.00 | O73: 1,679,278.00 | P73: 0.00 | S73: 2017-12-31
A74: 55 | B74: ул. 15 лет Октября, д. 60 | C74: 1959 | E74: Каменные, кирпичные | F74: 2 | G74: 2 | L74: 1,100,896.00 | M74: 0.00 | N74: 0.00 | O74: 1,100,896.00 | P74: 0.00 | S74: 2017-12-31
A75: 56 | B75: ул. 15 лет Октября, д. 62, корп. 1 | C75: 1959 | E75: Каменные, кирпичные | F75: 2 | G75: 2 | L75: 1,729,707.00 | M75: 0.00 | N75: 0.00 | O75: 1,729,707.00 | P75: 0.00 | S75: 2017-12-31
A76: 57 | B76: ул. 15 лет Октября, д. 64/23 | C76: 1959 | E76: Каменные, кирпичные | F76: 2 | G76: 2 | L76: 451,222.57 | M76: 0.00 | N76: 0.00 | O76: 451,222.57 | P76: 0.00 | S76: 2017-12-31
A77: 58 | B77: ул. Академика Туполева, д. 112/24 | C77: 1959 | E77: Каменные, кирпичные | F77: 2 | G77: 1 | L77: 703,675.57 | M77: 0.00 | N77: 0.00 | O77: 703,675.57 | P77: 0.00 | S77: 2017-12-31
A78: 59 | B78: ул. Академическая, д. 16 | C78: 1959 | E78: Каменные, кирпичные | F78: 4 | G78: 3 | L78: 1,053,533.22 | M78: 0.00 | N78: 0.00 | O78: 1,053,533.22 | P78: 0.00 | S78: 2017-12-31
A79: 60 | B79: ул. Академическая, д. 22 | C79: 1979 | E79: Каменные, кирпичные | F79: 9 | G79: 1 | L79: 1,253,738.00 | M79: 0.00 | N79: 0.00 | O79: 1,253,738.00 | P79: 0.00 | S79: 2017-12-31
A80: 61 | B80: ул. Артюхиной, д. 7 | C80: 1984 | E80: Панельные | F80: 9 | G80: 1 | L80: 1,870,046.00 | M80: 0.00 | N80: 0.00 | O80: 1,870,046.00 | P80: 0.00 | S80: 2017-12-31
A81: 62 | B81: ул. Благоева, д. 4, корп. 2 | C81: 1984 | E81: Панельные | F81: 9 | G81: 2 | L81: 3,720,676.00 | M81: 0.00 | N81: 0.00 | O81: 3,720,676.00 | P81: 0.00 | S81: 2017-12-31
A82: 63 | B82: ул. Благоева, д. 6А | C82: 1977 | E82: Каменные, кирпичные | F82: 5 | G82: 6 | L82: 3,687,908.00 | M82: 0.00 | N82: 0.00 | O82: 3,687,908.00 | P82: 0.00 | S82: 2017-12-31
A83: 64 | B83: ул. Бобкова, д. 2 | C83: 1933 | E83: Каменные, кирпичные | F83: 4 | G83: 5 | L83: 1,760,967.35 | M83: 0.00 | N83: 0.00 | O83: 1,760,967.35 | P83: 0.00 | S83: 2017-12-31
A84: 65 | B84: ул. Богданова, д. 26/17 | C84: 1961 | E84: Каменные, кирпичные | F84: 5 | G84: 4 | L84: 881,947.00 | M84: 0.00 | N84: 0.00 | O84: =L84 -> 881,947.00 | P84: 0.00 | Q84: =L84/I84 ->  | S84: 2017-12-31
A85: 66 | B85: ул. Богданова, д. 29 | C85: 1960 | E85: Каменные, кирпичные | F85: 2 | G85: 2 | L85: 517,739.00 | M85: 0.00 | N85: 0.00 | O85: 517,739.00 | P85: 0.00 | S85: 2017-12-31
A86: =A85+1 -> 67 | B86: ул. Богданова, д. 33/15 | C86: 1966 | E86: Каменные, кирпичные | F86: 5 | G86: 4 | L86: 1,728,895.00 | M86: 0.00 | N86: 0.00 | O86: 1,728,895.00 | P86: 0.00 | S86: 2017-12-31
A87: 68 | B87: ул. Бориса Полевого, д. 10/11 | C87: 1925 | E87: Деревянные | F87: 2 | G87: 2 | L87: 682,529.00 | M87: 0.00 | N87: 0.00 | O87: 682,529.00 | P87: 0.00 | S87: 2017-12-31
A88: 69 | B88: ул. Брагина, д. 44 | C88: 1900 | E88: Деревянные | F88: 2 | G88: 2 | L88: 582,157.00 | M88: 0.00 | N88: 0.00 | O88: 582,157.00 | P88: 0.00 | S88: 2017-12-31
A89: 70 | B89: ул. Вагжанова, д. 4 | C89: 1934 | E89: Каменные, кирпичные | F89: 3 | G89: 5 | L89: 701,704.00 | M89: 0.00 | N89: 0.00 | O89: 701,704.00 | P89: 0.00 | S89: 2017-12-31
A90: 71 | B90: ул. Веселова, д. 34/28 | C90: 1970 | E90: Панельные | F90: 5 | G90: 6 | L90: 1,969,149.00 | M90: 0.00 | N90: 0.00 | O90: 1,969,149.00 | P90: 0.00 | S90: 2017-12-31
A91: 72 | B91: ул. Гвардейская, д. 5 | C91: 1956 | E91: Каменные, кирпичные | F91: 3 | G91: 3 | L91: 1,023,088.00 | M91: 0.00 | N91: 0.00 | O91: 1,023,088.00 | P91: 0.00 | S91: 2017-12-31
A92: 73 | B92: ул. Гвардейская, д. 9, корп. 1 | C92: 1957 | E92: Каменные, кирпичные | F92: 3 | G92: 3 | L92: 3,334,570.00 | M92: 0.00 | N92: 0.00 | O92: 3,334,570.00 | P92: 0.00 | S92: 2017-12-31
A93: 74 | B93: ул. Горького, д. 10 | C93: 1970 | E93: Каменные, кирпичные | F93: 5 | G93: 2 | L93: 1,127,374.33 | M93: 0.00 | N93: 0.00 | O93: 1,127,374.33 | P93: 0.00 | S93: 2017-12-31
A94: 75 | B94: ул. Горького, д. 106 | C94: 1968 | E94: Панельные | F94: 5 | G94: 6 | L94: 1,161,456.00 | M94: 0.00 | N94: 0.00 | O94: 1,161,456.00 | P94: 0.00 | S94: 2017-12-31
A95: 76 | B95: ул. Горького, д. 4А | C95: 1971 | E95: Каменные, кирпичные | F95: 5 | G95: 4 | L95: 1,197,250.23 | M95: 0.00 | N95: 0.00 | O95: 1,197,250.23 | P95: 0.00 | S95: 2017-12-31
A96: 77 | B96: ул. Горького, д. 70 | C96: 1954 | E96: Каменные, кирпичные | F96: 4 | G96: 3 | L96: 2,784,233.00 | M96: 0.00 | N96: 0.00 | O96: 2,784,233.00 | P96: 0.00 | S96: 2017-12-31
A97: 78 | B97: ул. Горького, д. 89 | C97: 1968 | E97: Каменные, кирпичные | F97: 5 | G97: 4 | L97: 2,369,961.00 | M97: 0.00 | N97: 0.00 | O97: 2,369,961.00 | P97: 0.00 | S97: 2017-12-31
A98: 79 | B98: ул. Грибоедова 2-я, д. 8/1 | C98: 1959 | E98: Каменные, кирпичные | F98: 2 | G98: 1 | L98: 672,819.00 | M98: 0.00 | N98: 0.00 | O98: 672,819.00 | P98: 0.00 | S98: 2017-12-31
A99: 80 | B99: ул. Громова, д. 28, корп. 2 | C99: 1968 | E99: Панельные | F99: 5 | G99: 5 | L99: 1,651,491.00 | M99: 0.00 | N99: 0.00 | O99: 1,651,491.00 | P99: 0.00 | S99: 2017-12-31
A100: 81 | B100: ул. Громова, д. 30 | C100: 1962 | E100: Каменные, кирпичные | F100: 3 | G100: 3 | L100: 1,432,926.00 | M100: 0.00 | N100: 0.00 | O100: 1,432,926.00 | P100: 0.00 | S100: 2017-12-31
A101: 82 | B101: ул. Громова, д. 36, корп. 2 | C101: 1955 | E101: Каменные, кирпичные | F101: 2 | G101: 2 | L101: 1,137,886.00 | M101: 0.00 | N101: 0.00 | O101: 1,137,886.00 | P101: 0.00 | S101: 2017-12-31
A102: 83 | B102: ул. Дарвина, д. 2 | C102: 1971 | E102: Каменные, кирпичные | F102: 5 | G102: 4 | L102: 1,814,838.00 | M102: 0.00 | N102: 0.00 | O102: 1,814,838.00 | P102: 0.00 | S102: 2017-12-31
A103: 84 | B103: ул. Дарвина, д. 4, корп. 1 | C103: 1970 | E103: Каменные, кирпичные | F103: 5 | G103: 4 | L103: 1,544,359.54 | M103: 0.00 | N103: 0.00 | O103: 1,544,359.54 | P103: 0.00 | S103: 2017-12-31
A104: 85 | B104: ул. Евгения Пичугина, д. 21, корп. 3 | C104: 1987 | E104: Панельные | F104: 9 | G104: 1 | L104: 1,787,034.00 | M104: 0.00 | N104: 0.00 | O104: 1,787,034.00 | P104: 0.00 | S104: 2017-12-31
A105: 86 | B105: ул. Екатерины Фарафоновой, д. 37 | C105: 1983 | E105: Панельные | F105: 9 | G105: 4 | L105: 437,998.57 | M105: 0.00 | N105: 0.00 | O105: 437,998.57 | P105: 0.00 | S105: 2017-12-31
A106: 87 | B106: ул. Зинаиды Коноплянниковой, д. 14 | C106: 1976 | E106: Панельные | F106: 5 | G106: 4 | L106: 1,116,228.00 | M106: 0.00 | N106: 0.00 | O106: 1,116,228.00 | P106: 0.00 | S106: 2017-12-31
A107: 88 | B107: ул. Зинаиды Коноплянниковой, д. 19, корп. 2 | C107: 1983 | E107: Панельные | F107: 5 | G107: 3 | L107: 1,313,728.00 | M107: 0.00 | N107: 0.00 | O107: 1,313,728.00 | P107: 0.00 | S107: 2017-12-31
A108: 89 | B108: ул. Ипподромная, д. 10 | C108: 1958 | E108: Каменные, кирпичные | F108: 2 | G108: 1 | L108: 359,651.00 | M108: 0.00 | N108: 0.00 | O108: 359,651.00 | P108: 0.00 | S108: 2017-12-31
A109: 90 | B109: ул. Ипподромная, д. 22 | C109: 1965 | E109: Панельные | F109: 5 | G109: 5 | L109: 906,779.00 | M109: 0.00 | N109: 0.00 | O109: 906,779.00 | P109: 0.00 | S109: 2017-12-31
A110: 91 | B110: ул. Ипподромная, д. 6Б | C110: 1958 | E110: Каменные, кирпичные | F110: 2 | G110: 1 | L110: 886,559.00 | M110: 0.00 | N110: 0.00 | O110: 886,559.00 | P110: 0.00 | S110: 2017-12-31
A111: 92 | B111: ул. Ипподромная, д. 7, корп. 1 | C111: 1959 | E111: Каменные, кирпичные | F111: 2 | G111: 1 | L111: 642,210.00 | M111: 0.00 | N111: 0.00 | O111: 642,210.00 | P111: 0.00 | S111: 2017-12-31
A112: 93 | B112: ул. Кайкова, д. 4А | C112: 1957 | E112: Каменные, кирпичные | F112: 4 | G112: 3 | L112: 1,952,489.00 | M112: 0.00 | N112: 0.00 | O112: 1,952,489.00 | P112: 0.00 | S112: 2017-12-31
A113: 94 | B113: ул. Карла Маркса, д. 5 | C113: 1983 | E113: Панельные | F113: 9 | G113: 8 | L113: 15,157,748.00 | M113: 0.00 | N113: 0.00 | O113: 15,157,748.00 | P113: 0.00 | S113: 2017-12-31
A114: 95 | B114: ул. Кирова, д. 3А | C114: 1959 | E114: Каменные, кирпичные | F114: 4 | G114: 5 | L114: 2,542,298.37 | M114: 0.00 | N114: 0.00 | O114: 2,542,298.37 | P114: 0.00 | S114: 2017-12-31
A115: 96 | B115: ул. Коробкова, д. 18 | C115: 1983 | E115: Панельные | F115: 9 | G115: 1 | L115: 1,114,586.00 | M115: 0.00 | N115: 0.00 | O115: 1,114,586.00 | P115: 0.00 | S115: 2017-12-31
A116: 97 | B116: ул. Королева, д. 16/1 | C116: 1975 | E116: Панельные | F116: 9 | G116: 3 | L116: 5,623,853.00 | M116: 0.00 | N116: 0.00 | O116: =L116 -> 5,623,853.00 | P116: 0.00 | Q116: =L116/I116 ->  | S116: 2017-12-31
A117: 98 | B117: ул. Королева, д. 24 | C117: 1976 | E117: Панельные | F117: 9 | G117: 4 | L117: 2,721,106.00 | M117: 0.00 | N117: 0.00 | O117: 2,721,106.00 | P117: 0.00 | S117: 2017-12-31
A118: 99 | B118: ул. Королева, д. 4 | C118: 1973 | E118: Панельные | F118: 9 | G118: 6 | L118: 9,789,326.55 | M118: 0.00 | N118: 0.00 | O118: 9,789,326.55 | P118: 0.00 | S118: 2017-12-31
A119: 100 | B119: ул. Крылова, д. 5 | C119: до 1917 | E119: Каменные, кирпичные | F119: 3 | G119: 3 | L119: 1,615,074.00 | M119: 0.00 | N119: 0.00 | O119: 1,615,074.00 | P119: 0.00 | S119: 2017-12-31
A120: 101 | B120: ул. Лукина, д. 14 | C120: 1953 | E120: Каменные, кирпичные | F120: 2 | G120: 2 | L120: 824,390.00 | M120: 0.00 | N120: 0.00 | O120: 824,390.00 | P120: 0.00 | S120: 2017-12-31
A121: 102 | B121: ул. Лукина, д. 8 | C121: 1951 | E121: Блочные | F121: 2 | G121: 3 | L121: 2,661,189.00 | M121: 0.00 | N121: 0.00 | O121: 2,661,189.00 | P121: 0.00 | S121: 2017-12-31
A122: 103 | B122: ул. Маршала Буденого, д. 19/1 | C122: 1959 | E122: Каменные, кирпичные | F122: 2 | G122: 1 | L122: 278,220.00 | M122: 0.00 | N122: 0.00 | O122: 278,220.00 | P122: 0.00 | S122: 2017-12-31
A123: 104 | B123: ул. Маршала Буденого, д. 4 | C123: 1928 | E123: Каменные, кирпичные | F123: 3 | G123: 6 | L123: 2,511,472.00 | M123: 0.00 | N123: 0.00 | O123: 2,511,472.00 | P123: 0.00 | S123: 2017-12-31
A124: 105 | B124: ул. Маршала Василевского, д. 18 | C124: 1964 | E124: Каменные, кирпичные | F124: 4 | G124: 2 | L124: 871,988.00 | M124: 0.00 | N124: 0.00 | O124: 871,988.00 | P124: 0.00 | S124: 2017-12-31
A125: 106 | B125: ул. Маршала Василевского, д. 20 | C125: 1966 | E125: Каменные, кирпичные | F125: 4 | G125: 4 | L125: 2,113,335.00 | M125: 0.00 | N125: 0.00 | O125: 2,113,335.00 | P125: 0.00 | S125: 2017-12-31
A126: 107 | B126: ул. Машинистов, д. 3 | C126: 1960 | E126: Каменные, кирпичные | F126: 2 | G126: 2 | L126: 996,585.00 | M126: 0.00 | N126: 0.00 | O126: 996,585.00 | P126: 0.00 | S126: 2017-12-31
A127: 108 | B127: ул. Мичурина, д. 37/23 | C127: 1955 | E127: Каменные, кирпичные | F127: 2 | G127: 2 | L127: 637,739.00 | M127: 0.00 | N127: 0.00 | O127: 637,739.00 | P127: 0.00 | S127: 2017-12-31
A128: 109 | B128: ул. Можайского, д. 51 | C128: 1976 | E128: Панельные | F128: 9 | G128: 2 | L128: 1,357,217.00 | M128: 0.00 | N128: 0.00 | O128: 1,357,217.00 | P128: 0.00 | S128: 2017-12-31
A129: 110 | B129: ул. Московская, д. 78 | C129: 1952 | E129: Каменные, кирпичные | F129: 2 | G129: 2 | L129: 836,226.00 | M129: 0.00 | N129: 0.00 | O129: 836,226.00 | P129: 0.00 | S129: 2017-12-31
A130: 111 | B130: ул. Мусоргского, д. 32/32 | C130: 1952 | E130: Каменные, кирпичные | F130: 2 | G130: 2 | L130: 640,078.00 | M130: 0.00 | N130: 0.00 | O130: 640,078.00 | P130: 0.00 | S130: 2017-12-31
A131: 112 | B131: ул. Мусоргского, д. 38/33 | C131: 1959 | E131: Каменные, кирпичные | F131: 2 | G131: 2 | L131: 202,649.00 | M131: 0.00 | N131: 0.00 | O131: 202,649.00 | P131: 0.00 | S131: 2017-12-31
A132: 113 | B132: ул. Новоторжская, д. 7 | C132: 1954 | E132: Каменные, кирпичные | F132: 4-5 | G132: 10 | L132: 7,892,437.00 | M132: 0.00 | N132: 0.00 | O132: 7,892,437.00 | P132: 0.00 | S132: 2017-12-31
A133: 114 | B133: ул. Озерная, д. 23 | C133: 1950 | E133: Каменные, кирпичные | F133: 2 | G133: 1 | L133: 523,389.00 | M133: 0.00 | N133: 0.00 | O133: 523,389.00 | P133: 0.00 | S133: 2017-12-31
A134: 115 | B134: ул. Орджоникидзе, д. 1 | C134: 1950 | E134: Блочные | F134: 2 | G134: 3 | L134: 1,038,920.00 | M134: 0.00 | N134: 0.00 | O134: 1,038,920.00 | P134: 0.00 | S134: 2017-12-31
A135: 116 | B135: ул. Орджоникидзе, д. 11 | C135: 1950 | E135: Блочные | F135: 2 | G135: 2 | L135: 1,742,553.00 | M135: 0.00 | N135: 0.00 | O135: 1,742,553.00 | P135: 0.00 | S135: 2017-12-31
A136: 117 | B136: ул. Орджоникидзе, д. 12/1 | C136: 1948 | E136: Каменные, кирпичные | F136: 2 | G136: 3 | L136: 2,124,581.00 | M136: 0.00 | N136: 0.00 | O136: 2,124,581.00 | P136: 0.00 | S136: 2017-12-31
A137: 118 | B137: ул. Орджоникидзе, д. 13/26 | C137: 1948 | E137: Блочные | F137: 2 | G137: 3 | L137: 2,347,478.00 | M137: 0.00 | N137: 0.00 | O137: 2,347,478.00 | P137: 0.00 | S137: 2017-12-31
A138: 119 | B138: ул. Орджоникидзе, д. 14 | C138: 1948 | E138: Каменные, кирпичные | F138: 2 | G138: 3 | L138: 2,468,472.00 | M138: 0.00 | N138: 0.00 | O138: 2,468,472.00 | P138: 0.00 | S138: 2017-12-31
A139: 120 | B139: ул. Орджоникидзе, д. 3 | C139: 1950 | E139: Каменные, кирпичные | F139: 2 | G139: 2 | L139: 1,612,780.00 | M139: 0.00 | N139: 0.00 | O139: 1,612,780.00 | P139: 0.00 | S139: 2017-12-31
A140: 121 | B140: ул. Орджоникидзе, д. 4/2 | C140: 1947 | E140: Каменные, кирпичные | F140: 2 | G140: 2 | L140: 2,580,419.00 | M140: 0.00 | N140: 0.00 | O140: 2,580,419.00 | P140: 0.00 | S140: 2017-12-31
A141: 122 | B141: ул. Орджоникидзе, д. 46, корп. 4 | C141: 1963 | E141: Панельные | F141: 5 | G141: 4 | L141: 1,681,645.00 | M141: 0.00 | N141: 0.00 | O141: 1,681,645.00 | P141: 0.00 | S141: 2017-12-31
A142: 123 | B142: ул. Орджоникидзе, д. 5 | C142: 1950 | E142: Каменные, кирпичные | F142: 2 | G142: 2 | L142: 1,318,880.00 | M142: 0.00 | N142: 0.00 | O142: 1,318,880.00 | P142: 0.00 | S142: 2017-12-31
A143: 124 | B143: ул. Орджоникидзе, д. 8 | C143: 1949 | E143: Блочные | F143: 2 | G143: 1 | L143: 1,566,345.00 | M143: 0.00 | N143: 0.00 | O143: 1,566,345.00 | P143: 0.00 | S143: 2017-12-31
A144: 125 | B144: ул. Паши Савельевой, д. 39, корп. 3 | C144: 1984 | E144: Панельные | F144: 9 | G144: 1 | L144: 1,910,088.00 | M144: 0.00 | N144: 0.00 | O144: 1,910,088.00 | P144: 0.00 | S144: 2017-12-31
A145: 126 | B145: ул. Паши Савельевой, д. 7 | C145: 1966 | E145: Каменные, кирпичные | F145: 5 | G145: 3 | L145: 2,694,957.00 | M145: 0.00 | N145: 0.00 | O145: 2,694,957.00 | P145: 0.00 | S145: 2017-12-31
A146: 127 | B146: ул. Пролетарская 6-я, д. 16 | C146: 1958 | E146: Каменные, кирпичные | F146: 2 | G146: 1 | L146: 580,578.00 | M146: 0.00 | N146: 0.00 | O146: 580,578.00 | P146: 0.00 | S146: 2017-12-31
A147: 128 | B147: ул. Пролетарская 6-я, д. 17 | C147: 1971 | E147: Каменные, кирпичные | F147: 2 | G147: 1 | L147: 615,357.00 | M147: 0.00 | N147: 0.00 | O147: 615,357.00 | P147: 0.00 | S147: 2017-12-31
A148: 129 | B148: ул. Пролетарская 6-я, д. 19 | C148: 1957 | E148: Каменные, кирпичные | F148: 2 | G148: 1 | L148: 269,948.13 | M148: 0.00 | N148: 0.00 | O148: =L148 -> 269,948.13 | P148: 0.00 | Q148: =L148/I148 ->  | S148: 2017-12-31
A149: 130 | B149: ул. Прядильная, д. 13 | C149: 1924 | E149: Деревянные | F149: 2 | G149: 2 | L149: 807,980.00 | M149: 0.00 | N149: 0.00 | O149: 807,980.00 | P149: 0.00 | S149: 2017-12-31
A150: =A149+1 -> 131 | B150: ул. Резинстроя, д. 2/7 | C150: 1949 | E150: Каменные, кирпичные | F150: 2 | G150: 1 | L150: 661,525.00 | M150: 0.00 | N150: 0.00 | O150: 661,525.00 | P150: 0.00 | S150: 2017-12-31
A151: 132 | B151: ул. Ржевская, д. 14 | C151: 1981 | E151: Панельные | F151: 9 | G151: 2 | L151: 3,719,885.00 | M151: 0.00 | N151: 0.00 | O151: 3,719,885.00 | P151: 0.00 | S151: 2017-12-31
A152: 133 | B152: ул. Ротмистрова, д. 17 | C152: 1949 | E152: Каменные, кирпичные | F152: 2 | G152: 2 | L152: 1,726,391.00 | M152: 0.00 | N152: 0.00 | O152: 1,726,391.00 | P152: 0.00 | S152: 2017-12-31
A153: 134 | B153: ул. Ротмистрова, д. 20 | C153: 1950 | E153: Блочные | F153: 2 | G153: 1 | L153: 1,521,754.00 | M153: 0.00 | N153: 0.00 | O153: 1,521,754.00 | P153: 0.00 | S153: 2017-12-31
A154: 135 | B154: ул. Румянцева, д. 24/40 | C154: 1937 | E154: Каменные, кирпичные | F154: 2 | G154: 1 | L154: 671,505.00 | M154: 0.00 | N154: 0.00 | O154: 671,505.00 | P154: 0.00 | S154: 2017-12-31
A155: 136 | B155: ул. Севастьянова, д. 7, корп. 1 | C155: 1961 | E155: Каменные, кирпичные | F155: 3 | G155: 2 | L155: 1,081,718.00 | M155: 0.00 | N155: 0.00 | O155: 1,081,718.00 | P155: 0.00 | S155: 2017-12-31
A156: 137 | B156: ул. Седова, д. 120А | C156: 1960 | E156: Блочные | F156: 3 | G156: 2 | L156: 206,635.00 | M156: 0.00 | N156: 0.00 | O156: 206,635.00 | P156: 0.00 | S156: 2017-12-31
A157: 138 | B157: ул. Седова, д. 120Б | C157: 1961 | E157: Блочные | F157: 3 | G157: 2 | L157: 1,044,081.04 | M157: 0.00 | N157: 0.00 | O157: 1,044,081.04 | P157: 0.00 | S157: 2017-12-31
A158: 139 | B158: ул. Седова, д. 1Б | C158: 1959 | E158: Каменные, кирпичные | F158: 2 | G158: 2 | L158: 1,340,000.00 | M158: 0.00 | N158: 0.00 | O158: 1,340,000.00 | P158: 0.00 | S158: 2017-12-31
A159: 140 | B159: ул. Скворцова-Степанова, д. 10 | C159: 1975 | E159: Панельные | F159: 5 | G159: 6 | L159: 2,294,529.00 | M159: 0.00 | N159: 0.00 | O159: 2,294,529.00 | P159: 0.00 | S159: 2017-12-31
A160: 141 | B160: ул. Скворцова-Степанова, д. 16 | C160: 1981 | E160: Панельные | F160: 9 | G160: 2 | L160: 2,615,616.20 | M160: 0.00 | N160: 0.00 | O160: 2,615,616.20 | P160: 0.00 | S160: 2017-12-31
A161: 142 | B161: ул. Склизкова, д. 54/25 | C161: 1964 | E161: Каменные, кирпичные | F161: 5 | G161: 3 | L161: 1,561,539.00 | M161: 0.00 | N161: 0.00 | O161: 1,561,539.00 | P161: 0.00 | S161: 2017-12-31
A162: 143 | B162: ул. Склизкова, д. 60 | C162: 1960 | E162: Каменные, кирпичные | F162: 5 | G162: 2 | L162: 1,421,187.00 | M162: 0.00 | N162: 0.00 | O162: 1,421,187.00 | P162: 0.00 | S162: 2017-12-31
A163: 144 | B163: ул. Склизкова, д. 80 | C163: 1962 | E163: Панельные | F163: 4 | G163: 4 | L163: 2,469,740.00 | M163: 0.00 | N163: 0.00 | O163: 2,469,740.00 | P163: 0.00 | S163: 2017-12-31
A164: 145 | B164: ул. Склизкова, д. 88 | C164: 1986 | E164: Каменные, кирпичные | F164: 9 | G164: 1 | L164: 1,104,857.00 | M164: 0.00 | N164: 0.00 | O164: 1,104,857.00 | P164: 0.00 | S164: 2017-12-31
A165: 146 | B165: ул. Склизкова, д. 94 | C165: 1989 | E165: Каменные, кирпичные | F165: 9 | G165: 1 | L165: 1,877,378.00 | M165: 0.00 | N165: 0.00 | O165: 1,877,378.00 | P165: 0.00 | S165: 2017-12-31
A166: 147 | B166: ул. Советская, д. 24 | C166: до 1917 | E166: Каменные, кирпичные | F166: 4 | G166: 2 | L166: 2,945,836.00 | M166: 0.00 | N166: 0.00 | O166: 2,945,836.00 | P166: 0.00 | S166: 2017-12-31
A167: 148 | B167: ул. Советская, д. 60 | C167: 1932 | E167: Каменные, кирпичные | F167: 5 | G167: 5 | L167: 1,118,494.00 | M167: 0.00 | N167: 0.00 | O167: 1,118,494.00 | P167: 0.00 | S167: 2017-12-31
A168: 149 | B168: ул. Советская, д. 8 | C168: до 1917 | E168: Каменные, кирпичные | F168: 3 | G168: 2 | L168: 2,540,427.00 | M168: 0.00 | N168: 0.00 | O168: 2,540,427.00 | P168: 0.00 | S168: 2017-12-31
A169: 150 | B169: ул. Спартака, д. 4/2 | C169: 1951 | E169: Каменные, кирпичные | F169: 3 | G169: 3 | L169: 2,253,297.00 | M169: 0.00 | N169: 0.00 | O169: 2,253,297.00 | P169: 0.00 | S169: 2017-12-31
A170: 151 | B170: ул. Строителей, д. 12 | C170: 1971 | E170: Панельные | F170: 5 | G170: 4 | L170: 1,390,061.00 | M170: 0.00 | N170: 0.00 | O170: 1,390,061.00 | P170: 0.00 | S170: 2017-12-31
A171: 152 | B171: ул. Тамары Ильиной, д. 7, корп. 1 | C171: 1961 | E171: Каменные, кирпичные | F171: 5 | G171: 4 | L171: 3,213,804.00 | M171: 0.00 | N171: 0.00 | O171: 3,213,804.00 | P171: 0.00 | S171: 2017-12-31
A172: 153 | B172: ул. Тамары Ильиной, д. 9/19 | C172: 1958 | E172: Каменные, кирпичные | F172: 4 | G172: 3 | L172: 3,202,371.00 | M172: 0.00 | N172: 0.00 | O172: 3,202,371.00 | P172: 0.00 | S172: 2017-12-31
A173: 154 | B173: ул. Терещенко, д. 28 | C173: 1959 | E173: Каменные, кирпичные | F173: 2 | G173: 1 | L173: 709,022.00 | M173: 0.00 | N173: 0.00 | O173: 709,022.00 | P173: 0.00 | S173: 2017-12-31
A174: 155 | B174: ул. Терещенко, д. 35 | C174: 1958 | E174: Каменные, кирпичные | F174: 2 | G174: 1 | L174: 1,136,930.00 | M174: 0.00 | N174: 0.00 | O174: 1,136,930.00 | P174: 0.00 | S174: 2017-12-31
A175: 156 | B175: ул. Терещенко, д. 41, корп. 1 | C175: 1958 | E175: Каменные, кирпичные | F175: 2 | G175: 2 | L175: 1,320,636.00 | M175: 0.00 | N175: 0.00 | O175: 1,320,636.00 | P175: 0.00 | S175: 2017-12-31
A176: 157 | B176: ул. Учительская, д. 39 | C176: 1986 | E176: Панельные | F176: 9 | G176: 3 | L176: 4,265,098.00 | M176: 0.00 | N176: 0.00 | O176: 4,265,098.00 | P176: 0.00 | S176: 2017-12-31
A177: 158 | B177: ул. Фадеева, д. 34, корп. 1 | C177: 1963 | E177: Каменные, кирпичные | F177: 4 | G177: 4 | L177: 2,115,890.00 | M177: 0.00 | N177: 0.00 | O177: 2,115,890.00 | P177: 0.00 | S177: 2017-12-31
A178: 159 | B178: ул. Хромова, д. 16 | C178: 1961 | E178: Каменные, кирпичные | F178: 3 | G178: 2 | L178: 482,251.51 | M178: 0.00 | N178: 0.00 | O178: 482,251.51 | P178: 0.00 | S178: 2017-12-31
A179: 160 | B179: ул. Хромова, д. 8 | C179: 1959 | E179: Каменные, кирпичные | F179: 3 | G179: 2 | L179: 1,018,040.92 | M179: 0.00 | N179: 0.00 | O179: 1,018,040.92 | P179: 0.00 | S179: 2017-12-31
A180: 161 | B180: ул. Чудова, д. 14 | C180: 1977 | E180: Каменные, кирпичные | F180: 9 | G180: 1 | L180: 1,871,554.00 | M180: 0.00 | N180: 0.00 | O180: =L180 -> 1,871,554.00 | P180: 0.00 | Q180: =L180/I180 ->  | S180: 2017-12-31
A181: 162 | B181: ул. Чудова, д. 19 | C181: 1974 | E181: Каменные, кирпичные | F181: 5 | G181: 4 | L181: 2,652,530.00 | M181: 0.00 | N181: 0.00 | O181: 2,652,530.00 | P181: 0.00 | S181: 2017-12-31
A182: 163 | B182: ш. Московское, д. 13 | C182: 1974 | E182: Панельные | F182: 5 | G182: 6 | L182: 3,645,969.00 | M182: 0.00 | N182: 0.00 | O182: 3,645,969.00 | P182: 0.00 | S182: 2017-12-31
A183: 164 | B183: ш. Петербургское, д. 14, корп. 1 | C183: 1986 | E183: Панельные | F183: 9 | G183: 1 | L183: 771,330.00 | M183: 0.00 | N183: 0.00 | O183: 771,330.00 | P183: 0.00 | S183: 2017-12-31
A184: 165 | B184: ш. Петербургское, д. 50 | C184: 1972 | E184: Панельные | F184: 9 | G184: 1 | L184: 1,894,719.00 | M184: 0.00 | N184: 0.00 | O184: 1,894,719.00 | P184: 0.00 | S184: 2017-12-31
A185: 166 | B185: ш. Петербургское, д. 60 | C185: 1964 | E185: Каменные, кирпичные | F185: 5 | G185: 3 | L185: 1,492,412.00 | M185: 0.00 | N185: 0.00 | O185: 1,492,412.00 | P185: 0.00 | S185: 2017-12-31
A186: 167 | B186: ш. Петербургское, д. 7А | C186: 1884 | E186: Каменные, кирпичные | F186: 2 | G186: 2 | L186: 651,523.25 | M186: 0.00 | N186: 0.00 | O186: 651,523.25 | P186: 0.00 | S186: 2017-12-31
A187: 168 | B187: ш. Петербургское, д. 86 | C187: 1948 | E187: Блочные | F187: 2 | G187: 2 | L187: 1,221,424.83 | M187: 0.00 | N187: 0.00 | O187: 1,221,424.83 | P187: 0.00 | S187: 2017-12-31
B188: Итого по город Вышний Волочек | H188: =SUM(H189:H204) -> 25,162.00 | I188: 23,147.80 | J188: 18,031.42 | K188: 816 | L188: 31,255,395.63 | M188: 0.00 | N188: 0.00 | O188: =SUM(O189:O204) -> 31,255,395.63 | P188: =SUM(P189:P203) -> 0.00 | Q188: Х | R188: Х | S188: 2017-12-31
A189: 1 | B189: ул. Баумана, д. 13 | C189: 1962 | E189: Каменные, кирпичные | F189: 5 | G189: 4 | H189: 3005.3 | I189: 2844.5 | J189: 2525.7 | K189: 92 | L189: =O189 -> 3,615,424.00 | M189: 0.00 | N189: 0.00 | O189: 3,615,424.00 | P189: 0.00 | Q189: =L189/I189 -> 1,271.02 | R189: 7,822.00 | S189: 2017-12-31
A190: 2 | B190: ул. Б. Садовая, д. 29 | C190: 1992 | E190: Каменные, кирпичные | F190: 5 | G190: 7 | H190: 5555.6 | I190: 5004.6 | J190: 4087.1 | K190: 210 | L190: =O190 -> 3,435,122.02 | M190: 0.00 | N190: 0.00 | O190: 3,435,122.02 | P190: 0.00 | Q190: 686.39 | R190: 7,822.00 | S190: 2017-12-31
A191: 3 | B191: ул. Правды, д. 27 | C191: 1958 | E191: Каменные, кирпичные | F191: 2 | G191: 1 | H191: 498.8 | I191: 454.6 | J191: 454.6 | K191: 18 | L191: 1,525,199.00 | M191: 0.00 | N191: 0.00 | O191: 1,525,199.00 | P191: 0.00 | Q191: 3,355.04 | R191: 7,822.00 | S191: 2017-12-31
A192: 4 | B192: ул. Правды, д. 31/33 | C192: 1956 | E192: Каменные, кирпичные | F192: 2 | G192: 3 | H192: 854.1 | I192: 811.6 | J192: 519.32 | K192: 28 | L192: 2,379,167.99 | M192: 0.00 | N192: 0.00 | O192: 2,379,167.99 | P192: 0.00 | Q192: 2,931.45 | R192: 7,822.00 | S192: 2017-12-31
A193: 5 | B193: ул. Правды, д. 27а | C193: 1960 | E193: Каменные, кирпичные | F193: 3 | G193: 3 | H193: 1534.2 | I193: 1616.2 | J193: 1493.1 | K193: 47 | L193: 2,435,193.00 | M193: 0.00 | N193: 0.00 | O193: 2,435,193.00 | P193: 0.00 | Q193: 1,506.74 | R193: 7,822.00 | S193: 2017-12-31
A194: 6 | B194: Казанский пр-т, д. 105 | C194: 1936 | E194: Каменные, кирпичные | F194: 3 | G194: 4 | H194: 2389.4 | I194: 2172.1 | J194: 1560 | K194: 33 | L194: 2,705,457.32 | M194: 0.00 | N194: 0.00 | O194: 2,705,457.32 | P194: 0.00 | Q194: 1,245.55 | R194: 7,822.00 | S194: 2017-12-31
A195: 7 | B195: ул. Ст. Разина, д. 41 | C195: 1993 | E195: Каменные, кирпичные | F195: 3 | G195: 2 | H195: 870 | I195: 845.5 | J195: 799.3 | K195: 32 | L195: 954,408.50 | M195: 0.00 | N195: 0.00 | O195: 954,408.50 | P195: 0.00 | Q195: 1,128.81 | R195: 7,822.00 | S195: 2017-12-31
A196: 8 | B196: ул. Московская, д. 1/49 | C196: 1917 | E196: Каменные, кирпичные | F196: 3 | G196: 1 | H196: 978.9 | I196: 900.2 | J196: 229.3 | K196: 10 | L196: 2,430,125.00 | M196: 0.00 | N196: 0.00 | O196: 2,430,125.00 | P196: 0.00 | Q196: 2,699.54 | R196: 7,822.00 | S196: 2017-12-31
A197: 9 | B197: ул. Екатерининская, д. 4-6 | C197: 1917 | E197: Каменные, кирпичные | F197: 3 | G197: 3 | H197: 2020.3 | I197: 1816.9 | J197: 1314.2 | K197: 47 | L197: 2,505,651.00 | M197: 0.00 | N197: 0.00 | O197: 2,505,651.00 | P197: 0.00 | Q197: 1,379.08 | R197: 7,822.00 | S197: 2017-12-31
A198: 10 | B198: Казанский пр-т, д. 93 | C198: 1961 | E198: Каменные, кирпичные | F198: 3 | G198: 2 | H198: 942.6 | I198: 942.6 | J198: 623.9 | K198: 34 | L198: 1,546,987.00 | M198: 0.00 | N198: 0.00 | O198: 1,546,987.00 | P198: 0.00 | Q198: 1,641.19 | R198: 7,822.00 | S198: 2017-12-31
A199: 11 | B199: Ржевский тракт, д. 44 | C199: 1961 | E199: Каменные, кирпичные | F199: 2 | G199: 1 | H199: 344.2 | I199: 314.5 | J199: 268.1 | K199: 15 | L199: 709,600.00 | M199: 0.00 | N199: 0.00 | O199: 709,600.00 | P199: 0.00 | Q199: 2,256.28 | R199: 7,822.00 | S199: 2017-12-31
A200: 12 | B200: ул. Шмидта, д. 79/4 | C200: 1923 | E200: Деревянные | F200: 2 | G200: 1 | H200: 194.8 | I200: 194 | J200: 115.7 | K200: 16 | L200: 446,509.00 | M200: 0.00 | N200: 0.00 | O200: 446,509.00 | P200: 0.00 | Q200: 2,301.59 | R200: 7,822.00 | S200: 2017-12-31
A201: 13 | B201: ул. Декабристов, д. 9 | C201: 1953 | E201: Каменные, кирпичные | F201: 2 | G201: 1 | H201: 518 | I201: 483.4 | J201: 403.7 | K201: 34 | L201: 1,205,824.00 | M201: 0.00 | N201: 0.00 | O201: 1,205,824.00 | P201: 0.00 | Q201: 2,494.46 | R201: 7,822.00 | S201: 2017-12-31
A202: 14 | B202: ул. Новгородская, д. 4 | C202: 1960 | E202: Каменные, кирпичные | F202: 2 | G202: 2 | H202: 312.8 | I202: 300 | J202: 44.5 | K202: 11 | L202: 818,595.80 | M202: 0.00 | N202: 0.00 | O202: 818,595.80 | P202: 0.00 | Q202: 2,728.65 | R202: 7,822.00 | S202: 2017-12-31
A203: 15 | B203: Лермонтовский пер., д. 16 | C203: 1983 | E203: Крупнопанельные | F203: 5 | G203: 2 | H203: 4292.2 | I203: 3595.1 | J203: 2978.5 | K203: 170 | L203: 2,707,283.00 | M203: 0.00 | N203: 0.00 | O203: 2,707,283.00 | P203: 0.00 | Q203: 753.05 | R203: 7,822.00 | S203: 2017-12-31
... 1245 more rows

Sheet часть 2 (hidden)
A1: II. Реестр многоквартирных домов, которые подлежат капитальному ремонту по видам ремонта
A2: № п/п | B2: Адрес МКД | C2: Стоимость капитального ремонта, всего | D2: Виды, установленные нормативным правовым актом субъекта РФ:
D3: ремонт внутридомовых инженерных систем
D4: Итого | E4: электроснабжения | F4: теплоснабжения | G4: газоснабжения | H4: холодного водоснабжения | I4: горячего водоснабжения | J4: водоотведения | K4: установка коллективных (общедомовых) приборов учета и узлов управления | L4: ремонт или замена лифтового оборудования, признанного непригодным для эксплуатации, ремонт лифтовых шахт | N4: ремонт крыши, в том числе устройство выходов на кровлю | P4: ремонт подвальных помещений, относящихся к общему имуществу в многоквартирном доме | R4: ремонт фасада | T4: ремонт фундамента | W4: кровля 3342,75 | X4: фасад 1600,33 | Y4: электрика | Z4: газоснабжение | AA4: тепло | AB4: хвс | AC4: гвс | AD4: водоотв. | AE4: подвал 1012,19
C5: руб. | K5: руб. | L5: ед. | M5: руб. | N5: кв. м | O5: руб. | P5: кв. м | Q5: руб. | R5: кв. м | S5: руб. | T5: куб. м | U5: руб. | AF5: лифт | AG5: фундам.
A6: 1 | B6: 2 | C6: 3 | D6: 4 | E6: 5 | F6: 6 | G6: 7 | H6: 8 | I6: 9 | J6: 10 | K6: 11 | L6: 12 | M6: 13 | N6: 14 | O6: 15 | P6: 16 | Q6: 17 | R6: 18 | S6: 19 | T6: 20 | U6: 21
B7: Итого по Тверской области | C7: =C8+C177+C194+C196+C222+C235+C251+C260+C272+C275+C294+C298+C311+C315+C322+C328+C342+C353+C366+C374+C419+C424+C429+C440+C444+C456+C501+C506+C509+C516+C519+C526+C532+C537+C544+C556 -> 688,029,148.84 | K7: =K8+K177+K194+K196+K222+K235+K251+K260+K272+K275+K294+K298+K311+K315+K322+K328+K342+K353+K366+K374+K419+K424+K429+K440+K444+K456+K501+K506+K509+K516+K519+K526+K532+K537+K544+K556 ->  | L7: 79 | M7: =M8+M177+M194+M196+M222+M235+M251+M260+M272+M275+M294+M298+M311+M315+M322+M328+M342+M353+M366+M374+M419+M424+M429+M440+M444+M456+M501+M506+M509+M516+M519+M526+M532+M537+M544+M556 -> 109,722,398.00 | N7: =N8+N177+N194+N196+N222+N235+N251+N260+N272+N275+N294+N298+N311+N315+N322+N328+N342+N353+N366+N374+N419+N424+N429+N440+N444+N456+N501+N506+N509+N516+N519+N526+N532+N537+N544+N556 -> 181,088.71 | O7: =O8+O177+O194+O196+O222+O235+O251+O260+O272+O275+O294+O298+O311+O315+O322+O328+O342+O353+O366+O374+O419+O424+O429+O440+O444+O456+O501+O506+O509+O516+O519+O526+O532+O537+O544+O556 -> 407,329,726.71 | P7: 682.00 | Q7: =Q8+Q177+Q194+Q196+Q222+Q235+Q251+Q260+Q272+Q275+Q294+Q298+Q311+Q315+Q322+Q328+Q342+Q353+Q366+Q374+Q419+Q424+Q429+Q440+Q444+Q456+Q501+Q506+Q509+Q516+Q519+Q526+Q532+Q537+Q544+Q556 -> 662,518.00 | R7: 41,826.13 | S7: =S8+S177+S194+S196+S222+S235+S251+S260+S272+S275+S294+S298+S311+S315+S322+S328+S342+S353+S366+S374+S419+S424+S429+S440+S444+S456+S501+S506+S509+S516+S519+S526+S532+S537+S544+S556 -> 57,577,828.79 | T7: 212.00 | U7: =U8+U177+U194+U196+U222+U235+U251+U260+U272+U275+U294+U298+U311+U315+U322+U328+U342+U353+U366+U374+U419+U424+U429+U440+U444+U456+U501+U506+U509+U516+U519+U526+U532+U537+U544+U556 -> 728,274.00
B8: Итого по город Тверь | C8: =SUM(C9:C176) -> 336,230,870.63 | K8: =SUM(K9:K176) ->  | L8: 45 | M8: =SUM(M9:M176) -> 84,665,172.00 | N8: =SUM(N9:N176) -> 64,824.65 | O8: =SUM(O9:O176) -> 127,943,364.07 | P8: 682.00 | Q8: =SUM(Q9:Q176) -> 662,518.00 | R8: 29,106.85 | S8: =SUM(S9:S176) -> 38,255,949.95 | T8: 0 | U8: 0.00
A9: 1 | B9: б-р Гусева, д. 25 | C9: 5,982,216.00 | K9: 0.00 | L9: 0 | M9: 0.00 | N9: 0.00 | O9: 0.00 | P9: 0 | Q9: 0.00 | R9: 4,158.84 | S9: 5,982,216.00 | T9: 0 | U9: 0.00 | V9: =C9-'часть 1'!L20 -> 0.00
A10: 2 | B10: б-р Гусева, д. 39 | C10: 9,379,653.00 | K10: 0.00 | L10: 5 | M10: 9,379,653.00 | N10: 0.00 | O10: 0.00 | P10: 0 | Q10: 0.00 | R10: 0 | S10: 0.00 | T10: 0 | U10: 0.00 | V10: =C10-'часть 1'!L21 -> 0.00
A11: 3 | B11: б-р Гусева, д. 41 | C11: 3,763,756.00 | K11: 0.00 | L11: 2 | M11: 3,763,756.00 | N11: 0.00 | O11: 0.00 | P11: 0 | Q11: 0.00 | R11: 0 | S11: 0.00 | T11: 0 | U11: 0.00 | V11: =C11-'часть 1'!L22 -> 0.00
A12: 4 | B12: б-р Гусева, д. 45, корп. 1 | C12: 1,095,812.00 | K12: 1,095,812.00 | L12: 0 | M12: 0.00 | N12: 0.00 | O12: 0.00 | P12: 0 | Q12: 0.00 | R12: 0 | S12: 0.00 | T12: 0 | U12: 0.00 | V12: =C12-'часть 1'!L23 -> 0.00
A13: 5 | B13: б-р Гусева, д. 9 | C13: 5,619,141.00 | K13: 0.00 | L13: 3 | M13: 5,619,141.00 | N13: 0.00 | O13: 0.00 | P13: 0 | Q13: 0.00 | R13: 0 | S13: 0.00 | T13: 0 | U13: 0.00 | V13: =C13-'часть 1'!L24 -> 0.00
A14: 6 | B14: б-р Ногина, д. 2 | C14: 3,748,388.00 | K14: 0.00 | L14: 2 | M14: 3,748,388.00 | N14: 0.00 | O14: 0.00 | P14: 0 | Q14: 0.00 | R14: 0 | S14: 0.00 | T14: 0 | U14: 0.00 | V14: =C14-'часть 1'!L25 -> 0.00
A15: 7 | B15: б-р Ногина, д. 4 | C15: 15,157,748.00 | K15: 0.00 | L15: 8 | M15: =C15 -> 15,157,748.00 | N15: 0.00 | O15: 0.00 | P15: 0 | Q15: 0.00 | R15: 0 | S15: 0.00 | T15: 0 | U15: 0.00 | V15: =C15-'часть 1'!L26 -> 0.00
A16: 8 | B16: б-р Профсоюзов, д. 21 | C16: 1,030,213.00 | K16: 0.00 | L16: 0 | M16: 0.00 | N16: 513.80 | O16: =C16 -> 1,030,213.00 | P16: 0 | Q16: 0.00 | R16: 0 | S16: 0.00 | T16: 0 | U16: 0.00 | V16: =C16-'часть 1'!L27 -> 0.00
A17: 9 | B17: б-р Радищева, д. 26 | C17: 530,465.00 | K17: =#REF! ->  | L17: 0 | M17: 0.00 | N17: 0.00 | O17: 0.00 | P17: 0 | Q17: 0.00 | R17: 0 | S17: 0.00 | T17: 0 | U17: 0.00 | V17: =C17-'часть 1'!L28 -> 0.00
A18: 10 | B18: б-р Цанова, д. 10 | C18: 1,983,854.00 | K18: 0.00 | L18: 0 | M18: 0.00 | N18: 1,000.00 | O18: 1,983,854.00 | P18: 0 | Q18: 0.00 | R18: 0 | S18: 0.00 | T18: 0 | U18: 0.00 | V18: =C18-'часть 1'!L29 -> 0.00
A19: 11 | B19: наб. Афанасия Никитина, д. 24 | C19: 1,206,304.00 | K19: 0.00 | L19: 0 | M19: 0.00 | N19: 576.00 | O19: 1,206,304.00 | P19: 0 | Q19: 0.00 | R19: 0 | S19: 0.00 | T19: 0 | U19: 0.00 | V19: =C19-'часть 1'!L30 -> 0.00
A20: 12 | B20: наб. Афанасия Никитина, д. 24А | C20: 402,530.20 | K20: 402,530.20 | L20: 0 | M20: 0.00 | N20: 0.00 | O20: 0.00 | P20: 0 | Q20: 0.00 | R20: 0 | S20: 0.00 | T20: 0 | U20: 0.00 | V20: =C20-'часть 1'!L31 -> 0.00
A21: 13 | B21: наб. Мигаловская, д. 10А | C21: 2,861,497.00 | K21: 0.00 | L21: 0 | M21: 0.00 | N21: 1,450.00 | O21: 2,861,497.00 | P21: 0 | Q21: 0.00 | R21: 0 | S21: 0.00 | T21: 0 | U21: 0.00 | V21: =C21-'часть 1'!L32 -> 0.00
A22: 14 | B22: п. Литвинки, д. 27 | C22: 1,535,065.47 | K22: 0.00 | L22: 0 | M22: 0.00 | N22: 0.00 | O22: 0.00 | P22: 0 | Q22: 0.00 | R22: 1,641.00 | S22: 1,535,065.47 | T22: 0 | U22: 0.00 | V22: =C22-'часть 1'!L33 -> 0.00
A23: 15 | B23: п. Химинститута, д. 13 | C23: 930,534.00 | K23: 930,534.00 | L23: 0 | M23: 0.00 | N23: 0.00 | O23: 0.00 | P23: 0 | Q23: 0.00 | R23: 0 | S23: 0.00 | T23: 0 | U23: 0.00 | V23: =C23-'часть 1'!L34 -> 0.00
A24: 16 | B24: п. Химинститута, д. 20 | C24: 662,518.00 | K24: 0.00 | L24: 0 | M24: 0.00 | N24: 0.00 | O24: 0.00 | P24: 682.00 | Q24: =C24 -> 662,518.00 | R24: 0 | S24: 0.00 | T24: 0 | U24: 0.00 | V24: =C24-'часть 1'!L35 -> 0.00
A25: 17 | B25: п. Химинститута, д. 32 | C25: 2,346,663.00 | K25: 2,346,663.00 | L25: 0 | M25: 0.00 | N25: 0.00 | O25: 0.00 | P25: 0 | Q25: 0.00 | R25: 0 | S25: 0.00 | T25: 0 | U25: 0.00 | V25: =C25-'часть 1'!L36 -> 0.00
A26: 18 | B26: п. Химинститута, д. 38 | C26: 727,019.00 | K26: 727,019.00 | L26: 0 | M26: 0.00 | N26: 0.00 | O26: 0.00 | P26: 0 | Q26: 0.00 | R26: 0 | S26: 0.00 | T26: 0 | U26: 0.00 | V26: =C26-'часть 1'!L37 -> 0.00
A27: 19 | B27: п. Химинститута, д. 7 | C27: 538,121.00 | K27: 538,121.00 | L27: 0 | M27: 0.00 | N27: 0.00 | O27: 0.00 | P27: 0 | Q27: 0.00 | R27: 0 | S27: 0.00 | T27: 0 | U27: 0.00 | V27: =C27-'часть 1'!L38 -> 0.00
A28: 20 | B28: п. Химинститута, д. 9 | C28: 1,756,852.00 | K28: 0.00 | L28: 0 | M28: 0.00 | N28: 891.00 | O28: 1,756,852.00 | P28: 0 | Q28: 0.00 | R28: 0 | S28: 0.00 | T28: 0 | U28: 0.00 | V28: =C28-'часть 1'!L39 -> 0.00
A29: 21 | B29: пер. Артиллерийский, д. 12 | C29: 676,398.28 | K29: 0.00 | L29: 0 | M29: 0.00 | N29: 0.00 | O29: 0.00 | P29: 0 | Q29: 0.00 | R29: 1,444.00 | S29: 676,398.28 | T29: 0 | U29: 0.00 | V29: =C29-'часть 1'!L40 -> 0.00
A30: 22 | B30: пер. Коллективный, д. 6 | C30: 766,539.00 | K30: 0.00 | L30: 0 | M30: 0.00 | N30: 378.50 | O30: 766,539.00 | P30: 0 | Q30: 0.00 | R30: 0 | S30: 0.00 | T30: 0 | U30: 0.00 | V30: =C30-'часть 1'!L41 -> 0.00
A31: 23 | B31: пер. Никитина, д. 5 | C31: 1,186,114.00 | K31: 0.00 | L31: 0 | M31: 0.00 | N31: 586.30 | O31: 1,186,114.00 | P31: 0 | Q31: 0.00 | R31: 0 | S31: 0.00 | T31: 0 | U31: 0.00 | V31: =C31-'часть 1'!L42 -> 0.00
A32: 24 | B32: пер. Перекопский, д. 11А | C32: 178,272.59 | K32: 178,272.59 | L32: 0 | M32: 0.00 | N32: 0.00 | O32: 0.00 | P32: 0 | Q32: 0.00 | R32: 0 | S32: 0.00 | T32: 0 | U32: 0.00 | V32: =C32-'часть 1'!L43 -> 0.00
A33: 25 | B33: пер. Перекопский, д. 15 | C33: 1,087,116.00 | K33: =#REF! ->  | L33: 0 | M33: 0.00 | N33: 0.00 | O33: 0.00 | P33: 0 | Q33: 0.00 | R33: 0 | S33: 0.00 | T33: 0 | U33: 0.00 | V33: =C33-'часть 1'!L44 -> 0.00
A34: 26 | B34: пер. Смоленский, д. 8, корп. 1 | C34: 1,411,363.00 | K34: 0.00 | L34: 0 | M34: 0.00 | N34: 702.00 | O34: 1,411,363.00 | P34: 0 | Q34: 0.00 | R34: 0 | S34: 0.00 | T34: 0 | U34: 0.00 | V34: =C34-'часть 1'!L45 -> 0.00
A35: 27 | B35: пер. Университетский, д. 3 | C35: 1,136,666.00 | K35: 0.00 | L35: 0 | M35: 0.00 | N35: 552.00 | O35: 1,136,666.00 | P35: 0 | Q35: 0.00 | R35: 0 | S35: 0.00 | T35: 0 | U35: 0.00 | V35: =C35-'часть 1'!L46 -> 0.00
A36: 28 | B36: пр-кт 50 лет Октября, д. 2/19 | C36: 1,385,674.00 | K36: 1,385,674.00 | L36: 0 | M36: 0.00 | N36: 0.00 | O36: 0.00 | P36: 0 | Q36: 0.00 | R36: 0 | S36: 0.00 | T36: 0 | U36: 0.00 | V36: =C36-'часть 1'!L47 -> 0.00
A37: 29 | B37: пр-кт Калинина, д. 9 | C37: 4,619,990.00 | K37: 0.00 | L37: 0 | M37: 0.00 | N37: 2,319.00 | O37: 4,619,990.00 | P37: 0 | Q37: 0.00 | R37: 0 | S37: 0.00 | T37: 0 | U37: 0.00 | V37: =C37-'часть 1'!L48 -> 0.00
A38: 30 | B38: пр-кт Ленина, д. 14, корп. 2 | C38: 1,865,304.00 | K38: 0.00 | L38: 0 | M38: 0.00 | N38: 924.00 | O38: 1,865,304.00 | P38: 0 | Q38: 0.00 | R38: 0 | S38: 0.00 | T38: 0 | U38: 0.00 | V38: =C38-'часть 1'!L49 -> 0.00
A39: 31 | B39: пр-кт Ленина, д. 40 | C39: 1,870,910.00 | K39: 0.00 | L39: 0 | M39: 0.00 | N39: 946.30 | O39: 1,870,910.00 | P39: 0 | Q39: 0.00 | R39: 0 | S39: 0.00 | T39: 0 | U39: 0.00 | V39: =C39-'часть 1'!L50 -> 0.00
A40: 32 | B40: пр-кт Ленина, д. 43 | C40: 1,533,757.00 | K40: 0.00 | L40: 0 | M40: 0.00 | N40: 772.90 | O40: 1,533,757.00 | P40: 0 | Q40: 0.00 | R40: 0 | S40: 0.00 | T40: 0 | U40: 0.00 | V40: =C40-'часть 1'!L51 -> 0.00
A41: 33 | B41: пр-кт Ленина, д. 43А | C41: 939,858.00 | K41: 939,858.00 | L41: 0 | M41: 0.00 | N41: 0.00 | O41: 0.00 | P41: 0 | Q41: 0.00 | R41: 0 | S41: 0.00 | T41: 0 | U41: 0.00 | V41: =C41-'часть 1'!L52 -> 0.00
A42: 34 | B42: пр-кт Октябрьский, д. 69 | C42: 2,368,392.00 | K42: 0.00 | L42: 0 | M42: 0.00 | N42: 1,200.00 | O42: 2,368,392.00 | P42: 0 | Q42: 0.00 | R42: 0 | S42: 0.00 | T42: 0 | U42: 0.00 | V42: =C42-'часть 1'!L53 -> 0.00
A43: 35 | B43: пр-кт Победы, д. 28, корп. 1 | C43: 2,433,930.91 | K43: 1,478,520.91 | L43: 0 | M43: 0.00 | N43: 526.80 | O43: 955,410.00 | P43: 0 | Q43: 0.00 | R43: 0 | S43: 0.00 | T43: 0 | U43: 0.00 | V43: =C43-'часть 1'!L54 -> 0.00
A44: 36 | B44: пр-кт Победы, д. 2А | C44: 1,721,850.00 | K44: 0.00 | L44: 0 | M44: 0.00 | N44: 868.68 | O44: 1,721,850.00 | P44: 0 | Q44: 0.00 | R44: 0 | S44: 0.00 | T44: 0 | U44: 0.00 | V44: =C44-'часть 1'!L55 -> 0.00
A45: 37 | B45: пр-кт Победы, д. 32/3 | C45: 814,117.00 | K45: 814,117.00 | L45: 0 | M45: 0.00 | N45: 0.00 | O45: 0.00 | P45: 0 | Q45: 0.00 | R45: 0 | S45: 0.00 | T45: 0 | U45: 0.00 | V45: =C45-'часть 1'!L56 -> 0.00
A46: 38 | B46: пр-кт Победы, д. 36/46 | C46: 3,045,081.00 | K46: 0.00 | L46: 0 | M46: 0.00 | N46: 0.00 | O46: 0.00 | P46: 0 | Q46: 0.00 | R46: 2,108.00 | S46: 3,045,081.00 | T46: 0 | U46: 0.00 | V46: =C46-'часть 1'!L57 -> 0.00
A47: 39 | B47: пр-кт Победы, д. 38/45 | C47: 2,244,806.00 | K47: 0.00 | L47: 0 | M47: 0.00 | N47: 1,120.00 | O47: 2,244,806.00 | P47: 0 | Q47: 0.00 | R47: 0 | S47: 0.00 | T47: 0 | U47: 0.00 | V47: =C47-'часть 1'!L58 -> 0.00
A48: 40 | B48: пр-кт Победы, д. 4А | C48: 1,361,273.00 | K48: 347,471.00 | L48: 0 | M48: 0.00 | N48: 0.00 | O48: 0.00 | P48: 0 | Q48: 0.00 | R48: 1,105.00 | S48: 1,013,802.00 | T48: 0 | U48: 0.00 | V48: =C48-'часть 1'!L59 -> 0.00
A49: 41 | B49: пр-кт Победы, до 22/15 | C49: 2,421,596.00 | K49: 0.00 | L49: 0 | M49: 0.00 | N49: 1,230.72 | O49: 2,421,596.00 | P49: 0 | Q49: 0.00 | R49: 0 | S49: 0.00 | T49: 0 | U49: 0.00 | V49: =C49-'часть 1'!L60 -> 0.00
A50: 42 | B50: пр-кт Чайковского, д. 24/2Б | C50: 2,056,315.00 | K50: 0.00 | L50: 0 | M50: 0.00 | N50: 978.00 | O50: 2,056,315.00 | P50: 0 | Q50: 0.00 | R50: 0 | S50: 0.00 | T50: 0 | U50: 0.00 | V50: =C50-'часть 1'!L61 -> 0.00
A51: 43 | B51: пр-кт Чайковского, д. 37 | C51: 9,473,593.00 | K51: 0.00 | L51: 5 | M51: 9,473,593.00 | N51: 0.00 | O51: 0.00 | P51: 0 | Q51: 0.00 | R51: 0 | S51: 0.00 | T51: 0 | U51: 0.00 | V51: =C51-'часть 1'!L62 -> 0.00
A52: 44 | B52: проезд Зеленый, д. 47, корп. 1 | C52: 4,441,828.00 | K52: 0.00 | L52: 0 | M52: 0.00 | N52: 0.00 | O52: 0.00 | P52: 0 | Q52: 0.00 | R52: 3,081.40 | S52: 4,441,828.00 | T52: 0 | U52: 0.00 | V52: =C52-'часть 1'!L63 -> 0.00
A53: 45 | B53: проезд Зеленый, д. 47, корп. 2 | C53: 3,051,089.00 | K53: 0.00 | L53: 0 | M53: 0.00 | N53: 1,549.00 | O53: 3,051,089.00 | P53: 0 | Q53: 0.00 | R53: 0 | S53: 0.00 | T53: 0 | U53: 0.00 | V53: =C53-'часть 1'!L64 -> 0.00
A54: 46 | B54: проезд Карпинского 1-й, д. 2/60 | C54: 869,749.00 | K54: 0.00 | L54: 0 | M54: 0.00 | N54: 431.50 | O54: =C54 -> 869,749.00 | P54: 0 | Q54: 0.00 | R54: 0 | S54: 0.00 | T54: 0 | U54: 0.00 | V54: =C54-'часть 1'!L65 -> 0.00
A55: 47 | B55: проезд Карпинского 1-й, д. 4 | C55: 869,880.00 | K55: 0.00 | L55: 0 | M55: 0.00 | N55: 431.50 | O55: =C55 -> 869,880.00 | P55: 0 | Q55: 0.00 | R55: 0 | S55: 0.00 | T55: 0 | U55: 0.00 | V55: =C55-'часть 1'!L66 -> 0.00
A56: 48 | B56: проезд Розы Люксембург 1-й, д. 6 | C56: 172,302.00 | K56: 172,302.00 | L56: 0 | M56: 0.00 | N56: 0.00 | O56: 0.00 | P56: 0 | Q56: 0.00 | R56: 0 | S56: 0.00 | T56: 0 | U56: 0.00 | V56: =C56-'часть 1'!L67 -> 0.00
A57: 49 | B57: тер. Двор Пролетарки, д. 119 | C57: 3,706,393.00 | K57: =#REF! ->  | L57: 0 | M57: 0.00 | N57: 0.00 | O57: 0.00 | P57: 0 | Q57: 0.00 | R57: 0 | S57: 0.00 | T57: 0 | U57: 0.00 | V57: =C57-'часть 1'!L68 -> 0.00
A58: 50 | B58: тер. Двор Пролетарки, д. 43 | C58: 698,585.00 | K58: 698,585.00 | L58: 0 | M58: 0.00 | N58: 0.00 | O58: 0.00 | P58: 0 | Q58: 0.00 | R58: 0 | S58: 0.00 | T58: 0 | U58: 0.00 | V58: =C58-'часть 1'!L69 -> 0.00
A59: 51 | B59: тер. Товарный двор, д. 483А | C59: 951,740.00 | K59: 0.00 | L59: 0 | M59: 0.00 | N59: 471.10 | O59: 951,740.00 | P59: 0 | Q59: 0.00 | R59: 0 | S59: 0.00 | T59: 0 | U59: 0.00 | V59: =C59-'часть 1'!L70 -> 0.00
A60: 52 | B60: ул. 15 лет Октября, д. 47 | C60: 2,056,139.00 | K60: 0.00 | L60: 0 | M60: 0.00 | N60: 1,020.00 | O60: 2,056,139.00 | P60: 0 | Q60: 0.00 | R60: 0 | S60: 0.00 | T60: 0 | U60: 0.00 | V60: =C60-'часть 1'!L71 -> 0.00
A61: 53 | B61: ул. 15 лет Октября, д. 56 | C61: 1,321,356.00 | K61: 0.00 | L61: 0 | M61: 0.00 | N61: 662.00 | O61: 1,321,356.00 | P61: 0 | Q61: 0.00 | R61: 0 | S61: 0.00 | T61: 0 | U61: 0.00 | V61: =C61-'часть 1'!L72 -> 0.00
A62: 54 | B62: ул. 15 лет Октября, д. 58, корп. 1 | C62: 1,679,278.00 | K62: 355,519.00 | L62: 0 | M62: 0.00 | N62: 663.30 | O62: 1,323,759.00 | P62: 0 | Q62: 0.00 | R62: 0 | S62: 0.00 | T62: 0 | U62: 0.00 | V62: =C62-'часть 1'!L73 -> 0.00
A63: 55 | B63: ул. 15 лет Октября, д. 60 | C63: 1,100,896.00 | K63: 0.00 | L63: 0 | M63: 0.00 | N63: 549.00 | O63: 1,100,896.00 | P63: 0 | Q63: 0.00 | R63: 0 | S63: 0.00 | T63: 0 | U63: 0.00 | V63: =C63-'часть 1'!L74 -> 0.00
A64: 56 | B64: ул. 15 лет Октября, д. 62, корп. 1 | C64: 1,729,707.00 | K64: 630,140.00 | L64: 0 | M64: 0.00 | N64: 0.00 | O64: 0.00 | P64: 0 | Q64: 0.00 | R64: 760.30 | S64: 1,099,567.00 | T64: 0 | U64: 0.00 | V64: =C64-'часть 1'!L75 -> 0.00
A65: 57 | B65: ул. 15 лет Октября, д. 64/23 | C65: 451,222.57 | K65: 451,222.57 | L65: 0 | M65: 0.00 | N65: 0.00 | O65: 0.00 | P65: 0 | Q65: 0.00 | R65: 0 | S65: 0.00 | T65: 0 | U65: 0.00 | V65: =C65-'часть 1'!L76 -> 0.00
A66: 58 | B66: ул. Академика Туполева, д. 112/24 | C66: 703,675.57 | K66: 0.00 | L66: 0 | M66: 0.00 | N66: 378.00 | O66: 703,675.57 | P66: 0 | Q66: 0.00 | R66: 0 | S66: 0.00 | T66: 0 | U66: 0.00 | V66: =C66-'часть 1'!L77 -> 0.00
A67: 59 | B67: ул. Академическая, д. 16 | C67: 1,053,533.22 | K67: 1,053,533.22 | L67: 0 | M67: 0.00 | N67: 0.00 | O67: 0.00 | P67: 0 | Q67: 0.00 | R67: 0 | S67: 0.00 | T67: 0 | U67: 0.00 | V67: =C67-'часть 1'!L78 -> 0.00
A68: 60 | B68: ул. Академическая, д. 22 | C68: 1,253,738.00 | K68: 0.00 | L68: 0 | M68: 0.00 | N68: 622.00 | O68: 1,253,738.00 | P68: 0 | Q68: 0.00 | R68: 0 | S68: 0.00 | T68: 0 | U68: 0.00 | V68: =C68-'часть 1'!L79 -> 0.00
A69: 61 | B69: ул. Артюхиной, д. 7 | C69: 1,870,046.00 | K69: 0.00 | L69: 1 | M69: 1,870,046.00 | N69: 0.00 | O69: 0.00 | P69: 0 | Q69: 0.00 | R69: 0 | S69: 0.00 | T69: 0 | U69: 0.00 | V69: =C69-'часть 1'!L80 -> 0.00
A70: 62 | B70: ул. Благоева, д. 4, корп. 2 | C70: 3,720,676.00 | K70: 0.00 | L70: 2 | M70: 3,720,676.00 | N70: 0.00 | O70: 0.00 | P70: 0 | Q70: 0.00 | R70: 0 | S70: 0.00 | T70: 0 | U70: 0.00 | V70: =C70-'часть 1'!L81 -> 0.00
A71: 63 | B71: ул. Благоева, д. 6А | C71: 3,687,908.00 | K71: 3,687,908.00 | L71: 0 | M71: 0.00 | N71: 0.00 | O71: 0.00 | P71: 0 | Q71: 0.00 | R71: 0 | S71: 0.00 | T71: 0 | U71: 0.00 | V71: =C71-'часть 1'!L82 -> 0.00
A72: 64 | B72: ул. Бобкова, д. 2 | C72: 1,760,967.35 | K72: 0.00 | L72: 0 | M72: 0.00 | N72: 881.00 | O72: 1,760,967.35 | P72: 0 | Q72: 0.00 | R72: 0 | S72: 0.00 | T72: 0 | U72: 0.00 | V72: =C72-'часть 1'!L83 -> 0.00
A73: 65 | B73: ул. Богданова, д. 26/17 | C73: 881,947.00 | K73: 881,947.00 | L73: 0 | M73: 0.00 | N73: 0.00 | O73: 0.00 | P73: 0 | Q73: 0.00 | R73: 0 | S73: 0.00 | T73: 0 | U73: 0.00 | V73: =C73-'часть 1'!L84 -> 0.00
A74: 66 | B74: ул. Богданова, д. 29 | C74: 517,739.00 | K74: 0.00 | L74: 0 | M74: 0.00 | N74: 252.00 | O74: 517,739.00 | P74: 0 | Q74: 0.00 | R74: 0 | S74: 0.00 | T74: 0 | U74: 0.00 | V74: =C74-'часть 1'!L85 -> 0.00
A75: 67 | B75: ул. Богданова, д. 33/15 | C75: 1,728,895.00 | K75: 0.00 | L75: 0 | M75: 0.00 | N75: 873.06 | O75: 1,728,895.00 | P75: 0 | Q75: 0.00 | R75: 0 | S75: 0.00 | T75: 0 | U75: 0.00 | V75: =C75-'часть 1'!L86 -> 0.00
A76: 68 | B76: ул. Бориса Полевого, д. 10/11 | C76: 682,529.00 | K76: 0.00 | L76: 0 | M76: 0.00 | N76: 335.60 | O76: 682,529.00 | P76: 0 | Q76: 0.00 | R76: 0 | S76: 0.00 | T76: 0 | U76: 0.00 | V76: =C76-'часть 1'!L87 -> 0.00
A77: 69 | B77: ул. Брагина, д. 44 | C77: 582,157.00 | K77: 0.00 | L77: 0 | M77: 0.00 | N77: 285.00 | O77: 582,157.00 | P77: 0 | Q77: 0.00 | R77: 0 | S77: 0.00 | T77: 0 | U77: 0.00 | V77: =C77-'часть 1'!L88 -> 0.00
A78: 70 | B78: ул. Вагжанова, д. 4 | C78: 701,704.00 | K78: 701,704.00 | L78: 0 | M78: 0.00 | N78: 0.00 | O78: 0.00 | P78: 0 | Q78: 0.00 | R78: 0 | S78: 0.00 | T78: 0 | U78: 0.00 | V78: =C78-'часть 1'!L89 -> 0.00
A79: 71 | B79: ул. Веселова, д. 34/28 | C79: 1,969,149.00 | K79: 0.00 | L79: 0 | M79: 0.00 | N79: 995.80 | O79: 1,969,149.00 | P79: 0 | Q79: 0.00 | R79: 0 | S79: 0.00 | T79: 0 | U79: 0.00 | V79: =C79-'часть 1'!L90 -> 0.00
A80: 72 | B80: ул. Гвардейская, д. 5 | C80: 1,023,088.00 | K80: 0.00 | L80: 0 | M80: 0.00 | N80: 0.00 | O80: 0.00 | P80: 0 | Q80: 0.00 | R80: 694.00 | S80: 1,023,088.00 | T80: 0 | U80: 0.00 | V80: =C80-'часть 1'!L91 -> 0.00
A81: 73 | B81: ул. Гвардейская, д. 9, корп. 1 | C81: 3,334,570.00 | K81: =#REF! ->  | L81: 0 | M81: 0.00 | N81: 0.00 | O81: 0.00 | P81: 0 | Q81: 0.00 | R81: 0 | S81: 0.00 | T81: 0 | U81: 0.00 | V81: =C81-'часть 1'!L92 -> 0.00
A82: 74 | B82: ул. Горького, д. 10 | C82: 1,127,374.33 | K82: 1,127,374.33 | L82: 0 | M82: 0.00 | N82: 0.00 | O82: 0.00 | P82: 0 | Q82: 0.00 | R82: 0 | S82: 0.00 | T82: 0 | U82: 0.00 | V82: =C82-'часть 1'!L93 -> 0.00
A83: 75 | B83: ул. Горького, д. 106 | C83: 1,161,456.00 | K83: 1,161,456.00 | L83: 0 | M83: 0.00 | N83: 0.00 | O83: 0.00 | P83: 0 | Q83: 0.00 | R83: 0 | S83: 0.00 | T83: 0 | U83: 0.00 | V83: =C83-'часть 1'!L94 -> 0.00
A84: 76 | B84: ул. Горького, д. 4А | C84: 1,197,250.23 | K84: 1,197,250.23 | L84: 0 | M84: 0.00 | N84: 0.00 | O84: 0.00 | P84: 0 | Q84: 0.00 | R84: 0 | S84: 0.00 | T84: 0 | U84: 0.00 | V84: =C84-'часть 1'!L95 -> 0.00
A85: 77 | B85: ул. Горького, д. 70 | C85: 2,784,233.00 | K85: 0.00 | L85: 0 | M85: 0.00 | N85: 1,391.00 | O85: 2,784,233.00 | P85: 0 | Q85: 0.00 | R85: 0 | S85: 0.00 | T85: 0 | U85: 0.00 | V85: =C85-'часть 1'!L96 -> 0.00
A86: 78 | B86: ул. Горького, д. 89 | C86: 2,369,961.00 | K86: 2,369,961.00 | L86: 0 | M86: 0.00 | N86: 0.00 | O86: 0.00 | P86: 0 | Q86: 0.00 | R86: 0 | S86: 0.00 | T86: 0 | U86: 0.00 | V86: =C86-'часть 1'!L97 -> 0.00
A87: 79 | B87: ул. Грибоедова 2-я, д. 8/1 | C87: 672,819.00 | K87: 0.00 | L87: 0 | M87: 0.00 | N87: 331.40 | O87: 672,819.00 | P87: 0 | Q87: 0.00 | R87: 0 | S87: 0.00 | T87: 0 | U87: 0.00 | V87: =C87-'часть 1'!L98 -> 0.00
A88: 80 | B88: ул. Громова, д. 28, корп. 2 | C88: 1,651,491.00 | K88: 1,651,491.00 | L88: 0 | M88: 0.00 | N88: 0.00 | O88: 0.00 | P88: 0 | Q88: 0.00 | R88: 0 | S88: 0.00 | T88: 0 | U88: 0.00 | V88: =C88-'часть 1'!L99 -> 0.00
A89: 81 | B89: ул. Громова, д. 30 | C89: 1,432,926.00 | K89: 0.00 | L89: 0 | M89: 0.00 | N89: 710.73 | O89: 1,432,926.00 | P89: 0 | Q89: 0.00 | R89: 0 | S89: 0.00 | T89: 0 | U89: 0.00 | V89: =C89-'часть 1'!L100 -> 0.00
A90: 82 | B90: ул. Громова, д. 36, корп. 2 | C90: 1,137,886.00 | K90: 0.00 | L90: 0 | M90: 0.00 | N90: 0.00 | O90: 0.00 | P90: 0 | Q90: 0.00 | R90: 785.50 | S90: 1,137,886.00 | T90: 0 | U90: 0.00 | V90: =C90-'часть 1'!L101 -> 0.00
A91: 83 | B91: ул. Дарвина, д. 2 | C91: 1,814,838.00 | K91: 0.00 | L91: 0 | M91: 0.00 | N91: 917.00 | O91: 1,814,838.00 | P91: 0 | Q91: 0.00 | R91: 0 | S91: 0.00 | T91: 0 | U91: 0.00 | V91: =C91-'часть 1'!L102 -> 0.00
A92: 84 | B92: ул. Дарвина, д. 4, корп. 1 | C92: 1,544,359.54 | K92: 1,544,359.54 | L92: 0 | M92: 0.00 | N92: 0.00 | O92: 0.00 | P92: 0 | Q92: 0.00 | R92: 0 | S92: 0.00 | T92: 0 | U92: 0.00 | V92: =C92-'часть 1'!L103 -> 0.00
A93: 85 | B93: ул. Евгения Пичугина, д. 21, корп. 3 | C93: 1,787,034.00 | K93: 0.00 | L93: 1 | M93: 1,787,034.00 | N93: 0.00 | O93: 0.00 | P93: 0 | Q93: 0.00 | R93: 0 | S93: 0.00 | T93: 0 | U93: 0.00 | V93: =C93-'часть 1'!L104 -> 0.00
A94: 86 | B94: ул. Екатерины Фарафоновой, д. 37 | C94: 437,998.57 | K94: 437,998.57 | L94: 0 | M94: 0.00 | N94: 0.00 | O94: 0.00 | P94: 0 | Q94: 0.00 | R94: 0 | S94: 0.00 | T94: 0 | U94: 0.00 | V94: =C94-'часть 1'!L105 -> 0.00
A95: 87 | B95: ул. Зинаиды Коноплянниковой, д. 14 | C95: 1,116,228.00 | K95: 0.00 | L95: 0 | M95: 0.00 | N95: 734.00 | O95: 1,116,228.00 | P95: 0 | Q95: 0.00 | R95: 0 | S95: 0.00 | T95: 0 | U95: 0.00 | V95: =C95-'часть 1'!L106 -> 0.00
A96: 88 | B96: ул. Зинаиды Коноплянниковой, д. 19, корп. 2 | C96: 1,313,728.00 | K96: 0.00 | L96: 0 | M96: 0.00 | N96: 660.70 | O96: 1,313,728.00 | P96: 0 | Q96: 0.00 | R96: 0 | S96: 0.00 | T96: 0 | U96: 0.00 | V96: =C96-'часть 1'!L107 -> 0.00
A97: 89 | B97: ул. Ипподромная, д. 10 | C97: 359,651.00 | K97: 359,651.00 | L97: 0 | M97: 0.00 | N97: 0.00 | O97: 0.00 | P97: 0 | Q97: 0.00 | R97: 0 | S97: 0.00 | T97: 0 | U97: 0.00 | V97: =C97-'часть 1'!L108 -> 0.00
A98: 90 | B98: ул. Ипподромная, д. 22 | C98: 906,779.00 | K98: 906,779.00 | L98: 0 | M98: 0.00 | N98: 0.00 | O98: 0.00 | P98: 0 | Q98: 0.00 | R98: 0 | S98: 0.00 | T98: 0 | U98: 0.00 | V98: =C98-'часть 1'!L109 -> 0.00
A99: 91 | B99: ул. Ипподромная, д. 6Б | C99: 886,559.00 | K99: 0.00 | L99: 0 | M99: 0.00 | N99: 440.00 | O99: 886,559.00 | P99: 0 | Q99: 0.00 | R99: 0 | S99: 0.00 | T99: 0 | U99: 0.00 | V99: =C99-'часть 1'!L110 -> 0.00
A100: 92 | B100: ул. Ипподромная, д. 7, корп. 1 | C100: 642,210.00 | K100: 0.00 | L100: 0 | M100: 0.00 | N100: 0.00 | O100: 0.00 | P100: 0 | Q100: 0.00 | R100: 440.00 | S100: 642,210.00 | T100: 0 | U100: 0.00 | V100: =C100-'часть 1'!L111 -> 0.00
A101: 93 | B101: ул. Кайкова, д. 4А | C101: 1,952,489.00 | K101: 0.00 | L101: 0 | M101: 0.00 | N101: 965.00 | O101: 1,952,489.00 | P101: 0 | Q101: 0.00 | R101: 0 | S101: 0.00 | T101: 0 | U101: 0.00 | V101: =C101-'часть 1'!L112 -> 0.00
A102: 94 | B102: ул. Карла Маркса, д. 5 | C102: 15,157,748.00 | K102: 0.00 | L102: 8 | M102: 15,157,748.00 | N102: 0.00 | O102: 0.00 | P102: 0 | Q102: 0.00 | R102: 0 | S102: 0.00 | T102: 0 | U102: 0.00 | V102: =C102-'часть 1'!L113 -> 0.00
A103: 95 | B103: ул. Кирова, д. 3А | C103: 2,542,298.37 | K103: 0.00 | L103: 0 | M103: 0.00 | N103: 1,350.00 | O103: 2,542,298.37 | P103: 0 | Q103: 0.00 | R103: 0 | S103: 0.00 | T103: 0 | U103: 0.00 | V103: =C103-'часть 1'!L114 -> 0.00
A104: 96 | B104: ул. Коробкова, д. 18 | C104: 1,114,586.00 | K104: 0.00 | L104: 0 | M104: 0.00 | N104: 550.00 | O104: 1,114,586.00 | P104: 0 | Q104: 0.00 | R104: 0 | S104: 0.00 | T104: 0 | U104: 0.00 | V104: =C104-'часть 1'!L115 -> 0.00
A105: 97 | B105: ул. Королева, д. 16/1 | C105: 5,623,853.00 | K105: 0.00 | L105: 3 | M105: 5,623,853.00 | N105: 0.00 | O105: 0.00 | P105: 0 | Q105: 0.00 | R105: 0 | S105: 0.00 | T105: 0 | U105: 0.00 | V105: =C105-'часть 1'!L116 -> 0.00
A106: 98 | B106: ул. Королева, д. 24 | C106: 2,721,106.00 | K106: 0.00 | L106: 0 | M106: 0.00 | N106: 1,371.00 | O106: 2,721,106.00 | P106: 0 | Q106: 0.00 | R106: 0 | S106: 0.00 | T106: 0 | U106: 0.00 | V106: =C106-'часть 1'!L117 -> 0.00
A107: 99 | B107: ул. Королева, д. 4 | C107: 9,789,326.55 | K107: 6,592,990.56 | L107: 0 | M107: 0.00 | N107: 2,090.00 | O107: 3,196,335.99 | P107: 0 | Q107: 0.00 | R107: 0 | S107: 0.00 | T107: 0 | U107: 0.00 | V107: =C107-'часть 1'!L118 -> 0.00
A108: 100 | B108: ул. Крылова, д. 5 | C108: 1,615,074.00 | K108: =#REF! ->  | L108: 0 | M108: 0.00 | N108: 0.00 | O108: 0.00 | P108: 0 | Q108: 0.00 | R108: 0 | S108: 0.00 | T108: 0 | U108: 0.00 | V108: =C108-'часть 1'!L119 -> 0.00
A109: 101 | B109: ул. Лукина, д. 14 | C109: 824,390.00 | K109: 824,390.00 | L109: 0 | M109: 0.00 | N109: 0.00 | O109: 0.00 | P109: 0 | Q109: 0.00 | R109: 0 | S109: 0.00 | T109: 0 | U109: 0.00 | V109: =C109-'часть 1'!L120 -> 0.00
A110: 102 | B110: ул. Лукина, д. 8 | C110: 2,661,189.00 | K110: 0.00 | L110: 0 | M110: 0.00 | N110: 1,338.70 | O110: 2,661,189.00 | P110: 0 | Q110: 0.00 | R110: 0 | S110: 0.00 | T110: 0 | U110: 0.00 | V110: =C110-'часть 1'!L121 -> 0.00
A111: 103 | B111: ул. Маршала Буденого, д. 19/1 | C111: 278,220.00 | K111: 278,220.00 | L111: 0 | M111: 0.00 | N111: 0.00 | O111: 0.00 | P111: 0 | Q111: 0.00 | R111: 0 | S111: 0.00 | T111: 0 | U111: 0.00 | V111: =C111-'часть 1'!L122 -> 0.00
A112: 104 | B112: ул. Маршала Буденого, д. 4 | C112: 2,511,472.00 | K112: 2,511,472.00 | L112: 0 | M112: 0.00 | N112: 0.00 | O112: 0.00 | P112: 0 | Q112: 0.00 | R112: 0 | S112: 0.00 | T112: 0 | U112: 0.00 | V112: =C112-'часть 1'!L123 -> 0.00
A113: 105 | B113: ул. Маршала Василевского, д. 18 | C113: 871,988.00 | K113: 0.00 | L113: 0 | M113: 0.00 | N113: 438.23 | O113: 871,988.00 | P113: 0 | Q113: 0.00 | R113: 0 | S113: 0.00 | T113: 0 | U113: 0.00 | V113: =C113-'часть 1'!L124 -> 0.00
A114: 106 | B114: ул. Маршала Василевского, д. 20 | C114: 2,113,335.00 | K114: =#REF! ->  | L114: 0 | M114: 0.00 | N114: 0.00 | O114: 0.00 | P114: 0 | Q114: 0.00 | R114: 0 | S114: 0.00 | T114: 0 | U114: 0.00 | V114: =C114-'часть 1'!L125 -> 0.00
A115: 107 | B115: ул. Машинистов, д. 3 | C115: 996,585.00 | K115: 0.00 | L115: 0 | M115: 0.00 | N115: 496.20 | O115: 996,585.00 | P115: 0 | Q115: 0.00 | R115: 0 | S115: 0.00 | T115: 0 | U115: 0.00 | V115: =C115-'часть 1'!L126 -> 0.00
A116: 108 | B116: ул. Мичурина, д. 37/23 | C116: 637,739.00 | K116: 637,739.00 | L116: 0 | M116: 0.00 | N116: 0.00 | O116: 0.00 | P116: 0 | Q116: 0.00 | R116: 0 | S116: 0.00 | T116: 0 | U116: 0.00 | V116: =C116-'часть 1'!L127 -> 0.00
A117: 109 | B117: ул. Можайского, д. 51 | C117: 1,357,217.00 | K117: 0.00 | L117: 0 | M117: 0.00 | N117: 675.00 | O117: 1,357,217.00 | P117: 0 | Q117: 0.00 | R117: 0 | S117: 0.00 | T117: 0 | U117: 0.00 | V117: =C117-'часть 1'!L128 -> 0.00
A118: 110 | B118: ул. Московская, д. 78 | C118: 836,226.00 | K118: 0.00 | L118: 0 | M118: 0.00 | N118: 414.10 | O118: 836,226.00 | P118: 0 | Q118: 0.00 | R118: 0 | S118: 0.00 | T118: 0 | U118: 0.00 | V118: =C118-'часть 1'!L129 -> 0.00
A119: 111 | B119: ул. Мусоргского, д. 32/32 | C119: 640,078.00 | K119: 640,078.00 | L119: 0 | M119: 0.00 | N119: 0.00 | O119: 0.00 | P119: 0 | Q119: 0.00 | R119: 0 | S119: 0.00 | T119: 0 | U119: 0.00 | V119: =C119-'часть 1'!L130 -> 0.00
A120: 112 | B120: ул. Мусоргского, д. 38/33 | C120: 202,649.00 | K120: =#REF! ->  | L120: 0 | M120: 0.00 | N120: 0.00 | O120: 0.00 | P120: 0 | Q120: 0.00 | R120: 0 | S120: 0.00 | T120: 0 | U120: 0.00 | V120: =C120-'часть 1'!L131 -> 0.00
A121: 113 | B121: ул. Новоторжская, д. 7 | C121: 7,892,437.00 | K121: 7,892,437.00 | L121: 0 | M121: 0.00 | N121: 0.00 | O121: 0.00 | P121: 0 | Q121: 0.00 | R121: 0 | S121: 0.00 | T121: 0 | U121: 0.00 | V121: =C121-'часть 1'!L132 -> 0.00
A122: 114 | B122: ул. Озерная, д. 23 | C122: 523,389.00 | K122: 0.00 | L122: 0 | M122: 0.00 | N122: 255.00 | O122: 523,389.00 | P122: 0 | Q122: 0.00 | R122: 0 | S122: 0.00 | T122: 0 | U122: 0.00 | V122: =C122-'часть 1'!L133 -> 0.00
A123: 115 | B123: ул. Орджоникидзе, д. 1 | C123: 1,038,920.00 | K123: 1,038,920.00 | L123: 0 | M123: 0.00 | N123: 0.00 | O123: 0.00 | P123: 0 | Q123: 0.00 | R123: 0 | S123: 0.00 | T123: 0 | U123: 0.00 | V123: =C123-'часть 1'!L134 -> 0.00
A124: 116 | B124: ул. Орджоникидзе, д. 11 | C124: 1,742,553.00 | K124: 0.00 | L124: 0 | M124: 0.00 | N124: 874.22 | O124: 1,742,553.00 | P124: 0 | Q124: 0.00 | R124: 0 | S124: 0.00 | T124: 0 | U124: 0.00 | V124: =C124-'часть 1'!L135 -> 0.00
A125: 117 | B125: ул. Орджоникидзе, д. 12/1 | C125: 2,124,581.00 | K125: 0.00 | L125: 0 | M125: 0.00 | N125: 1,070.00 | O125: 2,124,581.00 | P125: 0 | Q125: 0.00 | R125: 0 | S125: 0.00 | T125: 0 | U125: 0.00 | V125: =C125-'часть 1'!L136 -> 0.00
A126: 118 | B126: ул. Орджоникидзе, д. 13/26 | C126: 2,347,478.00 | K126: 0.00 | L126: 0 | M126: 0.00 | N126: 1,185.07 | O126: 2,347,478.00 | P126: 0 | Q126: 0.00 | R126: 0 | S126: 0.00 | T126: 0 | U126: 0.00 | V126: =C126-'часть 1'!L137 -> 0.00
A127: 119 | B127: ул. Орджоникидзе, д. 14 | C127: 2,468,472.00 | K127: 0.00 | L127: 0 | M127: 0.00 | N127: 1,246.50 | O127: 2,468,472.00 | P127: 0 | Q127: 0.00 | R127: 0 | S127: 0.00 | T127: 0 | U127: 0.00 | V127: =C127-'часть 1'!L138 -> 0.00
A128: 120 | B128: ул. Орджоникидзе, д. 3 | C128: 1,612,780.00 | K128: 0.00 | L128: 0 | M128: 0.00 | N128: 810.50 | O128: 1,612,780.00 | P128: 0 | Q128: 0.00 | R128: 0 | S128: 0.00 | T128: 0 | U128: 0.00 | V128: =C128-'часть 1'!L139 -> 0.00
A129: 121 | B129: ул. Орджоникидзе, д. 4/2 | C129: 2,580,419.00 | K129: 0.00 | L129: 0 | M129: 0.00 | N129: 786.30 | O129: 1,565,675.00 | P129: 0 | Q129: 0.00 | R129: 700.00 | S129: 1,014,744.00 | T129: 0 | U129: 0.00 | V129: =C129-'часть 1'!L140 -> 0.00
A130: 122 | B130: ул. Орджоникидзе, д. 46, корп. 4 | C130: 1,681,645.00 | K130: 0.00 | L130: 0 | M130: 0.00 | N130: 848.59 | O130: 1,681,645.00 | P130: 0 | Q130: 0.00 | R130: 0 | S130: 0.00 | T130: 0 | U130: 0.00 | V130: =C130-'часть 1'!L141 -> 0.00
A131: 123 | B131: ул. Орджоникидзе, д. 5 | C131: 1,318,880.00 | K131: 0.00 | L131: 0 | M131: 0.00 | N131: 660.00 | O131: 1,318,880.00 | P131: 0 | Q131: 0.00 | R131: 0 | S131: 0.00 | T131: 0 | U131: 0.00 | V131: =C131-'часть 1'!L142 -> 0.00
A132: 124 | B132: ул. Орджоникидзе, д. 8 | C132: 1,566,345.00 | K132: 0.00 | L132: 0 | M132: 0.00 | N132: 422.00 | O132: 850,468.00 | P132: 0 | Q132: 0.00 | R132: 492.00 | S132: 715,877.00 | T132: 0 | U132: 0.00 | V132: =C132-'часть 1'!L143 -> 0.00
A133: 125 | B133: ул. Паши Савельевой, д. 39, корп. 3 | C133: 1,910,088.00 | K133: 1,910,088.00 | L133: 0 | M133: 0.00 | N133: 0.00 | O133: 0.00 | P133: 0 | Q133: 0.00 | R133: 0 | S133: 0.00 | T133: 0 | U133: 0.00 | V133: =C133-'часть 1'!L144 -> 0.00
A134: 126 | B134: ул. Паши Савельевой, д. 7 | C134: 2,694,957.00 | K134: 710,638.00 | L134: 0 | M134: 0.00 | N134: 0.00 | O134: 0.00 | P134: 0 | Q134: 0.00 | R134: 1,359.50 | S134: 1,984,319.00 | T134: 0 | U134: 0.00 | V134: =C134-'часть 1'!L145 -> 0.00
A135: 127 | B135: ул. Пролетарская 6-я, д. 16 | C135: 580,578.00 | K135: 0.00 | L135: 0 | M135: 0.00 | N135: 293.50 | O135: 580,578.00 | P135: 0 | Q135: 0.00 | R135: 0 | S135: 0.00 | T135: 0 | U135: 0.00 | V135: =C135-'часть 1'!L146 -> 0.00
A136: 128 | B136: ул. Пролетарская 6-я, д. 17 | C136: 615,357.00 | K136: 0.00 | L136: 0 | M136: 0.00 | N136: 301.00 | O136: 615,357.00 | P136: 0 | Q136: 0.00 | R136: 0 | S136: 0.00 | T136: 0 | U136: 0.00 | V136: =C136-'часть 1'!L147 -> 0.00
A137: 129 | B137: ул. Пролетарская 6-я, д. 19 | C137: 269,948.13 | K137: 269,948.13 | L137: 0 | M137: 0.00 | N137: 0.00 | O137: 0.00 | P137: 0 | Q137: 0.00 | R137: 0 | S137: 0.00 | T137: 0 | U137: 0.00 | V137: =C137-'часть 1'!L148 -> 0.00
A138: 130 | B138: ул. Прядильная, д. 13 | C138: 807,980.00 | K138: 0.00 | L138: 0 | M138: 0.00 | N138: 400.00 | O138: 807,980.00 | P138: 0 | Q138: 0.00 | R138: 0 | S138: 0.00 | T138: 0 | U138: 0.00 | V138: =C138-'часть 1'!L149 -> 0.00
A139: 131 | B139: ул. Резинстроя, д. 2/7 | C139: 661,525.00 | K139: 0.00 | L139: 0 | M139: 0.00 | N139: 325.00 | O139: 661,525.00 | P139: 0 | Q139: 0.00 | R139: 0 | S139: 0.00 | T139: 0 | U139: 0.00 | V139: =C139-'часть 1'!L150 -> 0.00
A140: 132 | B140: ул. Ржевская, д. 14 | C140: 3,719,885.00 | K140: 0.00 | L140: 2 | M140: 3,719,885.00 | N140: 0.00 | O140: 0.00 | P140: 0 | Q140: 0.00 | R140: 0 | S140: 0.00 | T140: 0 | U140: 0.00 | V140: =C140-'часть 1'!L151 -> 0.00
A141: 133 | B141: ул. Ротмистрова, д. 17 | C141: 1,726,391.00 | K141: 0.00 | L141: 0 | M141: 0.00 | N141: 866.80 | O141: 1,726,391.00 | P141: 0 | Q141: 0.00 | R141: 0 | S141: 0.00 | T141: 0 | U141: 0.00 | V141: =C141-'часть 1'!L152 -> 0.00
A142: 134 | B142: ул. Ротмистрова, д. 20 | C142: 1,521,754.00 | K142: 0.00 | L142: 0 | M142: 0.00 | N142: 430.00 | O142: 866,735.00 | P142: 0 | Q142: 0.00 | R142: 449.00 | S142: 655,019.00 | T142: 0 | U142: 0.00 | V142: =C142-'часть 1'!L153 -> 0.00
A143: 135 | B143: ул. Румянцева, д. 24/40 | C143: 671,505.00 | K143: =#REF! ->  | L143: 0 | M143: 0.00 | N143: 0.00 | O143: 0.00 | P143: 0 | Q143: 0.00 | R143: 404.50 | S143: 591,227.00 | T143: 0 | U143: 0.00 | V143: =C143-'часть 1'!L154 -> 0.00
A144: 136 | B144: ул. Севастьянова, д. 7, корп. 1 | C144: 1,081,718.00 | K144: 0.00 | L144: 0 | M144: 0.00 | N144: 531.70 | O144: 1,081,718.00 | P144: 0 | Q144: 0.00 | R144: 0 | S144: 0.00 | T144: 0 | U144: 0.00 | V144: =C144-'часть 1'!L155 -> 0.00
A145: 137 | B145: ул. Седова, д. 120А | C145: 206,635.00 | K145: 206,635.00 | L145: 0 | M145: 0.00 | N145: 0.00 | O145: 0.00 | P145: 0 | Q145: 0.00 | R145: 0 | S145: 0.00 | T145: 0 | U145: 0.00 | V145: =C145-'часть 1'!L156 -> 0.00
A146: 138 | B146: ул. Седова, д. 120Б | C146: 1,044,081.04 | K146: 0.00 | L146: 0 | M146: 0.00 | N146: 516.50 | O146: 1,044,081.04 | P146: 0 | Q146: 0.00 | R146: 0 | S146: 0.00 | T146: 0 | U146: 0.00 | V146: =C146-'часть 1'!L157 -> 0.00
A147: 139 | B147: ул. Седова, д. 1Б | C147: 1,340,000.00 | K147: 1,340,000.00 | L147: 0 | M147: 0.00 | N147: 0.00 | O147: 0.00 | P147: 0 | Q147: 0.00 | R147: 0 | S147: 0.00 | T147: 0 | U147: 0.00 | V147: =C147-'часть 1'!L158 -> 0.00
A148: 140 | B148: ул. Скворцова-Степанова, д. 10 | C148: 2,294,529.00 | K148: 0.00 | L148: 0 | M148: 0.00 | N148: 1,162.00 | O148: 2,294,529.00 | P148: 0 | Q148: 0.00 | R148: 0 | S148: 0.00 | T148: 0 | U148: 0.00 | V148: =C148-'часть 1'!L159 -> 0.00
A149: 141 | B149: ул. Скворцова-Степанова, д. 16 | C149: 2,615,616.20 | K149: 0.00 | L149: 0 | M149: 0.00 | N149: 0.00 | O149: 0.00 | P149: 0 | Q149: 0.00 | R149: 2,540.00 | S149: 2,615,616.20 | T149: 0 | U149: 0.00 | V149: =C149-'часть 1'!L160 -> 0.00
A150: 142 | B150: ул. Склизкова, д. 54/25 | C150: 1,561,539.00 | K150: 0.00 | L150: 0 | M150: 0.00 | N150: 787.85 | O150: 1,561,539.00 | P150: 0 | Q150: 0.00 | R150: 0 | S150: 0.00 | T150: 0 | U150: 0.00 | V150: =C150-'часть 1'!L161 -> 0.00
A151: 143 | B151: ул. Склизкова, д. 60 | C151: 1,421,187.00 | K151: 0.00 | L151: 0 | M151: 0.00 | N151: 687.00 | O151: 1,421,187.00 | P151: 0 | Q151: 0.00 | R151: 0 | S151: 0.00 | T151: 0 | U151: 0.00 | V151: =C151-'часть 1'!L162 -> 0.00
A152: 144 | B152: ул. Склизкова, д. 80 | C152: 2,469,740.00 | K152: 757,154.00 | L152: 0 | M152: 0.00 | N152: 868.10 | O152: 1,712,586.00 | P152: 0 | Q152: 0.00 | R152: 0 | S152: 0.00 | T152: 0 | U152: 0.00 | V152: =C152-'часть 1'!L163 -> 0.00
A153: 145 | B153: ул. Склизкова, д. 88 | C153: 1,104,857.00 | K153: 0.00 | L153: 0 | M153: 0.00 | N153: 545.60 | O153: 1,104,857.00 | P153: 0 | Q153: 0.00 | R153: 0 | S153: 0.00 | T153: 0 | U153: 0.00 | V153: =C153-'часть 1'!L164 -> 0.00
A154: 146 | B154: ул. Склизкова, д. 94 | C154: 1,877,378.00 | K154: 0.00 | L154: 1 | M154: 1,877,378.00 | N154: 0.00 | O154: 0.00 | P154: 0 | Q154: 0.00 | R154: 0 | S154: 0.00 | T154: 0 | U154: 0.00 | V154: =C154-'часть 1'!L165 -> 0.00
A155: 147 | B155: ул. Советская, д. 24 | C155: 2,945,836.00 | K155: =#REF! ->  | L155: 0 | M155: 0.00 | N155: 0.00 | O155: 0.00 | P155: 0 | Q155: 0.00 | R155: 0 | S155: 0.00 | T155: 0 | U155: 0.00 | V155: =C155-'часть 1'!L166 -> 0.00
A156: 148 | B156: ул. Советская, д. 60 | C156: 1,118,494.00 | K156: 1,118,494.00 | L156: 0 | M156: 0.00 | N156: 0.00 | O156: 0.00 | P156: 0 | Q156: 0.00 | R156: 0 | S156: 0.00 | T156: 0 | U156: 0.00 | V156: =C156-'часть 1'!L167 -> 0.00
A157: 149 | B157: ул. Советская, д. 8 | C157: 2,540,427.00 | K157: 0.00 | L157: 0 | M157: 0.00 | N157: 592.00 | O157: 1,201,460.00 | P157: 0 | Q157: 0.00 | R157: 922.00 | S157: 1,338,967.00 | T157: 0 | U157: 0.00 | V157: =C157-'часть 1'!L168 -> 0.00
A158: 150 | B158: ул. Спартака, д. 4/2 | C158: 2,253,297.00 | K158: 0.00 | L158: 0 | M158: 0.00 | N158: 1,126.00 | O158: 2,253,297.00 | P158: 0 | Q158: 0.00 | R158: 0 | S158: 0.00 | T158: 0 | U158: 0.00 | V158: =C158-'часть 1'!L169 -> 0.00
A159: 151 | B159: ул. Строителей, д. 12 | C159: 1,390,061.00 | K159: =#REF! ->  | L159: 0 | M159: 0.00 | N159: 0.00 | O159: 0.00 | P159: 0 | Q159: 0.00 | R159: 0 | S159: 0.00 | T159: 0 | U159: 0.00 | V159: =C159-'часть 1'!L170 -> 0.00
A160: 152 | B160: ул. Тамары Ильиной, д. 7, корп. 1 | C160: 3,213,804.00 | K160: 846,948.00 | L160: 0 | M160: 0.00 | N160: 1,200.00 | O160: 2,366,856.00 | P160: 0 | Q160: 0.00 | R160: 0 | S160: 0.00 | T160: 0 | U160: 0.00 | V160: =C160-'часть 1'!L171 -> 0.00
A161: 153 | B161: ул. Тамары Ильиной, д. 9/19 | C161: 3,202,371.00 | K161: 0.00 | L161: 0 | M161: 0.00 | N161: 0.00 | O161: 0.00 | P161: 0 | Q161: 0.00 | R161: 2,220.83 | S161: 3,202,371.00 | T161: 0 | U161: 0.00 | V161: =C161-'часть 1'!L172 -> 0.00
A162: 154 | B162: ул. Терещенко, д. 28 | C162: 709,022.00 | K162: 0.00 | L162: 0 | M162: 0.00 | N162: 0.00 | O162: 0.00 | P162: 0 | Q162: 0.00 | R162: 486.60 | S162: 709,022.00 | T162: 0 | U162: 0.00 | V162: =C162-'часть 1'!L173 -> 0.00
A163: 155 | B163: ул. Терещенко, д. 35 | C163: 1,136,930.00 | K163: 0.00 | L163: 0 | M163: 0.00 | N163: 278.00 | O163: 570,382.00 | P163: 0 | Q163: 0.00 | R163: 386.88 | S163: 566,548.00 | T163: 0 | U163: 0.00 | V163: =C163-'часть 1'!L174 -> 0.00
A164: 156 | B164: ул. Терещенко, д. 41, корп. 1 | C164: 1,320,636.00 | K164: 0.00 | L164: 0 | M164: 0.00 | N164: 662.00 | O164: 1,320,636.00 | P164: 0 | Q164: 0.00 | R164: 0 | S164: 0.00 | T164: 0 | U164: 0.00 | V164: =C164-'часть 1'!L175 -> 0.00
A165: 157 | B165: ул. Учительская, д. 39 | C165: 4,265,098.00 | K165: 0.00 | L165: 0 | M165: 0.00 | N165: 0.00 | O165: 0.00 | P165: 0 | Q165: 0.00 | R165: 2,927.50 | S165: 4,265,098.00 | T165: 0 | U165: 0.00 | V165: =C165-'часть 1'!L176 -> 0.00
A166: 158 | B166: ул. Фадеева, д. 34, корп. 1 | C166: 2,115,890.00 | K166: 2,115,890.00 | L166: 0 | M166: 0.00 | N166: 0.00 | O166: 0.00 | P166: 0 | Q166: 0.00 | R166: 0 | S166: 0.00 | T166: 0 | U166: 0.00 | V166: =C166-'часть 1'!L177 -> 0.00
A167: 159 | B167: ул. Хромова, д. 16 | C167: 482,251.51 | K167: 482,251.51 | L167: 0 | M167: 0.00 | N167: 0.00 | O167: 0.00 | P167: 0 | Q167: 0.00 | R167: 0 | S167: 0.00 | T167: 0 | U167: 0.00 | V167: =C167-'часть 1'!L178 -> 0.00
A168: 160 | B168: ул. Хромова, д. 8 | C168: 1,018,040.92 | K168: 0.00 | L168: 0 | M168: 0.00 | N168: 516.50 | O168: 1,018,040.92 | P168: 0 | Q168: 0.00 | R168: 0 | S168: 0.00 | T168: 0 | U168: 0.00 | V168: =C168-'часть 1'!L179 -> 0.00
A169: 161 | B169: ул. Чудова, д. 14 | C169: 1,871,554.00 | K169: 0.00 | L169: 1 | M169: 1,871,554.00 | N169: 0.00 | O169: 0.00 | P169: 0 | Q169: 0.00 | R169: 0 | S169: 0.00 | T169: 0 | U169: 0.00 | V169: =C169-'часть 1'!L180 -> 0.00
A170: 162 | B170: ул. Чудова, д. 19 | C170: 2,652,530.00 | K170: 2,652,530.00 | L170: 0 | M170: 0.00 | N170: 0.00 | O170: 0.00 | P170: 0 | Q170: 0.00 | R170: 0 | S170: 0.00 | T170: 0 | U170: 0.00 | V170: =C170-'часть 1'!L181 -> 0.00
A171: 163 | B171: ш. Московское, д. 13 | C171: 3,645,969.00 | K171: =#REF! ->  | L171: 0 | M171: 0.00 | N171: 0.00 | O171: 0.00 | P171: 0 | Q171: 0.00 | R171: 0 | S171: 0.00 | T171: 0 | U171: 0.00 | V171: =C171-'часть 1'!L182 -> 0.00
A172: 164 | B172: ш. Петербургское, д. 14, корп. 1 | C172: 771,330.00 | K172: 0.00 | L172: 0 | M172: 0.00 | N172: 376.00 | O172: 771,330.00 | P172: 0 | Q172: 0.00 | R172: 0 | S172: 0.00 | T172: 0 | U172: 0.00 | V172: =C172-'часть 1'!L183 -> 0.00
A173: 165 | B173: ш. Петербургское, д. 50 | C173: 1,894,719.00 | K173: 0.00 | L173: 1 | M173: 1,894,719.00 | N173: 0.00 | O173: 0.00 | P173: 0 | Q173: 0.00 | R173: 0 | S173: 0.00 | T173: 0 | U173: 0.00 | V173: =C173-'часть 1'!L184 -> 0.00
A174: 166 | B174: ш. Петербургское, д. 60 | C174: 1,492,412.00 | K174: 0.00 | L174: 0 | M174: 0.00 | N174: 752.00 | O174: 1,492,412.00 | P174: 0 | Q174: 0.00 | R174: 0 | S174: 0.00 | T174: 0 | U174: 0.00 | V174: =C174-'часть 1'!L185 -> 0.00
A175: 167 | B175: ш. Петербургское, д. 7А | C175: 651,523.25 | K175: 651,523.25 | L175: 0 | M175: 0.00 | N175: 0.00 | O175: 0.00 | P175: 0 | Q175: 0.00 | R175: 0 | S175: 0.00 | T175: 0 | U175: 0.00 | V175: =C175-'часть 1'!L186 -> 0.00
A176: 168 | B176: ш. Петербургское, д. 86 | C176: 1,221,424.83 | K176: 0.00 | L176: 0 | M176: 0.00 | N176: 640.00 | O176: 1,221,424.83 | P176: 0 | Q176: 0.00 | R176: 0 | S176: 0.00 | T176: 0 | U176: 0.00 | V176: =C176-'часть 1'!L187 -> 0.00
B177: Итого по город Вышний Волочек | C177: =C178+C179+C180+C181+C182+C183+C184+C185+C186+C187+C188+C189+C190+C191+C192+C193 -> 31,255,395.63 | D177: =D178+D179+D180+D181+D182+D183+D184+D185+D186+D187+D188+D189+D190+D191+D192+D193 -> 0.00 | E177: 0.00 | F177: 0.00 | G177: 0.00 | H177: 0.00 | I177: 0.00 | J177: 0.00 | K177: 0.00 | L177: 0.00 | M177: 0.00 | N177: 9,743.69 | O177: 31,255,395.63 | P177: 0.00 | Q177: 0.00 | R177: 0.00 | S177: 0.00 | T177: 0.00 | U177: 0.00 | V177: 0.00
A178: 1 | B178: ул. Баумана, д. 13 | C178: ='часть 1'!L189 -> 3,615,424.00 | D178: 0.00 | E178: 0.00 | F178: 0.00 | G178: 0.00 | H178: 0.00 | I178: 0.00 | J178: 0.00 | K178: 0.00 | L178: 0 | M178: 0.00 | N178: 1,138.00 | O178: =C178 -> 3,615,424.00 | P178: 0 | Q178: 0.00 | R178: 0 | S178: 0.00 | T178: 0 | U178: 0.00 | W178: =O178/N178 -> 3,177.00
A179: 2 | B179: ул. Б. Садовая, д. 29 | C179: ='часть 1'!L190 -> 3,435,122.02 | D179: 0.00 | E179: 0.00 | F179: 0.00 | G179: 0.00 | H179: 0.00 | I179: 0.00 | J179: 0.00 | K179: 0.00 | L179: 0 | M179: 0.00 | N179: 1,550.00 | O179: =C179 -> 3,435,122.02 | P179: 0 | Q179: 0.00 | R179: 0 | S179: 0.00 | T179: 0 | U179: 0.00 | W179: =O179/N179 -> 2,216.21
A180: 3 | B180: ул. Правды, д. 27 | C180: ='часть 1'!L191 -> 1,525,199.00 | D180: 0.00 | E180: 0.00 | F180: 0.00 | G180: 0.00 | H180: 0.00 | I180: 0.00 | J180: 0.00 | K180: 0.00 | L180: 0 | M180: 0.00 | N180: 483.10 | O180: 1,525,199.00 | P180: 0 | Q180: 0.00 | R180: 0 | S180: 0.00 | T180: 0 | U180: 0.00 | W180: 3,157.11
A181: 4 | B181: ул. Правды, д. 31/33 | C181: ='часть 1'!L192 -> 2,379,167.99 | D181: 0.00 | E181: 0.00 | F181: 0.00 | G181: 0.00 | H181: 0.00 | I181: 0.00 | J181: 0.00 | K181: 0.00 | L181: 0 | M181: 0.00 | N181: 840.00 | O181: 2,379,167.99 | P181: 0 | Q181: 0.00 | R181: 0 | S181: 0.00 | T181: 0 | U181: 0.00 | W181: 2,832.34
A182: 5 | B182: ул. Правды, д. 27а | C182: ='часть 1'!L193 -> 2,435,193.00 | D182: 0.00 | E182: 0.00 | F182: 0.00 | G182: 0.00 | H182: 0.00 | I182: 0.00 | J182: 0.00 | K182: 0.00 | L182: 0 | M182: 0.00 | N182: 770.00 | O182: 2,435,193.00 | P182: 0 | Q182: 0.00 | R182: 0 | S182: 0.00 | T182: 0 | U182: 0.00 | W182: 3,162.59
A183: 6 | B183: Казанский пр-т, д. 105 | C183: ='часть 1'!L194 -> 2,705,457.32 | D183: 0.00 | E183: 0.00 | F183: 0.00 | G183: 0.00 | H183: 0.00 | I183: 0.00 | J183: 0.00 | K183: 0.00 | L183: 0 | M183: 0.00 | O183: 2,705,457.32 | P183: 0 | Q183: 0.00 | R183: 0 | S183: 0.00 | T183: 0 | U183: 0.00
A184: 7 | B184: ул. Ст. Разина, д. 41 | C184: ='часть 1'!L195 -> 954,408.50 | D184: 0.00 | E184: 0.00 | F184: 0.00 | G184: 0.00 | H184: 0.00 | I184: 0.00 | J184: 0.00 | K184: 0.00 | L184: 0 | M184: 0.00 | N184: 451.20 | O184: 954,408.50 | P184: 0 | Q184: 0.00 | R184: 0 | S184: 0.00 | T184: 0 | U184: 0.00 | W184: 2,115.27
A185: 8 | B185: ул. Московская, д. 1/49 | C185: ='часть 1'!L196 -> 2,430,125.00 | D185: 0.00 | E185: 0.00 | F185: 0.00 | G185: 0.00 | H185: 0.00 | I185: 0.00 | J185: 0.00 | K185: 0.00 | L185: 0 | M185: 0.00 | N185: 571.03 | O185: 2,430,125.00 | P185: 0 | Q185: 0.00 | R185: 0 | S185: 0.00 | T185: 0 | U185: 0.00 | W185: 4,255.69
A186: 9 | B186: ул. Екатерининская, д. 4-6 | C186: ='часть 1'!L197 -> 2,505,651.00 | D186: 0.00 | E186: 0.00 | F186: 0.00 | G186: 0.00 | H186: 0.00 | I186: 0.00 | J186: 0.00 | K186: 0.00 | L186: 0 | M186: 0.00 | N186: 792.00 | O186: 2,505,651.00 | P186: 0 | Q186: 0.00 | R186: 0 | S186: 0.00 | T186: 0 | U186: 0.00 | W186: 3,163.70
A187: 10 | B187: Казанский пр-т, д. 93 | C187: ='часть 1'!L198 -> 1,546,987.00 | D187: 0.00 | E187: 0.00 | F187: 0.00 | G187: 0.00 | H187: 0.00 | I187: 0.00 | J187: 0.00 | K187: 0.00 | L187: 0 | M187: 0.00 | N187: 485.00 | O187: 1,546,987.00 | P187: 0 | Q187: 0.00 | R187: 0 | S187: 0.00 | T187: 0 | U187: 0.00 | W187: 3,189.66
A188: 11 | B188: Ржевский тракт, д. 44 | C188: ='часть 1'!L199 -> 709,600.00 | D188: 0.00 | E188: 0.00 | F188: 0.00 | G188: 0.00 | H188: 0.00 | I188: 0.00 | J188: 0.00 | K188: 0.00 | L188: 0 | M188: 0.00 | N188: 220.36 | O188: 709,600.00 | P188: 0 | Q188: 0.00 | R188: 0 | S188: 0.00 | T188: 0 | U188: 0.00 | W188: 3,220.19
A189: 12 | B189: ул. Шмидта, д. 79/4 | C189: ='часть 1'!L200 -> 446,509.00 | D189: 0.00 | E189: 0.00 | F189: 0.00 | G189: 0.00 | H189: 0.00 | I189: 0.00 | J189: 0.00 | K189: 0.00 | L189: 0 | M189: 0.00 | N189: 135.80 | O189: 446,509.00 | P189: 0 | Q189: 0.00 | R189: 0 | S189: 0.00 | T189: 0 | U189: 0.00 | W189: 3,287.99
A190: 13 | B190: ул. Декабристов, д. 9 | C190: ='часть 1'!L201 -> 1,205,824.00 | D190: 0.00 | E190: 0.00 | F190: 0.00 | G190: 0.00 | H190: 0.00 | I190: 0.00 | J190: 0.00 | K190: 0.00 | L190: 0 | M190: 0.00 | N190: 380.00 | O190: 1,205,824.00 | P190: 0 | Q190: 0.00 | R190: 0 | S190: 0.00 | T190: 0 | U190: 0.00 | W190: 3,173.22
A191: 14 | B191: ул. Новгородская, д. 4 | C191: ='часть 1'!L202 -> 818,595.80 | D191: 0.00 | E191: 0.00 | F191: 0.00 | G191: 0.00 | H191: 0.00 | I191: 0.00 | J191: 0.00 | K191: 0.00 | L191: 0 | M191: 0.00 | N191: 250.00 | O191: 818,595.80 | P191: 0 | Q191: 0.00 | R191: 0 | S191: 0.00 | T191: 0 | U191: 0.00 | W191: 3,274.38
A192: 15 | B192: Лермонтовский пер., д. 16 | C192: ='часть 1'!L203 -> 2,707,283.00 | D192: 0.00 | E192: 0.00 | F192: 0.00 | G192: 0.00 | H192: 0.00 | I192: 0.00 | J192: 0.00 | K192: 0.00 | L192: 0 | M192: 0.00 | N192: 1,095.00 | O192: 2,707,283.00 | P192: 0 | Q192: 0.00 | R192: 0 | S192: 0.00 | T192: 0 | U192: 0.00 | W192: 2,472.40
A193: 16 | B193: ул. 4-я Пролетарская, д. 98/2 | C193: ='часть 1'!L204 -> 1,834,849.00 | D193: 0.00 | E193: 0.00 | F193: 0.00 | G193: 0.00 | H193: 0.00 | I193: 0.00 | J193: 0.00 | K193: 0.00 | L193: 0 | M193: 0.00 | N193: 582.20 | O193: 1,834,849.00 | P193: 0 | Q193: 0.00 | R193: 0 | S193: 0.00 | T193: 0 | U193: 0.00 | W193: 3,151.58
B194: Итого по город Кимры | C194: =C195 -> 366,350.00 | D194: =D195 -> 366,350.00 | E194: 0.00 | F194: 366,350.00 | G194: 0.00 | H194: 0.00 | I194: 0.00 | J194: 0.00 | K194: 0.00 | L194: 0.00 | M194: 0.00 | N194: 0.00 | O194: 0.00 | P194: 0.00 | Q194: 0.00 | R194: 0.00 | S194: 0.00 | T194: 0.00 | U194: 0.00
A195: 177 | B195: ул. Кириллова, д. 14 | C195: ='часть 1'!L206 -> 366,350.00 | D195: =E195+F195+G195+H195+I195+J195+K195 -> 366,350.00 | E195: 0.00 | F195: 366,350.00 | G195: 0.00 | H195: 0.00 | I195: 0.00 | J195: 0.00 | K195: 0.00 | L195: 0 | M195: 0.00 | N195: 0.00 | O195: 0.00 | P195: 0 | Q195: 0.00 | R195: 0 | S195: 0.00 | T195: 0 | U195: 0.00 | AA195: =F195/'часть 1'!I206 -> 923.2610887
B196: Итого по город Ржев | C196: =C197+C198+C199+C200+C201+C202+C203+C204+C205+C206+C207+C208 -> 31,146,002.00 | D196: =D197+D198+D199+D200+D201+D202+D203+D204+D205+D206+D207+D208 -> 0.00 | E196: 0.00 | F196: 0.00 | G196: 0.00 | H196: 0.00 | I196: 0.00 | J196: 0.00 | K196: 0.00 | L196: 0.00 | M196: 0.00 | N196: 10,349.57 | O196: 31,146,002.00 | P196: 0.00 | Q196: 0.00 | R196: 0.00 | S196: 0.00 | T196: 0.00 | U196: 0.00
A197: 178 | B197: ул. Тертия Филиппова, 86а | C197: ='часть 1'!L208 -> 2,706,084.00 | D197: 0.00 | E197: 0.00 | F197: 0.00 | G197: 0.00 | H197: 0.00 | I197: 0.00 | J197: 0.00 | K197: 0.00 | L197: 0 | M197: 0.00 | N197: 863.80 | O197: 2,706,084.00 | P197: 0 | Q197: 0.00 | R197: 0 | S197: 0.00 | T197: 0 | U197: 0.00 | W197: =O197/N197 -> 3,132.77
A198: 179 | B198: ул. Карла Маркса, 20/16 | C198: ='часть 1'!L209 -> 1,419,136.00 | D198: 0.00 | E198: 0.00 | F198: 0.00 | G198: 0.00 | H198: 0.00 | I198: 0.00 | J198: 0.00 | K198: 0.00 | L198: 0 | M198: 0.00 | N198: 448.92 | O198: 1,419,136.00 | P198: 0 | Q198: 0.00 | R198: 0 | S198: 0.00 | T198: 0 | U198: 0.00 | W198: =O198/N198 -> 3,161.22
A199: 180 | B199: ул. Садовая, 20/30 | C199: ='часть 1'!L210 -> 3,552,093.00 | D199: 0.00 | E199: 0.00 | F199: 0.00 | G199: 0.00 | H199: 0.00 | I199: 0.00 | J199: 0.00 | K199: 0.00 | L199: 0 | M199: 0.00 | N199: 1,135.00 | O199: 3,552,093.00 | P199: 0 | Q199: 0.00 | R199: 0 | S199: 0.00 | T199: 0 | U199: 0.00 | W199: 3,129.60
A200: 181 | B200: ул. Большая Спасская, 18/50 | C200: ='часть 1'!L211 -> 2,154,879.00 | D200: 0.00 | E200: 0.00 | F200: 0.00 | G200: 0.00 | H200: 0.00 | I200: 0.00 | J200: 0.00 | K200: 0.00 | L200: 0 | M200: 0.00 | N200: 682.50 | O200: 2,154,879.00 | P200: 0 | Q200: 0.00 | R200: 0 | S200: 0.00 | T200: 0 | U200: 0.00 | W200: 3,157.33
... 1163 more rows

Sheet часть 3 (hidden)
A1: III. Планируемые показатели выполнения работ по капитальному ремонту многоквартирных домов
A2: № п/п | B2: Наименование муниципального образования | C2: Общая площадь МКД, всего | D2: Количество жителей, зарегистрированных в МКД на дату утверждения краткосрочного плана | E2: Количество МКД | J2: Стоимость капитального ремонта
E3: I квартал | F3: II квартал | G3: III квартал | H3: IV квартал | I3: всего | J3: I квартал | K3: II квартал | L3: III квартал | M3: IV квартал | N3: всего
C4: кв. м | D4: чел. | E4: ед. | F4: ед. | G4: ед. | H4: ед. | I4: ед. | J4: руб. | K4: руб. | L4: руб. | M4: руб. | N4: руб.
A5: 1 | B5: 2 | C5: 3 | D5: 4 | E5: 5 | F5: 6 | G5: 7 | H5: 8 | I5: 9 | J5: 10 | K5: 11 | L5: 12 | M5: 13 | N5: 14
B6: Итого по Тверской области | C6: =C7+C8+C9+C10+C11+C12+C14+C16+C18++C20+C23+C25+C33+C35+C37+C40+C46+C48+C51+C55+C64+C66+C68+C72+C74+C76+C79+C82+C84+C89+C92+C94+C96+C99+C101+C102 -> 468,830.95 | D6: =D7+D8+D9+D10+D11+D12+D14+D16+D18++D20+D23+D25+D33+D35+D37+D40+D46+D48+D51+D55+D64+D66+D68+D72+D74+D76+D79+D82+D84+D89+D92+D94+D96+D99+D101+D102 -> 15,600 | E6: =E7+E8+E9+E10+E11+E12+E14+E16+E18+E20+E23+E25+E33+E35+E37+E40+E46+E48+E51+E55+E64+E66+E68+E72+E74+E76+E79+E82+E84+E89+E92+E94+E99+E101+E102 -> 0 | F6: =F7+F8+F9+F10+F11+F12+F14+F16+F18+F20+F23+F25+F33+F35+F37+F40+F46+F48+F51+F55+F64+F66+F68+F72+F74+F76+F79+F82+F84+F89+F92+F94+F99+F101+F102 -> 2 | G6: =G7+G8+G9+G10+G11+G12+G14+G16+G18+G20+G23+G25+G33+G35+G37+G40+G46+G48+G51+G55+G64+G66+G68+G72+G74+G76+G79+G82+G84+G89+G92+G94+G96+G99+G101+G102 -> 7 | H6: =H7+H8+H9+H10+H11+H12+H14+H16+H18+H20+H23+H25+H33+H35+H37+H40+H46+H48+H51+H55+H64+H66+H68+H72+H74+H76+H79+H82+H84+H89+H92+H94+H96+H99+H101+H102 ->  | I6: =I7+I8+I9+I10+I11+I12+I14+I16+I18+I20+I23+I25+I33+I35+I37+I40+I46+I48+I51+I55+I64+I66+I68+I72+I74+I76+I79+I82+I84+I89+I92+I94+I96+I99+I101+I102 ->  | J6: =J7+J8+J9+J10+J11+J12+J14+J16+J18+J20+J23+J25+J33+J35+J37+J40+J46+J48+J51+J55+J64+J66+J68+J72+J74+J76+J79+J82+J84+J89+J92+J94+J99+J101+J102 -> 0.00 | K6: =K7+K8+K9+K10+K11+K12+K14+K16+K18+K20+K23+K25+K33+K35+K37+K40+K46+K48+K51+K55+K64+K66+K68+K72+K74+K76+K79+K82+K84+K89+K92+K94+K99+K101+K102 -> 3,666,180.00 | L6: =L7+L8+L9+L10+L11+L12+L14+L16+L18+L20+L23+L25+L33+L35+L37+L40+L46+L48+L51+L55+L64+L66+L68+L72+L74+L76+L79+L82+L84+L89+L92+L94+L99+L101+L102 -> 7,158,350.07 | M6: =M7+M8+M9+M10+M11+M12+M14+M16+M18+M20+M23+M25+M33+M35+M37+M40+M46+M48+M51+M55+M64+M66+M68+M72+M74+M76+M79+M82+M84+M89+M92+M94+M96+M99+M101+M102 -> 667,981,123.18 | N6: =N7+N8+N9+N10+N11+N12+N14+N16+N18+N20+N23+N25+N33+N35+N37+N40+N46+N48+N51+N55+N64+N66+N68+N72+N74+N76+N79+N82+N84+N89+N92+N94+N96+N99+N101+N102 -> 689,255,460.85
A7: 1 | B7: Итого по город Тверь | C7: ='часть 1'!H19 -> 0.00 | D7: ='часть 1'!K19 -> 0 | E7: 0 | F7: 0 | G7: 0 | H7: 168 | I7: =H7+G7 -> 168 | J7: 0.00 | K7: 0.00 | L7: 0.00 | M7: ='часть 1'!L19 -> 336,230,870.63 | N7: =M7 -> 336,230,870.63
A8: 2 | B8: Итого по город Вышний Волочек | C8: ='часть 1'!H188 -> 25,162.00 | D8: ='часть 1'!K188 -> 816 | E8: 0 | F8: 0 | G8: 0 | H8: 16 | I8: =H8+G8 -> 16 | J8: 0.00 | K8: 0.00 | L8: 0.00 | M8: ='часть 1'!L188 -> 31,255,395.63 | N8: 31,255,395.63
A9: 3 | B9: Итого по город Кимры | C9: ='часть 1'!H205 -> 432.80 | D9: ='часть 1'!K205 -> 27 | E9: 0 | F9: 0 | G9: 0 | H9: 1 | I9: 1 | J9: 0.00 | K9: 0.00 | L9: 0.00 | M9: ='часть 1'!L205 -> 366,350.00 | N9: 366,350.00
A10: 4 | B10: Итого по город Ржев | C10: ='часть 1'!H207 -> 19,486.90 | D10: ='часть 1'!K207 -> 669 | E10: 0 | F10: 0 | G10: 0 | H10: 12 | I10: 12 | J10: 0.00 | K10: 0.00 | L10: 0.00 | M10: ='часть 1'!L207 -> 31,146,002.00 | N10: =M10 -> 31,146,002.00
A11: 5 | B11: Итого по город Торжок | C11: ='часть 1'!H231 -> 27,680.90 | D11: ='часть 1'!K231 -> 984 | E11: 0 | F11: 0 | G11: 0 | H11: 9 | I11: 9 | J11: 0.00 | K11: 0.00 | L11: 0.00 | M11: ='часть 1'!L231 -> 26,467,626.00 | N11: 26,467,626.00
A12: 6 | B12: Итого по ЗАТО Озерный | C12: ='часть 1'!H244 -> 34,678.06 | D12: ='часть 1'!K244 -> 1,002 | E12: 0 | F12: 0 | G12: 0 | H12: 5 | I12: 5 | J12: 0.00 | K12: 0.00 | L12: 0.00 | M12: ='часть 1'!L244 -> 11,767,484.00 | N12: 11,767,484.00
B13: Итого по ЗАТО Солнечный | C13: ='часть 1'!H257 -> 4,284.70 | D13: ='часть 1'!K257 -> 97 | E13: 0 | F13: 1 | G13: 1 | H13: 0 | I13: =H13+G13+F13+E13 -> 2 | J13: 0.00 | K13: 898,332.00 | L13: 1,914,360.00 | M13: 0.00 | N13: =M13+L13+K13+J13 -> 2,812,692.00
B14: Андреапольский район | C14: =C15 -> 3,033.70 | D14: =D15 -> 100.00 | E14: 0.00 | F14: 0.00 | G14: 0.00 | H14: 7.00 | I14: 7.00 | J14: 0.00 | K14: 0.00 | L14: 0.00 | M14: 5,868,972.00 | N14: 5,868,972.00
A15: 7 | B15: Итого по городское поселение город Андреаполь | C15: ='часть 1'!H261 -> 3,033.70 | D15: ='часть 1'!K261 -> 100 | E15: 0 | F15: 0 | G15: 0 | H15: 7 | I15: 7 | J15: 0.00 | K15: 0.00 | L15: 0.00 | M15: ='часть 1'!L260 -> 5,868,972.00 | N15: =M15 -> 5,868,972.00
B16: Бежецкий район | C16: =C17 -> 21,724.20 | D16: =D17 -> 832 | E16: 0 | F16: 0 | G16: 0 | H16: =H17 -> 10 | I16: 10 | J16: 0.00 | K16: 0.00 | L16: 0.00 | M16: ='часть 1'!L269 -> 22,562,280.00 | N16: 22,562,280.00
A17: 8 | B17: Итого по городское поселение город Бежецк | C17: ='часть 1'!H269 -> 21,724.20 | D17: ='часть 1'!K270 -> 832 | E17: 0 | F17: 0 | G17: 0 | H17: 10 | I17: 10 | J17: 0.00 | K17: 0.00 | L17: 0.00 | M17: ='часть 1'!L269 -> 22,562,280.00 | N17: =M17 -> 22,562,280.00
B18: Бельский район | C18: =C19 -> 362.90 | D18: =D19 -> 15.00 | E18: 0.00 | F18: 0.00 | G18: 0.00 | H18: 1.00 | I18: 1.00 | J18: 0.00 | K18: 0.00 | L18: 0.00 | M18: 241,114.00 | N18: 241,114.00
A19: 9 | B19: Итого по городское поселение город Белый | C19: ='часть 1'!H282 -> 362.90 | D19: ='часть 1'!K282 -> 15 | E19: 0 | F19: 0 | G19: 0 | H19: 1 | I19: 1 | J19: 0.00 | K19: 0.00 | L19: 0.00 | M19: ='часть 1'!L282 -> 241,114.00 | N19: =M19 -> 241,114.00
B20: Бологовский район | C20: =C21+C22 -> 23,164.56 | D20: =D21+D22 -> 853.0 | E20: =E21+E22 -> 0 | F20: =F21+F22 -> 0 | G20: 0 | J20: =J21+J22 -> 0.00 | K20: =K21+K22 -> 0.00 | L20: 0.00 | M20: 23,032,470.00 | N20: 23,032,470.00
A21: 10 | B21: Итого по городскому поселению город Бологое | C21: ='часть 1'!H285 -> 20,106.56 | D21: ='часть 1'!K285 -> 735 | E21: 0 | F21: 0 | G21: 0 | H21: ='часть 2'!#REF! ->  | J21: 0.00 | K21: 0.00 | L21: 0.00 | M21: ='часть 1'!L285 -> 20,696,312.00 | N21: =M21 -> 20,696,312.00
A22: 11 | B22: Итого по Валдайскому сельскому поселению | C22: ='часть 1'!H300 -> 3,058.00 | D22: ='часть 1'!K300 -> 118 | E22: 0 | F22: 0 | G22: 0 | H22: 2 | I22: 2 | J22: 0.00 | K22: 0.00 | L22: 0.00 | M22: ='часть 1'!L300 -> 2,336,158.00 | N22: =M22 -> 2,336,158.00
B23: Весьегонский район | C23: =C24 -> 1,753.90 | D23: =D24 -> 60 | E23: 0 | F23: 0 | G23: 0 | H23: 2 | I23: 2 | J23: 0.00 | K23: 0.00 | L23: 0.00 | M23: ='часть 1'!L303 -> 2,561,132.00 | N23: 2,561,132.00
A24: =A22+1 -> 12 | B24: Итого по городское поселение город Весьегонск | C24: ='часть 1'!H304 -> 1,753.90 | D24: ='часть 1'!K304 -> 60 | E24: 0 | F24: 0 | G24: 0 | H24: 2 | I24: 2 | J24: 0.00 | K24: 0.00 | L24: 0.00 | M24: ='часть 1'!L303 -> 2,561,132.00 | N24: =M24 -> 2,561,132.00
B25: Вышневолоцкий район | C25: =C26+C27+C28+C29+C30+C31+C32 -> 12,862.18 | D25: =D26+D27+D28+D29+D30+D31+D32 -> 459.00 | E25: 0.00 | F25: 0.00 | G25: 0.00 | H25: 5.00 | I25: 5.00 | J25: 0.00 | K25: 0.00 | L25: 0.00 | M25: 9,578,601.00 | N25: 9,578,601.00
A26: =A24+1 -> 13 | B26: Итого по городское поселение поселок Красномайский | C26: ='часть 1'!H308 -> 3,536.00 | D26: ='часть 1'!K308 -> 153 | E26: 0 | F26: 0 | G26: 0 | H26: 1 | I26: 1 | J26: 0.00 | K26: 0.00 | L26: 0.00 | M26: ='часть 1'!L308 -> 2,256,851.00 | N26: =M26 -> 2,256,851.00
B27: Итого по Горняцкое сельское поселение | C27: ='часть 1'!H311 -> 1,426.08 | D27: ='часть 1'!K311 -> 47 | E27: 0 | F27: 0 | G27: 0 | H27: 1 | I27: 1 | J27: 0.00 | K27: 0.00 | L27: 0.00 | M27: 1,826,091.00 | N27: =M27+L27+K27+J27 -> 1,826,091.00
A28: =A26+1 -> 14 | B28: Итого по Коломенское сельское поселение | C28: ='часть 1'!H312 -> 961.20 | D28: ='часть 1'!K312 -> 37 | E28: 0 | F28: 0 | G28: 0 | H28: 1 | I28: 1 | J28: 0.00 | K28: 0.00 | L28: 0.00 | M28: ='часть 1'!L312 -> 1,602,324.00 | N28: =M28 -> 1,602,324.00
A29: =A28+1 -> 15 | B29: Итого по Солнечное сельское поселение | C29: ='часть 1'!H314 -> 3,346.30 | D29: ='часть 1'!K314 -> 128 | E29: 0 | F29: 0 | G29: 0 | H29: 1 | I29: 1 | J29: 0.00 | K29: 0.00 | L29: 0.00 | M29: ='часть 1'!L314 -> 1,986,648.00 | N29: =M29 -> 1,986,648.00
A30: =A29+1 -> 16 | B30: Итого по Сорокинское сельское поселение | C30: ='часть 1'!H316 -> 0.00 | D30: ='часть 1'!K316 -> 0 | E30: 0 | F30: 0 | G30: 0 | H30: 0 | I30: 0 | J30: 0.00 | K30: 0.00 | L30: 0.00 | M30: ='часть 1'!L316 -> 0.00 | N30: =M30 -> 0.00
A31: =A30+1 -> 17 | B31: Итого по Терелесовское сельское поселение | C31: ='часть 1'!H317 -> 0.00 | D31: ='часть 1'!K317 -> 0 | E31: 0 | F31: 0 | G31: 0 | H31: 0 | I31: 0 | J31: 0.00 | K31: 0.00 | L31: 0.00 | M31: ='часть 1'!L317 -> 0.00 | N31: =M31 -> 0.00
B32: Итого по Холохоленское сельское поселение | C32: ='часть 1'!H319 -> 3,592.60 | D32: ='часть 1'!K319 -> 94 | E32: 0 | F32: 0 | G32: 0 | H32: 1 | I32: 1 | J32: 0.00 | K32: 0.00 | L32: 0.00 | M32: ='часть 1'!L319 -> 1,906,687.00 | N32: =M32+L32+K32+J32 -> 1,906,687.00
B33: Жарковский район | C33: ='часть 1'!H320 -> 525.40 | D33: ='часть 1'!K320 -> 21 | E33: =E34 -> 0 | F33: 0 | G33: 0 | H33: 1 | I33: 1 | J33: 0.00 | K33: 0.00 | L33: 0.00 | M33: 1,415,265.00 | N33: 1,415,265.00
A34: =A31+1 -> 18 | B34: Итого по городское поселение поселок Жарковский | C34: ='часть 1'!H321 -> 525.40 | D34: ='часть 1'!K320 -> 21 | E34: 0 | F34: 0 | G34: 0 | H34: 1 | I34: 1 | J34: 0.00 | K34: 0.00 | L34: 0.00 | M34: ='часть 1'!L321 -> 1,415,265.00 | N34: =M34 -> 1,415,265.00
B35: Западнодвинский район | C35: ='часть 1'!H324 -> 3,715.20 | D35: ='часть 1'!K324 -> 106 | E35: =E36 -> 0 | F35: 0 | G35: 0 | H35: =H36 -> 5 | I35: 5 | J35: 0.00 | K35: 0.00 | L35: 0.00 | M35: 6,592,116.00 | N35: 6,592,116.00
A36: =A34+1 -> 19 | B36: Итого по городское поселение город Западная Двина | C36: ='часть 1'!H325 -> 3,715.20 | D36: ='часть 1'!K325 -> 106 | E36: 0 | F36: 0 | G36: 0 | H36: 5 | I36: 5 | J36: 0.00 | K36: 0.00 | L36: 0.00 | M36: ='часть 1'!L325 -> 6,592,116.00 | N36: =M36 -> 6,592,116.00
B37: Зубцовский район | C37: ='часть 1'!H331 -> 1,348.80 | D37: ='часть 1'!K331 -> 52 | E37: =E38+E39 -> 0 | F37: 0 | G37: 0 | H37: =H38+H39 ->  | J37: 0.00 | K37: 0.00 | L37: 0.00 | M37: 3,699,748.00 | N37: 3,699,748.00
A38: =A36+1 -> 20 | B38: Итого по городское поселение город Зубцов | C38: ='часть 1'!H332 -> 1,083.30 | D38: ='часть 1'!K332 -> 50 | E38: 0 | F38: 0 | G38: 0 | H38: 2 | I38: 2 | J38: 0.00 | K38: 0.00 | L38: 0.00 | M38: ='часть 1'!L332 -> 3,145,909.00 | N38: =M38 -> 3,145,909.00
A39: =A38+1 -> 21 | B39: Итого по Погорельское сельское поселение | C39: ='часть 1'!H336 -> 265.50 | D39: ='часть 1'!K336 -> 2 | E39: 0 | F39: 0 | G39: 0 | H39: ='часть 2'!#REF! ->  | J39: 0.00 | K39: 0.00 | L39: 0.00 | M39: ='часть 1'!L336 -> 553,839.00 | N39: 553,839.00
B40: Калининский район | C40: ='часть 1'!H338 -> 8,221.40 | D40: ='часть 1'!K338 -> 388 | E40: =E41 -> 0 | F40: 0 | G40: =G41+G43+G44+G45 -> 1 | H40: =H41+H43+H44+H45 -> 2 | I40: 3 | J40: 0.00 | K40: 0.00 | L40: =L43 -> 1,905,804.00 | M40: =SUM(M41:M45) -> 6,108,282.00 | N40: =SUM(N41:N45) -> 18,463,893.60
A41: =A39+1 -> 22 | B41: Итого пео городское поселение поселок Орша | C41: ='часть 1'!H339 -> 1,542.70 | D41: ='часть 1'!K339 -> 78 | E41: 0 | F41: 0 | G41: 0 | H41: 1 | I41: 1 | J41: 0.00 | K41: 0.00 | L41: 0.00 | M41: ='часть 1'!L339 -> 5,287,622.00 | N41: 5,287,622.00
B42: Итого по Бурашевское сельское поселение | C42: ='часть 1'!H341 -> 1,774.00 | D42: ='часть 1'!K341 -> 99 | E42: 0 | F42: 0 | G42: 2 | H42: 0 | I42: 2 | J42: 0.00 | K42: 0.00 | L42: ='часть 1'!L341 -> 7,561,422.60 | M42: 0.00 | N42: =M42+L42+K42+J42 -> 7,561,422.60
A43: =A41+1 -> 23 | B43: Итого по Верхневолжское сельское поселение | C43: ='часть 1'!H344 -> 1,595.10 | D43: ='часть 1'!K344 -> 87 | E43: 0 | F43: 0 | G43: 0 | H43: 0 | I43: 0 | J43: 0.00 | K43: 0.00 | L43: ='часть 1'!L344 -> 1,905,804.00 | M43: 0.00 | N43: =L43 -> 1,905,804.00
A44: =A43+1 -> 24 | B44: Итого по Щербининское сельское поселение | C44: ='часть 1'!H347 -> 506.90 | D44: ='часть 1'!K347 -> 7 | E44: 0 | F44: 0 | G44: 0 | H44: 1 | I44: 1 | J44: 0.00 | K44: 0.00 | L44: 0.00 | M44: ='часть 1'!L347 -> 820,660.00 | N44: =M44 -> 820,660.00
A45: =A44+1 -> 25 | B45: Итого по Эмаусское сельское поселение | C45: ='часть 1'!H349 -> 4,576.70 | D45: ='часть 1'!K349 -> 216 | E45: 0 | F45: 0 | G45: 1 | H45: 0 | I45: 1 | J45: 0.00 | K45: 0.00 | L45: 2,888,385.00 | M45: 0.00 | N45: 2,888,385.00
B46: Калязинский район | C46: =C47 -> 6,412.52 | D46: =D47 -> 202 | E46: 0 | F46: 0 | G46: 0 | H46: 9 | I46: 9 | J46: 0.00 | K46: 0.00 | L46: 0.00 | M46: 14,213,854.00 | N46: 14,213,854.00
A47: =A45+1 -> 26 | B47: Итого по городское поселение город Калязин | C47: ='часть 1'!H353 -> 6,412.52 | D47: ='часть 1'!K353 -> 202 | E47: 0 | F47: 0 | G47: 0 | H47: 9 | I47: 9 | J47: 0.00 | K47: 0.00 | L47: 0.00 | M47: ='часть 1'!L352 -> 14,213,854.00 | N47: =M47 -> 14,213,854.00
B48: Кашинский район | C48: =C49 -> 7,394.60 | D48: =D49 -> 302 | E48: 0 | F48: 0 | G48: 0 | H48: 8 | I48: 8 | J48: 0.00 | K48: 0.00 | L48: 0.00 | M48: 11,379,869.00 | N48: 11,379,869.00
A49: =A47+1 -> 27 | B49: Итого по городское поселение город Кашин | C49: ='часть 1'!H363 -> 7,394.60 | D49: ='часть 1'!K363 -> 302 | E49: 0 | F49: 0 | G49: 0 | H49: 8 | I49: 8 | J49: 0.00 | K49: 0.00 | L49: 0.00 | M49: ='часть 1'!L364 -> 11,379,869.00 | N49: =M49 -> 11,379,869.00
B50: Итого по Верхнетроицкое сельское поселение | C50: ='часть 1'!H373 -> 1,087.70 | D50: ='часть 1'!K373 -> 55 | E50: 0 | F50: 0 | G50: 2 | H50: 0 | I50: 2 | J50: 0.00 | K50: 0.00 | L50: 2,903,743.00 | M50: 0.00 | N50: =M50+L50+K50+J50 -> 2,903,743.00
B51: Кимрский район | C51: =C53+C52+C54 -> 2,360.40 | D51: =D53+D52+D54 -> 81 | E51: =E53+E52 -> 0 | F51: =F53+F52 -> 0 | G51: 1 | H51: =H53+H52+H54 -> 2 | I51: 3 | J51: =J53 -> 0.00 | K51: 0.00 | L51: 0.00 | M51: =M53+M52+M54 -> 1,292,346.00 | N51: =M51 -> 1,292,346.00
A52: =A49+1 -> 28 | B52: Итого по городское поселение поселок Белый Городок | C52: ='часть 1'!H377 -> 704.60 | D52: ='часть 1'!K377 -> 16 | E52: 0 | F52: 0 | G52: 1 | H52: 0 | I52: 1 | J52: 0.00 | K52: 0.00 | L52: 1,828,731.00 | M52: 0.00 | N52: 1,828,731.00
A53: =A52+1 -> 29 | B53: Итого по Быковское сельское поселение | C53: ='часть 1'!H380 -> 799.30 | D53: ='часть 1'!K380 -> 32 | E53: 0 | F53: 0 | G53: 0 | H53: 1 | I53: 1 | J53: 0.00 | K53: 0.00 | L53: 0.00 | M53: 201,010.00 | N53: =M53 -> 201,010.00
A54: =A53+1 -> 30 | B54: Итого по Приволжское сельское поселение | C54: ='часть 1'!H382 -> 856.50 | D54: ='часть 1'!K382 -> 33 | E54: 0 | F54: 0 | G54: 0 | H54: 1 | I54: 1 | J54: 0.00 | K54: 0.00 | L54: 0.00 | M54: ='часть 1'!L382 -> 1,091,336.00 | N54: =M54 -> 1,091,336.00
B55: Конаковский район | C55: ='часть 1'!H384+'часть 1'!H524 -> 125,982.90 | D55: ='часть 1'!K384+'часть 1'!K524 -> 3,722 | E55: =E58+E61+E62+E56 -> 0 | F55: 0 | G55: 0 | H55: =H58+H61+H59+H62+H56+H57+H63 -> 22 | I55: 22 | J55: 0.00 | K55: 0.00 | L55: 0.00 | M55: =M58+M61+M59+M62+M56+M57+M63 -> 54,292,021.92 | N55: =M55 -> 54,292,021.92
A56: =A54+1 -> 31 | B56: Итого по городское поселение город Конаково | C56: ='часть 1'!H385 -> 77,350.00 | D56: ='часть 1'!K385 -> 2,037 | E56: 0 | F56: 0 | G56: 0 | H56: 10 | I56: 10 | J56: 0.00 | K56: 0.00 | L56: 0.00 | M56: ='часть 2'!C375 -> 31,676,745.00 | N56: 31,676,745.00
A57: =A56+1 -> 32 | B57: Итого по городское поселение поселок Изоплит | C57: ='часть 1'!H397 -> 2,337.40 | D57: ='часть 1'!K397 -> 91 | E57: 0 | F57: 0 | G57: 0 | H57: 3 | I57: 3 | J57: 0.00 | K57: 0.00 | L57: 0.00 | M57: ='часть 1'!L397 -> 5,439,639.00 | N57: =M57 -> 5,439,639.00
A58: 33 | B58: Итого по городское поселение поселок Козлово | C58: ='часть 1'!H403 -> 1,494.00 | D58: ='часть 1'!K403 -> 59 | E58: 0 | F58: 0 | G58: 0 | H58: 1 | I58: 1 | J58: 0.00 | K58: 0.00 | L58: 0.00 | M58: ='часть 1'!L403 -> 2,476,043.00 | N58: 2,476,043.00
A59: 34 | B59: Итого по городское поселение поселок Редкино | C59: ='часть 1'!H405 -> 13,933.00 | D59: ='часть 1'!K405 -> 553 | E59: 0 | F59: 0 | G59: 0 | H59: 4 | I59: 4 | J59: 0.00 | K59: 0.00 | L59: 0.00 | M59: ='часть 1'!L405 -> 11,027,716.00 | N59: 11,027,716.00
B60: Итого по городское поселение поселок Радченко | C60: ='часть 1'!H412 -> 5,520.20 | D60: ='часть 1'!K412 -> 173 | E60: 0 | F60: 0 | G60: 0 | H60: 2 | I60: 2 | J60: 0.00 | K60: 0.00 | L60: 0.00 | M60: 4,521,219.00 | N60: 4,521,219.00
A61: =A59+1 -> 35 | B61: Итого по Городенское сельское поселение | C61: ='часть 1'!H415 -> 625.90 | D61: ='часть 1'!K415 -> 32 | E61: 0 | F61: 0 | G61: 0 | H61: 1 | I61: 1 | J61: 0.00 | K61: 0.00 | L61: 0.00 | M61: ='часть 1'!L415 -> 1,540,610.00 | N61: 1,540,610.00
A62: 36 | B62: Итого по Дмитровогорское сельское поселение | C62: ='часть 1'!H417 -> 533.50 | D62: ='часть 1'!K417 -> 54 | E62: 0 | F62: 0 | G62: 0 | H62: 1 | I62: 1 | J62: 0.00 | K62: 0.00 | L62: 0.00 | M62: ='часть 1'!L417 -> 657,835.92 | N62: 657,835.92
A63: 37 | B63: Итого по сельское поселение "Завидово" | C63: ='часть 1'!H419 -> 1,150.10 | D63: ='часть 1'!K419 -> 58 | E63: 0 | F63: 0 | G63: 0 | H63: 2 | I63: 2 | J63: 0.00 | K63: 0.00 | L63: 0.00 | M63: ='часть 1'!L419 -> 1,473,433.00 | N63: 1,473,433.00
B64: Краснохолмский район | C64: =C65 -> 1,983.00 | D64: =D65 -> 80 | E64: 0 | F64: 0 | G64: 0 | J64: 0.00 | K64: 0.00 | L64: 0.00 | M64: 2,222,747.00 | N64: 2,222,747.00
A65: =A63+1 -> 38 | B65: Итого по городское поселение город Красный Холм | C65: ='часть 1'!H425 -> 1,983.00 | D65: ='часть 1'!K425 -> 80 | E65: 0 | F65: 0 | G65: 0 | H65: ='часть 2'!#REF! ->  | J65: 0.00 | K65: 0.00 | L65: 0.00 | M65: ='часть 1'!L425 -> 2,222,747.00 | N65: =M65 -> 2,222,747.00
B66: Кувшиновский район | C66: =C67 -> 912.10 | D66: =D67 -> 39.00 | E66: 0.00 | F66: 0.00 | G66: 2.00 | H66: 0 | I66: 2 | J66: 0.00 | K66: 0.00 | L66: 2,809,430.00 | M66: 0.00 | N66: 2,809,430.00
A67: 38 | B67: Итого по тгородское поселение город Кувшиново | C67: ='часть 1'!H430 -> 912.10 | D67: ='часть 1'!K430 -> 39 | E67: 0 | F67: 0 | G67: 2 | H67: 0 | I67: 2 | J67: 0.00 | K67: 0.00 | L67: 2,809,430.00 | M67: 0.00 | N67: =M67+L67+K67+J67 -> 2,809,430.00
B68: Лихославльский район | C68: ='часть 1'!H434 -> 10,396.00 | D68: ='часть 1'!K434 -> 320 | E68: =E69+E70+E71 -> 0 | F68: 0 | G68: 1 | H68: 6 | I68: 7 | J68: 0.00 | K68: 0.00 | L68: 1,510,788.00 | M68: =M69+M70+M71 -> 9,278,483.00 | N68: 10,789,271.00
A69: 39 | B69: Итого по городское поселение город Лихославль | C69: ='часть 1'!H435 -> 4,140.70 | D69: ='часть 1'!K435 -> 125 | E69: 0 | F69: 0 | G69: 0 | H69: 5 | I69: 5 | J69: 0.00 | K69: 0.00 | L69: 0.00 | M69: ='часть 1'!L435 -> 6,762,929.00 | N69: =M69 -> 6,762,929.00
A70: 40 | B70: Итого по городское поселение поселок Калашниково | C70: ='часть 1'!H441 -> 4,874.10 | D70: ='часть 1'!K441 -> 127 | E70: 0 | F70: 0 | G70: 0 | H70: 1 | I70: 1 | J70: 0.00 | K70: 0.00 | L70: 0.00 | M70: ='часть 1'!L441 -> 2,515,554.00 | N70: =M70 -> 2,515,554.00
A71: 41 | B71: Итого по Вескинское сельское поселение | C71: ='часть 1'!H443 -> 1,381.20 | D71: ='часть 1'!K443 -> 68 | E71: 0 | F71: 0 | G71: 1 | H71: 0 | I71: 1 | J71: 0.00 | K71: 0.00 | L71: 1,510,788.00 | M71: 0.00 | N71: =L71 -> 1,510,788.00
B72: Максатихинский район | C72: =C73 -> 8,010.40 | D72: =D73 -> 199 | E72: 0 | F72: 0 | G72: 0 | H72: 2 | I72: 2 | J72: 0.00 | K72: 0.00 | L72: 0.00 | M72: =M73 -> 2,579,247.00 | N72: =N73 -> 2,579,247.00
A73: 42 | B73: Итого по городское поселение поселок Максатиха | C73: ='часть 1'!H446 -> 8,010.40 | D73: ='часть 1'!K446 -> 199 | E73: 0 | F73: 0 | G73: 0 | H73: 2 | I73: 2 | J73: 0.00 | K73: 0.00 | L73: 0.00 | M73: ='часть 1'!L445 -> 2,579,247.00 | N73: =M73 -> 2,579,247.00
B74: Нелидовский район | C74: =C75 -> 17,371.80 | D74: ='часть 1'!K449+'часть 1'!K533 -> 538 | E74: =E75 -> 0 | F74: 0 | G74: 0 | J74: 0.00 | K74: 0.00 | L74: 0.00 | M74: 12,228,909.00 | N74: 12,228,909.00
A75: 43 | B75: Итого по городское поселение город Нелидово | C75: ='часть 1'!H449+'часть 1'!H534 -> 17,371.80 | D75: ='часть 1'!K534+'часть 1'!K450 -> 538 | E75: 0 | F75: 0 | G75: 0 | H75: ='часть 2'!#REF! ->  | J75: 0.00 | K75: 0.00 | L75: 0.00 | M75: ='часть 2'!C444 -> 12,228,909.00 | N75: =M75 -> 12,228,909.00
B76: Оленинский район | C76: =C77+C78 -> 26,864.30 | D76: =D77+D78 -> 879.00 | E76: 0.00 | F76: 0.00 | G76: 0.00 | H76: 42.00 | I76: 42.00 | J76: 0.00 | K76: 0.00 | L76: 0.00 | M76: 4,724,118.00 | N76: 4,724,118.00
A77: 44 | B77: Итого по городское поселение поселок Оленино | C77: ='часть 1'!H537 -> 4,504.30 | D77: ='часть 1'!K537 -> 203 | E77: 0 | F77: 0 | G77: 0 | H77: 7 | I77: 7 | J77: 0.00 | K77: 0.00 | L77: 0.00 | M77: ='часть 1'!L537 -> 1,839,043.00 | N77: =M77 -> 1,839,043.00
A78: 45 | B78: Итого по Мостовское сельское поселение | C78: ='часть 1'!H545 -> 22,360.00 | D78: ='часть 1'!K545 -> 676 | E78: 0 | F78: 0 | G78: 0 | H78: 35 | I78: =H78+G78 -> 35 | J78: 0.00 | K78: 0.00 | L78: 0.00 | M78: ='часть 1'!L545 -> 2,885,075.00 | N78: =M78 -> 2,885,075.00
B79: Осташковский район | C79: ='часть 1'!H460 -> 8,449.80 | D79: ='часть 1'!K460 -> 357 | E79: =E81 -> 0 | F79: 2 | G79: 0 | H79: 0 | I79: =H79+G79+F79+E79 -> 2 | J79: 0.00 | K79: 3,666,180.00 | L79: 0.00 | M79: 0.00 | N79: 3,666,180.00
B80: Пеновский район | C80: ='часть 1'!H466 -> 318.70 | D80: ='часть 1'!K466 -> 14 | E80: 0 | F80: 0 | G80: 0 | H80: 1 | I80: =H80+G80+F80+E80 -> 1 | J80: 0.00 | K80: 0.00 | L80: 0.00 | M80: 1,167,102.00 | N80: =M80+L80+K80+J80 -> 1,167,102.00
A81: 46 | B81: Рамешковский район | C81: ='часть 1'!H469 -> 4,625.80 | D81: ='часть 1'!K469 -> 154 | E81: 0 | F81: 2 | G81: 0 | H81: 0 | I81: 2 | J81: 0.00 | K81: 3,666,180.00 | L81: 0.00 | M81: 0.00 | N81: =M81+L81+K81+J81 -> 3,666,180.00
B82: Ржевский район | C82: 478.00 | D82: 15 | E82: 0 | F82: 0 | G82: 1 | H82: 0 | I82: 1 | J82: 0.00 | K82: 0.00 | L82: 204,131.00 | M82: 0.00 | N82: 204,131.00
A83: 47 | B83: Сандовский район | C83: ='часть 1'!H476 -> 508.92 | D83: ='часть 1'!K476 -> 16 | E83: 0 | F83: 0 | G83: 1 | H83: 0 | I83: 1 | J83: 0.00 | K83: 0.00 | L83: 1,214,790.00 | M83: 0.00 | N83: =J83+K83+L83+M83 -> 1,214,790.00
B84: Торжокский район | C84: ='часть 1'!H491 -> 1,095.30 | D84: ='часть 1'!K491 -> 27 | E84: =E88 -> 0 | F84: =F88 -> 0 | G84: =G88 -> 0 | H84: 2 | I84: 2 | J84: =J88 -> 0.00 | K84: =K88 -> 0.00 | L84: =L88 -> 0.00 | M84: ='часть 1'!L491 -> 2,988,909.00 | N84: =M84+L84+K84+J84 -> 2,988,909.00
B85: Селижаровский район | C85: ='часть 1'!H479 -> 4,999.20 | D85: ='часть 1'!K479 -> 190 | E85: 0 | F85: 0 | G85: 0 | H85: 2 | I85: 2 | J85: 0.00 | K85: 0.00 | L85: 0.00 | M85: 3,037,109.00 | N85: =M85+L85+K85+J85 -> 3,037,109.00
B86: Сонковский район | C86: =C87 -> 555.00 | D86: =D87 -> 16.00 | E86: 0.00 | F86: 0.00 | G86: 1.00 | H86: 0.00 | I86: 1.00 | J86: 0.00 | K86: 0.00 | L86: 1,402,598.00 | M86: 0.00 | N86: 1,402,598.00
B87: Итого по городское поселение поселок Сонково | C87: ='часть 1'!H484 -> 555.00 | D87: ='часть 1'!K484 -> 16 | E87: 0 | F87: 0 | G87: 1 | H87: 0 | I87: 1 | J87: 0.00 | K87: 0.00 | L87: 1,402,598.00 | M87: 0.00 | N87: 1,402,598.00
B88: Старицкий район | C88: =C89 -> 1,306.50 | D88: =D89 -> 49.00 | E88: 0.00 | F88: 0.00 | G88: 0.00 | H88: 4.00 | I88: 4.00 | J88: 0.00 | K88: 0.00 | L88: 0.00 | M88: 5,743,338.00 | N88: 5,743,338.00
A89: 49 | B89: Итого по городское поселение город Старица | C89: ='часть 1'!H486 -> 1,306.50 | D89: ='часть 1'!K486 -> 49 | E89: 0 | F89: 0 | G89: 0 | H89: 4 | I89: =H89+G89 -> 4 | J89: 0.00 | K89: 0.00 | L89: 0.00 | M89: ='часть 2'!C527 -> 5,743,338.00 | N89: =M89 -> 5,743,338.00
B90: Торопецкий район | C90: =C92+C91 -> 2,315.60 | D90: =D92+D91 -> 65.00 | E90: 0.00 | F90: 0.00 | G90: 0.00 | H90: 4.00 | I90: 4.00 | J90: 0.00 | K90: 0.00 | L90: 0.00 | M90: 4,692,143.00 | N90: 4,692,143.00
B91: Итого по Речанское сельское поселение | C91: ='часть 1'!H497 -> 675.90 | D91: ='часть 1'!K497 -> 21.00 | E91: 0.00 | F91: 0.00 | G91: 0.00 | H91: 1.00 | I91: =H91+G91+F91+E91 -> 1.00 | J91: 0.00 | K91: 0.00 | L91: 0.00 | M91: 346,938.00 | N91: 346,938.00
B92: Итого по городское поселение город Торопец | C92: 1,639.70 | D92: 44 | E92: 0 | F92: 0 | G92: 0 | H92: 3 | I92: 3 | J92: 0.00 | K92: 0.00 | L92: 0.00 | M92: 4,345,205.00 | N92: =M92 -> 4,345,205.00
A97: =A95+1 -> 1 | B97: Итого по Мирновское сельское поселение | C97: ='часть 1'!H492 -> 494.80 | D97: ='часть 1'!K492 -> 12 | E97: 0 | F97: 0 | G97: 0 | H97: 1 | I97: 1 | J97: 0.00 | K97: 0.00 | L97: 0.00 | M97: ='часть 2'!C533 -> 1,537,679.00 | N97: =M97 -> 1,537,679.00
A98: 54 | B98: Итого по Рудниковское сельское поселение | C98: ='часть 1'!H494 -> 600.50 | D98: ='часть 1'!K494 -> 15 | E98: 0 | F98: 0 | G98: 0 | H98: 1 | I98: 1 | J98: 0.00 | K98: 0.00 | L98: 0.00 | M98: ='часть 2'!C535 -> 1,451,230.00 | N98: =M98 -> 1,451,230.00
A101: 56 | B101: Удомельский городской округ | C101: ='часть 1'!H503 -> 59,226.13 | D101: ='часть 1'!K503 -> 2,200 | E101: 0 | F101: 0 | G101: 0 | H101: 7 | I101: 7 | J101: 0.00 | K101: 0.00 | L101: 0.00 | M101: ='часть 1'!L503 -> 21,667,282.00 | N101: =M101 -> 21,667,282.00
B102: Фировский район | C102: ='часть 1'!H515 -> 4,794.60 | D102: ='часть 1'!K515 -> 162 | E102: 0 | F102: 0 | G102: =G103 -> 1 | H102: =H103+H104 -> 1 | I102: 2 | J102: 0.00 | K102: 0.00 | L102: =L103 -> 728,197.07 | M102: =M103+M104 -> 2,131,086.00 | N102: =N103+N104 -> 2,859,283.07
A103: 57 | B103: Итого по городское поселение поселок Фирово | C103: ='часть 1'!H516 -> 1,507.80 | D103: ='часть 1'!K516 -> 62 | E103: 0 | F103: 0 | G103: 1 | H103: 0 | I103: 1 | J103: 0.00 | K103: 0.00 | L103: ='часть 1'!L516 -> 728,197.07 | M103: 0.00 | N103: =L103 -> 728,197.07
A104: 58 | B104: Итого по городское поселение поселок Великооктябрьский | C104: ='часть 1'!H518 -> 3,286.80 | D104: ='часть 1'!K518 -> 100 | E104: 0 | F104: 0 | G104: 0 | H104: 1 | I104: 1 | J104: 0.00 | K104: 0.00 | L104: 0.00 | M104: ='часть 1'!L518 -> 2,131,086.00 | N104: =M104 -> 2,131,086.00
A105: 1 | B105: Итого по город Тверь | C105: ='часть 1'!H106 -> 0.00 | D105: ='часть 1'!K106 -> 0 | E105: 0 | F105: 0 | G105: 0 | H105: 168 | I105: =H105+G105 -> 168 | J105: 0.00 | K105: 0.00 | L105: 0.00 | M105: ='часть 1'!L106 -> 1,116,228.00 | N105: =M105 -> 1,116,228.00
A106: 2 | B106: Итого по город Вышний Волочек | C106: ='часть 1'!H753 -> 11,522.80 | D106: ='часть 1'!K753 -> 365 | E106: 0 | F106: 0 | G106: 0 | H106: 13 | I106: =H106+G106 -> 13 | J106: 0.00 | K106: 0.00 | L106: 0.00 | M106: ='часть 1'!L753 -> 21,022,265.00 | N106: 21,022,265.00
A107: 3 | B107: Итого по город Кимры | C107: 929.50 | D107: 43 | E107: 0 | F107: 0 | G107: 0 | H107: 2 | I107: 2 | J107: 0.00 | K107: 0.00 | L107: 0.00 | M107: 1,681,461.00 | N107: 1,681,461.00
A108: 4 | B108: Итого по город Ржев | C108: ='часть 1'!H770 -> 4,540.80 | D108: ='часть 1'!K770 -> 151 | E108: 0 | F108: 0 | G108: 0 | H108: 2 | I108: 2 | J108: 0.00 | K108: 0.00 | L108: 0.00 | M108: ='часть 1'!L770 -> 4,013,524.00 | N108: =M108 -> 4,013,524.00
A109: 5 | B109: Итого по город Торжок | C109: ='часть 1'!H796 -> 13,237.70 | D109: ='часть 1'!K796 -> 482 | E109: 0 | F109: 0 | G109: 0 | H109: 9 | I109: 9 | J109: 0.00 | K109: 0.00 | L109: 0.00 | M109: ='часть 1'!L796 -> 17,682,419.00 | N109: =M109 -> 17,682,419.00
A110: 6 | B110: Итого по ЗАТО Озерный | C110: ='часть 1'!H809 -> 26,975.90 | D110: ='часть 1'!K809 -> 1,039 | E110: 0 | F110: 0 | G110: 0 | H110: 5 | I110: 5 | J110: 0.00 | K110: 0.00 | L110: 0.00 | M110: ='часть 1'!L809 -> 12,904,489.00 | N110: 12,904,489.00
B111: Итого по ЗАТО Солнечный | C111: ='часть 1'!H822 -> 5,260.10 | D111: ='часть 1'!K822 -> 160 | E111: 0 | F111: 1 | G111: 1 | H111: 0 | I111: =H111+G111+F111+E111 -> 2 | J111: 0.00 | K111: 1,146,524.00 | L111: 2,505,179.00 | M111: 0.00 | N111: =M111+L111+K111+J111 -> 3,651,703.00
B112: Андреапольский район | C112: =C113 -> 3,267.20 | D112: =D113 -> 71 | E112: 0 | F112: 0 | G112: 0 | H112: 2 | I112: 2 | J112: 0.00 | K112: 0.00 | L112: 0.00 | M112: 4,218,095.00 | N112: 4,218,095.00
A113: 7 | B113: Итого по городское поселение город Андреаполь | C113: ='часть 1'!H826 -> 3,267.20 | D113: ='часть 1'!K826 -> 71 | E113: 0 | F113: 0 | G113: 0 | H113: 2 | I113: 2 | J113: 0.00 | K113: 0.00 | L113: 0.00 | M113: ='часть 1'!L826 -> 4,218,095.00 | N113: =M113 -> 4,218,095.00
B114: Бежецкий район | C114: =C115 -> 4,403.50 | D114: =D115 -> 191.00 | E114: 0.00 | F114: 0.00 | G114: 0.00 | H114: 5.00 | I114: 5.00 | J114: 0.00 | K114: 0.00 | L114: 0.00 | M114: 9,289,441.00 | N114: 9,289,441.00
A115: 8 | B115: Итого по городское поселение город Бежецк | C115: ='часть 1'!H835 -> 4,403.50 | D115: ='часть 1'!K835 -> 191 | E115: 0 | F115: 0 | G115: 0 | H115: 5 | I115: 5 | J115: 0.00 | K115: 0.00 | L115: 0.00 | M115: ='часть 1'!L835 -> 9,289,441.00 | N115: =M115 -> 9,289,441.00
B116: Бельский район | C116: =C117 -> 285.20 | D116: =D117 -> 13 | E116: 0 | F116: 0 | G116: 0 | H116: ='часть 2'!#REF! ->  | J116: 0.00 | K116: 0.00 | L116: 0.00 | M116: ='часть 1'!L368 -> 1,551,693.00 | N116: 443,001.00
A117: 9 | B117: Итого по городское поселение город Белый | C117: ='часть 1'!H843 -> 285.20 | D117: ='часть 1'!K843 -> 13 | E117: 0 | F117: 0 | G117: 0 | H117: 1 | I117: 1 | J117: 0.00 | K117: 0.00 | L117: 0.00 | M117: ='часть 1'!L842 -> 443,001.00 | N117: =M117 -> 443,001.00
B118: Бологовский район | C118: =C119+C120 -> 105,310.90 | D118: =D119+D120 -> 3,133.0 | E118: =E119+E120 -> 0 | F118: =F119+F120 -> 0 | G118: 0 | J118: =J119+J120 -> 0.00 | K118: =K119+K120 -> 0.00 | L118: 0.00 | M118: 58,030,999.92 | N118: 58,030,999.92
A119: 10 | B119: Итого по городскому поселению город Бологое | C119: ='часть 1'!H372 -> 3,129.10 | D119: ='часть 1'!K372 -> 113 | E119: 0 | F119: 0 | G119: 0 | H119: ='часть 2'!#REF! ->  | J119: 0.00 | K119: 0.00 | L119: 0.00 | M119: ='часть 1'!L372 -> 2,178,044.00 | N119: =M119 -> 2,178,044.00
A120: 11 | B120: Итого по Валдайскому сельскому поселению | C120: ='часть 1'!H384 -> 102,181.80 | D120: ='часть 1'!K384 -> 3,020 | E120: 0 | F120: 0 | G120: 0 | H120: 2 | I120: 2 | J120: 0.00 | K120: 0.00 | L120: 0.00 | M120: ='часть 1'!L384 -> 55,852,955.92 | N120: =M120 -> 55,852,955.92
B121: Весьегонский район | C121: =C122 -> 520.90 | D121: =D122 -> 25 | E121: 0 | F121: 0 | G121: 0 | H121: 1 | I121: 1 | J121: 0.00 | K121: 0.00 | L121: 0.00 | M121: ='часть 1'!L387 -> 3,894,862.00 | N121: 922,687.00
A122: =A120+1 -> 12 | B122: Итого по городское поселение город Весьегонск | C122: ='часть 1'!H864 -> 520.90 | D122: ='часть 1'!K864 -> 25 | E122: 0 | F122: 0 | G122: 0 | H122: 1 | I122: 1 | J122: 0.00 | K122: 0.00 | L122: 0.00 | M122: ='часть 1'!L865 -> 922,687.00 | N122: =M122 -> 922,687.00
B123: Вышневолоцкий район | C123: =C124+C125+C126+C127+C128+C129 -> 7,577.50 | D123: =D124+D125+D126+D127+D128+D129 -> 291.00 | E123: 0.00 | F123: 0.00 | G123: 1.00 | H123: 6.00 | I123: 7.00 | J123: 0.00 | K123: 0.00 | L123: 1,646,792.00 | M123: 6,930,539.00 | N123: 8,577,331.00
A124: =A122+1 -> 13 | B124: Итого по городское поселение поселок Красномайский | C124: ='часть 1'!H868 -> 1,910.20 | D124: ='часть 1'!K868 -> 85 | E124: 0 | F124: 0 | G124: 0 | H124: 3 | I124: 3 | J124: 0.00 | K124: 0.00 | L124: 0.00 | M124: ='часть 1'!L868 -> 3,345,596.00 | N124: =M124 -> 3,345,596.00
B125: Итого по Горняцкое сельское поселение | C125: ='часть 1'!H873 -> 484.10 | D125: ='часть 1'!K873 -> 31 | E125: 0 | F125: 0 | G125: 0 | H125: 1 | I125: 1 | J125: 0.00 | K125: 0.00 | L125: 0.00 | M125: 908,962.00 | N125: =M125+L125+K125+J125 -> 908,962.00
B126: Итого по Коломенское сельское поселение | C126: ='часть 1'!H874 -> 386.60 | D126: ='часть 1'!K874 -> 19 | E126: 0 | F126: 0 | G126: 0 | H126: 1 | I126: 1 | J126: 0.00 | K126: 0.00 | L126: 0.00 | M126: ='часть 1'!L874 -> 655,569.00 | N126: =M126 -> 655,569.00
A127: =A126+1 -> 1 | B127: Итого по Солнечное сельское поселение | C127: ='часть 1'!H877 -> 3,324.50 | D127: ='часть 1'!K877 -> 127 | E127: 0 | F127: 0 | G127: 0 | H127: 1 | I127: 1 | J127: 0.00 | K127: 0.00 | L127: 0.00 | M127: ='часть 1'!L877 -> 2,020,412.00 | N127: =M127 -> 2,020,412.00
A128: =A127+1 -> 2 | B128: Итого по Сорокинское сельское поселение | C128: ='часть 1'!H878 -> 1,472.10 | D128: ='часть 1'!K878 -> 29 | E128: 0 | F128: 0 | G128: 1 | H128: 0 | I128: 1 | J128: 0.00 | K128: 0.00 | L128: ='часть 1'!L878 -> 1,646,792.00 | M128: 0.00 | N128: =M128+L128+K128+J128 -> 1,646,792.00
A129: =A128+1 -> 3 | B129: Итого пр Терелесовское сельское поселение | C129: 0.00 | D129: 0 | E129: 0 | F129: 0 | G129: 0 | H129: 0 | I129: 0 | J129: 0.00 | K129: 0.00 | L129: 0.00 | M129: 0.00 | N129: =M129 -> 0.00
B130: Жарковский район | C130: =C131 -> 459.10 | D130: =D131 -> 18.00 | E130: 0.00 | F130: 0.00 | G130: 0.00 | H130: 1.00 | I130: 1.00 | J130: 0.00 | K130: 0.00 | L130: 0.00 | M130: 674,133.00 | N130: 674,133.00
A131: =A129+1 -> 4 | B131: Итого по городское поселение поселок Жарковский | C131: 459.10 | D131: 18 | E131: 0 | F131: 0 | G131: 0 | H131: 1 | I131: 1 | J131: 0.00 | K131: 0.00 | L131: 0.00 | M131: 674,133.00 | N131: =M131 -> 674,133.00
B132: Западнодвинский район | C132: =C133 -> 597.00 | D132: =D133 -> 22.00 | E132: 0.00 | F132: 0.00 | G132: 0.00 | H132: 1.00 | I132: 1.00 | J132: 0.00 | K132: 0.00 | L132: 0.00 | M132: 1,786,109.00 | N132: 1,786,109.00
A133: =A131+1 -> 5 | B133: Итого по городское поселение город Западная Двина | C133: ='часть 1'!H887 -> 597.00 | D133: ='часть 1'!K887 -> 22 | E133: 0 | F133: 0 | G133: 0 | H133: 1 | I133: 1 | J133: 0.00 | K133: 0.00 | L133: 0.00 | M133: ='часть 1'!L887 -> 1,786,109.00 | N133: =M133 -> 1,786,109.00
B134: Зубцовский район | C134: ='часть 1'!H424 -> 1,983.00 | D134: ='часть 1'!K424 -> 80 | E134: =E135+E136 -> 0 | F134: 0 | G134: 0 | H134: =H135+H136 ->  | J134: =J135+J136 -> 0.00 | K134: 0.00 | L134: 0.00 | M134: 5,112,634.00 | N134: 5,112,634.00
A135: =A133+1 -> 6 | B135: Итого по городское поселение город Зубцов | C135: ='часть 1'!H890 -> 1,330.30 | D135: ='часть 1'!K890 -> 72 | E135: 0 | F135: 0 | G135: 0 | H135: 2 | I135: 2 | J135: 0.00 | K135: 0.00 | L135: 0.00 | M135: ='часть 1'!L890 -> 2,303,204.00 | N135: =M135 -> 2,303,204.00
A136: =A135+1 -> 7 | B136: Итого по Погорельское сельское поселение | C136: ='часть 1'!H429 -> 912.10 | D136: ='часть 1'!K429 -> 39 | E136: 0 | F136: 0 | G136: 0 | H136: ='часть 2'!#REF! ->  | J136: 0.00 | K136: 0.00 | L136: 0.00 | M136: ='часть 1'!L429 -> 2,809,430.00 | N136: 2,809,430.00
B137: Калининский район | C137: ='часть 1'!H431 -> 542.50 | D137: ='часть 1'!K431 -> 16 | E137: =E138 -> 0 | F137: 0 | G137: =G138+G139+G140+G141 -> 1 | H137: =H138+H139+H140+H141 -> 2 | I137: 3 | J137: 0.00 | K137: 0.00 | L137: =L139 -> 6,762,929.00 | M137: =SUM(M138:M141) -> 3,562,516.00 | N137: =SUM(N138:N141) -> 12,131,344.80
A138: =A136+1 -> 8 | B138: Итого пео городское поселение поселок Орша | C138: ='часть 1'!H898 -> 722.00 | D138: ='часть 1'!K898 -> 39 | E138: 0 | F138: 0 | G138: 0 | H138: 1 | I138: 1 | J138: 0.00 | K138: 0.00 | L138: 0.00 | M138: 1,753,559.00 | N138: =M138 -> 1,753,559.00
A139: =A138+1 -> 9 | B139: Итого по Верхневолжское сельское поселение | C139: ='часть 1'!H435 -> 4,140.70 | D139: ='часть 1'!K435 -> 125 | E139: 0 | F139: 0 | G139: 0 | H139: 0 | I139: 0 | J139: 0.00 | K139: 0.00 | L139: ='часть 1'!L435 -> 6,762,929.00 | M139: 0.00 | N139: =L139 -> 6,762,929.00
A140: =A139+1 -> 10 | B140: Итого по Щербининское сельское поселение | C140: ='часть 1'!H438 -> 522.50 | D140: ='часть 1'!K438 -> 21 | E140: 0 | F140: 0 | G140: 0 | H140: 1 | I140: 1 | J140: 0.00 | K140: 0.00 | L140: 0.00 | M140: ='часть 1'!L438 -> 1,808,957.00 | N140: =M140 -> 1,808,957.00
A141: =A140+1 -> 11 | B141: Итого по Эмаусское сельское поселение | C141: ='часть 1'!H906 -> 748.50 | D141: ='часть 1'!K906 -> 38 | E141: 0 | F141: 0 | G141: 1 | H141: 0 | I141: 1 | J141: 0.00 | K141: 0.00 | L141: 1,805,899.80 | M141: 0.00 | N141: 1,805,899.80
B142: Калязинский район | C142: =C143 -> 10,972.30 | D142: =D143 -> 402 | E142: 0 | F142: 0 | G142: 0 | H142: 6 | I142: 6 | J142: 0.00 | K142: 0.00 | L142: 0.00 | M142: 13,535,827.00 | N142: 13,535,827.00
A143: =A141+1 -> 12 | B143: Итого по городское поселение город Калязин | C143: ='часть 1'!H909 -> 10,972.30 | D143: ='часть 1'!K909 -> 402 | E143: 0 | F143: 0 | G143: 0 | H143: 6 | I143: 6 | J143: 0.00 | K143: 0.00 | L143: 0.00 | M143: ='часть 1'!L909 -> 13,535,827.00 | N143: =M143 -> 13,535,827.00
B144: Кашинский район | C144: =C145 -> 8,644.40 | D144: =D145 -> 283 | E144: 0 | F144: 0 | G144: 0 | H144: 8 | I144: 8 | J144: 0.00 | K144: 0.00 | L144: 0.00 | M144: 11,085,155.00 | N144: 11,085,155.00
A145: =A143+1 -> 13 | B145: Итого по городское поселение город Кашин | C145: ='часть 1'!H917 -> 8,644.40 | D145: ='часть 1'!K917 -> 283 | E145: 0 | F145: 0 | G145: 0 | H145: 8 | I145: 8 | J145: 0.00 | K145: 0.00 | L145: 0.00 | M145: ='часть 1'!L917 -> 11,085,155.00 | N145: =M145 -> 11,085,155.00
B146: Итого по Верхнетроицкое сельское поселение | C146: ='часть 1'!H926 -> 1,005.20 | D146: ='часть 1'!K926 -> 37 | E146: 0 | F146: 0 | G146: 1 | H146: 1 | I146: 2 | J146: 0.00 | K146: 0.00 | L146: 781,716.00 | M146: 247,569.00 | N146: =M146+L146+K146+J146 -> 1,029,285.00
B147: Кимрский район | C147: =C149+C148+C150 -> 6,236.20 | D147: =D149+D148+D150 -> 209 | E147: =E149+E148 -> 0 | F147: =F149+F148 -> 0 | G147: 1 | H147: =H149+H148+H150 -> 2 | I147: 3 | J147: =J149 -> 0.00 | K147: 0.00 | L147: 0.00 | M147: =M149+M148+M150 -> 1,313,974.00 | N147: =M147 -> 1,313,974.00
A148: =A145+1 -> 14 | B148: Итого по городское поселение поселок Белый Городок | C148: 704.60 | D148: 24 | E148: 0 | F148: 0 | G148: 1 | H148: 0 | I148: 1 | J148: 0.00 | K148: 0.00 | L148: 1,851,309.00 | M148: 0.00 | N148: 1,851,309.00
A149: =A148+1 -> 15 | B149: Итого по Быковское сельское поселение | C149: ='часть 1'!H470 -> 4,625.80 | D149: ='часть 1'!K470 -> 154 | E149: 0 | F149: 0 | G149: 0 | H149: 1 | I149: 1 | J149: 0.00 | K149: 0.00 | L149: 0.00 | M149: 201,010.00 | N149: =M149 -> 201,010.00
A150: =A149+1 -> 16 | B150: Итого по Приволжское сельское поселение | C150: ='часть 1'!H472 -> 905.80 | D150: ='часть 1'!K472 -> 31 | E150: 0 | F150: 0 | G150: 0 | H150: 1 | I150: 1 | J150: 0.00 | K150: 0.00 | L150: 0.00 | M150: ='часть 1'!L472 -> 1,112,964.00 | N150: =M150 -> 1,112,964.00
B151: Конаковский район | C151: ='часть 1'!H477+'часть 1'!H594 -> 508.92 | D151: ='часть 1'!K477+'часть 1'!K594 -> 16 | E151: =E154+E157+E158+E152 -> 0 | F151: =F154+F157+F158+F152 -> 0 | G151: =G154+G157+G158+G152 -> 0 | H151: =H154+H157+H155+H158+H152+H153+H159 -> 16 | I151: 16 | J151: =J154+J157+J158+J152 -> 0.00 | K151: =K154+K157+K158+K152 -> 0.00 | L151: =L154+L157+L158+L152 -> 0.00 | M151: =M154+M157+M155+M158+M152+M153+M159 -> 48,749,036.00 | N151: =M151 -> 48,749,036.00
A152: =A150+1 -> 17 | B152: Итого по городское поселение город Конаково | C152: ='часть 1'!H938 -> 44,029.10 | D152: ='часть 1'!K938 -> 1,255 | E152: 0 | F152: 0 | G152: 0 | H152: 6 | I152: 6 | J152: 0.00 | K152: 0.00 | L152: 0.00 | M152: ='часть 1'!L938 -> 29,383,642.00 | N152: 29,383,642.00
A153: =A152+1 -> 18 | B153: Итого по городское поселение поселок Изоплит | C153: ='часть 1'!H945 -> 781.00 | D153: ='часть 1'!K945 -> 22 | E153: 0 | F153: 0 | G153: 0 | H153: 1 | I153: 1 | J153: 0.00 | K153: 0.00 | L153: 0.00 | M153: ='часть 1'!L945 -> 1,107,622.00 | N153: =M153 -> 1,107,622.00
A154: 19 | B154: Итого по городское поселение поселок Козлово | C154: ='часть 1'!H948 -> 894.60 | D154: ='часть 1'!K948 -> 57 | E154: 0 | F154: 0 | G154: 0 | H154: 1 | I154: 1 | J154: 0.00 | K154: 0.00 | L154: 0.00 | M154: 2,348,226.00 | N154: =M154 -> 2,348,226.00
A155: 20 | B155: Итого по городское поселение поселок Редкино | C155: ='часть 1'!H949 -> 11,540.80 | D155: ='часть 1'!K949 -> 394 | E155: 0 | F155: 0 | G155: 0 | H155: 4 | I155: 4 | J155: 0.00 | K155: 0.00 | L155: 0.00 | M155: ='часть 1'!L949 -> 9,209,860.00 | N155: 9,209,860.00
B156: Итого по городское поселение поселок Радченко | C156: 687.80 | D156: 23 | E156: 0 | F156: 0 | G156: 0 | H156: 1 | I156: 1 | J156: 0.00 | K156: 0.00 | L156: 0.00 | M156: 1,720,569.00 | N156: 1,720,569.00
A157: =A155+1 -> 21 | B157: Итого по Городенское сельское поселение | C157: ='часть 1'!H958 -> 932.40 | D157: ='часть 1'!K958 -> 55 | E157: 0 | F157: 0 | G157: 0 | H157: 2 | I157: 2 | J157: 0.00 | K157: 0.00 | L157: 0.00 | M157: ='часть 1'!L958 -> 580,386.00 | N157: 580,386.00
A158: 22 | B158: Итого по Дмитровогорское сельское поселение | C158: ='часть 1'!H506 -> 13,232.03 | D158: ='часть 1'!K506 -> 487 | E158: 0 | F158: 0 | G158: 0 | H158: 1 | I158: 1 | J158: 0.00 | K158: 0.00 | L158: 0.00 | M158: ='часть 1'!L506 -> 4,688,365.00 | N158: 4,688,365.00
A159: 23 | B159: Итого по сельское поселение "Завидово" | C159: ='часть 1'!H963 -> 1,028.00 | D159: ='часть 1'!K963 -> 47 | E159: 0 | F159: 0 | G159: 0 | H159: 1 | I159: 1 | J159: 0.00 | K159: 0.00 | L159: 0.00 | M159: ='часть 1'!L963 -> 1,430,935.00 | N159: 1,430,935.00
B160: Краснохолмский район | C160: =C161 -> 0.00 | D160: =D161 -> 0 | E160: 0 | F160: 0 | G160: 0 | J160: 0.00 | K160: 0.00 | L160: 0.00 | M160: 0.00 | N160: 0.00
A161: =A159+1 -> 24 | B161: Итого по городское поселение город Красный Холм | C161: ='часть 1'!H514 -> 0.00 | D161: ='часть 1'!K514 -> 0 | E161: 0 | F161: 0 | G161: 0 | H161: ='часть 2'!#REF! ->  | J161: 0.00 | K161: 0.00 | L161: 0.00 | M161: ='часть 1'!L514 -> 0.00 | N161: =M161 -> 0.00
B162: Кувшиновский район | C162: =C163 -> 561.40 | D162: =D163 -> 19.00 | E162: 0.00 | F162: 0.00 | G162: 1.00 | H162: 0.00 | I162: 1.00 | J162: 0.00 | K162: 0.00 | L162: 1,739,787.00 | M162: 0.00 | N162: 1,739,787.00
A163: 38 | B163: Итого по тгородское поселение город Кувшиново | C163: 561.40 | D163: 19 | E163: 0 | F163: 0 | G163: 1 | H163: 0 | I163: 1 | J163: 0.00 | K163: 0.00 | L163: 1,739,787.00 | M163: 0.00 | N163: =M163+L163+K163+J163 -> 1,739,787.00
B164: Лихославльский район | C164: ='часть 1'!H523 -> 23,801.10 | D164: ='часть 1'!K523 -> 702 | E164: =E165+E166+E167 -> 0 | F164: 0 | G164: 0 | J164: =J165+J166+J167 -> 0.00 | K164: 0.00 | L164: 0.00 | M164: =M165+M166+M167 -> 12,623,452.00 | N164: =N165+N166+N167 -> 12,623,452.00
A165: 39 | B165: Итого по городское поселение город Лихославль | C165: ='часть 1'!H979 -> 5,703.00 | D165: ='часть 1'!K979 -> 262 | E165: 0 | F165: 0 | G165: 0 | H165: 6 | I165: 6 | J165: 0.00 | K165: 0.00 | L165: 0.00 | M165: ='часть 1'!L979 -> 8,669,678.00 | N165: =M165 -> 8,669,678.00
A166: 40 | B166: Итого по городское поселение поселок Калашниково | C166: ='часть 1'!H986 -> 1,293.30 | D166: ='часть 1'!K986 -> 57 | E166: 0 | F166: 0 | G166: 0 | H166: 3 | I166: 3 | J166: 0.00 | K166: 0.00 | L166: 0.00 | M166: ='часть 1'!L986 -> 2,114,731.00 | N166: =M166 -> 2,114,731.00
A167: 41 | B167: Итого по Ильинское сельское поселение | C167: ='часть 1'!H537 -> 4,504.30 | D167: ='часть 1'!K537 -> 203 | E167: 0 | F167: 0 | G167: 0 | H167: ='часть 2'!#REF! ->  | J167: 0.00 | K167: 0.00 | L167: 0.00 | M167: ='часть 1'!L537 -> 1,839,043.00 | N167: =M167 -> 1,839,043.00
B168: Максатихинский район | C168: =C169 -> 4,519.10 | D168: =D169 -> 141 | E168: 0 | F168: 0 | G168: 0 | H168: 2 | I168: 2 | J168: 0.00 | K168: 0.00 | L168: 0.00 | M168: =M169 -> 2,547,865.00 | N168: =N169 -> 2,547,865.00
A169: 42 | B169: Итого по городское поселение поселок Максатиха | C169: ='часть 1'!H993 -> 4,519.10 | D169: ='часть 1'!K993 -> 141 | E169: 0 | F169: 0 | G169: 0 | H169: 2 | I169: 2 | J169: 0.00 | K169: 0.00 | L169: 0.00 | M169: ='часть 1'!L993 -> 2,547,865.00 | N169: =M169 -> 2,547,865.00
B170: Нелидовский район | C170: =C171 -> 538.20 | D170: ='часть 1'!K543+'часть 1'!K603 -> 24 | E170: =E171 -> 0 | F170: 0 | G170: 0 | J170: 0.00 | K170: 0.00 | L170: 0.00 | M170: 974,618.00 | N170: 974,618.00
A171: 43 | B171: Итого по городское поселение город Нелидово | C171: ='часть 1'!H543+'часть 1'!H604 -> 538.20 | D171: ='часть 1'!K604+'часть 1'!K544 -> 45 | E171: 0 | F171: 0 | G171: 0 | H171: ='часть 2'!#REF! ->  | J171: 0.00 | K171: 0.00 | L171: 0.00 | M171: ='часть 2'!C516 -> 974,618.00 | N171: =M171 -> 974,618.00
B172: Оленинский район | C172: =C173+C174 -> 0.00 | D172: =D173+D174 -> 0.00 | E172: 0.00 | F172: 0.00 | G172: 0.00 | H172: 0.00 | I172: 0.00 | J172: 0.00 | K172: 0.00 | L172: 0.00 | M172: 0.00 | N172: 0.00
A173: 44 | B173: Итого по городское поселение поселок Оленино | C173: ='часть 1'!H607 -> 0.00 | D173: ='часть 1'!K607 -> 0 | E173: 0 | F173: 0 | G173: 0 | H173: 0 | I173: 0 | J173: 0.00 | K173: 0.00 | L173: 0.00 | M173: 0.00 | N173: =M173 -> 0.00
A174: 45 | B174: Итого по Мостовское сельское поселение | C174: ='часть 1'!H662 -> 0.00 | D174: ='часть 1'!K662 -> 0 | E174: 0 | F174: 0 | G174: 0 | H174: 0 | I174: =H174+G174 -> 0 | J174: 0.00 | K174: 0.00 | L174: 0.00 | M174: 0.00 | N174: =M174 -> 0.00
B175: Осташковский район | C175: ='часть 1'!H554 -> 640.40 | D175: ='часть 1'!K554 -> 19 | E175: =E177 -> 0 | F175: 0 | G175: 3 | H175: 0 | I175: 3 | J175: 0.00 | K175: 0.00 | L175: 4,886,972.00 | M175: 0.00 | N175: 4,886,972.00
B176: Пеновский район | C176: ='часть 1'!H1013 -> 274.14 | D176: ='часть 1'!K1015 -> 13 | E176: 0 | F176: 0 | G176: 0 | H176: 1 | I176: 1 | J176: 0.00 | K176: 0.00 | L176: 0.00 | M176: 423,156.00 | N176: =M176+L176+K176+J176 -> 423,156.00
A177: 46 | B177: Рамешковский район | C177: 1,469.14 | D177: 75 | E177: 0 | F177: 0 | G177: 3 | H177: 0 | I177: 3 | J177: 0.00 | K177: 0.00 | L177: 4,886,972.00 | M177: 0.00 | N177: =M177+L177+K177+J177 -> 4,886,972.00
B178: Ржевский район | C178: =1391.4+1391.4 -> 2,782.80 | D178: =39+37 -> 76 | E178: 0 | F178: 0 | G178: 2 | H178: 0 | I178: 2 | J178: 0.00 | K178: 0.00 | L178: =788836+788836 -> 1,577,672.00 | M178: 0.00 | N178: =788836+788836 -> 1,577,672.00
A179: 47 | B179: Сандовский район | C179: ='часть 1'!H1026 -> 403.40 | D179: 17 | E179: 0 | F179: 0 | G179: 1 | H179: 0 | I179: 1 | J179: 0.00 | K179: 0.00 | L179: 1,134,905.00 | M179: 0.00 | N179: =M179+L179+K179+J179 -> 1,134,905.00
B180: Торжокский район | C180: ='часть 1'!H1038 -> 1,161.30 | D180: ='часть 1'!K1038 -> 32 | E180: =E182 -> 0 | F180: =F182 -> 0 | G180: =G182 -> 0 | H180: 2 | I180: 2 | J180: =J182 -> 0.00 | K180: =K182 -> 0.00 | L180: =L182 -> 0.00 | M180: ='часть 1'!L1038 -> 3,125,223.00 | N180: =M180+L180+K180+J180 -> 3,125,223.00
B181: Селижаровский район | C181: ='часть 1'!H1028 -> 1,388.40 | D181: ='часть 1'!K1028 -> 39 | E181: 0 | F181: 0 | G181: 0 | H181: 2 | I181: 2 | J181: 0.00 | K181: 0.00 | L181: 0.00 | M181: 2,751,167.00 | N181: =M181+L181+K181+J181 -> 2,751,167.00
B182: Старицкий район | C182: =C183 -> 1,981.80 | D182: =D183 -> 66.00 | E182: 0.00 | F182: 0.00 | G182: 0.00 | H182: 4.00 | I182: 4.00 | J182: 0.00 | K182: 0.00 | L182: 0.00 | M182: 5,819,333.00 | N182: 5,819,333.00
A183: 49 | B183: Итого по городское поселение город Старица | C183: 1,981.80 | D183: 66 | E183: 0 | F183: 0 | G183: 0 | H183: 4 | I183: =H183+G183 -> 4 | J183: 0.00 | K183: 0.00 | L183: 0.00 | M183: 5,819,333.00 | N183: =M183 -> 5,819,333.00
B184: Торопецкий район | C184: =C185 -> 1,156.80 | D184: =D185 -> 44.00 | E184: 0.00 | F184: 0.00 | G184: 0.00 | H184: 1.00 | I184: 1.00 | J184: 0.00 | K184: 0.00 | L184: 0.00 | M184: 2,792,955.00 | N184: 2,792,955.00
B185: Итого по городское поселение город Торопец | C185: 1,156.80 | D185: 44 | E185: 0 | F185: 0 | G185: 0 | H185: 1 | I185: 1 | J185: 0.00 | K185: 0.00 | L185: 0.00 | M185: 2,792,955.00 | N185: =M185 -> 2,792,955.00
A190: =A188+1 -> 1 | B190: Итого по Мирновское сельское поселение | C190: ='часть 1'!#REF! ->  | D190: ='часть 1'!#REF! ->  | E190: 0 | F190: 0 | G190: 0 | H190: 1 | I190: =H190+G190 -> 1 | J190: 0.00 | K190: 0.00 | L190: 0.00 | M190: ='часть 2'!C622 -> 1,870,046.00 | N190: =M190 -> 1,870,046.00
A191: 54 | B191: Итого по Рудниковское сельское поселение | C191: ='часть 1'!#REF! ->  | D191: ='часть 1'!#REF! ->  | E191: 0 | F191: 0 | G191: 0 | H191: 1 | I191: 1 | J191: 0.00 | K191: 0.00 | L191: 0.00 | M191: ='часть 2'!C624 -> 3,687,908.00 | N191: =M191 -> 3,687,908.00
A194: 56 | B194: Удомельский городской округ | C194: 53,993.47 | D194: 1,897 | E194: 0 | F194: 0 | G194: 0 | H194: 10 | I194: =H194+G194 -> 10 | J194: 0.00 | K194: 0.00 | L194: 0.00 | M194: 22,164,555.00 | N194: =M194 -> 22,164,555.00
B195: Фировский район | C195: ='часть 1'!H585 -> 0.00 | D195: ='часть 1'!K585 -> 0 | E195: 0 | F195: 0 | G195: =G196 -> 1 | H195: =H196+H197 -> 0 | I195: 1 | J195: 0.00 | K195: 0.00 | L195: =L196 -> 9,379,653.00 | M195: =M196+M197 -> 0.00 | N195: =N196+N197 -> 9,379,653.00
A196: 57 | B196: Итого по городское поселение поселок Фирово | C196: ='часть 1'!H586 -> 0.00 | D196: ='часть 1'!K586 -> 0 | E196: 0 | F196: 0 | G196: 1 | H196: 0 | I196: 1 | J196: 0.00 | K196: 0.00 | L196: ='часть 1'!L586 -> 9,379,653.00 | M196: 0.00 | N196: =L196 -> 9,379,653.00
A197: 58 | B197: Итого по городское поселение поселок Великооктябрьский | C197: 0.00 | D197: 0 | E197: 0 | F197: 0 | G197: 0 | H197: 0 | I197: 0 | J197: 0.00 | K197: 0.00 | L197: 0.00 | M197: 0.00 | N197: 0.00
A198: 1 | B198: Итого по город Тверь | C198: ='часть 1'!H193 -> 1,534.20 | D198: ='часть 1'!K193 -> 47 | E198: 0 | F198: 0 | G198: 0 | H198: 168 | I198: =H198+G198 -> 168 | J198: 0.00 | K198: 0.00 | L198: 0.00 | M198: ='часть 1'!L193 -> 2,435,193.00 | N198: =M198 -> 2,435,193.00
A199: 2 | B199: Итого по город Вышний Волочек | C199: ='часть 1'!H1255 -> 14,224.60 | D199: ='часть 1'!K1255 -> 391 | E199: 0 | F199: 0 | G199: 0 | H199: 11 | I199: =H199+G199 -> 11 | J199: 0.00 | K199: 0.00 | L199: 0.00 | M199: ='часть 1'!L1255 -> 20,085,822.14 | N199: 20,085,822.14
A200: 3 | B200: Итого по город Кимры | C200: 0.00 | D200: 0 | E200: 0 | F200: 0 | G200: 0 | H200: 0 | I200: 0 | J200: 0.00 | K200: 0.00 | L200: 0.00 | M200: 0.00 | N200: 0.00
A201: 4 | B201: Итого по город Ржев | C201: ='часть 1'!H1269 -> 16,121.40 | D201: ='часть 1'!K1269 -> 400 | E201: 0 | F201: 0 | G201: 0 | H201: 4 | I201: 4 | J201: 0.00 | K201: 0.00 | L201: 0.00 | M201: ='часть 1'!L1269 -> 12,233,600.00 | N201: =M201 -> 12,233,600.00
A202: 5 | B202: Итого по город Торжок | C202: ='часть 1'!H1295 -> 5,185.70 | D202: ='часть 1'!K1295 -> 172 | E202: 0 | F202: 0 | G202: 0 | H202: 2 | I202: 2 | J202: 0.00 | K202: 0.00 | L202: 0.00 | M202: ='часть 1'!L1295 -> 2,634,518.00 | N202: =M202 -> 2,634,518.00
A203: 6 | B203: Итого по ЗАТО Озерный | C203: ='часть 1'!H1308 -> 20,881.10 | D203: ='часть 1'!K1308 -> 629 | E203: 0 | F203: 0 | G203: 0 | H203: 3 | I203: 3 | J203: 0.00 | K203: 0.00 | L203: 0.00 | M203: ='часть 1'!L1308 -> 10,007,426.00 | N203: 10,007,426.00
B204: Итого по ЗАТО Солнечный | C204: ='часть 1'!H1320 -> 2,514.70 | D204: ='часть 1'!K1320 -> 82 | E204: 0 | F204: 0 | G204: 1 | H204: 0 | I204: =H204+G204+F204+E204 -> 1 | J204: 0.00 | K204: 0.00 | L204: 1,112,894.00 | M204: 0.00 | N204: 1,112,894.00
B205: Андреапольский район | C205: =C206 -> 2,066.40 | D205: =D206 -> 80 | E205: 0 | F205: 0 | G205: 0 | H205: 4 | I205: 4 | J205: 0.00 | K205: 0.00 | L205: 0.00 | M205: 4,547,991.00 | N205: 4,547,991.00
A206: 7 | B206: Итого по городское поселение город Андреаполь | C206: ='часть 1'!H1323 -> 2,066.40 | D206: ='часть 1'!K1323 -> 80 | E206: 0 | F206: 0 | G206: 0 | H206: 4 | I206: 4 | J206: 0.00 | K206: 0.00 | L206: 0.00 | M206: ='часть 1'!L1323 -> 4,547,991.00 | N206: =M206 -> 4,547,991.00
B207: Бежецкий район | C207: =C208 -> 11,641.50 | D207: =D208 -> 480.00 | E207: 0.00 | F207: 0.00 | G207: 0.00 | H207: 4.00 | I207: 4.00 | J207: 0.00 | K207: 0.00 | L207: 0.00 | M207: 12,671,361.00 | N207: 12,671,361.00
A208: 8 | B208: Итого по городское поселение город Бежецк | C208: ='часть 1'!H1332 -> 11,641.50 | D208: ='часть 1'!K1332 -> 480 | E208: 0 | F208: 0 | G208: 0 | H208: 4 | I208: 4 | J208: 0.00 | K208: 0.00 | L208: 0.00 | M208: ='часть 1'!L1332 -> 12,671,361.00 | N208: =M208 -> 12,671,361.00
B209: Бельский район | C209: =C210 -> 0.00 | D209: =D210 -> 0 | E209: 0 | F209: 0 | G209: 0 | H209: ='часть 2'!#REF! ->  | J209: 0.00 | K209: 0.00 | L209: 0.00 | M209: ='часть 1'!L455 -> 1,512,903.00 | N209: 0.00
A210: 9 | B210: Итого по городское поселение город Белый | C210: 0.00 | D210: 0 | E210: 0 | F210: 0 | G210: 0 | H210: 0 | I210: 0 | J210: 0.00 | K210: 0.00 | L210: 0.00 | M210: 0.00 | N210: =M210 -> 0.00
B211: Бологовский район | C211: =C212+C213 -> 1,600.52 | D211: =D212+D213 -> 49.0 | E211: =E212+E213 -> 0 | F211: =F212+F213 -> 0 | G211: 0 | J211: =J212+J213 -> 0.00 | K211: =K212+K213 -> 0.00 | L211: 0.00 | M211: 2,576,038.00 | N211: 2,576,038.00
A212: 10 | B212: Итого по городскому поселению город Бологое | C212: ='часть 1'!H459 -> 1,091.60 | D212: ='часть 1'!K459 -> 33 | E212: 0 | F212: 0 | G212: 0 | H212: ='часть 2'!#REF! ->  | J212: 0.00 | K212: 0.00 | L212: 0.00 | M212: ='часть 1'!L459 -> 1,361,248.00 | N212: =M212 -> 1,361,248.00
... 75 more rows

Sheet № п-п (hidden)
B1: № 1 | D1: № 2 | F1: № 3
B2: г.Андреаполь | D2: Кимрский район | F2: Оленинский район
B3: г.Бежецк | D3: г.Кимры | F3: пгт.Оленино
B4: г.Белый | D4: пгт.Белый Городок | F4: Мостовское с/п
B5: г.Бологое | D5: Быковское с/п | F5: Конаковский район
B6: г.Весьегонск | D6: Приволжское с/п | F6: г.Конаково
B7: г.В.Волочек | D7: г.Лихославль | F7: пгт.Изоплит
B8: "Вышневолоцкий район" | D8: Лихославльский район | F8: пгт.Козлово
B9: пгт.Красномайский | D9: пгт.Калашниково | F9: пгт.Редкино
B10: Коломенское с/п | D10: Ильинское с/п | F10: Козловское с/п
B11: Солнечное с/п | D11: пгт.Максатиха | F11: Дмитровогорское с/п
B12: Сорокинское с/п | D12: г.Нелидово | F12: "Завидово" с/п
B13: Терелесовское с/п | D13: Нелидовское с/п
B16: Горняцкое с/п | D16: пгт. Рамешки
B17: Холохоленское с/п | D17: № 4 | F17: № 5
D20: г.Осташков | F20: ЗАТО "ОЗЕРНЫЙ"
D21: п. Пено
D22: г.Кашин | F22: г.ТВЕРЬ
D23: г.Ржев | F23: пгт.Жарковский
D24: г.Старица | F24: г.Западная Двина
D25: пгт.Селижарово | F25: г.Зубцов
D26: пгт.Сандово | F26: Зубцовский район
D27: г.Торжок | F27: Погорельское с/п
B28: 3 | D28: г.Торопец | F28: Калининский район
D29: г.Удомля | F29: пгт.Орша
D30: Фировский район | F30: Верхневолжское с/п
D31: пгт.Фирово | F31: Щербининское с/п
D32: пгт.Великооктябрьский | F32: Эммаусское с/п
F33: г.Калязин
F34: г.Красный Холм
F35: г.Кувшиново
B36: г.Ржев | D36: КП 2016 г
B37: г.Старица
B38: пгт.Селижарово
B39: пгт.Сандово | D39: КП 2016 г
B40: пгт. Сонково
B41: г.Торопец
B42: г.Удомля

Sheet 2-60
O1: Приложение к постановлению Правительства Тверской области от 22.06.2022 № 345-пп «Приложение к постановлению Правительства Тверской области от 14.08.2020 № 360-пп
A4: Краткосрочный план
A5: реализации в 2020 – 2022 годах региональной программы по проведению капитального ремонта общего имущества
A6: в многоквартирных домах на территории Тверской области на 2014 – 2043 годы
A7: I. Перечень многоквартирных домов, которые подлежат капитальному ремонту
A8: № п/п | B8: Адрес многоквартирного дома (далее – МКД) | C8: Год | E8: Материал стен | F8: Количество этажей | G8: Количество подъездов | H8: Общая площадь МКД, всего | I8: Площадь помещений МКД | K8: Количество жителей, зарегистрированных в МКД на дату утверждения краткосрочного плана | L8: Стоимость капитального ремонта | R8: Удельная стоимость капитального ремонта 1 кв. м общей площади помещений МКД | S8: Плановая дата завершения
C9: ввода в эксплуатацию | D9: завершения последнего капитального ремонта | I9: всего | J9: в том числе жилых помещений, находящихся в собственности граждан | L9: всего | M9: в том числе
M10: за счет средств областного бюджета Тверской области | N10: за счет средств местного бюджета | O10: за счет средств собственников помещений в МКД | P10: за счет привлеченных средств (кредит) | Q10: за счет привлеченных средств (рассрочка) | S10: разработки проектной документации, проведения проверки достоверности определения сметной стоимости капитального ремонта | T10: выполнения работ по капитальному ремонту
H11: кв. м | I11: кв. м | J11: кв. м | K11: чел. | L11: руб. | M11: руб. | N11: руб. | O11: руб. | P11: руб. | Q11: руб. | R11: руб/кв. м
A12: 1 | B12: 2 | C12: 3 | D12: 4 | E12: 5 | F12: 6 | G12: 7 | H12: 8 | I12: 9 | J12: 10 | K12: 11 | L12: 12 | M12: 13 | N12: 14 | O12: 15 | P12: 16 | Q12: 17 | R12: 18 | S12: 19 | T12: 20
A13: Начало проведения капитального ремонта – 2020 год
B14: Всего по Тверской области | H14: =H16+H416+H418 -> 780,115.05 | I14: 689,425.98 | J14: 618,117.77 | K14: 27404 | L14: 1,074,302,820.32 | M14: 0.00 | N14: 1,385,983.20 | O14: 1,072,916,837.12 | P14: 0.00 | Q14: 0.00 | R14: Х | S14: Х | T14: Х
A15: Формирование фонда капитального ремонта многоквартирного дома на счете некоммерческой организации – Фонда капитального ремонта многоквартирных домов Тверской области (далее – региональный оператор)
B16: Итого по Тверской области | H16: =H17+H96+H131+H142+H146+H149+H169+H174+H185+H188+H191+H195+H220+H230+H239+H254+H277+H281+H284+H287+H311+H318+H321+H325+H334+H336+H340+H368+H370+H373+H375+H379+H391+H395+H399+H406 -> 710,366.05 | I16: =I17+I96+I131+I142+I146+I149+I169+I174+I185+I188+I191+I195+I220+I230+I239+I254+I277+I281+I284+I287+I311+I318+I321+I325+I334+I336+I340+I368+I370+I373+I375+I379+I391+I395+I399+I406 -> 629,549.78 | J16: 562,023.67 | K16: 25047 | L16: 1,065,559,337.10 | M16: 0.00 | N16: 562,517.20 | O16: 1,064,996,819.90 | P16: 0.00 | Q16: 0.00 | R16: Х | S16: Х | T16: Х
B17: Итого по муниципальному образованию Тверской области (далее – МО) город Тверь | H17: =SUM(H18:H95) -> 274,428.46 | I17: =SUM(I18:I95) -> 250,516.55 | J17: 222,953.46 | K17: 9692 | L17: 361,478,792.88 | M17: 0.00 | N17: 0.00 | O17: 361,478,792.88 | P17: 0.00 | Q17: 0.00 | R17: Х | S17: Х | T17: Х
A18: 1 | B18: ул. Малая Самара, д. 9 | C18: 1994 | E18: Панельные | F18: 10 | G18: 5 | H18: 12,497.50 | I18: 11,421.99 | J18: 11,374.89 | K18: 431 | L18: 16,299,923.00 | M18: 0.00 | N18: 0.00 | O18: 16,299,923.00 | P18: 0.00 | Q18: 0.00 | R18: =L18/I18 -> 1,427.07 | S18: 2020 | T18: 2020
A19: 2 | B19: наб. Мигаловская, д. 8 | C19: 1994 | E19: Каменные, кирпичные | F19: 12 | G19: 1 | H19: 4,485.70 | I19: 3,864.10 | J19: 3,818.80 | K19: 168 | L19: 6,984,731.00 | M19: 0.00 | N19: 0.00 | O19: 6,984,731.00 | P19: 0.00 | Q19: 0.00 | R19: 1,807.60 | S19: 2020 | T19: 2020
A20: 3 | B20: ш. Сахаровское, д. 16 | C20: 1994 | E20: Панельные | F20: 9 | G20: 3 | H20: 6,615.40 | I20: 6,074.80 | J20: 975.10 | K20: 278 | L20: 10,555,158.00 | M20: 0.00 | N20: 0.00 | O20: 10,555,158.00 | P20: 0.00 | Q20: 0.00 | R20: 1,737.53 | S20: 2020 | T20: 2020
A21: 4 | B21: ул. Артюхиной, д. 26 | C21: 1995 | E21: Панельные | F21: 10 | G21: 5 | H21: 12,166.80 | I21: 10,842.80 | J21: 10,709.40 | K21: 536 | L21: 17,461,827.00 | M21: 0.00 | N21: 0.00 | O21: 17,461,827.00 | P21: 0.00 | Q21: 0.00 | R21: 1,610.45 | S21: 2020 | T21: 2020
A22: 5 | B22: пр-т Ленина, д. 28 | C22: 1960 | E22: Каменные, кирпичные | F22: 4 | G22: 4 | H22: 3,219.90 | I22: 2,423.20 | J22: 1,885.50 | K22: 67 | L22: 143,558.00 | M22: 0.00 | N22: 0.00 | O22: 143,558.00 | P22: 0.00 | Q22: 0.00 | R22: 59.24 | S22: 2020 | T22: 2020
A23: 6 | B23: пер. Свободный, д. 1г | C23: 1974 | E23: Блочные | F23: 12 | G23: 1 | H23: 3,833.30 | I23: 3,632.20 | J23: 3,350.00 | K23: 178 | L23: 1,223,262.00 | M23: 0.00 | N23: 0.00 | O23: 1,223,262.00 | P23: 0.00 | Q23: 0.00 | R23: 336.78 | S23: 2020 | T23: 2020
A24: 7 | B24: ул. Маяковского, д. 48 | C24: 1959 | E24: Каменные, кирпичные | F24: 2 | G24: 2 | H24: 716.90 | I24: 638.60 | J24: 638.60 | K24: 37 | L24: 2,502,533.00 | M24: 0.00 | N24: 0.00 | O24: 2,502,533.00 | P24: 0.00 | Q24: 0.00 | R24: 3,918.78 | S24: 2020 | T24: 2020
A25: 8 | B25: пер. Спортивный, д. 2, корп. 3 | C25: 1991 | E25: Панельные | F25: 10 | G25: 4 | H25: 9,035.90 | I25: 8,598.10 | J25: 8,180.90 | K25: 293 | L25: 3,252,433.00 | M25: 0.00 | N25: 0.00 | O25: 3,252,433.00 | P25: 0.00 | Q25: 0.00 | R25: 378.27 | S25: 2020 | T25: 2020
A26: 9 | B26: б-р Шмидта, д. 40 | C26: 1986 | E26: Панельные | F26: 9 | G26: 3 | H26: 6,556.40 | I26: 5,865.70 | J26: 5,341.20 | K26: 265 | L26: 2,472,610.00 | M26: 0.00 | N26: 0.00 | O26: 2,472,610.00 | P26: 0.00 | Q26: 0.00 | R26: 421.54 | S26: 2020 | T26: 2020
A27: 10 | B27: пр-д Зеленый, д. 43, корп. 15 | C27: 1979 | E27: Панельные | F27: 5 | G27: 4 | H27: 3,490.00 | I27: 3,184.80 | J27: 2,847.50 | K27: 123 | L27: 2,486,195.00 | M27: 0.00 | N27: 0.00 | O27: 2,486,195.00 | P27: 0.00 | Q27: 0.00 | R27: 780.64 | S27: 2020 | T27: 2020
A28: 11 | B28: пер. Артиллерийский, д. 13 | C28: 1994 | E28: Панельные | F28: 9 | G28: 4 | H28: 8,086.50 | I28: 7,521.30 | J28: 7,326.80 | K28: 299 | L28: 2,978,001.00 | M28: 0.00 | N28: 0.00 | O28: 2,978,001.00 | P28: 0.00 | Q28: 0.00 | R28: 395.94 | S28: 2020 | T28: 2020
A29: 12 | B29: пр-т Победы, д. 57 | C29: 1971 | E29: Каменные, кирпичные | F29: 5 | G29: 1 | H29: 3,924.70 | I29: 3,658.20 | J29: 3,158.20 | K29: 208 | L29: 1,304,334.00 | M29: 0.00 | N29: 0.00 | O29: 1,304,334.00 | P29: 0.00 | Q29: 0.00 | R29: 356.55 | S29: 2020 | T29: 2020
A30: 13 | B30: ул. Вольного Новгорода, д. 23 | C30: 1947 | E30: Каменные, кирпичные | F30: 4 | G30: 2 | H30: 1,384.70 | I30: 1,205.90 | J30: =I30-276.8-45.4 -> 883.70 | K30: 54 | L30: 7,429,397.00 | M30: 0.00 | N30: 0.00 | O30: 7,429,397.00 | P30: 0.00 | Q30: 0.00 | R30: 6,160.87 | S30: 2020 | T30: 2020
A31: 14 | B31: ул. Маршала Буденного, д. 19/1 | C31: 1959 | E31: Каменные, кирпичные | F31: 2 | G31: 1 | H31: 301.10 | I31: 278.20 | J31: 240.30 | K31: 15 | L31: 220,003.00 | M31: 0.00 | N31: 0.00 | O31: 220,003.00 | P31: 0.00 | Q31: 0.00 | R31: 790.81 | S31: 2020 | T31: 2020
A32: 15 | B32: ул. Кирова, д. 5а | C32: 1962 | E32: Каменные, кирпичные | F32: 4 | G32: 3 | H32: 2,152.10 | I32: 1,979.10 | J32: 1,865.90 | K32: 79 | L32: 1,272,992.00 | M32: 0.00 | N32: 0.00 | O32: 1,272,992.00 | P32: 0.00 | Q32: 0.00 | R32: 643.22 | S32: 2020 | T32: 2020
A33: 16 | B33: ш. Петербургское, д. 32 | C33: 1969 | E33: Панельные | F33: 5 | G33: 4 | H33: 3,032.00 | I33: 2,657.90 | J33: 2,448.30 | K33: 121 | L33: 7,835,016.79 | M33: 0.00 | N33: 0.00 | O33: 7,835,016.79 | P33: 0.00 | Q33: 0.00 | R33: 2,947.82 | S33: 2020 | T33: 2020
A34: 17 | B34: ул. 15 лет Октября, д. 62, корп. 1 | C34: 1959 | E34: Каменные, кирпичные | F34: 2 | G34: 2 | H34: 700.60 | I34: 651.80 | J34: 651.80 | K34: 24 | L34: 379,105.00 | M34: 0.00 | N34: 0.00 | O34: 379,105.00 | P34: 0.00 | Q34: 0.00 | R34: 581.63 | S34: 2020 | T34: 2020
A35: 18 | B35: ул. Ржевская, д. 8а | C35: 1958 | E35: Каменные, кирпичные | F35: 3 | G35: 2 | H35: 1,002.60 | I35: 912.00 | J35: 861.50 | K35: 53 | L35: 720,344.00 | M35: 0.00 | N35: 0.00 | O35: 720,344.00 | P35: 0.00 | Q35: 0.00 | R35: 789.85 | S35: 2020 | T35: 2020
A36: 19 | B36: ул. Бобкова, д. 26, корп. 8 | C36: 1963 | E36: Каменные, кирпичные | F36: 4 | G36: 4 | H36: 2,744.80 | I36: 2,554.30 | J36: 2,427.40 | K36: 104 | L36: 4,274,120.00 | M36: 0.00 | N36: 0.00 | O36: 4,274,120.00 | P36: 0.00 | Q36: 0.00 | R36: 1,673.30 | S36: 2020 | T36: 2020
A37: 20 | B37: ул. Терещенко, д. 32/14 | C37: 1959 | E37: Каменные, кирпичные | F37: 2 | G37: 2 | H37: 688.00 | I37: 641.00 | J37: 597.10 | K37: 35 | L37: 1,840,546.00 | M37: 0.00 | N37: 0.00 | O37: 1,840,546.00 | P37: 0.00 | Q37: 0.00 | R37: 2,871.37 | S37: 2020 | T37: 2020
A38: 21 | B38: ул. Громова, д. 11, корп. 3 | C38: 1959 | E38: Каменные, кирпичные | F38: 4 | G38: 4 | H38: 2,698.00 | I38: 2,510.30 | J38: 2,296.10 | K38: 122 | L38: 1,985,158.00 | M38: 0.00 | N38: 0.00 | O38: 1,985,158.00 | P38: 0.00 | Q38: 0.00 | R38: 790.81 | S38: 2020 | T38: 2020
A39: 22 | B39: ул. Склизкова, д. 33 | C39: 1956 | E39: Каменные, кирпичные | F39: 2 | G39: 1 | H39: 564.10 | I39: 519.30 | J39: 519.30 | K39: 21 | L39: 2,465,544.00 | M39: 0.00 | N39: 0.00 | O39: 2,465,544.00 | P39: 0.00 | Q39: 0.00 | R39: 4,747.82 | S39: 2020 | T39: 2020
A40: 23 | B40: ул. Ротмистрова, д. 17 | C40: 1950 | E40: Шлакоблочные | F40: 2 | G40: 2 | H40: 782.20 | I40: 704.60 | J40: 601.20 | K40: 42 | L40: 409,752.00 | M40: 0.00 | N40: 0.00 | O40: 409,752.00 | P40: 0.00 | Q40: 0.00 | R40: 581.54 | S40: 2020 | T40: 2020
A41: 24 | B41: ул. Орджоникидзе, д. 3 | C41: 1950 | E41: Каменные, кирпичные | F41: 2 | G41: 2 | H41: 814.20 | I41: 732.30 | J41: 589.10 | K41: 31 | L41: 425,860.00 | M41: 0.00 | N41: 0.00 | O41: 425,860.00 | P41: 0.00 | Q41: 0.00 | R41: 581.54 | S41: 2020 | T41: 2020
A42: 25 | B42: пр-т Волоколамский, д. 8 | C42: 1961 | E42: Каменные, кирпичные | F42: 4 | G42: 3 | H42: 1,759.10 | I42: 1,584.50 | J42: 1,195.60 | K42: 35 | L42: 945,487.00 | M42: 0.00 | N42: 0.00 | O42: 945,487.00 | P42: 0.00 | Q42: 0.00 | R42: 596.71 | S42: 2020 | T42: 2020
A43: 26 | B43: ул. Склизкова, д. 31 | C43: 1960 | E43: Каменные, кирпичные | F43: 2 | G43: 2 | H43: 698.70 | I43: 649.90 | J43: 649.90 | K43: 32 | L43: 3,932,416.00 | M43: 0.00 | N43: 0.00 | O43: 3,932,416.00 | P43: 0.00 | Q43: 0.00 | R43: 6,050.80 | S43: 2020 | T43: 2020
A44: 27 | B44: ул. Горького, д. 104 | C44: 1967 | E44: Панельные | F44: 5 | G44: 6 | H44: 4,806.50 | I44: 4,343.60 | J44: 3,958.70 | K44: 169 | L44: 3,786,311.00 | M44: 0.00 | N44: 0.00 | O44: 3,786,311.00 | P44: 0.00 | Q44: 0.00 | R44: 871.70 | S44: 2020 | T44: 2020
A45: 28 | B45: ул. Орджоникидзе, д. 12/1 | C45: 1948 | E45: Каменные, кирпичные | F45: 2 | G45: 3 | H45: 1,329.80 | I45: 1,212.20 | J45: 1,212.20 | K45: 55 | L45: 958,615.00 | M45: 0.00 | N45: 0.00 | O45: 958,615.00 | P45: 0.00 | Q45: 0.00 | R45: 790.81 | S45: 2020 | T45: 2020
A46: 29 | B46: ул. Склизкова, д. 35 | C46: 1956 | E46: Каменные, кирпичные | F46: 2 | G46: 2 | H46: 424.90 | I46: 383.90 | J46: 383.90 | K46: 44 | L46: 1,907,186.00 | M46: 0.00 | N46: 0.00 | O46: 1,907,186.00 | P46: 0.00 | Q46: 0.00 | R46: 4,967.92 | S46: 2020 | T46: 2020
A47: 30 | B47: ул. Советская, д. 62 | C47: 1951 | E47: Каменные, кирпичные | F47: 3 | G47: 5 | H47: 3,364.90 | I47: 3,058.00 | J47: 2,654.30 | K47: 68 | L47: 5,534,843.00 | M47: 0.00 | N47: 0.00 | O47: 5,534,843.00 | P47: 0.00 | Q47: 0.00 | R47: 1,809.96 | S47: 2020 | T47: 2020
A48: 31 | B48: ул. Склизкова, д. 27 | C48: 1955 | E48: Каменные, кирпичные | F48: 2 | G48: 1 | H48: 559.80 | I48: 537.70 | J48: 537.70 | K48: 21 | L48: 2,175,056.00 | M48: 0.00 | N48: 0.00 | O48: 2,175,056.00 | P48: 0.00 | Q48: 0.00 | R48: 4,045.11 | S48: 2020 | T48: 2020
A49: 32 | B49: пос. Литвинки, д. 23 | C49: 1982 | E49: Панельные | F49: 5 | G49: 14 | H49: 11,814.20 | I49: 10,844.50 | J49: 9,827.80 | K49: 484 | L49: 9,902,493.39 | M49: 0.00 | N49: 0.00 | O49: 9,902,493.39 | P49: 0.00 | Q49: 0.00 | R49: 913.14 | S49: 2020 | T49: 2020
A50: 33 | B50: ул. Фадеева, д. 28, корп. 1 | C50: 1965 | E50: Каменные, кирпичные | F50: 4 | G50: 4 | H50: 2,779.50 | I50: 2,571.50 | J50: 2,359.40 | K50: 114 | L50: 2,033,556.00 | M50: 0.00 | N50: 0.00 | O50: 2,033,556.00 | P50: 0.00 | Q50: 0.00 | R50: 790.81 | S50: 2020 | T50: 2020
A51: 34 | B51: ул. Московская, д. 24, корп. 2 | C51: 1989 | E51: Панельные | F51: 9 | G51: 1 | H51: 4,970.20 | I51: 4,016.10 | J51: 3,723.10 | K51: 217 | L51: 3,653,569.00 | M51: 0.00 | N51: 0.00 | O51: 3,653,569.00 | P51: 0.00 | Q51: 0.00 | R51: 909.73 | S51: 2020 | T51: 2020
A52: 35 | B52: ул. Лукина, д. 6 | C52: 1951 | E52: Шлакоблочные | F52: 2 | G52: 1 | H52: 559.90 | I52: 515.30 | J52: 515.30 | K52: 24 | L52: 771,870.00 | M52: 0.00 | N52: 0.00 | O52: 771,870.00 | P52: 0.00 | Q52: 0.00 | R52: 1,497.90 | S52: 2020 | T52: 2020
A53: 36 | B53: пер. Садовый, д. 22 | C53: 1972 | E53: Панельные | F53: 5 | G53: 4 | H53: 3,679.40 | I53: 3,408.60 | J53: 2,985.20 | K53: 70 | L53: 3,642,204.00 | M53: 0.00 | N53: 0.00 | O53: 3,642,204.00 | P53: 0.00 | Q53: 0.00 | R53: 1,068.53 | S53: 2020 | T53: 2020
A54: 37 | B54: пр-т Калинина, д. 14 | C54: 1949 | E54: Каменные, кирпичные | F54: 5 | G54: 7 | H54: 5,815.50 | I54: 5,272.30 | J54: 3,562.20 | K54: 119 | L54: 4,169,204.00 | M54: 0.00 | N54: 0.00 | O54: 4,169,204.00 | P54: 0.00 | Q54: 0.00 | R54: 790.78 | S54: 2020 | T54: 2020
A55: 38 | B55: пр-т Ленина, д. 41 | C55: 1959 | E55: Каменные, кирпичные | F55: 4 | G55: 1 | H55: 3,725.76 | I55: 3,593.36 | J55: 3,078.16 | K55: 180 | L55: 2,841,648.00 | M55: 0.00 | N55: 0.00 | O55: 2,841,648.00 | P55: 0.00 | Q55: 0.00 | R55: 790.81 | S55: 2020 | T55: 2020
A56: 39 | B56: ул. Склизкова, д. 68 | C56: 1966 | E56: Панельные | F56: 5 | G56: 3 | H56: 2,785.40 | I56: 2,579.10 | J56: 2,363.50 | K56: 124 | L56: 1,499,848.00 | M56: 0.00 | N56: 0.00 | O56: 1,499,848.00 | P56: 0.00 | Q56: 0.00 | R56: 581.54 | S56: 2020 | T56: 2020
A57: 40 | B57: ул. Вагжанова, д. 4 | C57: 1934 | E57: Каменные, кирпичные | F57: 3 | G57: 5 | H57: 2,467.00 | I57: 3,299.50 | J57: 2,116.70 | K57: 101 | L57: 4,803,022.00 | M57: 0.00 | N57: 0.00 | O57: 4,803,022.00 | P57: 0.00 | Q57: 0.00 | R57: 1,455.68 | S57: 2020 | T57: 2020
A58: 41 | B58: ул. 15 лет Октября, д. 54/62 | C58: 1959 | E58: Каменные, кирпичные | F58: 2 | G58: 2 | H58: 685.90 | I58: 639.10 | J58: 600.40 | K58: 32 | L58: 2,546,736.00 | M58: 0.00 | N58: 0.00 | O58: 2,546,736.00 | P58: 0.00 | Q58: 0.00 | R58: 3,984.88 | S58: 2020 | T58: 2020
A59: 42 | B59: ул. Вагжанова, д. 10 | C59: 1939 | E59: Каменные, кирпичные | F59: 6 | G59: 12 | H59: 15,355.00 | I59: 13,690.40 | J59: 9,253.30 | K59: 237 | L59: 22,225,426.00 | M59: 0.00 | N59: 0.00 | O59: 22,225,426.00 | P59: 0.00 | Q59: 0.00 | R59: 1,623.43 | S59: 2020 | T59: 2020
A60: 43 | B60: ул. Инициативная, д. 9/9 | C60: 1925 | E60: Деревянные | F60: 2 | G60: 2 | H60: 458.90 | I60: 417.80 | J60: =I60-53.2 -> 364.60 | K60: 28 | L60: 1,661,291.00 | M60: 0.00 | N60: 0.00 | O60: 1,661,291.00 | P60: 0.00 | Q60: 0.00 | R60: 3,976.28 | S60: 2020 | T60: 2020
A61: 44 | B61: ул. Маршала Буденного, д. 13 | C61: 1960 | E61: Каменные, кирпичные | F61: 2 | G61: 2 | H61: 684.00 | I61: 635.30 | J61: 604.90 | K61: 44 | L61: 1,168,532.00 | M61: 0.00 | N61: 0.00 | O61: 1,168,532.00 | P61: 0.00 | Q61: 0.00 | R61: 1,839.34 | S61: 2020 | T61: 2020
A62: 45 | B62: пр-т Чайковского, д. 37 | C62: 1975 | E62: Каменные, кирпичные | F62: 9 | G62: 5 | H62: 15,767.70 | I62: 15,005.60 | J62: 14,275.50 | K62: 453 | L62: 15,853,359.00 | M62: 0.00 | N62: 0.00 | O62: 15,853,359.00 | P62: 0.00 | Q62: 0.00 | R62: 1,056.50 | S62: 2020 | T62: 2020
A63: 46 | B63: ул. Благоева, д. 3, корп. 2 | C63: 1981 | E63: Каменные, кирпичные | F63: 5 | G63: 4 | H63: 3,127.00 | I63: 2,803.00 | J63: 2,654.90 | K63: 149 | L63: 2,165,572.00 | M63: 0.00 | N63: 0.00 | O63: 2,165,572.00 | P63: 0.00 | Q63: 0.00 | R63: 772.59 | S63: 2020 | T63: 2020
A64: 47 | B64: ул. Склизкова, д. 29 | C64: 1956 | E64: Каменные, кирпичные | F64: 2 | G64: 1 | H64: 569.20 | I64: 523.90 | J64: 523.90 | K64: 33 | L64: 718,972.00 | M64: 0.00 | N64: 0.00 | O64: 718,972.00 | P64: 0.00 | Q64: 0.00 | R64: 1,372.35 | S64: 2020 | T64: 2020
A65: 48 | B65: ул. Софьи Перовской, д. 26 | C65: 1941 | E65: Каменные, кирпичные | F65: 4 | G65: 3 | H65: 2,543.10 | I65: 2,237.20 | J65: =I65-187.2 -> 2,050.00 | K65: 48 | L65: 2,538,452.00 | M65: 0.00 | N65: 0.00 | O65: 2,538,452.00 | P65: 0.00 | Q65: 0.00 | R65: 1,134.66 | S65: 2020 | T65: 2020
A66: 49 | B66: ул. Ротмистрова, д. 20 | C66: 1950 | E66: Шлакоблочные | F66: 2 | G66: 1 | H66: 428.60 | I66: 391.90 | J66: 344.70 | K66: 27 | L66: 814,934.00 | M66: 0.00 | N66: 0.00 | O66: 814,934.00 | P66: 0.00 | Q66: 0.00 | R66: 2,079.44 | S66: 2020 | T66: 2020
A67: 50 | B67: ул. Железнодорожников, д. 28 | C67: 1962 | E67: Каменные, кирпичные | F67: 2 | G67: 1 | H67: 362.40 | I67: 331.30 | J67: 297.40 | K67: 17 | L67: 495,540.00 | M67: 0.00 | N67: 0.00 | O67: 495,540.00 | P67: 0.00 | Q67: 0.00 | R67: 1,495.74 | S67: 2020 | T67: 2020
A68: 51 | B68: пр-т Ленина, д. 42 | C68: 1961 | E68: Каменные, кирпичные | F68: 5 | G68: 4 | H68: 4,041.10 | I68: 3,205.40 | J68: 2,446.30 | K68: 112 | L68: 2,581,108.00 | M68: 0.00 | N68: 0.00 | O68: 2,581,108.00 | P68: 0.00 | Q68: 0.00 | R68: 805.24 | S68: 2020 | T68: 2020
A69: 52 | B69: ул. Можайского, д. 61б | C69: 1975 | E69: Панельные | F69: 9 | G69: 2 | H69: 4,329.90 | I69: 3,868.40 | J69: 3,668.20 | K69: 165 | L69: 16,830,648.67 | M69: 0.00 | N69: 0.00 | O69: 16,830,648.67 | P69: 0.00 | Q69: 0.00 | R69: 4,350.80 | S69: 2020 | T69: 2020
A70: 53 | B70: ул. Лизы Чайкиной, д. 25/2б | C70: 1960 | E70: Каменные, кирпичные | F70: 4 | G70: 2 | H70: 1,367.90 | I70: 1,271.30 | J70: 1,258.60 | K70: 47 | L70: 2,869,710.00 | M70: 0.00 | N70: 0.00 | O70: 2,869,710.00 | P70: 0.00 | Q70: 0.00 | R70: 2,257.30 | S70: 2020 | T70: 2020
A71: 54 | B71: ул. Дарвина, д. 2 | C71: 1971 | E71: Каменные, кирпичные | F71: 5 | G71: 4 | H71: 3,545.90 | I71: 3,358.90 | J71: =I71-151.8 -> 3,207.10 | K71: 134 | L71: 13,361,240.00 | M71: 0.00 | N71: 0.00 | O71: 13,361,240.00 | P71: 0.00 | Q71: 0.00 | R71: 3,977.86 | S71: 2020 | T71: 2020
A72: 55 | B72: наб. Афанасия Никитина, д. 148 | C72: 1937 | E72: Каменные, кирпичные | F72: 4 | G72: 3 | H72: 1,867.70 | I72: 1,793.20 | J72: 1,577.80 | K72: 54 | L72: 5,133,035.00 | M72: 0.00 | N72: 0.00 | O72: 5,133,035.00 | P72: 0.00 | Q72: 0.00 | R72: 2,862.50 | S72: 2020 | T72: 2020
A73: 56 | B73: пр-т Ленина, д. 14, корп. 2 | C73: 1960 | E73: Каменные, кирпичные | F73: 4 | G73: 3 | H73: 2,158.40 | I73: 2,010.50 | J73: 1,971.60 | K73: 78 | L73: 3,697,990.00 | M73: 0.00 | N73: 0.00 | O73: 3,697,990.00 | P73: 0.00 | Q73: 0.00 | R73: 1,839.34 | S73: 2020 | T73: 2020
A74: 57 | B74: ул. Фадеева, д. 36, корп. 1 | C74: 1963 | E74: Каменные, кирпичные | F74: 4 | G74: 3 | H74: 2,300.70 | I74: 2,035.70 | J74: 1,906.40 | K74: 99 | L74: 3,744,342.00 | M74: 0.00 | N74: 0.00 | O74: 3,744,342.00 | P74: 0.00 | Q74: 0.00 | R74: 1,839.34 | S74: 2020 | T74: 2020
A75: 58 | B75: ул. 15 лет Октября, д. 60 | C75: 1959 | E75: Каменные, кирпичные | F75: 2 | G75: 2 | H75: 694.10 | I75: 645.20 | J75: 645.20 | K75: 32 | L75: 1,180,385.00 | M75: 0.00 | N75: 0.00 | O75: 1,180,385.00 | P75: 0.00 | Q75: 0.00 | R75: 1,829.49 | S75: 2020 | T75: 2020
A76: 59 | B76: ул. Кирова, д. 7а | C76: 1962 | E76: Каменные, кирпичные | F76: 4 | G76: 3 | H76: 2,172.50 | I76: 2,026.30 | J76: 1,938.80 | K76: 88 | L76: 3,465,934.00 | M76: 0.00 | N76: 0.00 | O76: 3,465,934.00 | P76: 0.00 | Q76: 0.00 | R76: 1,710.47 | S76: 2020 | T76: 2020
A77: 60 | B77: пер. Партизанский, д. 22/8 | C77: 1959 | E77: Каменные, кирпичные | F77: 2 | G77: 2 | H77: 681.50 | I77: 632.10 | J77: 589.60 | K77: 28 | L77: 1,532,993.00 | M77: 0.00 | N77: 0.00 | O77: 1,532,993.00 | P77: 0.00 | Q77: 0.00 | R77: 2,425.24 | S77: 2020 | T77: 2020
A78: 61 | B78: пр-т Волоколамский, д. 5 | C78: 1968 | E78: Каменные, кирпичные | F78: 5 | G78: 4 | H78: 3,438.00 | I78: 3,169.80 | J78: =I78-349.8 -> 2,820.00 | K78: 162 | L78: 5,074,174.00 | M78: 0.00 | N78: 0.00 | O78: 5,074,174.00 | P78: 0.00 | Q78: 0.00 | R78: 1,600.79 | S78: 2020 | T78: 2020
A79: 62 | B79: ул. Ипподромная, д. 24 | C79: 1963 | E79: Панельные | F79: 4 | G79: 5 | H79: 2,832.20 | I79: 2,622.60 | J79: 2,535.90 | K79: 132 | L79: 4,291,978.00 | M79: 0.00 | N79: 0.00 | O79: 4,291,978.00 | P79: 0.00 | Q79: 0.00 | R79: =L79/I79 -> 1,636.54 | S79: 2020 | T79: 2020
A80: 63 | B80: ул. 15 лет Октября, д. 47 | C80: 1953 | E80: Каменные, кирпичные | F80: 3 | G80: 3 | H80: 2,201.20 | I80: 1,827.50 | J80: 1,827.50 | K80: 50 | L80: 6,399,781.03 | M80: 0.00 | N80: 0.00 | O80: 6,399,781.03 | P80: 0.00 | Q80: 0.00 | R80: 3,501.93 | S80: 2020 | T80: 2020
A81: 64 | B81: пос. Химинститута, д. 6 | C81: 1962 | E81: Каменные, кирпичные | F81: 4 | G81: 3 | H81: 2,175.10 | I81: 2,004.40 | J81: 1,961.20 | K81: 90 | L81: 4,845,784.00 | M81: 0.00 | N81: 0.00 | O81: 4,845,784.00 | P81: 0.00 | Q81: 0.00 | R81: 2,417.57 | S81: 2020 | T81: 2020
A82: 65 | B82: ул. Склизкова, д. 103 | C82: 1970 | E82: Панельные | F82: 5 | G82: 8 | H82: 6,282.70 | I82: 5,721.80 | J82: 5,380.29 | K82: 300 | L82: 8,154,102.00 | M82: 0.00 | N82: 0.00 | O82: 8,154,102.00 | P82: 0.00 | Q82: 0.00 | R82: 1,425.09 | S82: 2020 | T82: 2020
A83: 66 | B83: пер. Спортивный, д. 3а | C83: 1958 | E83: Каменные, кирпичные | F83: 3 | G83: 2 | H83: 1,117.50 | I83: 945.60 | J83: 848.60 | K83: 39 | L83: 2,022,347.00 | M83: 0.00 | N83: 0.00 | O83: 2,022,347.00 | P83: 0.00 | Q83: 0.00 | R83: 2,138.69 | S83: 2020 | T83: 2020
A84: 67 | B84: б-р Профсоюзов, д. 18, корп. 2 | C84: 1959 | E84: Каменные, кирпичные | F84: 3 | G84: 2 | H84: 1,012.80 | I84: 983.70 | J84: 947.30 | K84: 22 | L84: 2,589,668.00 | M84: 0.00 | N84: 0.00 | O84: 2,589,668.00 | P84: 0.00 | Q84: 0.00 | R84: 2,632.58 | S84: 2020 | T84: 2020
A85: 68 | B85: ул. Горького, д. 19 | C85: 1961 | E85: Каменные, кирпичные | F85: 5 | G85: 2 | H85: 1,932.20 | I85: 1,801.40 | J85: 1,286.10 | K85: 56 | L85: 1,047,584.00 | M85: 0.00 | N85: 0.00 | O85: 1,047,584.00 | P85: 0.00 | Q85: 0.00 | R85: 581.54 | S85: 2020 | T85: 2020
A86: 69 | B86: пр-т Ленина, д. 27 | C86: 1960 | E86: Каменные, кирпичные | F86: 4 | G86: 5 | H86: 5,862.40 | I86: 5,360.20 | J86: 4,140.02 | K86: 157 | L86: 3,117,167.00 | M86: 0.00 | N86: 0.00 | O86: 3,117,167.00 | P86: 0.00 | Q86: 0.00 | R86: 581.54 | S86: 2020 | T86: 2020
A87: 70 | B87: ул. 15 лет Октября, д. 48/15 | C87: 1957 | E87: Каменные, кирпичные | F87: 4 | G87: 4 | H87: 3,324.10 | I87: 2,981.40 | J87: 2,981.40 | K87: 132 | L87: 7,217,604.00 | M87: 0.00 | N87: 0.00 | O87: 7,217,604.00 | P87: 0.00 | Q87: 0.00 | R87: 2,420.88 | S87: 2020 | T87: 2020
A88: 71 | B88: ул. Ржевская, д. 11 | C88: 1989 | E88: Панельные | F88: 5 | G88: 5 | H88: 4,177.70 | I88: 3,828.80 | J88: 3,674.30 | K88: 153 | L88: 2,672,049.00 | M88: 0.00 | N88: 0.00 | O88: 2,672,049.00 | P88: 0.00 | Q88: 0.00 | R88: 697.88 | S88: 2020 | T88: 2020
A89: 72 | B89: наб. Афанасия Никитина, д. 74 | C89: 1954 | E89: Каменные, кирпичные | F89: 4 | G89: 4 | H89: 2,698.90 | I89: 2,583.80 | J89: =I89-347.1 -> 2,236.70 | K89: 71 | L89: 5,055,867.00 | M89: 0.00 | N89: 0.00 | O89: 5,055,867.00 | P89: 0.00 | Q89: 0.00 | R89: 1,956.76 | S89: 2020 | T89: 2020
A90: 73 | B90: ул. Вокзальная, д. 5 | C90: 1959 | E90: Каменные, кирпичные | F90: 4 | G90: 2 | H90: 1,976.80 | I90: 1,759.70 | J90: 1,669.70 | K90: 70 | L90: 4,027,441.00 | M90: 0.00 | N90: 0.00 | O90: 4,027,441.00 | P90: 0.00 | Q90: 0.00 | R90: 2,288.71 | S90: 2020 | T90: 2020
A91: 74 | B91: ул. Карла Маркса, д. 5 | C91: 1983 | E91: Панельные | F91: 9 | G91: 8 | H91: 17,869.50 | I91: 16,141.50 | J91: =I91-345.3 -> 15,796.20 | K91: 632 | L91: 26,812,058.00 | M91: 0.00 | N91: 0.00 | O91: 26,812,058.00 | P91: 0.00 | Q91: 0.00 | R91: 1,661.06 | S91: 2020 | T91: 2020
A92: 75 | B92: ул. Советская, д. 64 | C92: 1953 | E92: Каменные, кирпичные | F92: 4 | G92: 9 | H92: 8,123.80 | I92: 7,344.10 | J92: 7,199.80 | K92: 144 | L92: 15,206,099.00 | M92: 0.00 | N92: 0.00 | O92: 15,206,099.00 | P92: 0.00 | Q92: 0.00 | R92: 2,070.52 | S92: 2020 | T92: 2020
A93: 76 | B93: пер. Перекопский, д. 15а | C93: 1963 | E93: Каменные, кирпичные | F93: 3 | G93: 2 | H93: 1,047.40 | I93: 953.60 | J93: 911.50 | K93: 44 | L93: 2,133,762.00 | M93: 0.00 | N93: 0.00 | O93: 2,133,762.00 | P93: 0.00 | Q93: 0.00 | R93: 2,237.59 | S93: 2020 | T93: 2020
A94: 77 | B94: наб. реки Лазури, д. 10 | C94: 1950 | E94: Каменные, кирпичные | F94: 2 | G94: 3 | H94: 1,491.90 | I94: 1,381.80 | J94: 1,304.50 | K94: 55 | L94: 5,414,970.00 | M94: 0.00 | N94: 0.00 | O94: 5,414,970.00 | P94: 0.00 | Q94: 0.00 | R94: 3,918.78 | S94: 2020 | T94: 2020
A95: 78 | B95: ул. Ипподромная, д. 21 | C95: 1958 | E95: Каменные, кирпичные | F95: 2 | G95: 2 | H95: 688.80 | I95: 639.80 | J95: 541.00 | K95: 37 | L95: 1,330,427.00 | M95: 0.00 | N95: 0.00 | O95: 1,330,427.00 | P95: 0.00 | Q95: 0.00 | R95: 2,079.44 | S95: 2020 | T95: 2020
B96: Итого по МО Вышневолоцкий городской округ | H96: =SUM(H97:H130) -> 34,314.01 | I96: =SUM(I97:I130) -> 33,892.51 | J96: 29,924.71 | K96: 1272 | L96: 77,767,080.44 | M96: 0.00 | N96: 0.00 | O96: 77,767,080.44 | P96: 0.00 | Q96: 0.00 | R96: Х | S96: Х | T96: Х
A97: 79 | B97: г. Вышний Волочек, ул. Двор фабрики «Пролетарский Авангард», д. 43 | C97: 1962 | E97: Каменные, кирпичные | F97: 2 | G97: 2 | H97: 317.90 | I97: 317.90 | J97: 317.90 | K97: 16 | L97: 1,479,441.23 | M97: 0.00 | N97: 0.00 | O97: =L97 -> 1,479,441.23 | P97: =Q97 -> 0.00 | Q97: 0.00 | R97: =L97/I97 -> 4,653.79 | S97: 2020 | T97: 2022
A98: 80 | B98: г. Вышний Волочек, ул. Красноармейская, д. 11 | C98: 1993 | E98: Каменные, кирпичные | F98: 2 | G98: 3 | H98: 849.50 | I98: 849.50 | J98: 849.50 | K98: 41 | L98: 1,517,751.23 | M98: 0.00 | N98: 0.00 | O98: =L98 -> 1,517,751.23 | P98: 0.00 | Q98: 0.00 | R98: 1,786.64 | S98: 2020 | T98: 2022
A99: 81 | B99: г. Вышний Волочек, наб. Валентины Терешковой, д. 41 | C99: 1931 | E99: Бревенчатые | F99: 1 | G99: 3 | H99: 265.10 | I99: 265.10 | J99: 226.70 | K99: 13 | L99: 1,534,866.98 | M99: 0.00 | N99: 0.00 | O99: 1,534,866.98 | P99: =Q99 -> 0.00 | Q99: 0.00 | R99: 5,789.77 | S99: 2020 | T99: 2022
A100: 82 | B100: г. Вышний Волочек, пр-т Казанский, д. 106/112 | C100: 1972 | E100: Каменные, кирпичные | F100: 5 | G100: 4 | H100: 3,463.70 | I100: 3,463.70 | J100: 3,242.10 | K100: 108 | L100: 4,303,305.09 | M100: 0.00 | N100: 0.00 | O100: 4,303,305.09 | P100: 0.00 | Q100: 0.00 | R100: 1,242.40 | S100: 2020 | T100: 2022
A101: 83 | B101: г. Вышний Волочек, Ванчакова линия, д. 5 | C101: до 1917 | E101: Каменные, кирпичные | F101: 3 | G101: 2 | H101: 626.30 | I101: 626.30 | J101: 444.80 | K101: 18 | L101: 1,591,955.51 | M101: 0.00 | N101: 0.00 | O101: 1,591,955.51 | P101: 0.00 | Q101: 0.00 | R101: 2,541.84 | S101: 2020 | T101: 2022
A102: 84 | B102: г. Вышний Волочек, ул. Южная, д. 6 | C102: 1977 | E102: Деревянные | F102: 2 | G102: 3 | H102: 823.20 | I102: 823.20 | J102: 823.20 | K102: 42 | L102: 1,908,022.84 | M102: 0.00 | N102: 0.00 | O102: 1,908,022.84 | P102: 0.00 | Q102: 0.00 | R102: 2,317.81 | S102: 2020 | T102: 2022
A103: 85 | B103: пос. Газовый, д. 1 | C103: 1934 | E103: Бревенчатые | F103: 2 | G103: 1 | H103: 323.80 | I103: 323.80 | J103: 181.70 | K103: 14 | L103: 1,153,472.00 | M103: 0.00 | N103: 0.00 | O103: 1,153,472.00 | P103: 0.00 | Q103: 0.00 | R103: 3,562.30 | S103: 2020 | T103: 2022
A104: 86 | B104: г. Вышний Волочек, ул. Большая Садовая, д. 146/1 | C104: 1960 | E104: Каменные, кирпичные | F104: 4 | G104: 2 | H104: 1,252.60 | I104: 1,252.60 | J104: 1,252.60 | K104: 51 | L104: 2,132,299.00 | M104: 0.00 | N104: 0.00 | O104: 2,132,299.00 | P104: 0.00 | Q104: 0.00 | R104: 1,702.30 | S104: 2020 | T104: 2022
A105: 87 | B105: г. Вышний Волочек, пр-т Казанский, д. 86 | C105: 1961 | E105: Каменные, кирпичные | F105: 3 | G105: 3 | H105: 2,001.10 | I105: 2,001.10 | J105: 1,363.01 | K105: 57 | L105: 6,875,521.47 | M105: 0.00 | N105: 0.00 | O105: 6,875,521.47 | P105: 0.00 | Q105: 0.00 | R105: 3,435.87 | S105: 2020 | T105: 2022
A106: 88 | B106: г. Вышний Волочек, ул. Венецианова, д. 31 | C106: 1993 | E106: Бревенчатые | F106: 2 | G106: 1 | H106: 209.40 | I106: 209.40 | J106: 209.40 | K106: 6 | L106: 740,536.55 | M106: 0.00 | N106: 0.00 | O106: 740,536.55 | P106: 0.00 | Q106: 0.00 | R106: 3,536.47 | S106: 2020 | T106: 2022
A107: 89 | B107: г. Вышний Волочек, ул. Екатерининская, д. 4 – 6 | C107: до 1917 | E107: Каменные, кирпичные | F107: 3 | G107: 3 | H107: 2,020.30 | I107: 2,020.30 | J107: 1,435.00 | K107: 49 | L107: 117,262.00 | M107: 0.00 | N107: 0.00 | O107: 117,262.00 | P107: 0.00 | Q107: 0.00 | R107: 58.04 | S107: 2020 | T107: 2022
A108: 90 | B108: г. Вышний Волочек, ул. Желябова, д. 11а | C108: 1961 | E108: Бревенчатые | F108: 2 | G108: 2 | H108: 719.10 | I108: 719.10 | J108: 719.10 | K108: 30 | L108: 2,568,914.00 | M108: 0.00 | N108: 0.00 | O108: 2,568,914.00 | P108: 0.00 | Q108: 0.00 | R108: 3,572.40 | S108: 2020 | T108: 2022
A109: 91 | B109: г. Вышний Волочек, ул. Цюрупы, д. 5а | C109: 1957 | E109: Бревенчатые | F109: 2 | G109: 1 | H109: 373.60 | I109: 373.60 | J109: 373.60 | K109: 27 | L109: 1,086,458.00 | M109: 0.00 | N109: 0.00 | O109: 1,086,458.00 | P109: 0.00 | Q109: 0.00 | R109: 2,908.08 | S109: 2020 | T109: 2022
A110: 92 | B110: г. Вышний Волочек, ул. Московская, д. 41 | C110: 1959 | E110: Бревенчатые | F110: 2 | G110: 2 | H110: 717.20 | I110: 717.20 | J110: 717.20 | K110: 29 | L110: 3,316,910.00 | M110: 0.00 | N110: 0.00 | O110: 3,316,910.00 | P110: 0.00 | Q110: 0.00 | R110: 4,624.80 | S110: 2020 | T110: 2022
A111: 93 | B111: г. Вышний Волочек, ул. Екатерининская, д. 7/9 | C111: до 1917 | E111: Каменные, кирпичные | F111: 3 | G111: 1 | H111: 837.50 | I111: 837.50 | J111: 697.00 | K111: 27 | L111: 1,678,763.00 | M111: 0.00 | N111: 0.00 | O111: 1,678,763.00 | P111: 0.00 | Q111: 0.00 | R111: 2,004.49 | S111: 2020 | T111: 2022
A112: 94 | B112: г. Вышний Волочек, ул. Цветочная, д. 17 | C112: 1964 | E112: Каменные, кирпичные | F112: 2 | G112: 3 | H112: 324.50 | I112: 324.50 | J112: 324.50 | K112: 13 | L112: 1,020,657.34 | M112: 0.00 | N112: 0.00 | O112: 1,020,657.34 | P112: 0.00 | Q112: 0.00 | R112: 3,145.32 | S112: 2020 | T112: 2022
A113: 95 | B113: г. Вышний Волочек, ул. Карла Маркса, д. 68 | C113: 1967 | E113: Бревенчатые | F113: 1 | G113: 2 | H113: 199.80 | I113: 199.80 | J113: 193.00 | K113: 16 | L113: 796,854.09 | M113: 0.00 | N113: 0.00 | O113: 796,854.09 | P113: 0.00 | Q113: 0.00 | R113: 3,988.26 | S113: 2020 | T113: 2022
A114: 96 | B114: г. Вышний Волочек, ул. Красных Печатников, д. 16 | C114: 1958 | E114: Бревенчатые | F114: 2 | G114: 3 | H114: 445.00 | I114: 445.00 | J114: 393.80 | K114: 23 | L114: 60,901.00 | M114: 0.00 | N114: 0.00 | O114: 60,901.00 | P114: 0.00 | Q114: 0.00 | R114: 136.86 | S114: 2020 | T114: 2022
A115: 97 | B115: г. Вышний Волочек, ул. Баумана, д. 31 | C115: 1964 | E115: Каменные, кирпичные | F115: 4 | G115: 3 | H115: 1,965.50 | I115: 1,965.50 | J115: 1,390.60 | K115: 73 | L115: 4,640,094.01 | M115: 0.00 | N115: 0.00 | O115: 4,640,094.01 | P115: 0.00 | Q115: 0.00 | R115: 2,360.77 | S115: 2020 | T115: 2022
A116: 98 | B116: г. Вышний Волочек, ул. Урицкого, д. 106 | C116: 1959 | E116: Каменные, кирпичные | F116: 2 | G116: 3 | H116: 981.30 | I116: 981.30 | J116: 523.80 | K116: 44 | L116: 2,874,498.88 | M116: 0.00 | N116: 0.00 | O116: 2,874,498.88 | P116: 0.00 | Q116: 0.00 | R116: 2,929.28 | S116: 2020 | T116: 2022
A117: 99 | B117: г. Вышний Волочек, ул. Мичурина, д. 2 | C117: 1961 | E117: Каменные, кирпичные | F117: 2 | G117: 2 | H117: 847.50 | I117: 847.50 | J117: 847.50 | K117: 30 | L117: 2,255,106.55 | M117: 0.00 | N117: 0.00 | O117: 2,255,106.55 | P117: 0.00 | Q117: 0.00 | R117: 2,660.89 | S117: 2020 | T117: 2022
A118: 100 | B118: г. Вышний Волочек, ул. Егорова, д. 2 | C118: 1950 | E118: Каменные, кирпичные | F118: 3 | G118: 3 | H118: 1,575.90 | I118: 1,575.90 | J118: 1,575.90 | K118: 60 | L118: 5,842,347.17 | M118: 0.00 | N118: 0.00 | O118: 5,842,347.17 | P118: 0.00 | Q118: 0.00 | R118: 3,707.31 | S118: 2020 | T118: 2022
A119: 101 | B119: г. Вышний Волочек, пр-т Казанский, д. 48 | C119: 1950 | E119: Каменные, кирпичные | F119: 3 | G119: 1 | H119: 689.20 | I119: 689.20 | J119: 464.90 | K119: 21 | L119: 1,479,354.86 | M119: 0.00 | N119: 0.00 | O119: 1,479,354.86 | P119: 0.00 | Q119: 0.00 | R119: 2,146.48 | S119: 2020 | T119: 2022
A120: 102 | B120: г. Вышний Волочек, ул. Крылова, д. 1а/29 | C120: 1962 | E120: Каменные, кирпичные | F120: 3 | G120: 2 | H120: 955.80 | I120: 955.80 | J120: 924.00 | K120: 42 | L120: 4,241,749.00 | M120: 0.00 | N120: 0.00 | O120: 4,241,749.00 | P120: 0.00 | Q120: 0.00 | R120: 4,437.90 | S120: 2020 | T120: 2022
A121: 103 | B121: г. Вышний Волочек, ш. Московское, д. 111 | C121: 1967 | E121: Каменные, кирпичные | F121: 2 | G121: 2 | H121: 606.70 | I121: 606.70 | J121: 606.70 | K121: 29 | L121: 1,837,881.40 | M121: 0.00 | N121: 0.00 | O121: 1,837,881.40 | P121: 0.00 | Q121: 0.00 | R121: 3,029.31 | S121: 2020 | T121: 2022
A122: 104 | B122: г. Вышний Волочек, ул. Артюхина, д. 45а | C122: 1991 | E122: Каменные, кирпичные | F122: 3 | G122: 2 | H122: 1,353.00 | I122: 1,353.00 | J122: 1,174.90 | K122: 52 | L122: 4,091,607.00 | M122: 0.00 | N122: 0.00 | O122: 4,091,607.00 | P122: 0.00 | Q122: 0.00 | R122: 3,024.10 | S122: 2020 | T122: 2022
A123: 105 | B123: г. Вышний Волочек, ул. 9 Января, д. 59/43 | C123: 1974 | E123: Панельные | F123: 5 | G123: 6 | H123: 4,614.30 | I123: 4,415.80 | J123: 4,415.80 | K123: 151 | L123: 6,428,277.00 | M123: 0.00 | N123: 0.00 | O123: 6,428,277.00 | P123: 0.00 | Q123: 0.00 | R123: 1,455.74 | S123: 2020 | T123: 2022
A124: 106 | B124: пос. Красномайский, ул. Железнодоржная, д. 19 | C124: 1966 | E124: Каменные, кирпичные | F124: 2 | G124: 2 | H124: 462.90 | I124: 455.90 | J124: 455.90 | K124: 30 | L124: 1,803,468.71 | M124: 0.00 | N124: 0.00 | O124: 1,803,468.71 | P124: =Q124 -> 0.00 | Q124: 0.00 | R124: 3,955.84 | S124: 2020 | T124: 2022
A125: 107 | B125: пос. Белый Омут, ул. Советская, д. 1 | C125: 1960 | E125: Каменные, кирпичные | F125: 2 | G125: 3 | H125: 489.41 | I125: 489.41 | J125: 317.00 | K125: 19 | L125: 1,569,979.00 | M125: 0.00 | N125: 0.00 | O125: 1,569,979.00 | P125: 0.00 | Q125: 0.00 | R125: 3,207.90 | S125: 2020 | T125: 2022
A126: 108 | B126: пос. Пригородный, ул. Мелиораторов, д. 7 | C126: 1981 | E126: Каменные, кирпичные | F126: 2 | G126: 3 | H126: 987.20 | I126: 900.20 | J126: 587.60 | K126: 44 | L126: 836,011.03 | M126: 0.00 | N126: 0.00 | O126: 836,011.03 | P126: 0.00 | Q126: 0.00 | R126: 928.69 | S126: 2020 | T126: 2022
A127: 109 | B127: пос. Борисовский, ул. Октябрьская, д. 17 | C127: 1976 | E127: Каменные, кирпичные | F127: 3 | G127: 2 | H127: 1,155.00 | I127: 1,081.80 | J127: 1,081.80 | K127: 27 | L127: 1,391,271.96 | M127: 0.00 | N127: 0.00 | O127: 1,391,271.96 | P127: 0.00 | Q127: 0.00 | R127: 1,286.07 | S127: 2020 | T127: 2022
A128: 110 | B128: пос. Терелесовский, ул. Рабочая, д. 3 | C128: 1961 | E128: Каменные, кирпичные | F128: 2 | G128: 3 | H128: 814.40 | I128: 814.40 | J128: 803.70 | K128: 32 | L128: 3,270,119.38 | M128: 0.00 | N128: 0.00 | O128: 3,270,119.38 | P128: 0.00 | Q128: 0.00 | R128: 4,015.37 | S128: 2020 | T128: 2022
A129: 111 | B129: пос. Приозерный, ул. Дорожная, д. 6 | C129: 1972 | E129: Каменные, кирпичные | F129: 2 | G129: 2 | H129: 547.00 | I129: 522.00 | J129: 522.00 | K129: 22 | L129: 210,350.00 | M129: 0.00 | N129: 0.00 | O129: 210,350.00 | P129: 0.00 | Q129: 0.00 | R129: 402.97 | S129: 2020 | T129: 2022
A130: 112 | B130: пос. Академический, ул. Октябрьская, д. 1 | C130: 1962 | E130: Каменные, кирпичные | F130: 2 | G130: 2 | H130: 499.30 | I130: 468.50 | J130: 468.50 | K130: 16 | L130: 1,111,073.16 | M130: 0.00 | N130: 0.00 | O130: 1,111,073.16 | P130: 0.00 | Q130: 0.00 | R130: 2,371.55 | S130: 2020 | T130: 2022
B131: Итого по МО город Торжок | H131: =SUM(H132:H141) -> 13,747.90 | I131: 13,747.90 | J131: 12,325.60 | K131: 501 | L131: 17,889,512.89 | M131: 0.00 | N131: 0.00 | O131: 17,889,512.89 | P131: 0.00 | Q131: 0.00 | R131: Х | S131: Х | T131: Х
A132: 113 | B132: 3-й пер. Бакунина, д. 8 | C132: 1960 | E132: Каменные, кирпичные | F132: 2 | G132: 2 | H132: 562.30 | I132: 562.30 | J132: 379.50 | K132: 32 | L132: 1,788,092.36 | M132: 0.00 | N132: 0.00 | O132: =L132 -> 1,788,092.36 | P132: 0.00 | Q132: 0.00 | R132: =L132/I132 -> 3,179.96 | S132: 2020 | T132: 2020
A133: 114 | B133: ул. Красноармейская, д. 42 | C133: 1958 | E133: Каменные, кирпичные | F133: 3 | G133: 4 | H133: 1,641.70 | I133: 1,641.70 | J133: 1,547.80 | K133: 44 | L133: 3,746,957.53 | M133: 0.00 | N133: 0.00 | O133: 3,746,957.53 | P133: 0.00 | Q133: 0.00 | R133: 2,282.36 | S133: 2020 | T133: 2020
A134: 115 | B134: ш. Калининское, д. 16а | C134: 1965 | E134: Каменные, кирпичные | F134: 2 | G134: 2 | H134: 623.70 | I134: 623.70 | J134: 440.70 | K134: 42 | L134: 405,299.00 | M134: 0.00 | N134: 0.00 | O134: 405,299.00 | P134: 0.00 | Q134: 0.00 | R134: 649.83 | S134: 2020 | T134: 2020
A135: 116 | B135: ш. Ленинградское, д. 33 | C135: 1965 | E135: Каменные, кирпичные | F135: 5 | G135: 5 | H135: 3,401.70 | I135: 3,401.70 | J135: 3,024.70 | K135: 117 | L135: 2,904,682.00 | M135: 0.00 | N135: 0.00 | O135: 2,904,682.00 | P135: 0.00 | Q135: 0.00 | R135: 853.89 | S135: 2020 | T135: 2020
A136: 117 | B136: ул. Студенческая, д. 7 | C136: 1960 | E136: Каменные, кирпичные | F136: 3 | G136: 2 | H136: 1,032.80 | I136: 1,032.80 | J136: 960.50 | K136: 34 | L136: 1,298,799.00 | M136: 0.00 | N136: 0.00 | O136: 1,298,799.00 | P136: 0.00 | Q136: 0.00 | R136: 1,257.55 | S136: 2020 | T136: 2020
A137: 118 | B137: ул. Студенческая, д. 7а | C137: 1961 | E137: Каменные, кирпичные | F137: 3 | G137: 2 | H137: 1,039.40 | I137: 1,039.40 | J137: 966.20 | K137: 28 | L137: 1,298,799.00 | M137: 0.00 | N137: 0.00 | O137: 1,298,799.00 | P137: 0.00 | Q137: 0.00 | R137: 1,249.57 | S137: 2020 | T137: 2020
A138: 119 | B138: ул. Студенческая, д. 13 | C138: 1961 | E138: Каменные, кирпичные | F138: 3 | G138: 2 | H138: 1,022.20 | I138: 1,022.20 | J138: 950.60 | K138: 45 | L138: 1,252,608.00 | M138: 0.00 | N138: 0.00 | O138: 1,252,608.00 | P138: 0.00 | Q138: 0.00 | R138: 1,225.40 | S138: 2020 | T138: 2020
A139: 120 | B139: ул. Студенческая, д. 9 | C139: 1961 | E139: Каменные, кирпичные | F139: 3 | G139: 2 | H139: 1,036.00 | I139: 1,036.00 | J139: 961.70 | K139: 39 | L139: 1,298,799.00 | M139: 0.00 | N139: 0.00 | O139: 1,298,799.00 | P139: 0.00 | Q139: 0.00 | R139: 1,253.67 | S139: 2020 | T139: 2020
A140: 121 | B140: ул. Студенческая, д. 6 | C140: 1960 | E140: Каменные, кирпичные | F140: 2 | G140: 2 | H140: 684.30 | I140: 684.30 | J140: 637.90 | K140: 25 | L140: 2,186,115.00 | M140: 0.00 | N140: 0.00 | O140: 2,186,115.00 | P140: 0.00 | Q140: 0.00 | R140: 3,194.67 | S140: 2020 | T140: 2020
A141: 122 | B141: ул. М.Горького, д. 40 | C141: 1992 | E141: Каменные, кирпичные | F141: 5 | G141: 2 | H141: 2,703.80 | I141: 2,703.80 | J141: 2,456.00 | K141: 95 | L141: 1,709,362.00 | M141: 0.00 | N141: 0.00 | O141: 1,709,362.00 | P141: 0.00 | Q141: 0.00 | R141: 632.21 | S141: 2020 | T141: 2020
B142: Итого по МО ЗАТО Озерный | H142: =H143+H144+H145 -> 16,929.60 | I142: =I143+I144+I145 -> 10,617.50 | J142: 7,391.35 | K142: 501 | L142: 13,178,092.40 | M142: 0.00 | N142: 0.00 | O142: 13,178,092.40 | P142: 0.00 | Q142: 0.00 | R142: Х | S142: Х | T142: Х
A143: 123 | B143: ул. Московская, д. 15 | C143: 1967 | E143: Каменные, кирпичные | F143: 5 | G143: 5 | H143: 4,774.40 | I143: 3,076.10 | J143: 1,861.04 | K143: 162 | L143: 4,693,140.30 | M143: 0.00 | N143: 0.00 | O143: 4,693,140.30 | P143: 0.00 | Q143: 0.00 | R143: =L143/I143 -> 1,525.68 | S143: 2020 | T143: 2022
A144: 124 | B144: ул. Труда, д. 2 | C144: 1967 | E144: Каменные, кирпичные | F144: 5 | G144: 5 | H144: 5,224.80 | I144: 3,447.30 | J144: 2,930.92 | K144: 134 | L144: 3,541,419.53 | M144: 0.00 | N144: 0.00 | O144: 3,541,419.53 | P144: 0.00 | Q144: 0.00 | R144: 1,027.30 | S144: 2020 | T144: 2022
A145: 125 | B145: ул. Труда, д. 3 | C145: 1988 | E145: Каменные, кирпичные | F145: 5 | G145: 6 | H145: 6,930.40 | I145: 4,094.10 | J145: 2,599.39 | K145: 205 | L145: 4,943,532.57 | M145: 0.00 | N145: 0.00 | O145: 4,943,532.57 | P145: 0.00 | Q145: 0.00 | R145: 1,207.48 | S145: 2020 | T145: 2022
B146: Андреапольский муниципальный округ | H146: =H147+H148 -> 937.30 | I146: =I147+I148 -> 799.90 | J146: 697.90 | K146: 19 | L146: 3,858,446.00 | M146: 0.00 | N146: 0.00 | O146: 3,858,446.00 | P146: 0.00 | Q146: 0.00 | R146: Х | S146: Х | T146: Х
A147: 126 | B147: г. Андреаполь, ул. Театральная, д. 8 | C147: 1962 | E147: Каменные, кирпичные | F147: 2 | G147: 2 | H147: 416.70 | I147: 333.90 | J147: 231.90 | K147: 7 | L147: 1,895,377.00 | M147: 0.00 | N147: 0.00 | O147: 1,895,377.00 | P147: 0.00 | Q147: 0.00 | R147: =L147/I147 -> 5,676.48 | S147: 2020 | T147: 2020
A148: 127 | B148: г. Андреаполь, ул. Театральная, д. 11 | C148: 1971 | E148: Каменные, кирпичные | F148: 2 | G148: 2 | H148: 520.60 | I148: 466.00 | J148: 466.00 | K148: 12 | L148: 1,963,069.00 | M148: 0.00 | N148: 0.00 | O148: 1,963,069.00 | P148: 0.00 | Q148: 0.00 | R148: =L148/I148 -> 4,212.59 | S148: 2020 | T148: 2020
B149: Бежецкий район | H149: =H150 -> 27,358.90 | I149: =I150 -> 23,861.87 | J149: 21,193.87 | K149: 1054 | L149: 50,217,234.58 | M149: 0.00 | N149: 0.00 | O149: 50,217,234.58 | P149: 0.00 | Q149: 0.00 | R149: Х | S149: Х | T149: Х
B150: Итого по МО городское поселение город Бежецк | H150: =SUM(H151:H168) -> 27,358.90 | I150: 23,861.87 | J150: 21,193.87 | K150: 1054 | L150: 50,217,234.58 | M150: 0.00 | N150: 0.00 | O150: 50,217,234.58 | P150: 0.00 | Q150: 0.00 | R150: Х | S150: Х | T150: Х
A151: 128 | B151: ул. Л. Толстого, д. 5 | C151: 1958 | E151: Каменные, кирпичные | F151: 3 | G151: 2 | H151: 1,118.60 | I151: 1,118.60 | J151: 1,118.60 | K151: 41 | L151: 2,715,253.21 | M151: 0.00 | N151: 0.00 | O151: 2,715,253.21 | P151: 0.00 | Q151: 0.00 | R151: =L151/I151 -> 2,427.37 | S151: 2020 | T151: 2022
A152: 129 | B152: ул. Инженерная, д. 11/8 | C152: 1952 | D152: 2017 | E152: Каменные, кирпичные | F152: 2 | G152: 2 | H152: 1,216.20 | I152: 693.50 | J152: 693.50 | K152: 27 | L152: 3,721,587.00 | M152: 0.00 | N152: 0.00 | O152: 3,721,587.00 | P152: 0.00 | Q152: 0.00 | R152: =L152/I152 -> 5,366.38 | S152: 2020 | T152: 2020
A153: 130 | B153: ул. Кашинская, д. 31 | C153: 1956 | E153: Каменные, кирпичные | F153: 2 | G153: 2 | H153: 717.80 | I153: 576.61 | J153: 576.61 | K153: 33 | L153: 1,608,909.71 | M153: 0.00 | N153: 0.00 | O153: 1,608,909.71 | P153: 0.00 | Q153: 0.00 | R153: =L153/I153 -> 2,790.29 | S153: 2020 | T153: 2020
A154: 131 | B154: ул. Остречинская, д. 4 | C154: 1989 | D154: 2004 | E154: Панельные | F154: 5 | G154: 4 | H154: 2,784.00 | I154: 1,565.50 | J154: =I154-245.6 -> 1,319.90 | K154: 141 | L154: 3,430,773.00 | M154: 0.00 | N154: 0.00 | O154: 3,430,773.00 | P154: 0.00 | Q154: 0.00 | R154: =L154/I154 -> 2,191.49 | S154: 2020 | T154: 2020
A155: 132 | B155: ул. Песочная, д. 10 | C155: 1988 | D155: 2003 | E155: Каменные, кирпичные | F155: 5 | G155: 1 | H155: 2,379.90 | I155: 2,357.30 | J155: =I155-35 -> 2,322.30 | K155: 101 | L155: 3,167,481.00 | M155: 0.00 | N155: 0.00 | O155: 3,167,481.00 | P155: 0.00 | Q155: 0.00 | R155: 1,343.69 | S155: 2020 | T155: 2020
A156: 133 | B156: пер. Остречинский, д. 17 | C156: 1933 | E156: Деревянные | F156: 2 | G156: 2 | H156: 447.80 | I156: 365.06 | J156: =I156 -> 365.06 | K156: 18 | L156: 288,691.00 | M156: 0.00 | N156: 0.00 | O156: 288,691.00 | P156: 0.00 | Q156: 0.00 | R156: =L156/I156 -> 790.80 | S156: 2020 | T156: 2020
A157: 134 | B157: ул. Новая, д. 59 | C157: 1991 | E157: Панельные | F157: 3 | G157: 3 | H157: 1,469.30 | I157: 1,238.80 | J157: 1,238.80 | K157: 66 | L157: 2,556,724.00 | M157: 0.00 | N157: 0.00 | O157: 2,556,724.00 | P157: 0.00 | Q157: 0.00 | R157: =L157/I157 -> 2,063.87 | S157: 2020 | T157: 2020
A158: 135 | B158: пр-д Восточный, д. 20 | C158: 1973 | D158: 2012 | E158: Каменные, кирпичные | F158: 5 | G158: 4 | H158: 3,145.40 | I158: 3,145.40 | J158: 3,145.40 | K158: 114 | L158: 3,718,399.32 | M158: 0.00 | N158: 0.00 | O158: 3,718,399.32 | P158: 0.00 | Q158: 0.00 | R158: 1,103.65 | S158: 2020 | T158: 2020
A159: 136 | B159: ул. Нечаева, д. 23 | C159: 1962 | E159: Каменные, кирпичные | F159: 4 | G159: 3 | H159: 3,180.30 | I159: 1,901.50 | J159: 1,901.50 | K159: 88 | L159: 4,112,925.00 | M159: 0.00 | N159: 0.00 | O159: 4,112,925.00 | P159: 0.00 | Q159: 0.00 | R159: =L159/I159 -> 2,162.99 | S159: 2020 | T159: 2020
A160: 137 | B160: ул. Мира, д. 2/50 | C160: 1989 | E160: Панельные | F160: 5 | G160: 8 | H160: 5,073.20 | I160: 5,073.20 | J160: 3,132.70 | K160: 190 | L160: 8,606,287.54 | M160: 0.00 | N160: 0.00 | O160: 8,606,287.54 | P160: 0.00 | Q160: 0.00 | R160: =L160/I160 -> 1,696.42 | S160: 2020 | T160: 2022
A161: 138 | B161: пер. Остречинский, д. 6 | C161: 1957 | E161: Каменные, кирпичные | F161: 2 | G161: 1 | H161: 378.40 | I161: 378.40 | J161: 333.90 | K161: 15 | L161: 1,445,225.00 | M161: 0.00 | N161: 0.00 | O161: 1,445,225.00 | P161: 0.00 | Q161: 0.00 | R161: =L161/I161 -> 3,819.30 | S161: 2020 | T161: 2020
A162: 139 | B162: ул. Нечаева, д. 2/7 | C162: 1955 | D162: 2005 | E162: Каменные, кирпичные | F162: 3 | G162: 2 | H162: 1,065.80 | I162: 1,065.80 | J162: =I162-123.4 -> 942.40 | K162: 38 | L162: 3,937,076.00 | M162: 0.00 | N162: 0.00 | O162: 3,937,076.00 | P162: 0.00 | Q162: 0.00 | R162: 3,694.01 | S162: 2020 | T162: 2020
A163: 140 | B163: ул. Инженерная, д. 1 | C163: 1956 | E163: Каменные, кирпичные | F163: 2 | G163: 2 | H163: 692.30 | I163: 692.30 | J163: 528.00 | K163: 32 | L163: 1,860,239.00 | M163: 0.00 | N163: 0.00 | O163: 1,860,239.00 | P163: 0.00 | Q163: 0.00 | R163: 2,687.04 | S163: 2020 | T163: 2020
A164: 141 | B164: ул. Песочная, д. 4 | C164: 1952 | D164: 2011 | E164: Каменные, кирпичные | F164: 3 | G164: 2 | H164: 924.50 | I164: 924.50 | J164: =I164-65.6 -> 858.90 | K164: 37 | L164: 3,321,602.00 | M164: 0.00 | N164: 0.00 | O164: 3,321,602.00 | P164: 0.00 | Q164: 0.00 | R164: 3,592.86 | S164: 2020 | T164: 2020
A165: 142 | B165: ул. Энергетическая, д. 3 | C165: 1969 | D165: 1996 | E165: Блочные | F165: 2 | G165: 2 | H165: 628.50 | I165: 628.50 | J165: =I165 -> 628.50 | K165: 30 | L165: 3,272,755.00 | M165: 0.00 | N165: 0.00 | O165: 3,272,755.00 | P165: 0.00 | Q165: 0.00 | R165: 5,207.25 | S165: 2020 | T165: 2020
A166: 143 | B166: ул. Рабочая, д. 10/5 | C166: 1955 | E166: Каменные, кирпичные | F166: 2 | G166: 1 | H166: 606.00 | I166: 606.00 | J166: 605.00 | K166: 17 | L166: 1,386,668.00 | M166: 0.00 | N166: 0.00 | O166: 1,386,668.00 | P166: 0.00 | Q166: 0.00 | R166: 2,288.23 | S166: 2020 | T166: 2020
A167: 144 | B167: ул. Нечаева, д. 16 | C167: 1959 | E167: Каменные, кирпичные | F167: 2 | G167: 2 | H167: 698.30 | I167: 698.30 | J167: 651.40 | K167: 26 | L167: 534,529.80 | M167: 0.00 | N167: 0.00 | O167: 534,529.80 | P167: 0.00 | Q167: 0.00 | R167: 765.47 | S167: 2020 | T167: 2022
A168: 145 | B168: ул. Новая, д. 68 | C168: 1978 | E168: Каменные, кирпичные | F168: 2 | G168: 3 | H168: 832.60 | I168: 832.60 | J168: 831.40 | K168: 40 | L168: 532,109.00 | M168: 0.00 | N168: 0.00 | O168: 532,109.00 | P168: 0.00 | Q168: 0.00 | R168: 639.09 | S168: 2020 | T168: 2020
B169: Бельский муниципальный округ | H169: =H170+H171+H172+H173 -> 2,562.10 | I169: =I170+I171+I172+I173 -> 1,843.60 | J169: 1,366.90 | K169: 77 | L169: 1,597,686.43 | M169: 0.00 | N169: 0.00 | O169: 1,597,686.43 | P169: 0.00 | Q169: 0.00 | R169: Х | S169: Х | T169: Х
A170: 146 | B170: г. Белый, ул. Строителей, д. 13 | C170: 1970 | E170: Каменные, кирпичные | F170: 2 | G170: 1 | H170: 661.10 | I170: 539.80 | J170: 401.10 | K170: 19 | L170: 372,773.90 | M170: 0.00 | N170: 0.00 | O170: 372,773.90 | P170: 0.00 | Q170: 0.00 | R170: =L170/I170 -> 690.58 | S170: 2020 | T170: 2020
A171: 147 | B171: г. Белый, пер. Аптечный, д. 1 | C171: 1973 | E171: Каменные, кирпичные | F171: 2 | G171: 2 | H171: 777.70 | I171: 637.50 | J171: 460.40 | K171: 23 | L171: 598,927.55 | M171: 0.00 | N171: 0.00 | O171: 598,927.55 | P171: 0.00 | Q171: 0.00 | R171: =L171/I171 -> 939.49 | S171: 2020 | T171: 2020
A172: 148 | B172: г. Белый, ул. Ленина, д. 10 | C172: 1971 | E172: Каменные, кирпичные | F172: 2 | G172: 1 | H172: 352.30 | I172: 216.60 | J172: 216.60 | K172: 12 | L172: 203,494.44 | M172: 0.00 | N172: 0.00 | O172: 203,494.44 | P172: 0.00 | Q172: 0.00 | R172: 939.49 | S172: 2020 | T172: 2020
A173: 149 | B173: г. Белый, ул. Смирнова, д. 16 | C173: 1990 | E173: Каменные, кирпичные | F173: 2 | G173: 2 | H173: 771.00 | I173: 449.70 | J173: 288.80 | K173: 23 | L173: 422,490.54 | M173: 0.00 | N173: 0.00 | O173: 422,490.54 | P173: 0.00 | Q173: 0.00 | R173: 939.49 | S173: 2020 | T173: 2020
B174: Бологовский район | H174: =H175+H183 -> 15,784.30 | I174: =I175+I183 -> 14,219.40 | J174: 13,394.80 | K174: 431 | L174: 25,585,661.47 | M174: 0.00 | N174: 0.00 | O174: 25,585,661.47 | P174: 0.00 | Q174: 0.00 | R174: Х | S174: Х | T174: Х
B175: Итого по МО городское поселение город Бологое | H175: =SUM(H176:H182) -> 13,511.40 | I175: =SUM(I176:I182) -> 12,271.00 | J175: 12,271.00 | K175: 355 | L175: 23,251,937.47 | M175: 0.00 | N175: 0.00 | O175: 23,251,937.47 | P175: 0.00 | Q175: 0.00 | R175: Х | S175: Х | T175: Х
A176: 150 | B176: мкр-н Заводской, д. 11 | C176: 1976 | E176: Панельные | F176: 5 | G176: 8 | H176: 5,834.10 | I176: 5,248.50 | J176: 5,248.50 | K176: 153 | L176: 4,474,754.84 | M176: 0.00 | N176: 0.00 | O176: =L176 -> 4,474,754.84 | P176: 0.00 | Q176: 0.00 | R176: =L176/I176 -> 852.58 | S176: 2020 | T176: 2020
A177: 151 | B177: мкр-н Заводской, д. 12 | C177: 1980 | E177: Панельные | F177: 5 | G177: 6 | H177: 4,410.40 | I177: 3,969.40 | J177: 3,969.40 | K177: 115 | L177: 3,587,126.86 | M177: 0.00 | N177: 0.00 | O177: =L177 -> 3,587,126.86 | P177: 0.00 | Q177: 0.00 | R177: 903.69 | S177: 2020 | T177: 2020
A178: 152 | B178: ул. Дружбы, д. 5б | C178: 1975 | E178: Деревянные | F178: 2 | G178: 2 | H178: 539.70 | I178: 498.90 | J178: 498.90 | K178: 15 | L178: 1,421,533.00 | M178: 0.00 | N178: 0.00 | O178: 1,421,533.00 | P178: 0.00 | Q178: 0.00 | R178: 2,849.33 | S178: 2020 | T178: 2020
A179: 153 | B179: ул. Дружбы, д. 3 | C179: 1960 | E179: Каменные, кирпичные | F179: 2 | G179: 2 | H179: 688.10 | I179: 643.30 | J179: 643.30 | K179: 23 | L179: 4,064,571.56 | M179: 0.00 | N179: 0.00 | O179: 4,064,571.56 | P179: 0.00 | Q179: 0.00 | R179: 6,318.31 | S179: 2020 | T179: 2020
A180: 154 | B180: ул. Луначарского, д. 31а | C180: 1989 | E180: Каменные, кирпичные | F180: 2 | G180: 3 | H180: 1,100.20 | I180: 973.00 | J180: 973.00 | K180: 24 | L180: 3,590,229.10 | M180: 0.00 | N180: 0.00 | O180: 3,590,229.10 | P180: 0.00 | Q180: 0.00 | R180: 3,689.86 | S180: 2020 | T180: 2020
A181: 155 | B181: ул. Народная, д. 5 | C181: 1965 | E181: Каменные, кирпичные | F181: 2 | G181: 2 | H181: 472.10 | I181: 472.10 | J181: 472.10 | K181: 13 | L181: 3,056,074.47 | M181: 0.00 | N181: 0.00 | O181: 3,056,074.47 | P181: 0.00 | Q181: 0.00 | R181: 6,473.36 | S181: 2020 | T181: 2020
A182: 156 | B182: ул. Народная, д. 6 | C182: 1966 | E182: Каменные, кирпичные | F182: 2 | G182: 2 | H182: 466.80 | I182: 465.80 | J182: 465.80 | K182: 12 | L182: 3,057,647.64 | M182: 0.00 | N182: 0.00 | O182: 3,057,647.64 | P182: 0.00 | Q182: 0.00 | R182: 6,564.29 | S182: 2020 | T182: 2020
B183: Итого по МО Выползовское сельское поселение | H183: =H184 -> 2,272.90 | I183: =I184 -> 1,948.40 | J183: 1,123.80 | K183: 76 | L183: 2,333,724.00 | M183: 0.00 | N183: 0.00 | O183: 2,333,724.00 | P183: 0.00 | Q183: 0.00 | R183: Х | S183: Х | T183: Х
A184: 157 | B184: п. Выползово, ул. Березовая роща, д. 6 | C184: 1979 | E184: Каменные, кирпичные | F184: 5 | G184: 1 | H184: 2,272.90 | I184: 1,948.40 | J184: 1,123.80 | K184: 76 | L184: 2,333,724.00 | M184: 0.00 | N184: 0.00 | O184: 2,333,724.00 | P184: 0.00 | Q184: 0.00 | R184: =L184/I184 -> 1,197.76 | S184: 2020 | T184: 2020
B185: Весьегонский муниципальный округ | H185: =H186+H187 -> 1,993.00 | I185: =I186+I187 -> 1,993.00 | J185: 1,818.00 | K185: 39 | L185: 3,350,144.00 | M185: 0.00 | N185: 114,142.98 | O185: 3,236,001.02 | P185: 0.00 | Q185: 0.00 | R185: Х | S185: Х | T185: Х
A186: 158 | B186: г. Весьегонск, ул. Советская, д. 81 | C186: 1971 | E186: Каменные, кирпичные | F186: 2 | G186: 2 | H186: 555.00 | I186: 555.00 | J186: 510.00 | K186: 12 | L186: =N186+O186 -> 1,583,994.00 | M186: 0.00 | N186: 114,142.98 | O186: 1,469,851.02 | P186: 0.00 | Q186: 0.00 | R186: =L186/I186 -> 2,854.04 | S186: 2020 | T186: 2020
A187: 159 | B187: г. Весьегонск, ул. Молодежная, д. 24 | C187: 1981 | E187: Блочные | F187: 3 | G187: 3 | H187: 1,438.00 | I187: 1,438.00 | J187: 1,308.00 | K187: 27 | L187: 1,766,150.00 | M187: 0.00 | N187: 0.00 | O187: 1,766,150.00 | P187: 0.00 | Q187: 0.00 | R187: 1,228.20 | S187: 2020 | T187: 2020
B188: Жарковский район | H188: =H189 -> 571.10 | I188: =I189 -> 522.70 | J188: 455.20 | K188: 23 | L188: 1,688,916.00 | M188: 0.00 | N188: 0.00 | O188: 1,688,916.00 | P188: 0.00 | Q188: 0.00 | R188: Х | S188: Х | T188: Х
B189: Итого по МО городское поселение пос. Жарковский | H189: =H190 -> 571.10 | I189: =I190 -> 522.70 | J189: 455.20 | K189: 23 | L189: 1,688,916.00 | M189: 0.00 | N189: 0.00 | O189: 1,688,916.00 | P189: 0.00 | Q189: 0.00 | R189: Х | S189: Х | T189: Х
A190: 160 | B190: ул. Комсомольская, д. 11 | C190: 1970 | E190: Каменные, кирпичные | F190: 2 | G190: 2 | H190: 571.10 | I190: 522.70 | J190: 455.20 | K190: 23 | L190: 1,688,916.00 | M190: 0.00 | N190: 0.00 | O190: 1,688,916.00 | P190: 0.00 | Q190: 0.00 | R190: =L190/I190 -> 3,231.14 | S190: 2020 | T190: 2020
B191: Западнодвинский муниципальный округ | H191: =H192+H193+H194 -> 1,789.90 | I191: =I192+I193+I194 -> 1,619.30 | J191: 1,619.30 | K191: 43 | L191: 6,549,572.00 | M191: 0.00 | N191: 0.00 | O191: 6,549,572.00 | P191: 0.00 | Q191: 0.00 | R191: Х | S191: Х | T191: Х
A192: 161 | B192: г. Западная Двина, ул. Кирова, д. 12 | C192: 1963 | E192: Каменные, кирпичные | F192: 2 | G192: 2 | H192: 517.30 | I192: 463.30 | J192: 463.30 | K192: 10 | L192: 1,556,917.00 | M192: 0.00 | N192: 0.00 | O192: 1,556,917.00 | P192: 0.00 | Q192: 0.00 | R192: =L192/I192 -> 3,360.49 | S192: 2020 | T192: 2020
A193: 162 | B193: г. Западная Двина, ул. Октябрьская, д. 2 | C193: 1977 | E193: Каменные, кирпичные | F193: 2 | G193: 3 | H193: 937.00 | I193: 850.70 | J193: 850.70 | K193: 27 | L193: 2,944,604.00 | M193: 0.00 | N193: 0.00 | O193: 2,944,604.00 | P193: 0.00 | Q193: 0.00 | R193: =L193/I193 -> 3,461.39 | S193: 2020 | T193: 2020
A194: 163 | B194: г. Западная Двина, ул. Октябрьская, д. 5 | C194: 1960 | E194: Каменные, кирпичные | F194: 2 | G194: 1 | H194: 335.60 | I194: 305.30 | J194: 305.30 | K194: 6 | L194: 2,048,051.00 | M194: 0.00 | N194: 0.00 | O194: 2,048,051.00 | P194: 0.00 | Q194: 0.00 | R194: =L194/I194 -> 6,708.32 | S194: 2020 | T194: 2020
B195: Калининский район | H195: =H204+H209+H198+H213+H215+H217+H201+H196+H206 -> 19,259.12 | I195: 16,956.92 | J195: 15,075.85 | K195: 906 | L195: 36,080,625.13 | M195: 0.00 | N195: 0.00 | O195: 36,080,625.13 | P195: 0.00 | Q195: 0.00 | R195: Х | S195: Х | T195: Х
B196: Итого по МО городское поселение пос. Васильевский Мох | H196: =H197 -> 976.70 | I196: =I197 -> 878.70 | J196: 878.70 | K196: 29 | L196: 3,012,296.00 | M196: 0.00 | N196: 0.00 | O196: 3,012,296.00 | P196: 0.00 | Q196: 0.00 | R196: Х | S196: Х | T196: Х
A197: 164 | B197: ул. Почтовая, д. 20а | C197: 1987 | E197: Каменные, кирпичные | F197: 2 | G197: 3 | H197: 976.70 | I197: 878.70 | J197: 878.70 | K197: 29 | L197: 3,012,296.00 | M197: 0.00 | N197: 0.00 | O197: 3,012,296.00 | P197: 0.00 | Q197: 0.00 | R197: =L197/I197 -> 3,428.13 | S197: 2020 | T197: 2020
B198: Итого по МО Верхневолжское сельское поселение | H198: =H199+H200 -> 1,996.80 | I198: =I199+I200 -> 1,818.90 | J198: 1,643.80 | K198: 82 | L198: 3,043,212.00 | M198: 0.00 | N198: 0.00 | O198: 3,043,212.00 | P198: 0.00 | Q198: 0.00 | R198: Х | S198: Х | T198: Х
A199: 165 | B199: с. Пушкино, д. 2 | C199: 1966 | E199: Каменные, кирпичные | F199: 2 | G199: 2 | H199: 592.60 | I199: 545.20 | J199: 469.50 | K199: 23 | L199: 1,032,519.00 | M199: 0.00 | N199: 0.00 | O199: 1,032,519.00 | P199: 0.00 | Q199: 0.00 | R199: =L199/I199 -> 1,893.84 | S199: 2020 | T199: 2020
A200: 166 | B200: с. Пушкино, д. 6 | C200: 1980 | E200: Панельные | F200: 3 | G200: 3 | H200: 1,404.20 | I200: 1,273.70 | J200: 1,174.30 | K200: 59 | L200: 2,010,693.00 | M200: 0.00 | N200: 0.00 | O200: 2,010,693.00 | P200: 0.00 | Q200: 0.00 | R200: 1,578.62 | S200: 2020 | T200: 2020
B201: Итого по МО Заволжское сельское поселение | H201: =H202+H203 -> 5,273.40 | I201: =I202+I203 -> 5,273.40 | J201: 5,048.70 | K201: 253 | L201: 6,733,926.09 | M201: 0.00 | N201: 0.00 | O201: 6,733,926.09 | P201: 0.00 | Q201: 0.00 | R201: Х | S201: Х | T201: Х
A202: 167 | B202: пос. Дмитрово-Черкассы, ул. Спортивная, д. 2а | C202: 1980 | E202: Каменные, кирпичные | F202: 2 | G202: 2 | H202: 777.40 | I202: 777.40 | J202: 777.40 | K202: 27 | L202: 1,855,440.00 | M202: 0.00 | N202: 0.00 | O202: 1,855,440.00 | P202: 0.00 | Q202: 0.00 | R202: =L202/I202 -> 2,386.72 | S202: 2020 | T202: 2020
... 1433 more rows

Sheet 61-106
A1: II. Реестр многоквартирных домов, которые подлежат капитальному ремонту по видам ремонта
A2: № п/п | B2: Адрес МКД | C2: Стоимость капитального ремонта, всего | D2: Виды услуг и (или) работ по капитальному ремонту:
D3: ремонт внутридомовых инженерных систем | K3: установка приборов учета2 | M3: ремонт, замена, модернизация лифтов, ремонт лифтовых шахт, машинных и блочных помещений | O3: ремонт крыши, переустройство невентилируемой крыши на вентилируемую крышу, устройство выходов на кровлю | Q3: ремонт подвальных помещений, относящихся к общему имуществу в многоквартирном доме | S3: ремонт и утепление фасада | U3: ремонт фундамента | W3: уста-новка, ремонт систем приема телеви-дения3 | X3: разработка проектной документации4 | Y3: техническое обследование общего имущества в много-квартирном доме
D4: Итого | E4: электроснабжения | F4: теплоснабжения 1 | G4: газоснабжения | H4: холодного водоснабжения | I4: горячего водоснабжения | J4: водоотведения
C6: руб. | D6: руб. | E6: руб. | F6: руб. | G6: руб. | H6: руб. | I6: руб. | J6: руб. | K6: ед. | L6: руб. | M6: ед. | N6: руб. | O6: кв. м | P6: руб. | Q6: кв. м | R6: руб. | S6: кв. м | T6: руб. | U6: куб. м | V6: руб. | X6: руб. | Y6: руб.
A7: 1 | B7: 2 | C7: 3 | D7: 4 | E7: 5 | F7: 6 | G7: 7 | H7: 8 | I7: 9 | J7: 10 | K7: 11 | L7: 12 | M7: 13 | N7: 14 | O7: 15 | P7: 16 | Q7: 17 | R7: 18 | S7: 19 | T7: 20 | U7: 21 | V7: 22 | W7: 23 | X7: 24 | Y7: 25
A8: Начало проведения капитального ремонта – 2020 год
B9: Итого по Тверской области | C9: =C10+C96+C131+C142+C146+C149+C169+C174+C185+C188+C191+C195+C220+C230+C239+C254+C281+C285+C288+C291+C315+C322+C325+C329+C346+C355+C357+C361+C389+C391+C394+C406+C408+C412+C416+C420+C427 -> 1,074,302,820.32 | D9: =D10+D96+D131+D142+D146+D149+D169+D174+D185+D188+D191+D195+D220+D230+D239+D254+D281+D285+D288+D291+D315+D322+D325+D329+D346+D355+D357+D361+D389+D391+D394+D406+D408+D412+D416+D420+D427 -> 156,218,893.50 | E9: 30,053,223.77 | F9: 36,856,641.01 | G9: 2,694,403.16 | H9: 32,468,340.33 | I9: 20,549,872.86 | J9: 33,596,412.37 | K9: 5.00 | L9: 1,487,480.02 | M9: 27.00 | N9: 65,313,141.19 | O9: 151,061.54 | P9: 506,930,301.04 | Q9: 893.40 | R9: 1,207,262.00 | S9: 82,018.07 | T9: 267,600,835.27 | U9: 56.92 | V9: 696,981.00 | W9: 0.00 | X9: 74,869,467.66 | Y9: 0.00
B10: Итого по МО город Тверь | C10: =SUM(C11:C95) -> 365,931,476.27 | D10: =SUM(D11:D95) -> 85,166,924.02 | E10: 20,422,065.00 | F10: 10,184,216.00 | G10: 1,180,528.00 | H10: 25,476,054.16 | I10: 10,546,742.86 | J10: 17,357,318.00 | K10: 0 | L10: 0.00 | M10: 15 | N10: 40,710,174.00 | O10: 30,762.13 | P10: 101,224,921.18 | Q10: 0.00 | R10: 0.00 | S10: 38,512.58 | T10: 113,245,586.67 | U10: 0.00 | V10: 0.00 | W10: 0.00 | X10: 25,583,870.40 | Y10: 0.00
A11: 1 | B11: ул. Малая Самара, д. 9 | C11: =D11+N11+P11+R11+T11+V11+X11 -> 16,299,923.00 | D11: =SUM(E11:J11) -> 0.00 | E11: 0.00 | F11: 0.00 | G11: 0.00 | H11: 0.00 | I11: 0.00 | J11: 0.00 | K11: 0 | L11: 0.00 | M11: 5 | N11: 11,274,555.00 | O11: 1,524.50 | P11: 3,841,426.00 | Q11: 0.00 | R11: 0.00 | S11: 0.00 | T11: 0.00 | U11: 0.00 | V11: 0.00 | W11: 0.00 | X11: 1,183,942.00 | Y11: 0.00
A12: 2 | B12: наб. Мигаловская, д. 8 | C12: =D12+N12+P12+R12+T12+V12+X12 -> 6,984,731.00 | D12: =SUM(E12:J12) -> 0.00 | E12: 0.00 | F12: 0.00 | G12: 0.00 | H12: 0.00 | I12: 0.00 | J12: 0.00 | K12: 0 | L12: 0.00 | M12: 2 | N12: 6,477,396.00 | O12: 0.00 | P12: 0.00 | Q12: 0.00 | R12: 0.00 | S12: 0.00 | T12: 0.00 | U12: 0.00 | V12: 0.00 | W12: 0.00 | X12: 507,335.00 | Y12: 0.00
A13: 3 | B13: ш. Сахаровское, д. 16 | C13: 10,555,158.00 | D13: 0.00 | E13: 0.00 | F13: 0.00 | G13: 0.00 | H13: 0.00 | I13: 0.00 | J13: 0.00 | K13: 0 | L13: 0.00 | M13: 3 | N13: 6,764,733.00 | O13: 1,200.00 | P13: 3,023,753.00 | Q13: 0.00 | R13: 0.00 | S13: 0.00 | T13: 0.00 | U13: 0.00 | V13: 0.00 | W13: 0.00 | X13: 766,672.00 | Y13: 0.00
A14: 4 | B14: ул. Артюхиной, д. 26 | C14: 17,461,827.00 | D14: 0.00 | E14: 0.00 | F14: 0.00 | G14: 0.00 | H14: 0.00 | I14: 0.00 | J14: 0.00 | K14: 0 | L14: 0.00 | M14: 5 | N14: 16,193,490.00 | O14: 0.00 | P14: 0.00 | Q14: 0.00 | R14: 0.00 | S14: 0.00 | T14: 0.00 | U14: 0.00 | V14: 0.00 | W14: 0.00 | X14: 1,268,337.00 | Y14: 0.00
A15: 5 | B15: пр-т Ленина, д. 28 | C15: 143,558.00 | D15: 0.00 | E15: 0.00 | F15: 0.00 | G15: 0.00 | H15: 0.00 | I15: 0.00 | J15: 0.00 | K15: 0 | L15: 0.00 | M15: 0 | N15: 0.00 | O15: 0.00 | P15: 0.00 | Q15: 0.00 | R15: 0.00 | S15: 0.00 | T15: 0.00 | U15: 0.00 | V15: 0.00 | W15: 0.00 | X15: 143,558.00 | Y15: 0.00
A16: 6 | B16: пер. Свободный, д. 1г | C16: 1,223,262.00 | D16: 0.00 | E16: 0.00 | F16: 0.00 | G16: 0.00 | H16: 0.00 | I16: 0.00 | J16: 0.00 | K16: 0 | L16: 0.00 | M16: 0 | N16: 0.00 | O16: 450.20 | P16: 1,134,411.00 | Q16: 0.00 | R16: 0.00 | S16: 0.00 | T16: 0.00 | U16: 0.00 | V16: 0.00 | W16: 0.00 | X16: 88,851.00 | Y16: 0.00
A17: 7 | B17: ул. Маяковского, д. 48 | C17: 2,502,533.00 | D17: 2,320,763.00 | E17: 0.00 | F17: 887,082.00 | G17: 0.00 | H17: 544,642.00 | I17: 544,642.00 | J17: 344,397.00 | K17: 0 | L17: 0.00 | M17: 0 | N17: 0.00 | O17: 0.00 | P17: 0.00 | Q17: 0.00 | R17: 0.00 | S17: 0.00 | T17: 0.00 | U17: 0.00 | V17: 0.00 | W17: 0.00 | X17: 181,770.00 | Y17: 0.00
A18: 8 | B18: пер. Спортивный, д. 2, корп. 3 | C18: 3,252,433.00 | D18: 0.00 | E18: 0.00 | F18: 0.00 | G18: 0.00 | H18: 0.00 | I18: 0.00 | J18: 0.00 | K18: 0 | L18: 0.00 | M18: 0 | N18: 0.00 | O18: 1,197.00 | P18: 3,016,193.00 | Q18: 0.00 | R18: 0.00 | S18: 0.00 | T18: 0.00 | U18: 0.00 | V18: 0.00 | W18: 0.00 | X18: 236,240.00 | Y18: 0.00
A19: 9 | B19: б-р Шмидта, д. 40 | C19: 2,472,610.00 | D19: 0.00 | E19: 0.00 | F19: 0.00 | G19: 0.00 | H19: 0.00 | I19: 0.00 | J19: 0.00 | K19: 0 | L19: 0.00 | M19: 0 | N19: 0.00 | O19: 910.00 | P19: 2,293,012.00 | Q19: 0.00 | R19: 0.00 | S19: 0.00 | T19: 0.00 | U19: 0.00 | V19: 0.00 | W19: 0.00 | X19: 179,598.00 | Y19: 0.00
A20: 10 | B20: пр-д Зеленый, д. 43, корп. 15 | C20: 2,486,195.00 | D20: 0.00 | E20: 0.00 | F20: 0.00 | G20: 0.00 | H20: 0.00 | I20: 0.00 | J20: 0.00 | K20: 0 | L20: 0.00 | M20: 0 | N20: 0.00 | O20: 915.00 | P20: 2,305,611.00 | Q20: 0.00 | R20: 0.00 | S20: 0.00 | T20: 0.00 | U20: 0.00 | V20: 0.00 | W20: 0.00 | X20: 180,584.00 | Y20: 0.00
A21: 11 | B21: пер. Артиллерийский, д. 13 | C21: 2,978,001.00 | D21: 0.00 | E21: 0.00 | F21: 0.00 | G21: 0.00 | H21: 0.00 | I21: 0.00 | J21: 0.00 | K21: 0 | L21: 0.00 | M21: 0 | N21: 0.00 | O21: 1,096.00 | P21: 2,761,694.00 | Q21: 0.00 | R21: 0.00 | S21: 0.00 | T21: 0.00 | U21: 0.00 | V21: 0.00 | W21: 0.00 | X21: 216,307.00 | Y21: 0.00
A22: 12 | B22: пр-т Победы, д. 57 | C22: 1,304,334.00 | D22: 1,209,594.00 | E22: 0.00 | F22: 0.00 | G22: 0.00 | H22: 0.00 | I22: 0.00 | J22: 1,209,594.00 | K22: 0 | L22: 0.00 | M22: 0 | N22: 0.00 | O22: 0.00 | P22: 0.00 | Q22: 0.00 | R22: 0.00 | S22: 0.00 | T22: 0.00 | U22: 0.00 | V22: 0.00 | W22: 0.00 | X22: 94,740.00 | Y22: 0.00
A23: 13 | B23: ул. Вольного Новгорода, д. 23 | C23: 7,429,397.00 | D23: 0.00 | E23: 0.00 | F23: 0.00 | G23: 0.00 | H23: 0.00 | I23: 0.00 | J23: 0.00 | K23: 0 | L23: 0.00 | M23: 0 | N23: 0.00 | O23: 700.00 | P23: 3,170,936.00 | Q23: 0.00 | R23: 0.00 | S23: 1,507.00 | T23: 3,718,828.00 | U23: 0.00 | V23: 0.00 | W23: 0.00 | X23: 539,633.00 | Y23: 0.00
A24: 14 | B24: ул. Маршала Буденного, д. 19/1 | C24: 220,003.00 | D24: 204,023.00 | E24: 204,023.00 | F24: 0.00 | G24: 0.00 | H24: 0.00 | I24: 0.00 | J24: 0.00 | K24: 0 | L24: 0.00 | M24: 0 | N24: 0.00 | O24: 0.00 | P24: 0.00 | Q24: 0.00 | R24: 0.00 | S24: 0.00 | T24: 0.00 | U24: 0.00 | V24: 0.00 | W24: 0.00 | X24: 15,980.00 | Y24: 0.00
A25: 15 | B25: ул. Кирова, д. 5а | C25: 1,272,992.00 | D25: 1,180,528.00 | E25: 0.00 | F25: 0.00 | G25: 1,180,528.00 | H25: 0.00 | I25: 0.00 | J25: 0.00 | K25: 0 | L25: 0.00 | M25: 0 | N25: 0.00 | O25: 0.00 | P25: 0.00 | Q25: 0.00 | R25: 0.00 | S25: 0.00 | T25: 0.00 | U25: 0.00 | V25: 0.00 | W25: 0.00 | X25: 92,464.00 | Y25: 0.00
A26: 16 | B26: ш. Петербургское, д. 32 | C26: 7,835,016.79 | D26: 0.00 | E26: 0.00 | F26: 0.00 | G26: 0.00 | H26: 0.00 | I26: 0.00 | J26: 0.00 | K26: 0 | L26: 0.00 | M26: 0 | N26: 0.00 | O26: 921.00 | P26: 2,697,726.79 | Q26: 0.00 | R26: 0.00 | S26: 1,862.29 | T26: 4,595,578.00 | U26: 0.00 | V26: 0.00 | W26: 0.00 | X26: 541,712.00 | Y26: 0.00
A27: 17 | B27: ул. 15 лет Октября, д. 62, корп. 1 | C27: 379,105.00 | D27: 351,569.00 | E27: 0.00 | F27: 0.00 | G27: 0.00 | H27: 0.00 | I27: 0.00 | J27: 351,569.00 | K27: 0 | L27: 0.00 | M27: 0 | N27: 0.00 | O27: 0.00 | P27: 0.00 | Q27: 0.00 | R27: 0.00 | S27: 0.00 | T27: 0.00 | U27: 0.00 | V27: 0.00 | W27: 0.00 | X27: 27,536.00 | Y27: 0.00
A28: 18 | B28: ул. Ржевская, д. 8а | C28: 720,344.00 | D28: 668,022.00 | E28: 668,022.00 | F28: 0.00 | G28: 0.00 | H28: 0.00 | I28: 0.00 | J28: 0.00 | K28: 0 | L28: 0.00 | M28: 0 | N28: 0.00 | O28: 0.00 | P28: 0.00 | Q28: 0.00 | R28: 0.00 | S28: 0.00 | T28: 0.00 | U28: 0.00 | V28: 0.00 | W28: 0.00 | X28: 52,322.00 | Y28: 0.00
A29: 19 | B29: ул. Бобкова, д. 26, корп. 8 | C29: 4,274,120.00 | D29: 0.00 | E29: 0.00 | F29: 0.00 | G29: 0.00 | H29: 0.00 | I29: 0.00 | J29: 0.00 | K29: 0 | L29: 0.00 | M29: 0 | N29: 0.00 | O29: 875.00 | P29: 3,963,670.00 | Q29: 0.00 | R29: 0.00 | S29: 0.00 | T29: 0.00 | U29: 0.00 | V29: 0.00 | W29: 0.00 | X29: 310,450.00 | Y29: 0.00
A30: 20 | B30: ул. Терещенко, д. 32/14 | C30: 1,840,546.00 | D30: 0.00 | E30: 0.00 | F30: 0.00 | G30: 0.00 | H30: 0.00 | I30: 0.00 | J30: 0.00 | K30: 0 | L30: 0.00 | M30: 0 | N30: 0.00 | O30: 543.80 | P30: 1,706,858.00 | Q30: 0.00 | R30: 0.00 | S30: 0.00 | T30: 0.00 | U30: 0.00 | V30: 0.00 | W30: 0.00 | X30: 133,688.00 | Y30: 0.00
A31: 21 | B31: ул. Громова, д. 11, корп. 3 | C31: 1,985,158.00 | D31: 1,840,966.00 | E31: 1,840,966.00 | F31: 0.00 | G31: 0.00 | H31: 0.00 | I31: 0.00 | J31: 0.00 | K31: 0 | L31: 0.00 | M31: 0 | N31: 0.00 | O31: 0.00 | P31: 0.00 | Q31: 0.00 | R31: 0.00 | S31: 0.00 | T31: 0.00 | U31: 0.00 | V31: 0.00 | W31: 0.00 | X31: 144,192.00 | Y31: 0.00
A32: 22 | B32: ул. Склизкова, д. 33 | C32: 2,465,544.00 | D32: 660,894.00 | E32: 380,836.00 | F32: 0.00 | G32: 0.00 | H32: 0.00 | I32: 0.00 | J32: 280,058.00 | K32: 0 | L32: 0.00 | M32: 0 | N32: 0.00 | O32: 517.90 | P32: 1,625,565.00 | Q32: 0.00 | R32: 0.00 | S32: 0.00 | T32: 0.00 | U32: 0.00 | V32: 0.00 | W32: 0.00 | X32: 179,085.00 | Y32: 0.00
A33: 23 | B33: ул. Ротмистрова, д. 17 | C33: 409,752.00 | D33: 379,990.00 | E33: 0.00 | F33: 0.00 | G33: 0.00 | H33: 0.00 | I33: 0.00 | J33: 379,990.00 | K33: 0 | L33: 0.00 | M33: 0 | N33: 0.00 | O33: 0.00 | P33: 0.00 | Q33: 0.00 | R33: 0.00 | S33: 0.00 | T33: 0.00 | U33: 0.00 | V33: 0.00 | W33: 0.00 | X33: 29,762.00 | Y33: 0.00
A34: 24 | B34: ул. Орджоникидзе, д. 3 | C34: 425,860.00 | D34: 394,928.00 | E34: 0.00 | F34: 0.00 | G34: 0.00 | H34: 0.00 | I34: 0.00 | J34: 394,928.00 | K34: 0 | L34: 0.00 | M34: 0 | N34: 0.00 | O34: 0.00 | P34: 0.00 | Q34: 0.00 | R34: 0.00 | S34: 0.00 | T34: 0.00 | U34: 0.00 | V34: 0.00 | W34: 0.00 | X34: 30,932.00 | Y34: 0.00
A35: 25 | B35: пр-т Волоколамский, д. 8 | C35: 945,487.00 | D35: 876,812.00 | E35: 876,812.00 | F35: 0.00 | G35: 0.00 | H35: 0.00 | I35: 0.00 | J35: 0.00 | K35: 0 | L35: 0.00 | M35: 0 | N35: 0.00 | O35: 0.00 | P35: 0.00 | Q35: 0.00 | R35: 0.00 | S35: 0.00 | T35: 0.00 | U35: 0.00 | V35: 0.00 | W35: 0.00 | X35: 68,675.00 | Y35: 0.00
A36: 26 | B36: ул. Склизкова, д. 31 | C36: 3,932,416.00 | D36: 476,614.00 | E36: 476,614.00 | F36: 0.00 | G36: 0.00 | H36: 0.00 | I36: 0.00 | J36: 0.00 | K36: 0 | L36: 0.00 | M36: 0 | N36: 0.00 | O36: 621.01 | P36: 1,949,203.00 | Q36: 0.00 | R36: 0.00 | S36: 494.78 | T36: 1,220,969.00 | U36: 0.00 | V36: 0.00 | W36: 0.00 | X36: 285,630.00 | Y36: 0.00
A37: 27 | B37: ул. Горького, д. 104 | C37: 3,786,311.00 | D37: 0.00 | E37: 0.00 | F37: 0.00 | G37: 0.00 | H37: 0.00 | I37: 0.00 | J37: 0.00 | K37: 0 | L37: 0.00 | M37: 0 | N37: 0.00 | O37: 0.00 | P37: 0.00 | Q37: 0.00 | R37: 0.00 | S37: 1,422.90 | T37: 3,511,293.00 | U37: 0.00 | V37: 0.00 | W37: 0.00 | X37: 275,018.00 | Y37: 0.00
A38: 28 | B38: ул. Орджоникидзе, д. 12/1 | C38: 958,615.00 | D38: 888,986.00 | E38: 888,986.00 | F38: 0.00 | G38: 0.00 | H38: 0.00 | I38: 0.00 | J38: 0.00 | K38: 0 | L38: 0.00 | M38: 0 | N38: 0.00 | O38: 0.00 | P38: 0.00 | Q38: 0.00 | R38: 0.00 | S38: 0.00 | T38: 0.00 | U38: 0.00 | V38: 0.00 | W38: 0.00 | X38: 69,629.00 | Y38: 0.00
A39: 29 | B39: ул. Склизкова, д. 35 | C39: 1,907,186.00 | D39: 488,576.00 | E39: 281,539.00 | F39: 0.00 | G39: 0.00 | H39: 0.00 | I39: 0.00 | J39: 207,037.00 | K39: 0 | L39: 0.00 | M39: 0 | N39: 0.00 | O39: 407.83 | P39: 1,280,082.00 | Q39: 0.00 | R39: 0.00 | S39: 0.00 | T39: 0.00 | U39: 0.00 | V39: 0.00 | W39: 0.00 | X39: 138,528.00 | Y39: 0.00
A40: 30 | B40: ул. Советская, д. 62 | C40: 5,534,843.00 | D40: 0.00 | E40: 0.00 | F40: 0.00 | G40: 0.00 | H40: 0.00 | I40: 0.00 | J40: 0.00 | K40: 0 | L40: 0.00 | M40: 0 | N40: 0.00 | O40: 0.00 | P40: 0.00 | Q40: 0.00 | R40: 0.00 | S40: 2,080.00 | T40: 5,132,821.00 | U40: 0.00 | V40: 0.00 | W40: 0.00 | X40: 402,022.00 | Y40: 0.00
A41: 31 | B41: ул. Склизкова, д. 27 | C41: 2,175,056.00 | D41: 394,331.00 | E41: 394,331.00 | F41: 0.00 | G41: 0.00 | H41: 0.00 | I41: 0.00 | J41: 0.00 | K41: 0 | L41: 0.00 | M41: 0 | N41: 0.00 | O41: 517.00 | P41: 1,622,740.00 | Q41: 0.00 | R41: 0.00 | S41: 0.00 | T41: 0.00 | U41: 0.00 | V41: 0.00 | W41: 0.00 | X41: 157,985.00 | Y41: 0.00
A42: 32 | B42: пос. Литвинки, д. 23 | C42: 9,902,493.39 | D42: 0.00 | E42: 0.00 | F42: 0.00 | G42: 0.00 | H42: 0.00 | I42: 0.00 | J42: 0.00 | K42: 0 | L42: 0.00 | M42: 0 | N42: 0.00 | O42: 2,800.00 | P42: 9,349,885.39 | Q42: 0.00 | R42: 0.00 | S42: 0.00 | T42: 0.00 | U42: 0.00 | V42: 0.00 | W42: 0.00 | X42: 552,608.00 | Y42: 0.00
A43: 33 | B43: ул. Фадеева, д. 28, корп. 1 | C43: 2,033,556.00 | D43: 1,885,849.00 | E43: 1,885,849.00 | F43: 0.00 | G43: 0.00 | H43: 0.00 | I43: 0.00 | J43: 0.00 | K43: 0 | L43: 0.00 | M43: 0 | N43: 0.00 | O43: 0.00 | P43: 0.00 | Q43: 0.00 | R43: 0.00 | S43: 0.00 | T43: 0.00 | U43: 0.00 | V43: 0.00 | W43: 0.00 | X43: 147,707.00 | Y43: 0.00
A44: 34 | B44: ул. Московская, д. 24, корп. 2 | C44: 3,653,569.00 | D44: 3,388,193.00 | E44: 0.00 | F44: 0.00 | G44: 0.00 | H44: 3,388,193.00 | I44: 0.00 | J44: 0.00 | K44: 0 | L44: 0.00 | M44: 0 | N44: 0.00 | O44: 0.00 | P44: 0.00 | Q44: 0.00 | R44: 0.00 | S44: 0.00 | T44: 0.00 | U44: 0.00 | V44: 0.00 | W44: 0.00 | X44: 265,376.00 | Y44: 0.00
A45: 35 | B45: ул. Лукина, д. 6 | C45: 771,870.00 | D45: 715,805.00 | E45: 0.00 | F45: 715,805.00 | G45: 0.00 | H45: 0.00 | I45: 0.00 | J45: 0.00 | K45: 0 | L45: 0.00 | M45: 0 | N45: 0.00 | O45: 0.00 | P45: 0.00 | Q45: 0.00 | R45: 0.00 | S45: 0.00 | T45: 0.00 | U45: 0.00 | V45: 0.00 | W45: 0.00 | X45: 56,065.00 | Y45: 0.00
A46: 36 | B46: пер. Садовый, д. 22 | C46: 3,642,204.00 | D46: 0.00 | E46: 0.00 | F46: 0.00 | G46: 0.00 | H46: 0.00 | I46: 0.00 | J46: 0.00 | K46: 0 | L46: 0.00 | M46: 0 | N46: 0.00 | O46: 913.00 | P46: 3,377,653.00 | Q46: 0.00 | R46: 0.00 | S46: 0.00 | T46: 0.00 | U46: 0.00 | V46: 0.00 | W46: 0.00 | X46: 264,551.00 | Y46: 0.00
A47: 37 | B47: пр-т Калинина, д. 14 | C47: 4,169,204.00 | D47: 3,866,375.00 | E47: 3,866,375.00 | F47: 0.00 | G47: 0.00 | H47: 0.00 | I47: 0.00 | J47: 0.00 | K47: 0 | L47: 0.00 | M47: 0 | N47: 0.00 | O47: 0.00 | P47: 0.00 | Q47: 0.00 | R47: 0.00 | S47: 0.00 | T47: 0.00 | U47: 0.00 | V47: 0.00 | W47: 0.00 | X47: 302,829.00 | Y47: 0.00
A48: 38 | B48: пр-т Ленина, д. 41 | C48: 2,841,648.00 | D48: 2,635,245.00 | E48: 2,635,245.00 | F48: 0.00 | G48: 0.00 | H48: 0.00 | I48: 0.00 | J48: 0.00 | K48: 0 | L48: 0.00 | M48: 0 | N48: 0.00 | O48: 0.00 | P48: 0.00 | Q48: 0.00 | R48: 0.00 | S48: 0.00 | T48: 0.00 | U48: 0.00 | V48: 0.00 | W48: 0.00 | X48: 206,403.00 | Y48: 0.00
A49: 39 | B49: ул. Склизкова, д. 68 | C49: 1,499,848.00 | D49: 1,390,907.00 | E49: 0.00 | F49: 0.00 | G49: 0.00 | H49: 0.00 | I49: 0.00 | J49: 1,390,907.00 | K49: 0 | L49: 0.00 | M49: 0 | N49: 0.00 | O49: 0.00 | P49: 0.00 | Q49: 0.00 | R49: 0.00 | S49: 0.00 | T49: 0.00 | U49: 0.00 | V49: 0.00 | W49: 0.00 | X49: 108,941.00 | Y49: 0.00
A50: 40 | B50: ул. Вагжанова, д. 4 | C50: 4,803,022.00 | D50: 0.00 | E50: 0.00 | F50: 0.00 | G50: 0.00 | H50: 0.00 | I50: 0.00 | J50: 0.00 | K50: 0 | L50: 0.00 | M50: 0 | N50: 0.00 | O50: 1,419.08 | P50: 4,454,155.00 | Q50: 0.00 | R50: 0.00 | S50: 0.00 | T50: 0.00 | U50: 0.00 | V50: 0.00 | W50: 0.00 | X50: 348,867.00 | Y50: 0.00
A51: 41 | B51: ул. 15 лет Октября, д. 54/62 | C51: 2,546,736.00 | D51: 468,107.00 | E51: 468,107.00 | F51: 0.00 | G51: 0.00 | H51: 0.00 | I51: 0.00 | J51: 0.00 | K51: 0 | L51: 0.00 | M51: 0 | N51: 0.00 | O51: 603.31 | P51: 1,893,647.00 | Q51: 0.00 | R51: 0.00 | S51: 0.00 | T51: 0.00 | U51: 0.00 | V51: 0.00 | W51: 0.00 | X51: 184,982.00 | Y51: 0.00
A52: 42 | B52: ул. Вагжанова, д. 10 | C52: 22,225,426.00 | D52: 0.00 | E52: 0.00 | F52: 0.00 | G52: 0.00 | H52: 0.00 | I52: 0.00 | J52: 0.00 | K52: 0 | L52: 0.00 | M52: 0 | N52: 0.00 | O52: 4,550.00 | P52: 20,611,086.00 | Q52: 0.00 | R52: 0.00 | S52: 0.00 | T52: 0.00 | U52: 0.00 | V52: 0.00 | W52: 0.00 | X52: 1,614,340.00 | Y52: 0.00
A53: 43 | B53: ул. Инициативная, д. 9/9 | C53: 1,661,291.00 | D53: 0.00 | E53: 0.00 | F53: 0.00 | G53: 0.00 | H53: 0.00 | I53: 0.00 | J53: 0.00 | K53: 0 | L53: 0.00 | M53: 0 | N53: 0.00 | O53: 340.10 | P53: 1,540,623.00 | Q53: 0.00 | R53: 0.00 | S53: 0.00 | T53: 0.00 | U53: 0.00 | V53: 0.00 | W53: 0.00 | X53: 120,668.00 | Y53: 0.00
A54: 44 | B54: ул. Маршала Буденного, д. 13 | C54: 1,168,532.00 | D54: 1,083,656.00 | E54: 0.00 | F54: 0.00 | G54: 0.00 | H54: 541,828.00 | I54: 541,828.00 | J54: 0.00 | K54: 0 | L54: 0.00 | M54: 0 | N54: 0.00 | O54: 0.00 | P54: 0.00 | Q54: 0.00 | R54: 0.00 | S54: 0.00 | T54: 0.00 | U54: 0.00 | V54: 0.00 | W54: 0.00 | X54: 84,876.00 | Y54: 0.00
A55: 45 | B55: пр-т Чайковского, д. 37 | C55: 15,853,359.00 | D55: 14,701,853.00 | E55: 0.00 | F55: 0.00 | G55: 0.00 | H55: 9,006,638.00 | I55: 0.00 | J55: 5,695,215.00 | K55: 0 | L55: 0.00 | M55: 0 | N55: 0.00 | O55: 0.00 | P55: 0.00 | Q55: 0.00 | R55: 0.00 | S55: 0.00 | T55: 0.00 | U55: 0.00 | V55: 0.00 | W55: 0.00 | X55: 1,151,506.00 | Y55: 0.00
A56: 46 | B56: ул. Благоева, д. 3, корп. 2 | C56: 2,165,572.00 | D56: 0.00 | E56: 0.00 | F56: 0.00 | G56: 0.00 | H56: 0.00 | I56: 0.00 | J56: 0.00 | K56: 0 | L56: 0.00 | M56: 0 | N56: 0.00 | O56: 797.00 | P56: 2,008,276.00 | Q56: 0.00 | R56: 0.00 | S56: 0.00 | T56: 0.00 | U56: 0.00 | V56: 0.00 | W56: 0.00 | X56: 157,296.00 | Y56: 0.00
A57: 47 | B57: ул. Склизкова, д. 29 | C57: 718,972.00 | D57: 666,749.00 | E57: 384,210.00 | F57: 0.00 | G57: 0.00 | H57: 0.00 | I57: 0.00 | J57: 282,539.00 | K57: 0 | L57: 0.00 | M57: 0 | N57: 0.00 | O57: 0.00 | P57: 0.00 | Q57: 0.00 | R57: 0.00 | S57: 0.00 | T57: 0.00 | U57: 0.00 | V57: 0.00 | W57: 0.00 | X57: 52,223.00 | Y57: 0.00
A58: 48 | B58: ул. Софьи Перовской, д. 26 | C58: 2,538,452.00 | D58: 0.00 | E58: 0.00 | F58: 0.00 | G58: 0.00 | H58: 0.00 | I58: 0.00 | J58: 0.00 | K58: 0 | L58: 0.00 | M58: 0 | N58: 0.00 | O58: 750.00 | P58: 2,354,072.00 | Q58: 0.00 | R58: 0.00 | S58: 0.00 | T58: 0.00 | U58: 0.00 | V58: 0.00 | W58: 0.00 | X58: 184,380.00 | Y58: 0.00
A59: 49 | B59: ул. Ротмистрова, д. 20 | C59: 814,934.00 | D59: 755,741.00 | E59: 0.00 | F59: 544,390.00 | G59: 0.00 | H59: 0.00 | I59: 0.00 | J59: 211,351.00 | K59: 0 | L59: 0.00 | M59: 0 | N59: 0.00 | O59: 0.00 | P59: 0.00 | Q59: 0.00 | R59: 0.00 | S59: 0.00 | T59: 0.00 | U59: 0.00 | V59: 0.00 | W59: 0.00 | X59: 59,193.00 | Y59: 0.00
A60: 50 | B60: ул. Железнодорожников, д. 28 | C60: 495,540.00 | D60: 191,554.00 | E60: 0.00 | F60: 0.00 | G60: 0.00 | H60: 191,554.00 | I60: 0.00 | J60: 0.00 | K60: 0 | L60: 0.00 | M60: 0 | N60: 0.00 | O60: 0.00 | P60: 0.00 | Q60: 0.00 | R60: 0.00 | S60: 108.60 | T60: 267,993.00 | U60: 0.00 | V60: 0.00 | W60: 0.00 | X60: 35,993.00 | Y60: 0.00
A61: 51 | B61: пр-т Ленина, д. 42 | C61: 2,581,108.00 | D61: 2,393,630.00 | E61: 2,393,630.00 | F61: 0.00 | G61: 0.00 | H61: 0.00 | I61: 0.00 | J61: 0.00 | K61: 0 | L61: 0.00 | M61: 0 | N61: 0.00 | O61: 0.00 | P61: 0.00 | Q61: 0.00 | R61: 0.00 | S61: 0.00 | T61: 0.00 | U61: 0.00 | V61: 0.00 | W61: 0.00 | X61: 187,478.00 | Y61: 0.00
A62: 52 | B62: ул. Можайского, д. 61б | C62: 16,830,648.67 | D62: 0.00 | E62: 0.00 | F62: 0.00 | G62: 0.00 | H62: 0.00 | I62: 0.00 | J62: 0.00 | K62: 0 | L62: 0.00 | M62: 0 | N62: 0.00 | O62: 0.00 | P62: 0.00 | Q62: 0.00 | R62: 0.00 | S62: 1,140.00 | T62: 16,402,646.67 | U62: 0.00 | V62: 0.00 | W62: 0.00 | X62: 428,002.00 | Y62: 0.00
A63: 53 | B63: ул. Лизы Чайкиной, д. 25/2б | C63: 2,869,710.00 | D63: 0.00 | E63: 0.00 | F63: 0.00 | G63: 0.00 | H63: 0.00 | I63: 0.00 | J63: 0.00 | K63: 0 | L63: 0.00 | M63: 0 | N63: 0.00 | O63: 0.00 | P63: 0.00 | Q63: 0.00 | R63: 0.00 | S63: 1,078.44 | T63: 2,661,269.00 | U63: 0.00 | V63: 0.00 | W63: 0.00 | X63: 208,441.00 | Y63: 0.00
A64: 54 | B64: ул. Дарвина, д. 2 | C64: 13,361,240.00 | D64: 0.00 | E64: 0.00 | F64: 0.00 | G64: 0.00 | H64: 0.00 | I64: 0.00 | J64: 0.00 | K64: 0 | L64: 0.00 | M64: 0 | N64: 0.00 | O64: 0.00 | P64: 0.00 | Q64: 0.00 | R64: 0.00 | S64: 2,440.00 | T64: 12,207,429.00 | U64: 0.00 | V64: 0.00 | W64: 0.00 | X64: 1,153,811.00 | Y64: 0.00
A65: 55 | B65: наб. Афанасия Никитина, д. 148 | C65: 5,133,035.00 | D65: 0.00 | E65: 0.00 | F65: 0.00 | G65: 0.00 | H65: 0.00 | I65: 0.00 | J65: 0.00 | K65: 0 | L65: 0.00 | M65: 0 | N65: 0.00 | O65: 0.00 | P65: 0.00 | Q65: 0.00 | R65: 0.00 | S65: 1,929.00 | T65: 4,760,198.00 | U65: 0.00 | V65: 0.00 | W65: 0.00 | X65: 372,837.00 | Y65: 0.00
A66: 56 | B66: пр-т Ленина, д. 14, корп. 2 | C66: 3,697,990.00 | D66: 3,429,388.00 | E66: 0.00 | F66: 0.00 | G66: 0.00 | H66: 1,714,694.00 | I66: 1,714,694.00 | J66: 0.00 | K66: 0 | L66: 0.00 | M66: 0 | N66: 0.00 | O66: 0.00 | P66: 0.00 | Q66: 0.00 | R66: 0.00 | S66: 0.00 | T66: 0.00 | U66: 0.00 | V66: 0.00 | W66: 0.00 | X66: 268,602.00 | Y66: 0.00
A67: 57 | B67: ул. Фадеева, д. 36, корп. 1 | C67: 3,744,342.00 | D67: 3,472,372.00 | E67: 0.00 | F67: 0.00 | G67: 0.00 | H67: 1,736,186.00 | I67: 1,736,186.00 | J67: 0.00 | K67: 0 | L67: 0.00 | M67: 0 | N67: 0.00 | O67: 0.00 | P67: 0.00 | Q67: 0.00 | R67: 0.00 | S67: 0.00 | T67: 0.00 | U67: 0.00 | V67: 0.00 | W67: 0.00 | X67: 271,970.00 | Y67: 0.00
A68: 58 | B68: ул. 15 лет Октября, д. 60 | C68: 1,180,385.00 | D68: 0.00 | E68: 0.00 | F68: 0.00 | G68: 0.00 | H68: 0.00 | I68: 0.00 | J68: 0.00 | K68: 0 | L68: 0.00 | M68: 0 | N68: 0.00 | O68: 0.00 | P68: 0.00 | Q68: 0.00 | R68: 0.00 | S68: 443.59 | T68: 1,094,648.00 | U68: 0.00 | V68: 0.00 | W68: 0.00 | X68: 85,737.00 | Y68: 0.00
A69: 59 | B69: ул. Кирова, д. 7а | C69: 3,465,934.00 | D69: 3,214,186.00 | E69: 1,486,017.00 | F69: 0.00 | G69: 0.00 | H69: 1,728,169.00 | I69: 0.00 | J69: 0.00 | K69: 0 | L69: 0.00 | M69: 0 | N69: 0.00 | O69: 0.00 | P69: 0.00 | Q69: 0.00 | R69: 0.00 | S69: 0.00 | T69: 0.00 | U69: 0.00 | V69: 0.00 | W69: 0.00 | X69: 251,748.00 | Y69: 0.00
A70: 60 | B70: пер. Партизанский, д. 22/8 | C70: 1,532,993.00 | D70: 0.00 | E70: 0.00 | F70: 0.00 | G70: 0.00 | H70: 0.00 | I70: 0.00 | J70: 0.00 | K70: 0 | L70: 0.00 | M70: 0 | N70: 0.00 | O70: 0.00 | P70: 0.00 | Q70: 0.00 | R70: 0.00 | S70: 576.10 | T70: 1,421,644.00 | U70: 0.00 | V70: 0.00 | W70: 0.00 | X70: 111,349.00 | Y70: 0.00
A71: 61 | B71: пр-т Волоколамский, д. 5 | C71: 5,074,174.00 | D71: 0.00 | E71: 0.00 | F71: 0.00 | G71: 0.00 | H71: 0.00 | I71: 0.00 | J71: 0.00 | K71: 0 | L71: 0.00 | M71: 0 | N71: 0.00 | O71: 0.00 | P71: 0.00 | Q71: 0.00 | R71: 0.00 | S71: 1,906.88 | T71: 4,705,612.00 | U71: 0.00 | V71: 0.00 | W71: 0.00 | X71: 368,562.00 | Y71: 0.00
A72: 62 | B72: ул. Ипподромная, д. 24 | C72: 4,291,978.00 | D72: 0.00 | E72: 0.00 | F72: 0.00 | G72: 0.00 | H72: 0.00 | I72: 0.00 | J72: 0.00 | K72: 0 | L72: 0.00 | M72: 0 | N72: 0.00 | O72: 0.00 | P72: 0.00 | Q72: 0.00 | R72: 0.00 | S72: 1,612.93 | T72: 3,980,231.00 | U72: 0.00 | V72: 0.00 | W72: 0.00 | X72: 311,747.00 | Y72: 0.00
A73: 63 | B73: ул. 15 лет Октября, д. 47 | C73: 6,399,781.03 | D73: 1,851,675.63 | E73: 0.00 | F73: 0.00 | G73: 0.00 | H73: 1,851,675.63 | I73: 0.00 | J73: 0.00 | K73: 0 | L73: 0.00 | M73: 0 | N73: 0.00 | O73: 0.00 | P73: 0.00 | Q73: 0.00 | R73: 0.00 | S73: 1,654.68 | T73: 4,083,258.00 | U73: 0.00 | V73: 0.00 | W73: 0.00 | X73: 464,847.40 | Y73: 0.00
A74: 64 | B74: пос. Химинститута, д. 6 | C74: =D74+N74+P74+R74+T74+V74+X74 -> 4,845,784.00 | D74: =SUM(E74:J74) -> 4,493,811.00 | E74: 0.00 | F74: 2,784,320.00 | G74: 0.00 | H74: 0.00 | I74: 1,709,491.00 | J74: 0.00 | K74: 0 | L74: 0.00 | M74: 0 | N74: 0.00 | O74: 0.00 | P74: 0.00 | Q74: 0.00 | R74: 0.00 | S74: 0.00 | T74: 0.00 | U74: 0.00 | V74: 0.00 | W74: 0.00 | X74: 351,973.00 | Y74: 0.00
A75: 65 | B75: ул. Склизкова, д. 103 | C75: 8,154,102.00 | D75: 0.00 | E75: 0.00 | F75: 0.00 | G75: 0.00 | H75: 0.00 | I75: 0.00 | J75: 0.00 | K75: 0 | L75: 0.00 | M75: 0 | N75: 0.00 | O75: 0.00 | P75: 0.00 | Q75: 0.00 | R75: 0.00 | S75: 3,064.32 | T75: 7,561,830.00 | U75: 0.00 | V75: 0.00 | W75: 0.00 | X75: 592,272.00 | Y75: 0.00
A76: 66 | B76: пер. Спортивный, д. 3а | C76: 2,022,347.00 | D76: 0.00 | E76: 0.00 | F76: 0.00 | G76: 0.00 | H76: 0.00 | I76: 0.00 | J76: 0.00 | K76: 0 | L76: 0.00 | M76: 0 | N76: 0.00 | O76: 0.00 | P76: 0.00 | Q76: 0.00 | R76: 0.00 | S76: 760.00 | T76: 1,875,454.00 | U76: 0.00 | V76: 0.00 | W76: 0.00 | X76: 146,893.00 | Y76: 0.00
A77: 67 | B77: б-р Профсоюзов, д. 18, корп. 2 | C77: 2,589,668.00 | D77: 0.00 | E77: 0.00 | F77: 0.00 | G77: 0.00 | H77: 0.00 | I77: 0.00 | J77: 0.00 | K77: 0 | L77: 0.00 | M77: 0 | N77: 0.00 | O77: 0.00 | P77: 0.00 | Q77: 0.00 | R77: 0.00 | S77: 973.20 | T77: 2,401,568.00 | U77: 0.00 | V77: 0.00 | W77: 0.00 | X77: 188,100.00 | Y77: 0.00
A78: 68 | B78: ул. Горького, д. 19 | C78: 1,047,584.00 | D78: 971,493.00 | E78: 0.00 | F78: 0.00 | G78: 0.00 | H78: 0.00 | I78: 0.00 | J78: 971,493.00 | K78: 0 | L78: 0.00 | M78: 0 | N78: 0.00 | O78: 0.00 | P78: 0.00 | Q78: 0.00 | R78: 0.00 | S78: 0.00 | T78: 0.00 | U78: 0.00 | V78: 0.00 | W78: 0.00 | X78: 76,091.00 | Y78: 0.00
A79: 69 | B79: пр-т Ленина, д. 27 | C79: 3,117,167.00 | D79: 2,890,752.00 | E79: 0.00 | F79: 0.00 | G79: 0.00 | H79: 0.00 | I79: 0.00 | J79: 2,890,752.00 | K79: 0 | L79: 0.00 | M79: 0 | N79: 0.00 | O79: 0.00 | P79: 0.00 | Q79: 0.00 | R79: 0.00 | S79: 0.00 | T79: 0.00 | U79: 0.00 | V79: 0.00 | W79: 0.00 | X79: 226,415.00 | Y79: 0.00
A80: 70 | B80: ул. 15 лет Октября, д. 48/15 | C80: 7,217,604.00 | D80: 6,693,354.00 | E80: 0.00 | F80: 0.00 | G80: 0.00 | H80: 2,542,744.00 | I80: 2,542,744.00 | J80: 1,607,866.00 | K80: 0 | L80: 0.00 | M80: 0 | N80: 0.00 | O80: 0.00 | P80: 0.00 | Q80: 0.00 | R80: 0.00 | S80: 0.00 | T80: 0.00 | U80: 0.00 | V80: 0.00 | W80: 0.00 | X80: 524,250.00 | Y80: 0.00
A81: 71 | B81: ул. Ржевская, д. 11 | C81: 2,672,049.00 | D81: 0.00 | E81: 0.00 | F81: 0.00 | G81: 0.00 | H81: 0.00 | I81: 0.00 | J81: 0.00 | K81: 0 | L81: 0.00 | M81: 0 | N81: 0.00 | O81: 983.40 | P81: 2,477,965.00 | Q81: 0.00 | R81: 0.00 | S81: 0.00 | T81: 0.00 | U81: 0.00 | V81: 0.00 | W81: 0.00 | X81: 194,084.00 | Y81: 0.00
A82: 72 | B82: наб. Афанасия Никитина, д. 74 | C82: 5,055,867.00 | D82: 0.00 | E82: 0.00 | F82: 0.00 | G82: 0.00 | H82: 0.00 | I82: 0.00 | J82: 0.00 | K82: 0 | L82: 0.00 | M82: 0 | N82: 0.00 | O82: 0.00 | P82: 0.00 | Q82: 0.00 | R82: 0.00 | S82: 1,900.00 | T82: 4,688,635.00 | U82: 0.00 | V82: 0.00 | W82: 0.00 | X82: 367,232.00 | Y82: 0.00
A83: 73 | B83: ул. Вокзальная, д. 5 | C83: 4,027,441.00 | D83: 3,734,909.00 | E83: 1,290,503.00 | F83: 2,444,406.00 | G83: 0.00 | H83: 0.00 | I83: 0.00 | J83: 0.00 | K83: 0 | L83: 0.00 | M83: 0 | N83: 0.00 | O83: 0.00 | P83: 0.00 | Q83: 0.00 | R83: 0.00 | S83: 0.00 | T83: 0.00 | U83: 0.00 | V83: 0.00 | W83: 0.00 | X83: 292,532.00 | Y83: 0.00
A84: 74 | B84: ул. Карла Маркса, д. 5 | C84: 26,812,058.00 | D84: 0.00 | E84: 0.00 | F84: 0.00 | G84: 0.00 | H84: 0.00 | I84: 0.00 | J84: 0.00 | K84: 0 | L84: 0.00 | M84: 0 | N84: 0.00 | O84: 0.00 | P84: 0.00 | Q84: 0.00 | R84: 0.00 | S84: 10,076.00 | T84: 24,864,569.00 | U84: 0.00 | V84: 0.00 | W84: 0.00 | X84: 1,947,489.00 | Y84: 0.00
A85: 75 | B85: ул. Советская, д. 64 | C85: 15,206,099.00 | D85: 0.00 | E85: 0.00 | F85: 0.00 | G85: 0.00 | H85: 0.00 | I85: 0.00 | J85: 0.00 | K85: 0 | L85: 0.00 | M85: 0 | N85: 0.00 | O85: 3,113.00 | P85: 14,101,607.00 | Q85: 0.00 | R85: 0.00 | S85: 0.00 | T85: 0.00 | U85: 0.00 | V85: 0.00 | W85: 0.00 | X85: 1,104,492.00 | Y85: 0.00
A86: 76 | B86: пер. Перекопский, д. 15а | C86: 2,133,762.00 | D86: 0.00 | E86: 0.00 | F86: 0.00 | G86: 0.00 | H86: 0.00 | I86: 0.00 | J86: 0.00 | K86: 0 | L86: 0.00 | M86: 0 | N86: 0.00 | O86: 0.00 | P86: 0.00 | Q86: 0.00 | R86: 0.00 | S86: 801.87 | T86: 1,978,777.00 | U86: 0.00 | V86: 0.00 | W86: 0.00 | X86: 154,985.00 | Y86: 0.00
A87: 77 | B87: наб. реки Лазури, д. 10 | C87: 5,414,970.00 | D87: 5,021,655.00 | E87: 0.00 | F87: 1,919,464.00 | G87: 0.00 | H87: 1,178,494.00 | I87: 1,178,494.00 | J87: 745,203.00 | K87: 0 | L87: 0.00 | M87: 0 | N87: 0.00 | O87: 0.00 | P87: 0.00 | Q87: 0.00 | R87: 0.00 | S87: 0.00 | T87: 0.00 | U87: 0.00 | V87: 0.00 | W87: 0.00 | X87: 393,315.00 | Y87: 0.00
A88: 78 | B88: ул. Ипподромная, д. 21 | C88: 1,330,427.00 | D88: 1,233,792.00 | E88: 0.00 | F88: 888,749.00 | G88: 0.00 | H88: 0.00 | I88: 0.00 | J88: 345,043.00 | K88: 0 | L88: 0.00 | M88: 0 | N88: 0.00 | O88: 0.00 | P88: 0.00 | Q88: 0.00 | R88: 0.00 | S88: 0.00 | T88: 0.00 | U88: 0.00 | V88: 0.00 | W88: 0.00 | X88: 96,635.00 | Y88: 0.00
A89: 79 | B89: ул. Андрея Дементьева, д. 37 | C89: =D89+N89+P89+R89+T89+V89+X89 -> 896,482.00 | D89: =SUM(E89:J89) -> 0.00 | E89: 0.00 | F89: 0.00 | G89: 0.00 | H89: 0.00 | I89: 0.00 | J89: 0.00 | K89: 0 | L89: 0.00 | M89: 0 | N89: 0.00 | O89: 536.00 | P89: 896482.00 | Q89: 0.00 | R89: 0.00 | S89: 0.00 | T89: 0.00 | U89: 0.00 | V89: 0.00 | W89: 0.00 | X89: 0.00 | Y89: 0.00
A90: 80 | B90: ул. Садовая (п. Сахарово), д. 4 | C90: 444,035.39 | D90: 444,035.39 | E90: 0.00 | F90: 0.00 | G90: 0.00 | H90: 176807.53 | I90: 267227.86 | J90: 0.00 | K90: 0 | L90: 0.00 | M90: 0 | N90: 0.00 | O90: 0.00 | P90: 0.00 | Q90: 0.00 | R90: 0.00 | S90: 0.00 | T90: 0.00 | U90: 0.00 | V90: 0.00 | W90: 0.00 | X90: 0.00 | Y90: 0.00
A91: 81 | B91: ул. Хромова, д. 9 | C91: 169,435.00 | D91: 169,435.00 | E91: 0.00 | F91: 0.00 | G91: 0.00 | H91: 0.00 | I91: 169435.00 | J91: 0.00 | K91: 0 | L91: 0.00 | M91: 0 | N91: 0.00 | O91: 0.00 | P91: 0.00 | Q91: 0.00 | R91: 0.00 | S91: 0.00 | T91: 0.00 | U91: 0.00 | V91: 0.00 | W91: 0.00 | X91: 0.00 | Y91: 0.00
A92: 82 | B92: ул. Пржевальского, д. 55 А | C92: 922,493.00 | D92: 922,493.00 | E92: 0.00 | F92: 0.00 | G92: 0.00 | H92: 780492.00 | I92: 142001.00 | J92: 0.00 | K92: 0 | L92: 0.00 | M92: 0 | N92: 0.00 | O92: 0.00 | P92: 0.00 | Q92: 0.00 | R92: 0.00 | S92: 0.00 | T92: 0.00 | U92: 0.00 | V92: 0.00 | W92: 0.00 | X92: 0.00 | Y92: 0.00
A93: 83 | B93: ул. Маршала Василевского, д. 22 | C93: 143,313.00 | D93: 143,313.00 | E93: 0.00 | F93: 0.00 | G93: 0.00 | H93: 93937.00 | I93: 0.00 | J93: 49,376.00 | K93: 0 | L93: 0.00 | M93: 0 | N93: 0.00 | O93: 0.00 | P93: 0.00 | Q93: 0.00 | R93: 0.00 | S93: 0.00 | T93: 0.00 | U93: 0.00 | V93: 0.00 | W93: 0.00 | X93: 0.00 | Y93: 0.00
A94: 84 | B94: ул. Садовая (п. Сахарово), д. 25 | C94: 792,914.00 | D94: 0.00 | E94: 0.00 | F94: 0.00 | G94: 0.00 | H94: 0.00 | I94: 0.00 | J94: 0.00 | K94: 0 | L94: 0.00 | M94: 0 | N94: 0.00 | O94: 497.00 | P94: 682578.00 | Q94: 0.00 | R94: 0.00 | S94: 680.00 | T94: 110336.00 | U94: 0.00 | V94: 0.00 | W94: 0.00 | X94: 0.00 | Y94: 0.00
A95: 85 | B95: ул. Хрустальная, д. 40 | C95: =D95+N95+P95+R95+T95+V95+X95 -> 1,084,011.00 | D95: =SUM(E95:J95) -> 0.00 | E95: 0.00 | F95: 0.00 | G95: 0.00 | H95: 0.00 | I95: 0.00 | J95: 0.00 | K95: 0 | L95: 0.00 | M95: 0 | N95: 0.00 | O95: 1064.00 | P95: 1084011.00 | Q95: 0.00 | R95: 0.00 | S95: 0.00 | T95: 0.00 | U95: 0.00 | V95: 0.00 | W95: 0.00 | X95: 0.00 | Y95: 0.00
B96: Итого по МО город Вышний Волочек | C96: =SUM(C97:C130) -> 77,767,080.44 | D96: =SUM(D97:D130) -> 979,374.29 | E96: 784,303.03 | F96: 0.00 | G96: 0.00 | H96: 0.00 | I96: 0.00 | J96: 195,071.26 | K96: 0 | L96: 0.00 | M96: 0 | N96: 0.00 | O96: 15,129.08 | P96: 62,766,193.91 | Q96: 0.00 | R96: 0.00 | S96: 2,912.80 | T96: 8,267,414.24 | U96: 0.00 | V96: 0.00 | W96: 0.00 | X96: 5,754,098.00 | Y96: 0.00
A97: 86 | B97: г. Вышний Волочек, ул. Двор фабрики «Пролетарский Авангард», д. 43 | C97: =D97+N97+P97+R97+T97+V97+X97 -> 1,479,441.23 | D97: =SUM(E97:J97) -> 0.00 | E97: 0.00 | F97: 0.00 | G97: 0.00 | H97: 0.00 | I97: 0.00 | J97: 0.00 | K97: 0 | L97: 0.00 | M97: 0 | N97: 0.00 | O97: 347.00 | P97: 1,371,982.27 | Q97: 0.00 | R97: 0.00 | S97: 0.00 | T97: 0.00 | U97: 0.00 | V97: 0.00 | W97: 0.00 | X97: 107,458.96 | Y97: 0.00
A98: 87 | B98: г. Вышний Волочек, ул. Красноармейская, д. 11 | C98: 1,517,751.23 | D98: 0.00 | E98: 0.00 | F98: 0.00 | G98: 0.00 | H98: 0.00 | I98: 0.00 | J98: 0.00 | K98: 0 | L98: 0.00 | M98: 0 | N98: 0.00 | O98: 420.00 | P98: 1,407,509.63 | Q98: 0.00 | R98: 0.00 | S98: 0.00 | T98: 0.00 | U98: 0.00 | V98: 0.00 | W98: 0.00 | X98: 110,241.60 | Y98: 0.00
A99: 88 | B99: г. Вышний Волочек, наб. Валентины Терешковой, д. 41 | C99: 1,534,866.98 | D99: 0.00 | E99: 0.00 | F99: 0.00 | G99: 0.00 | H99: 0.00 | I99: 0.00 | J99: 0.00 | K99: 0 | L99: 0.00 | M99: 0 | N99: 0.00 | O99: 360.00 | P99: 1,423,382.18 | Q99: 0.00 | R99: 0.00 | S99: 0.00 | T99: 0.00 | U99: 0.00 | V99: 0.00 | W99: 0.00 | X99: 111,484.80 | Y99: 0.00
A100: 89 | B100: г. Вышний Волочек, пр-т Казанский, д. 106/112 | C100: 4,303,305.09 | D100: 0.00 | E100: 0.00 | F100: 0.00 | G100: 0.00 | H100: 0.00 | I100: 0.00 | J100: 0.00 | K100: 0 | L100: 0.00 | M100: 0 | N100: 0.00 | O100: 1,050.00 | P100: 4,045,173.09 | Q100: 0.00 | R100: 0.00 | S100: 0.00 | T100: 0.00 | U100: 0.00 | V100: 0.00 | W100: 0.00 | X100: 258,132.00 | Y100: 0.00
A101: 90 | B101: г. Вышний Волочек, Ванчакова линия, д. 5 | C101: 1,591,955.51 | D101: 0.00 | E101: 0.00 | F101: 0.00 | G101: 0.00 | H101: 0.00 | I101: 0.00 | J101: 0.00 | K101: 0 | L101: 0.00 | M101: 0 | N101: 0.00 | O101: 373.39 | P101: 1,476,324.09 | Q101: 0.00 | R101: 0.00 | S101: 0.00 | T101: 0.00 | U101: 0.00 | V101: 0.00 | W101: 0.00 | X101: 115,631.42 | Y101: 0.00
A102: 91 | B102: г. Вышний Волочек, ул. Южная, д. 6 | C102: 1,908,022.84 | D102: 0.00 | E102: 0.00 | F102: 0.00 | G102: 0.00 | H102: 0.00 | I102: 0.00 | J102: 0.00 | K102: 0 | L102: 0.00 | M102: 0 | N102: 0.00 | O102: 0.00 | P102: 0.00 | Q102: 0.00 | R102: 0.00 | S102: 603.40 | T102: 1,769,433.93 | U102: 0.00 | V102: 0.00 | W102: 0.00 | X102: 138,588.91 | Y102: 0.00
A103: 92 | B103: пос. Газовый, д. 1 | C103: 1,153,472.00 | D103: 0.00 | E103: 0.00 | F103: 0.00 | G103: 0.00 | H103: 0.00 | I103: 0.00 | J103: 0.00 | K103: 0 | L103: 0.00 | M103: 0 | N103: 0.00 | O103: 340.80 | P103: 1,069,690.00 | Q103: 0.00 | R103: 0.00 | S103: 0.00 | T103: 0.00 | U103: 0.00 | V103: 0.00 | W103: 0.00 | X103: 83,782.00 | Y103: 0.00
A104: 93 | B104: г. Вышний Волочек, ул. Б. Садовая, д. 146/1 | C104: 2,132,299.00 | D104: 0.00 | E104: 0.00 | F104: 0.00 | G104: 0.00 | H104: 0.00 | I104: 0.00 | J104: 0.00 | K104: 0 | L104: 0.00 | M104: 0 | N104: 0.00 | O104: 630.00 | P104: 1,977,420.00 | Q104: 0.00 | R104: 0.00 | S104: 0.00 | T104: 0.00 | U104: 0.00 | V104: 0.00 | W104: 0.00 | X104: 154,879.00 | Y104: 0.00
A105: 94 | B105: г. Вышний Волочек, пр-т Казанский, д. 86 | C105: 6,875,521.47 | D105: 0.00 | E105: 0.00 | F105: 0.00 | G105: 0.00 | H105: 0.00 | I105: 0.00 | J105: 0.00 | K105: 0 | L105: 0.00 | M105: 0 | N105: 0.00 | O105: 1,106.78 | P105: 6,374,004.57 | Q105: 0.00 | R105: 0.00 | S105: 0.00 | T105: 0.00 | U105: 0.00 | V105: 0.00 | W105: 0.00 | X105: 501,516.90 | Y105: 0.00
A106: 95 | B106: г. Вышний Волочек, ул. Венецианова, д. 31 | C106: 740,536.55 | D106: 0.00 | E106: 0.00 | F106: 0.00 | G106: 0.00 | H106: 0.00 | I106: 0.00 | J106: 0.00 | K106: 0 | L106: 0.00 | M106: 0 | N106: 0.00 | O106: 202.76 | P106: 686,669.69 | Q106: 0.00 | R106: 0.00 | S106: 0.00 | T106: 0.00 | U106: 0.00 | V106: 0.00 | W106: 0.00 | X106: 53,866.86 | Y106: 0.00
A107: 96 | B107: г. Вышний Волочек, ул. Екатерининская, д. 4 – 6 | C107: 117,262.00 | D107: 0.00 | E107: 0.00 | F107: 0.00 | G107: 0.00 | H107: 0.00 | I107: 0.00 | J107: 0.00 | K107: 0 | L107: 0.00 | M107: 0 | N107: 0.00 | O107: 0.00 | P107: 0.00 | Q107: 0.00 | R107: 0.00 | S107: 0.00 | T107: 0.00 | U107: 0.00 | V107: 0.00 | W107: 0.00 | X107: 117,262.00 | Y107: 0.00
A108: 97 | B108: г. Вышний Волочек, ул. Желябова, д. 11а | C108: 2,568,914.00 | D108: 0.00 | E108: 0.00 | F108: 0.00 | G108: 0.00 | H108: 0.00 | I108: 0.00 | J108: 0.00 | K108: 0 | L108: 0.00 | M108: 0 | N108: 0.00 | O108: 759.00 | P108: 2,382,321.00 | Q108: 0.00 | R108: 0.00 | S108: 0.00 | T108: 0.00 | U108: 0.00 | V108: 0.00 | W108: 0.00 | X108: 186,593.00 | Y108: 0.00
A109: 98 | B109: г. Вышний Волочек, ул. Цюрупы, д. 5а | C109: 1,086,458.00 | D109: 0.00 | E109: 0.00 | F109: 0.00 | G109: 0.00 | H109: 0.00 | I109: 0.00 | J109: 0.00 | K109: 0 | L109: 0.00 | M109: 0 | N109: 0.00 | O109: 321.00 | P109: 1,007,543.00 | Q109: 0.00 | R109: 0.00 | S109: 0.00 | T109: 0.00 | U109: 0.00 | V109: 0.00 | W109: 0.00 | X109: 78,915.00 | Y109: 0.00
A110: 99 | B110: г. Вышний Волочек, ул. Московская, д. 41 | C110: 3,316,910.00 | D110: 0.00 | E110: 0.00 | F110: 0.00 | G110: 0.00 | H110: 0.00 | I110: 0.00 | J110: 0.00 | K110: 0 | L110: 0.00 | M110: 0 | N110: 0.00 | O110: 980.00 | P110: 3,075,987.00 | Q110: 0.00 | R110: 0.00 | S110: 0.00 | T110: 0.00 | U110: 0.00 | V110: 0.00 | W110: 0.00 | X110: 240,923.00 | Y110: 0.00
A111: 100 | B111: г. Вышний Волочек, ул. Екатерининская, д. 7/9 | C111: 1,678,763.00 | D111: 0.00 | E111: 0.00 | F111: 0.00 | G111: 0.00 | H111: 0.00 | I111: 0.00 | J111: 0.00 | K111: 0 | L111: 0.00 | M111: 0 | N111: 0.00 | O111: 496.00 | P111: 1,556,826.00 | Q111: 0.00 | R111: 0.00 | S111: 0.00 | T111: 0.00 | U111: 0.00 | V111: 0.00 | W111: 0.00 | X111: 121,937.00 | Y111: 0.00
A112: 101 | B112: г. Вышний Волочек, ул. Цветочная, д. 17 | C112: 1,020,657.34 | D112: 0.00 | E112: 0.00 | F112: 0.00 | G112: 0.00 | H112: 0.00 | I112: 0.00 | J112: 0.00 | K112: 0 | L112: 0.00 | M112: 0 | N112: 0.00 | O112: 277.79 | P112: 946,406.28 | Q112: 0.00 | R112: 0.00 | S112: 0.00 | T112: 0.00 | U112: 0.00 | V112: 0.00 | W112: 0.00 | X112: 74,251.06 | Y112: 0.00
A113: 102 | B113: г. Вышний Волочек, ул. Карла Маркса, д. 68 | C113: 796,854.09 | D113: 0.00 | E113: 0.00 | F113: 0.00 | G113: 0.00 | H113: 0.00 | I113: 0.00 | J113: 0.00 | K113: 0 | L113: 0.00 | M113: 0 | N113: 0.00 | O113: 0.00 | P113: 0.00 | Q113: 0.00 | R113: 0.00 | S113: 252.00 | T113: 738,974.73 | U113: 0.00 | V113: 0.00 | W113: 0.00 | X113: 57,879.36 | Y113: 0.00
A114: 103 | B114: г. Вышний Волочек, ул. Красных Печатников, д. 16 | C114: 60,901.00 | D114: 0.00 | E114: 0.00 | F114: 0.00 | G114: 0.00 | H114: 0.00 | I114: 0.00 | J114: 0.00 | K114: 0 | L114: 0.00 | M114: 0 | N114: 0.00 | O114: 0.00 | P114: 0.00 | Q114: 0.00 | R114: 0.00 | S114: 0.00 | T114: 0.00 | U114: 0.00 | V114: 0.00 | W114: 0.00 | X114: 60,901.00 | Y114: 0.00
A115: 104 | B115: г. Вышний Волочек, ул. Баумана, д. 31 | C115: 4,640,094.01 | D115: 0.00 | E115: 0.00 | F115: 0.00 | G115: 0.00 | H115: 0.00 | I115: 0.00 | J115: 0.00 | K115: 0 | L115: 0.00 | M115: 0 | N115: 0.00 | O115: 0.00 | P115: 0.00 | Q115: 0.00 | R115: 0.00 | S115: 1,467.40 | T115: 4,303,061.58 | U115: 0.00 | V115: 0.00 | W115: 0.00 | X115: 337,032.43 | Y115: 0.00
A116: 105 | B116: г. Вышний Волочек, ул. Урицкого, д. 106 | C116: 2,874,498.88 | D116: 0.00 | E116: 0.00 | F116: 0.00 | G116: 0.00 | H116: 0.00 | I116: 0.00 | J116: 0.00 | K116: 0 | L116: 0.00 | M116: 0 | N116: 0.00 | O116: 747.70 | P116: 2,665,215.29 | Q116: 0.00 | R116: 0.00 | S116: 0.00 | T116: 0.00 | U116: 0.00 | V116: 0.00 | W116: 0.00 | X116: 209,283.59 | Y116: 0.00
A117: 106 | B117: г. Вышний Волочек, ул. Мичурина, д. 2 | C117: 2,255,106.55 | D117: 0.00 | E117: 0.00 | F117: 0.00 | G117: 0.00 | H117: 0.00 | I117: 0.00 | J117: 0.00 | K117: 0 | L117: 0.00 | M117: 0 | N117: 0.00 | O117: 635.20 | P117: 2,091,155.85 | Q117: 0.00 | R117: 0.00 | S117: 0.00 | T117: 0.00 | U117: 0.00 | V117: 0.00 | W117: 0.00 | X117: 163,950.70 | Y117: 0.00
A118: 107 | B118: г. Вышний Волочек, ул. Егорова, д. 2 | C118: 5,842,347.17 | D118: 0.00 | E118: 0.00 | F118: 0.00 | G118: 0.00 | H118: 0.00 | I118: 0.00 | J118: 0.00 | K118: 0 | L118: 0.00 | M118: 0 | N118: 0.00 | O118: 760.28 | P118: 5,417,989.29 | Q118: 0.00 | R118: 0.00 | S118: 0.00 | T118: 0.00 | U118: 0.00 | V118: 0.00 | W118: 0.00 | X118: 424,357.88 | Y118: 0.00
A119: 108 | B119: г. Вышний Волочек, пр-т Казанский, д. 48 | C119: 1,479,354.86 | D119: 0.00 | E119: 0.00 | F119: 0.00 | G119: 0.00 | H119: 0.00 | I119: 0.00 | J119: 0.00 | K119: 0 | L119: 0.00 | M119: 0 | N119: 0.00 | O119: 400.94 | P119: 1,371,726.11 | Q119: 0.00 | R119: 0.00 | S119: 0.00 | T119: 0.00 | U119: 0.00 | V119: 0.00 | W119: 0.00 | X119: 107,628.75 | Y119: 0.00
A120: 109 | B120: г. Вышний Волочек, ул. Крылова, д. 1а/29 | C120: 4,241,749.00 | D120: 0.00 | E120: 0.00 | F120: 0.00 | G120: 0.00 | H120: 0.00 | I120: 0.00 | J120: 0.00 | K120: 0 | L120: 0.00 | M120: 0 | N120: 0.00 | O120: 551.99 | P120: 3,933,650.00 | Q120: 0.00 | R120: 0.00 | S120: 0.00 | T120: 0.00 | U120: 0.00 | V120: 0.00 | W120: 0.00 | X120: 308,099.00 | Y120: 0.00
A121: 110 | B121: г. Вышний Волочек, ш. Московское, д. 111 | C121: 1,837,881.40 | D121: 0.00 | E121: 0.00 | F121: 0.00 | G121: 0.00 | H121: 0.00 | I121: 0.00 | J121: 0.00 | K121: 0 | L121: 0.00 | M121: 0 | N121: 0.00 | O121: 420.00 | P121: 1,703,787.97 | Q121: 0.00 | R121: 0.00 | S121: 0.00 | T121: 0.00 | U121: 0.00 | V121: 0.00 | W121: 0.00 | X121: 134,093.43 | Y121: 0.00
A122: 111 | B122: г. Вышний Волочек, ул. Артюхина, д. 45а | C122: 4,091,607.00 | D122: 0.00 | E122: 0.00 | F122: 0.00 | G122: 0.00 | H122: 0.00 | I122: 0.00 | J122: 0.00 | K122: 0 | L122: 0.00 | M122: 0 | N122: 0.00 | O122: 796.85 | P122: 3,794,414.00 | Q122: 0.00 | R122: 0.00 | S122: 0.00 | T122: 0.00 | U122: 0.00 | V122: 0.00 | W122: 0.00 | X122: 297,193.00 | Y122: 0.00
A123: 112 | B123: г. Вышний Волочек, ул. 9 Января, д. 59/43 | C123: 6,428,277.00 | D123: 0.00 | E123: 0.00 | F123: 0.00 | G123: 0.00 | H123: 0.00 | I123: 0.00 | J123: 0.00 | K123: 0 | L123: 0.00 | M123: 0 | N123: 0.00 | O123: 1,316.00 | P123: 5,961,360.00 | Q123: 0.00 | R123: 0.00 | S123: 0.00 | T123: 0.00 | U123: 0.00 | V123: 0.00 | W123: 0.00 | X123: 466,917.00 | Y123: 0.00
A124: 113 | B124: пос. Красномайский, ул. Железнодорожная, д. 19 | C124: =D124+N124+P124+R124+T124+V124+X124 -> 1,803,468.71 | D124: =SUM(E124:J124) -> 0.00 | E124: 0.00 | F124: 0.00 | G124: 0.00 | H124: 0.00 | I124: 0.00 | J124: 0.00 | K124: 0 | L124: 0.00 | M124: 0 | N124: 0.00 | O124: 423.00 | P124: 1,672,474.07 | Q124: 0.00 | R124: 0.00 | S124: 0.00 | T124: 0.00 | U124: 0.00 | V124: 0.00 | W124: 0.00 | X124: 130,994.64 | Y124: 0.00
A125: 114 | B125: пос. Белый Омут, ул. Советская, д. 1 | C125: 1,569,979.00 | D125: 0.00 | E125: 0.00 | F125: 0.00 | G125: 0.00 | H125: 0.00 | I125: 0.00 | J125: 0.00 | K125: 0 | L125: 0.00 | M125: 0 | N125: 0.00 | O125: 0.00 | P125: 0.00 | Q125: 0.00 | R125: 0.00 | S125: 590.00 | T125: 1,455,944.00 | U125: 0.00 | V125: 0.00 | W125: 0.00 | X125: 114,035.00 | Y125: 0.00
A126: 115 | B126: пос. Пригородный, ул. Мелиораторов, д. 7 | C126: 836,011.03 | D126: 784,303.03 | E126: 784,303.03 | F126: 0.00 | G126: 0.00 | H126: 0.00 | I126: 0.00 | J126: 0.00 | K126: 0 | L126: 0.00 | M126: 0 | N126: 0.00 | O126: 0.00 | P126: 0.00 | Q126: 0.00 | R126: 0.00 | S126: 0.00 | T126: 0.00 | U126: 0.00 | V126: 0.00 | W126: 0.00 | X126: 51,708.00 | Y126: 0.00
A127: 116 | B127: пос. Борисовский, ул. Октябрьская, д. 17 | C127: 1,391,271.96 | D127: 0.00 | E127: 0.00 | F127: 0.00 | G127: 0.00 | H127: 0.00 | I127: 0.00 | J127: 0.00 | K127: 0 | L127: 0.00 | M127: 0 | N127: 0.00 | O127: 385.00 | P127: 1,290,217.16 | Q127: 0.00 | R127: 0.00 | S127: 0.00 | T127: 0.00 | U127: 0.00 | V127: 0.00 | W127: 0.00 | X127: 101,054.80 | Y127: 0.00
A128: 117 | B128: пос. Терелесовский, ул. Рабочая, д. 3 | C128: 3,270,119.38 | D128: 0.00 | E128: 0.00 | F128: 0.00 | G128: 0.00 | H128: 0.00 | I128: 0.00 | J128: 0.00 | K128: 0 | L128: 0.00 | M128: 0 | N128: 0.00 | O128: 767.00 | P128: 3,032,594.82 | Q128: 0.00 | R128: 0.00 | S128: 0.00 | T128: 0.00 | U128: 0.00 | V128: 0.00 | W128: 0.00 | X128: 237,524.56 | Y128: 0.00
A129: 118 | B129: пос. Приозерный, ул. Дорожная, д. 6 | C129: 210,350.00 | D129: 195,071.26 | E129: 0.00 | F129: 0.00 | G129: 0.00 | H129: 0.00 | I129: 0.00 | J129: 195,071.26 | K129: 0 | L129: 0.00 | M129: 0 | N129: 0.00 | O129: 0.00 | P129: 0.00 | Q129: 0.00 | R129: 0.00 | S129: 0.00 | T129: 0.00 | U129: 0.00 | V129: 0.00 | W129: 0.00 | X129: 15,278.74 | Y129: 0.00
A130: 119 | B130: пос. Академический, ул. Октябрьская, д. 1 | C130: 1,111,073.16 | D130: 0.00 | E130: 0.00 | F130: 0.00 | G130: 0.00 | H130: 0.00 | I130: 0.00 | J130: 0.00 | K130: 0 | L130: 0.00 | M130: 0 | N130: 0.00 | O130: 260.60 | P130: 1,030,370.55 | Q130: 0.00 | R130: 0.00 | S130: 0.00 | T130: 0.00 | U130: 0.00 | V130: 0.00 | W130: 0.00 | X130: 80,702.61 | Y130: 0.00
B131: Итого по МО город Торжок | C131: =SUM(C132:C141) -> 17,889,512.89 | D131: 3,069,561.00 | E131: 0.00 | F131: 0.00 | G131: 0.00 | H131: 3,069,561.00 | I131: 0.00 | J131: 0.00 | K131: 0 | L131: 0.00 | M131: 0 | N131: 0.00 | O131: 4,878.00 | P131: 13,610,665.89 | Q131: 0.00 | R131: 0.00 | S131: 0.00 | T131: 0.00 | U131: 0.00 | V131: 0.00 | W131: 0.00 | X131: 1,209,286.00 | Y131: 0.00
A132: 120 | B132: 3-й пер. Бакунина, д. 8 | C132: =D132+N132+P132+R132+T132+V132+X132 -> 1,788,092.36 | D132: =SUM(E132:J132) -> 0.00 | E132: 0.00 | F132: 0.00 | G132: 0.00 | H132: 0.00 | I132: 0.00 | J132: 0.00 | K132: 0 | L132: 0.00 | M132: 0 | N132: 0.00 | O132: 576.00 | P132: 1,708,858.36 | Q132: 0.00 | R132: 0.00 | S132: 0.00 | T132: 0.00 | U132: 0.00 | V132: 0.00 | W132: 0.00 | X132: 79,234.00 | Y132: 0.00
A133: 121 | B133: ул. Красноармейская, д. 42 | C133: =D133+N133+P133+R133+T133+V133+X133 -> 3,746,957.53 | D133: =SUM(E133:J133) -> 0.00 | E133: 0.00 | F133: 0.00 | G133: 0.00 | H133: 0.00 | I133: 0.00 | J133: 0.00 | K133: 0 | L133: 0.00 | M133: 0 | N133: 0.00 | O133: 1,132.00 | P133: 3,514,269.53 | Q133: 0.00 | R133: 0.00 | S133: 0.00 | T133: 0.00 | U133: 0.00 | V133: 0.00 | W133: 0.00 | X133: 232,688.00 | Y133: 0.00
A134: 122 | B134: ш. Калининское, д. 16а | C134: 405,299.00 | D134: 375,860.00 | E134: 0.00 | F134: 0.00 | G134: 0.00 | H134: 375,860.00 | I134: 0.00 | J134: 0.00 | K134: 0 | L134: 0.00 | M134: 0 | N134: 0.00 | O134: 0.00 | P134: 0.00 | Q134: 0.00 | R134: 0.00 | S134: 0.00 | T134: 0.00 | U134: 0.00 | V134: 0.00 | W134: 0.00 | X134: 29,439.00 | Y134: 0.00
A135: 123 | B135: ш. Ленинградское, д. 33 | C135: 2,904,682.00 | D135: 2,693,701.00 | E135: 0.00 | F135: 0.00 | G135: 0.00 | H135: 2,693,701.00 | I135: 0.00 | J135: 0.00 | K135: 0 | L135: 0.00 | M135: 0 | N135: 0.00 | O135: 0.00 | P135: 0.00 | Q135: 0.00 | R135: 0.00 | S135: 0.00 | T135: 0.00 | U135: 0.00 | V135: 0.00 | W135: 0.00 | X135: 210,981.00 | Y135: 0.00
A136: 124 | B136: ул. Студенческая, д. 7 | C136: 1,298,799.00 | D136: 0.00 | E136: 0.00 | F136: 0.00 | G136: 0.00 | H136: 0.00 | I136: 0.00 | J136: 0.00 | K136: 0 | L136: 0.00 | M136: 0 | N136: 0.00 | O136: 478.00 | P136: 1,204,461.00 | Q136: 0.00 | R136: 0.00 | S136: 0.00 | T136: 0.00 | U136: 0.00 | V136: 0.00 | W136: 0.00 | X136: 94,338.00 | Y136: 0.00
A137: 125 | B137: ул. Студенческая, д. 7а | C137: 1,298,799.00 | D137: 0.00 | E137: 0.00 | F137: 0.00 | G137: 0.00 | H137: 0.00 | I137: 0.00 | J137: 0.00 | K137: 0 | L137: 0.00 | M137: 0 | N137: 0.00 | O137: 478.00 | P137: 1,204,461.00 | Q137: 0.00 | R137: 0.00 | S137: 0.00 | T137: 0.00 | U137: 0.00 | V137: 0.00 | W137: 0.00 | X137: 94,338.00 | Y137: 0.00
A138: 126 | B138: ул. Студенческая, д. 13 | C138: 1,252,608.00 | D138: 0.00 | E138: 0.00 | F138: 0.00 | G138: 0.00 | H138: 0.00 | I138: 0.00 | J138: 0.00 | K138: 0 | L138: 0.00 | M138: 0 | N138: 0.00 | O138: 461.00 | P138: 1,161,625.00 | Q138: 0.00 | R138: 0.00 | S138: 0.00 | T138: 0.00 | U138: 0.00 | V138: 0.00 | W138: 0.00 | X138: 90,983.00 | Y138: 0.00
A139: 127 | B139: ул. Студенческая, д. 9 | C139: 1,298,799.00 | D139: 0.00 | E139: 0.00 | F139: 0.00 | G139: 0.00 | H139: 0.00 | I139: 0.00 | J139: 0.00 | K139: 0 | L139: 0.00 | M139: 0 | N139: 0.00 | O139: 478.00 | P139: 1,204,461.00 | Q139: 0.00 | R139: 0.00 | S139: 0.00 | T139: 0.00 | U139: 0.00 | V139: 0.00 | W139: 0.00 | X139: 94,338.00 | Y139: 0.00
A140: 128 | B140: ул. Студенческая, д. 6 | C140: 2,186,115.00 | D140: 0.00 | E140: 0.00 | F140: 0.00 | G140: 0.00 | H140: 0.00 | I140: 0.00 | J140: 0.00 | K140: 0 | L140: 0.00 | M140: 0 | N140: 0.00 | O140: 645.90 | P140: 2,027,327.00 | Q140: 0.00 | R140: 0.00 | S140: 0.00 | T140: 0.00 | U140: 0.00 | V140: 0.00 | W140: 0.00 | X140: 158,788.00 | Y140: 0.00
A141: 129 | B141: ул. М.Горького, д. 40 | C141: 1,709,362.00 | D141: 0.00 | E141: 0.00 | F141: 0.00 | G141: 0.00 | H141: 0.00 | I141: 0.00 | J141: 0.00 | K141: 0 | L141: 0.00 | M141: 0 | N141: 0.00 | O141: 629.10 | P141: 1,585,203.00 | Q141: 0.00 | R141: 0.00 | S141: 0.00 | T141: 0.00 | U141: 0.00 | V141: 0.00 | W141: 0.00 | X141: 124,159.00 | Y141: 0.00
B142: Итого по МО ЗАТО Озерный | C142: =C143+C144+C145 -> 13,178,092.40 | D142: =D143+D144+D145 -> 0.00 | E142: 0.00 | F142: 0.00 | G142: 0.00 | H142: 0.00 | I142: 0.00 | J142: 0.00 | K142: 0 | L142: 0.00 | M142: 0 | N142: 0.00 | O142: 3,262.00 | P142: 12,220,903.92 | Q142: 0.00 | R142: 0.00 | S142: 0.00 | T142: 0.00 | U142: 0.00 | V142: 0.00 | W142: 0.00 | X142: 957,188.48 | Y142: 0.00
A143: 130 | B143: ул. Московская, д. 15 | C143: =D143+N143+P143+R143+T143+V143+X143 -> 4,693,140.30 | D143: =SUM(E143:J143) -> 0.00 | E143: 0.00 | F143: 0.00 | G143: 0.00 | H143: 0.00 | I143: 0.00 | J143: 0.00 | K143: 0 | L143: 0.00 | M143: 0 | N143: 0.00 | O143: 914.00 | P143: 4,352,254.86 | Q143: 0.00 | R143: 0.00 | S143: 0.00 | T143: 0.00 | U143: 0.00 | V143: 0.00 | W143: 0.00 | X143: 340,885.44 | Y143: 0.00
A144: 131 | B144: ул. Труда, д. 2 | C144: 3,541,419.53 | D144: 0.00 | E144: 0.00 | F144: 0.00 | G144: 0.00 | H144: 0.00 | I144: 0.00 | J144: 0.00 | K144: 0 | L144: 0.00 | M144: 0 | N144: 0.00 | O144: 980.00 | P144: 3,284,189.13 | Q144: 0.00 | R144: 0.00 | S144: 0.00 | T144: 0.00 | U144: 0.00 | V144: 0.00 | W144: 0.00 | X144: 257,230.40 | Y144: 0.00
A145: 132 | B145: ул. Труда, д. 3 | C145: 4,943,532.57 | D145: 0.00 | E145: 0.00 | F145: 0.00 | G145: 0.00 | H145: 0.00 | I145: 0.00 | J145: 0.00 | K145: 0 | L145: 0.00 | M145: 0 | N145: 0.00 | O145: 1,368.00 | P145: 4,584,459.93 | Q145: 0.00 | R145: 0.00 | S145: 0.00 | T145: 0.00 | U145: 0.00 | V145: 0.00 | W145: 0.00 | X145: 359,072.64 | Y145: 0.00
B146: Андреапольский муниципальный округ | C146: =C147+C148 -> 3,858,446.00 | D146: =D147+D148 -> 0.00 | E146: 0.00 | F146: 0.00 | G146: 0.00 | H146: 0.00 | I146: 0.00 | J146: 0.00 | K146: 0 | L146: 0.00 | M146: 0 | N146: 0.00 | O146: 1,140.00 | P146: 3,578,189.00 | Q146: 0.00 | R146: 0.00 | S146: 0.00 | T146: 0.00 | U146: 0.00 | V146: 0.00 | W146: 0.00 | X146: 280,257.00 | Y146: 0.00
A147: 133 | B147: г. Андреаполь, ул. Театральная, д. 8 | C147: =D147+N147+P147+R147+T147+V147+X147 -> 1,895,377.00 | D147: =SUM(E147:J147) -> 0.00 | E147: 0.00 | F147: 0.00 | G147: 0.00 | H147: 0.00 | I147: 0.00 | J147: 0.00 | K147: 0 | L147: 0.00 | M147: 0 | N147: 0.00 | O147: 560.00 | P147: 1,757,707.00 | Q147: 0.00 | R147: 0.00 | S147: 0.00 | T147: 0.00 | U147: 0.00 | V147: 0.00 | W147: 0.00 | X147: 137,670.00 | Y147: 0.00
A148: 134 | B148: г. Андреаполь, ул. Театральная, д. 11 | C148: 1,963,069.00 | D148: 0.00 | E148: 0.00 | F148: 0.00 | G148: 0.00 | H148: 0.00 | I148: 0.00 | J148: 0.00 | K148: 0 | L148: 0.00 | M148: 0 | N148: 0.00 | O148: 580.00 | P148: 1,820,482.00 | Q148: 0.00 | R148: 0.00 | S148: 0.00 | T148: 0.00 | U148: 0.00 | V148: 0.00 | W148: 0.00 | X148: 142,587.00 | Y148: 0.00
B149: Бежецкий район | C149: =C150 -> 50,217,234.58 | D149: 5,105,546.14 | E149: 711,408.00 | F149: 1,846,341.47 | G149: 495,704.32 | H149: 515,986.00 | I149: 0.00 | J149: 1,536,106.35 | K149: 0 | L149: 0.00 | M149: =M150 -> 0 | N149: 0.00 | O149: 8,125.40 | P149: 35,032,336.56 | Q149: 0.00 | R149: 0.00 | S149: 2,023.71 | T149: 6,668,438.00 | U149: 0.00 | V149: 0.00 | W149: 0.00 | X149: =X150 -> 3,410,913.88 | Y149: 0.00
B150: Итого по МО городское поселение город Бежецк | C150: =SUM(C151:C168) -> 50,217,234.58 | D150: 5,105,546.14 | E150: 711,408.00 | F150: 1,846,341.47 | G150: 495,704.32 | H150: 515,986.00 | I150: 0.00 | J150: 1,536,106.35 | K150: 0 | L150: 0.00 | M150: 0 | N150: 0.00 | O150: 8,125.40 | P150: 35,032,336.56 | Q150: 0.00 | R150: 0.00 | S150: 2,023.71 | T150: 6,668,438.00 | U150: 0.00 | V150: 0.00 | W150: 0.00 | X150: 3,410,913.88 | Y150: 0.00
A151: 135 | B151: ул. Л. Толстого, д. 5 | C151: =D151+N151+P151+R151+T151+V151+X151 -> 2,715,253.21 | D151: =SUM(E151:J151) -> 2,562,712.82 | E151: 0.00 | F151: 1,846,341.47 | G151: 0.00 | H151: 0.00 | I151: 0.00 | J151: 716,371.35 | K151: 0 | L151: 0.00 | M151: 0 | N151: 0.00 | O151: 0.00 | P151: 0.00 | Q151: 0.00 | R151: 0.00 | S151: 0.00 | T151: 0.00 | U151: 0.00 | V151: 0.00 | W151: 0.00 | X151: 152,540.39 | Y151: 0.00
A152: 136 | B152: ул. Инженерная, д. 11/8 | C152: 3,721,587.00 | D152: 0.00 | E152: 0.00 | F152: 0.00 | G152: 0.00 | H152: 0.00 | I152: 0.00 | J152: 0.00 | K152: 0 | L152: 0.00 | M152: 0 | N152: 0.00 | O152: 0.00 | P152: 0.00 | Q152: 0.00 | R152: 0.00 | S152: 720.00 | T152: 3,451,270.00 | U152: 0.00 | V152: 0.00 | W152: 0.00 | X152: 270,317.00 | Y152: 0.00
A153: 137 | B153: ул. Кашинская, д. 31 | C153: 1,608,909.71 | D153: 0.00 | E153: 0.00 | F153: 0.00 | G153: 0.00 | H153: 0.00 | I153: 0.00 | J153: 0.00 | K153: 0 | L153: 0.00 | M153: 0 | N153: 0.00 | O153: 0.00 | P153: 0.00 | Q153: 0.00 | R153: 0.00 | S153: 604.63 | T153: 1,492,047.00 | U153: 0.00 | V153: 0.00 | W153: 0.00 | X153: 116,862.71 | Y153: 0.00
A154: 138 | B154: ул. Остречинская, д. 4 | C154: 3,430,773.00 | D154: 0.00 | E154: 0.00 | F154: 0.00 | G154: 0.00 | H154: 0.00 | I154: 0.00 | J154: 0.00 | K154: 0 | L154: 0.00 | M154: 0 | N154: 0.00 | O154: 860.00 | P154: 3,181,579.00 | Q154: 0.00 | R154: 0.00 | S154: 0.00 | T154: 0.00 | U154: 0.00 | V154: 0.00 | W154: 0.00 | X154: 249,194.00 | Y154: 0.00
A155: 139 | B155: ул. Песочная, д. 10 | C155: 3,167,481.00 | D155: 0.00 | E155: 0.00 | F155: 0.00 | G155: 0.00 | H155: 0.00 | I155: 0.00 | J155: 0.00 | K155: 0 | L155: 0.00 | M155: 0 | N155: 0.00 | O155: 794.00 | P155: 2,937,412.00 | Q155: 0.00 | R155: 0.00 | S155: 0.00 | T155: 0.00 | U155: 0.00 | V155: 0.00 | W155: 0.00 | X155: 230,069.00 | Y155: 0.00
A156: 140 | B156: пер. Остречинский, д. 17 | C156: 288,691.00 | D156: 267,722.00 | E156: 267,722.00 | F156: 0.00 | G156: 0.00 | H156: 0.00 | I156: 0.00 | J156: 0.00 | K156: 0 | L156: 0.00 | M156: 0 | N156: 0.00 | O156: 0.00 | P156: 0.00 | Q156: 0.00 | R156: 0.00 | S156: 0.00 | T156: 0.00 | U156: 0.00 | V156: 0.00 | W156: 0.00 | X156: 20,969.00 | Y156: 0.00
A157: 141 | B157: ул. Новая, д. 59 | C157: 2,556,724.00 | D157: 0.00 | E157: 0.00 | F157: 0.00 | G157: 0.00 | H157: 0.00 | I157: 0.00 | J157: 0.00 | K157: 0 | L157: 0.00 | M157: 0 | N157: 0.00 | O157: 640.90 | P157: 2,371,017.00 | Q157: 0.00 | R157: 0.00 | S157: 0.00 | T157: 0.00 | U157: 0.00 | V157: 0.00 | W157: 0.00 | X157: 185,707.00 | Y157: 0.00
A158: 142 | B158: пр. Восточный, д. 20 | C158: 3,718,399.32 | D158: 0.00 | E158: 0.00 | F158: 0.00 | G158: 0.00 | H158: 0.00 | I158: 0.00 | J158: 0.00 | K158: 0 | L158: 0.00 | M158: 0 | N158: 0.00 | O158: 932.10 | P158: 3,448,314.02 | Q158: 0.00 | R158: 0.00 | S158: 0.00 | T158: 0.00 | U158: 0.00 | V158: 0.00 | W158: 0.00 | X158: 270,085.30 | Y158: 0.00
A159: 143 | B159: ул. Нечаева, д. 23 | C159: 4,112,925.00 | D159: 0.00 | E159: 0.00 | F159: 0.00 | G159: 0.00 | H159: 0.00 | I159: 0.00 | J159: 0.00 | K159: 0 | L159: 0.00 | M159: 0 | N159: 0.00 | O159: 842.00 | P159: 3,814,183.00 | Q159: 0.00 | R159: 0.00 | S159: 0.00 | T159: 0.00 | U159: 0.00 | V159: 0.00 | W159: 0.00 | X159: 298,742.00 | Y159: 0.00
A160: 144 | B160: ул. Мира, д. 2/50 | C160: 8,606,287.54 | D160: 0.00 | E160: 0.00 | F160: 0.00 | G160: 0.00 | H160: 0.00 | I160: 0.00 | J160: 0.00 | K160: 0 | L160: 0.00 | M160: 0 | N160: 0.00 | O160: 1,716.40 | P160: 8,173,096.54 | Q160: 0.00 | R160: 0.00 | S160: 0.00 | T160: 0.00 | U160: 0.00 | V160: 0.00 | W160: 0.00 | X160: 433,191.00 | Y160: 0.00
A161: 145 | B161: пер. Остречинский, д. 6 | C161: 1,445,225.00 | D161: 0.00 | E161: 0.00 | F161: 0.00 | G161: 0.00 | H161: 0.00 | I161: 0.00 | J161: 0.00 | K161: 0 | L161: 0.00 | M161: 0 | N161: 0.00 | O161: 350.00 | P161: 1,340,251.00 | Q161: 0.00 | R161: 0.00 | S161: 0.00 | T161: 0.00 | U161: 0.00 | V161: 0.00 | W161: 0.00 | X161: 104,974.00 | Y161: 0.00
A162: 146 | B162: ул. Нечаева, д. 2/7 | C162: 3,937,076.00 | D162: 0.00 | E162: 0.00 | F162: 0.00 | G162: 0.00 | H162: 0.00 | I162: 0.00 | J162: 0.00 | K162: 0 | L162: 0.00 | M162: 0 | N162: 0.00 | O162: 640.00 | P162: 3,651,107.00 | Q162: 0.00 | R162: 0.00 | S162: 0.00 | T162: 0.00 | U162: 0.00 | V162: 0.00 | W162: 0.00 | X162: 285,969.00 | Y162: 0.00
A163: 147 | B163: ул. Инженерная, д. 1 | C163: 1,860,239.00 | D163: 0.00 | E163: 0.00 | F163: 0.00 | G163: 0.00 | H163: 0.00 | I163: 0.00 | J163: 0.00 | K163: 0 | L163: 0.00 | M163: 0 | N163: 0.00 | O163: 0.00 | P163: 0.00 | Q163: 0.00 | R163: 0.00 | S163: 699.08 | T163: 1,725,121.00 | U163: 0.00 | V163: 0.00 | W163: 0.00 | X163: 135,118.00 | Y163: 0.00
A164: 148 | B164: ул. Песочная, д. 4 | C164: 3,321,602.00 | D164: 0.00 | E164: 0.00 | F164: 0.00 | G164: 0.00 | H164: 0.00 | I164: 0.00 | J164: 0.00 | K164: 0 | L164: 0.00 | M164: 0 | N164: 0.00 | O164: 680.00 | P164: 3,080,338.00 | Q164: 0.00 | R164: 0.00 | S164: 0.00 | T164: 0.00 | U164: 0.00 | V164: 0.00 | W164: 0.00 | X164: 241,264.00 | Y164: 0.00
A165: 149 | B165: ул. Энергетическая, д. 3 | C165: 3,272,755.00 | D165: 0.00 | E165: 0.00 | F165: 0.00 | G165: 0.00 | H165: 0.00 | I165: 0.00 | J165: 0.00 | K165: 0 | L165: 0.00 | M165: 0 | N165: 0.00 | O165: 670.00 | P165: 3,035,039.00 | Q165: 0.00 | R165: 0.00 | S165: 0.00 | T165: 0.00 | U165: 0.00 | V165: 0.00 | W165: 0.00 | X165: 237,716.00 | Y165: 0.00
A166: 150 | B166: ул. Рабочая, д. 10/5 | C166: 1,386,668.00 | D166: 1,285,948.00 | E166: 443,686.00 | F166: 0.00 | G166: 0.00 | H166: 515,986.00 | I166: 0.00 | J166: 326,276.00 | K166: 0 | L166: 0.00 | M166: 0 | N166: 0.00 | O166: 0.00 | P166: 0.00 | Q166: 0.00 | R166: 0.00 | S166: 0.00 | T166: 0.00 | U166: 0.00 | V166: 0.00 | W166: 0.00 | X166: 100,720.00 | Y166: 0.00
A167: 151 | B167: ул. Нечаева, д. 16 | C167: 534,529.80 | D167: 495,704.32 | E167: 0.00 | F167: 0.00 | G167: 495,704.32 | H167: 0.00 | I167: 0.00 | J167: 0.00 | K167: 0 | L167: 0.00 | M167: 0 | N167: 0.00 | O167: 0.00 | P167: 0.00 | Q167: 0.00 | R167: 0.00 | S167: 0.00 | T167: 0.00 | U167: 0.00 | V167: 0.00 | W167: 0.00 | X167: 38,825.48 | Y167: 0.00
A168: 152 | B168: ул. Новая, д. 68 | C168: 532,109.00 | D168: 493,459.00 | E168: 0.00 | F168: 0.00 | G168: 0.00 | H168: 0.00 | I168: 0.00 | J168: 493,459.00 | K168: 0 | L168: 0.00 | M168: 0 | N168: 0.00 | O168: 0.00 | P168: 0.00 | Q168: 0.00 | R168: 0.00 | S168: 0.00 | T168: 0.00 | U168: 0.00 | V168: 0.00 | W168: 0.00 | X168: 38,650.00 | Y168: 0.00
B169: Бельский муниципальный округ | C169: =C170+C171+C172+C173 -> 1,597,686.43 | D169: =D170+D171+D172+D173 -> 1,481,638.75 | E169: 1,135,941.22 | F169: 0.00 | G169: 0.00 | H169: 0.00 | I169: 0.00 | J169: 345,697.53 | K169: 0.00 | L169: 0.00 | M169: 0.00 | N169: 0.00 | O169: 0.00 | P169: 0.00 | Q169: 0.00 | R169: 0.00 | S169: 0.00 | T169: 0.00 | U169: 0.00 | V169: 0.00 | W169: 0.00 | X169: 116,047.68 | Y169: 0.00
A170: 153 | B170: г. Белый, ул. Строителей, д. 13 | C170: =D170+N170+P170+R170+T170+V170+X170 -> 372,773.90 | D170: =SUM(E170:J170) -> 345,697.53 | E170: 0.00 | F170: 0.00 | G170: 0.00 | H170: 0.00 | I170: 0.00 | J170: 345,697.53 | K170: 0 | L170: 0.00 | M170: 0 | N170: 0.00 | O170: 0.00 | P170: 0.00 | Q170: 0.00 | R170: 0.00 | S170: 0.00 | T170: 0.00 | U170: 0.00 | V170: 0.00 | W170: 0.00 | X170: 27,076.37 | Y170: 0.00
A171: 154 | B171: г. Белый, пер. Аптечный, д. 1 | C171: =D171+N171+P171+R171+T171+V171+X171 -> 598,927.55 | D171: =SUM(E171:J171) -> 555,424.55 | E171: 555,424.55 | F171: 0.00 | G171: 0.00 | H171: 0.00 | I171: 0.00 | J171: 0.00 | K171: 0 | L171: 0.00 | M171: 0 | N171: 0.00 | O171: 0.00 | P171: 0.00 | Q171: 0.00 | R171: 0.00 | S171: 0.00 | T171: 0.00 | U171: 0.00 | V171: 0.00 | W171: 0.00 | X171: 43,503.00 | Y171: 0.00
A172: 155 | B172: г. Белый, ул. Ленина, д. 10 | C172: 203,494.44 | D172: 188,713.66 | E172: 188,713.66 | F172: 0.00 | G172: 0.00 | H172: 0.00 | I172: 0.00 | J172: 0.00 | K172: 0 | L172: 0.00 | M172: 0 | N172: 0.00 | O172: 0.00 | P172: 0.00 | Q172: 0.00 | R172: 0.00 | S172: 0.00 | T172: 0.00 | U172: 0.00 | V172: 0.00 | W172: 0.00 | X172: 14,780.78 | Y172: 0.00
A173: 156 | B173: г. Белый, ул. Смирнова, д. 16 | C173: 422,490.54 | D173: 391,803.01 | E173: 391,803.01 | F173: 0.00 | G173: 0.00 | H173: 0.00 | I173: 0.00 | J173: 0.00 | K173: 0 | L173: 0.00 | M173: 0 | N173: 0.00 | O173: 0.00 | P173: 0.00 | Q173: 0.00 | R173: 0.00 | S173: 0.00 | T173: 0.00 | U173: 0.00 | V173: 0.00 | W173: 0.00 | X173: 30,687.53 | Y173: 0.00
B174: Бологовский район | C174: =C175+C183 -> 25,585,661.47 | D174: =D175+D183 -> 0.00 | E174: 0.00 | F174: 0.00 | G174: 0.00 | H174: 0.00 | I174: 0.00 | J174: 0.00 | K174: 0 | L174: 0.00 | M174: 0 | N174: 0.00 | O174: 5,906.95 | P174: 24,269,607.47 | Q174: 0.00 | R174: 0.00 | S174: 0.00 | T174: 0.00 | U174: 0.00 | V174: 0.00 | W174: 0.00 | X174: 1,316,054.00 | Y174: 0.00
B175: Итого по МО городское поселение город Бологое | C175: =SUM(C176:C182) -> 23,251,937.47 | D175: =SUM(D176:D182) -> 0.00 | E175: 0.00 | F175: 0.00 | G175: 0.00 | H175: 0.00 | I175: 0.00 | J175: 0.00 | K175: 0 | L175: 0.00 | M175: 0 | N175: 0.00 | O175: 5,321.95 | P175: 22,105,393.47 | Q175: 0.00 | R175: 0.00 | S175: 0.00 | T175: 0.00 | U175: 0.00 | V175: 0.00 | W175: 0.00 | X175: 1,146,544.00 | Y175: 0.00
A176: 157 | B176: мкр. Заводской, д. 11 | C176: =D176+N176+P176+R176+T176+V176+X176 -> 4,474,754.84 | D176: =SUM(E176:J176) -> 0.00 | E176: 0.00 | F176: 0.00 | G176: 0.00 | H176: 0.00 | I176: 0.00 | J176: 0.00 | K176: 0 | L176: 0.00 | M176: 0 | N176: 0.00 | O176: 1,315.10 | P176: 4,192,261.84 | Q176: 0.00 | R176: 0.00 | S176: 0.00 | T176: 0.00 | U176: 0.00 | V176: 0.00 | W176: 0.00 | X176: 282,493.00 | Y176: 0.00
A177: 158 | B177: мкр. Заводской, д. 12 | C177: =D177+N177+P177+R177+T177+V177+X177 -> 3,587,126.86 | D177: =SUM(E177:J177) -> 0.00 | E177: 0.00 | F177: 0.00 | G177: 0.00 | H177: 0.00 | I177: 0.00 | J177: 0.00 | K177: 0 | L177: 0.00 | M177: 0 | N177: 0.00 | O177: 1,076.88 | P177: 3,374,593.86 | Q177: 0.00 | R177: 0.00 | S177: 0.00 | T177: 0.00 | U177: 0.00 | V177: 0.00 | W177: 0.00 | X177: 212,533.00 | Y177: 0.00
A178: 159 | B178: ул. Дружбы, д. 5б | C178: 1,421,533.00 | D178: 0.00 | E178: 0.00 | F178: 0.00 | G178: 0.00 | H178: 0.00 | I178: 0.00 | J178: 0.00 | K178: 0 | L178: 0.00 | M178: 0 | N178: 0.00 | O178: 420.00 | P178: 1,318,280.00 | Q178: 0.00 | R178: 0.00 | S178: 0.00 | T178: 0.00 | U178: 0.00 | V178: 0.00 | W178: 0.00 | X178: 103,253.00 | Y178: 0.00
A179: 160 | B179: ул. Дружбы, д. 3 | C179: 4,064,571.56 | D179: 0.00 | E179: 0.00 | F179: 0.00 | G179: 0.00 | H179: 0.00 | I179: 0.00 | J179: 0.00 | K179: 0 | L179: 0.00 | M179: 0 | N179: 0.00 | O179: 606.37 | P179: 3,871,240.56 | Q179: 0.00 | R179: 0.00 | S179: 0.00 | T179: 0.00 | U179: 0.00 | V179: 0.00 | W179: 0.00 | X179: 193,331.00 | Y179: 0.00
A180: 161 | B180: ул. Луначарского, д. 31а | C180: 3,590,229.10 | D180: 0.00 | E180: 0.00 | F180: 0.00 | G180: 0.00 | H180: 0.00 | I180: 0.00 | J180: 0.00 | K180: 0 | L180: 0.00 | M180: 0 | N180: 0.00 | O180: 976.00 | P180: 3,448,920.10 | Q180: 0.00 | R180: 0.00 | S180: 0.00 | T180: 0.00 | U180: 0.00 | V180: 0.00 | W180: 0.00 | X180: 141,309.00 | Y180: 0.00
A181: 162 | B181: ул. Народная, д. 5 | C181: 3,056,074.47 | D181: 0.00 | E181: 0.00 | F181: 0.00 | G181: 0.00 | H181: 0.00 | I181: 0.00 | J181: 0.00 | K181: 0 | L181: 0.00 | M181: 0 | N181: 0.00 | O181: 463.80 | P181: 2,949,882.47 | Q181: 0.00 | R181: 0.00 | S181: 0.00 | T181: 0.00 | U181: 0.00 | V181: 0.00 | W181: 0.00 | X181: 106,192.00 | Y181: 0.00
A182: 163 | B182: ул. Народная, д. 6 | C182: 3,057,647.64 | D182: 0.00 | E182: 0.00 | F182: 0.00 | G182: 0.00 | H182: 0.00 | I182: 0.00 | J182: 0.00 | K182: 0 | L182: 0.00 | M182: 0 | N182: 0.00 | O182: 463.80 | P182: 2,950,214.64 | Q182: 0.00 | R182: 0.00 | S182: 0.00 | T182: 0.00 | U182: 0.00 | V182: 0.00 | W182: 0.00 | X182: 107,433.00 | Y182: 0.00
B183: Итого по МО Выползовское сельское поселение | C183: =C184 -> 2,333,724.00 | D183: =D184 -> 0.00 | E183: 0.00 | F183: 0.00 | G183: 0.00 | H183: 0.00 | I183: 0.00 | J183: 0.00 | K183: 0 | L183: 0.00 | M183: 0 | N183: 0.00 | O183: 585.00 | P183: 2,164,214.00 | Q183: 0.00 | R183: 0.00 | S183: 0.00 | T183: 0.00 | U183: 0.00 | V183: 0.00 | W183: 0.00 | X183: 169,510.00 | Y183: 0.00
A184: 164 | B184: п. Выползово, ул. Березовая роща, д. 6 | C184: =D184+N184+P184+R184+T184+V184+X184 -> 2,333,724.00 | D184: =SUM(E184:J184) -> 0.00 | E184: 0.00 | F184: 0.00 | G184: 0.00 | H184: 0.00 | I184: 0.00 | J184: 0.00 | K184: 0 | L184: 0.00 | M184: 0 | N184: 0.00 | O184: 585.00 | P184: 2,164,214.00 | Q184: 0.00 | R184: 0.00 | S184: 0.00 | T184: 0.00 | U184: 0.00 | V184: 0.00 | W184: 0.00 | X184: 169,510.00 | Y184: 0.00
B185: Весьегонский муниципальный округ | C185: =C186+C187 -> 3,350,144.00 | D185: =D186+D187 -> 0.00 | E185: 0.00 | F185: 0.00 | G185: 0.00 | H185: 0.00 | I185: 0.00 | J185: 0.00 | K185: 0 | L185: 0.00 | M185: 0 | N185: 0.00 | O185: 1,118.00 | P185: 3,106,807.00 | Q185: 0.00 | R185: 0.00 | S185: 0.00 | T185: 0.00 | U185: 0.00 | V185: 0.00 | W185: 0.00 | X185: 243,337.00 | Y185: 0.00
A186: 165 | B186: г. Весьегонск, ул. Советская, д. 81 | C186: =D186+N186+P186+R186+T186+V186+X186 -> 1,583,994.00 | D186: =SUM(E186:J186) -> 0.00 | E186: 0.00 | F186: 0.00 | G186: 0.00 | H186: 0.00 | I186: 0.00 | J186: 0.00 | K186: 0 | L186: 0.00 | M186: 0 | N186: 0.00 | O186: 468.00 | P186: 1,468,941.00 | Q186: 0.00 | R186: 0.00 | S186: 0.00 | T186: 0.00 | U186: 0.00 | V186: 0.00 | W186: 0.00 | X186: 115,053.00 | Y186: 0.00
A187: 166 | B187: г. Весьегонск, ул. Молодежная, д. 24 | C187: 1,766,150.00 | D187: 0.00 | E187: 0.00 | F187: 0.00 | G187: 0.00 | H187: 0.00 | I187: 0.00 | J187: 0.00 | K187: 0 | L187: 0.00 | M187: 0 | N187: 0.00 | O187: 650.00 | P187: 1,637,866.00 | Q187: 0.00 | R187: 0.00 | S187: 0.00 | T187: 0.00 | U187: 0.00 | V187: 0.00 | W187: 0.00 | X187: 128,284.00 | Y187: 0.00
B188: Жарковский район | C188: =C189 -> 1,688,916.00 | D188: =D189 -> 0.00 | E188: 0.00 | F188: 0.00 | G188: 0.00 | H188: 0.00 | I188: 0.00 | J188: 0.00 | K188: 0 | L188: 0.00 | M188: 0 | N188: 0.00 | O188: 499.00 | P188: 1,566,242.00 | Q188: 0.00 | R188: 0.00 | S188: 0.00 | T188: 0.00 | U188: 0.00 | V188: 0.00 | W188: 0.00 | X188: 122,674.00 | Y188: 0.00
B189: Итого по МО Городское поселение пос. Жарковский | C189: =C190 -> 1,688,916.00 | D189: =D190 -> 0.00 | E189: 0.00 | F189: 0.00 | G189: 0.00 | H189: 0.00 | I189: 0.00 | J189: 0.00 | K189: 0 | L189: 0.00 | M189: 0 | N189: 0.00 | O189: 499.00 | P189: 1,566,242.00 | Q189: 0.00 | R189: 0.00 | S189: 0.00 | T189: 0.00 | U189: 0.00 | V189: 0.00 | W189: 0.00 | X189: 122,674.00 | Y189: 0.00
A190: 167 | B190: ул. Комсомольская, д. 11 | C190: =D190+N190+P190+R190+T190+V190+X190 -> 1,688,916.00 | D190: =SUM(E190:J190) -> 0.00 | E190: 0.00 | F190: 0.00 | G190: 0.00 | H190: 0.00 | I190: 0.00 | J190: 0.00 | K190: 0 | L190: 0.00 | M190: 0 | N190: 0.00 | O190: 499.00 | P190: 1,566,242.00 | Q190: 0.00 | R190: 0.00 | S190: 0.00 | T190: 0.00 | U190: 0.00 | V190: 0.00 | W190: 0.00 | X190: 122,674.00 | Y190: 0.00
B191: Западнодвинский муниципальный округ | C191: =C192+C193+C194 -> 6,549,572.00 | D191: =D192+D193+D194 -> 0.00 | E191: 0.00 | F191: 0.00 | G191: 0.00 | H191: 0.00 | I191: 0.00 | J191: 0.00 | K191: 0 | L191: 0.00 | M191: 0 | N191: 0.00 | O191: 1,650.00 | P191: 5,178,958.00 | Q191: 0.00 | R191: 0.00 | S191: 362.64 | T191: 894,887.00 | U191: 0.00 | V191: 0.00 | W191: 0.00 | X191: 475,727.00 | Y191: 0.00
A192: 168 | B192: г. Западная Двина, ул. Кирова, д. 12 | C192: =D192+N192+P192+R192+T192+V192+X192 -> 1,556,917.00 | D192: =SUM(E192:J192) -> 0.00 | E192: 0.00 | F192: 0.00 | G192: 0.00 | H192: 0.00 | I192: 0.00 | J192: 0.00 | K192: 0 | L192: 0.00 | M192: 0 | N192: 0.00 | O192: 460.00 | P192: 1,443,831.00 | Q192: 0.00 | R192: 0.00 | S192: 0.00 | T192: 0.00 | U192: 0.00 | V192: 0.00 | W192: 0.00 | X192: 113,086.00 | Y192: 0.00
A193: 169 | B193: г. Западная Двина, ул. Октябрьская, д. 2 | C193: =D193+N193+P193+R193+T193+V193+X193 -> 2,944,604.00 | D193: =SUM(E193:J193) -> 0.00 | E193: 0.00 | F193: 0.00 | G193: 0.00 | H193: 0.00 | I193: 0.00 | J193: 0.00 | K193: 0 | L193: 0.00 | M193: 0 | N193: 0.00 | O193: 870.00 | P193: 2,730,723.00 | Q193: 0.00 | R193: 0.00 | S193: 0.00 | T193: 0.00 | U193: 0.00 | V193: 0.00 | W193: 0.00 | X193: 213,881.00 | Y193: 0.00
A194: 170 | B194: г. Западная Двина, ул. Октябрьская, д. 5 | C194: =D194+N194+P194+R194+T194+V194+X194 -> 2,048,051.00 | D194: =SUM(E194:J194) -> 0.00 | E194: 0.00 | F194: 0.00 | G194: 0.00 | H194: 0.00 | I194: 0.00 | J194: 0.00 | K194: 0 | L194: 0.00 | M194: 0 | N194: 0.00 | O194: 320.00 | P194: 1,004,404.00 | Q194: 0.00 | R194: 0.00 | S194: 362.64 | T194: 894,887.00 | U194: 0.00 | V194: 0.00 | W194: 0.00 | X194: 148,760.00 | Y194: 0.00
B195: Калининский район | C195: =C204+C209+C198+C213+C215+C217+C201+C196+C206 -> 36,080,625.13 | D195: 1,111,825.77 | E195: 0.00 | F195: 0.00 | G195: 0.00 | H195: 0.00 | I195: 0.00 | J195: 1,111,825.77 | K195: 0 | L195: 0.00 | M195: 0 | N195: 0.00 | O195: 9,905.04 | P195: 32,504,431.86 | Q195: 0.00 | R195: 0.00 | S195: 0.00 | T195: 0.00 | U195: 0.00 | V195: 0.00 | W195: 0.00 | X195: =X204+X209+X198+X213+X215+X217+X201+X196+X206 -> 2,464,367.50 | Y195: =Y204+Y209+Y198+Y213+Y215+Y217+Y201+Y196+Y206 -> 0.00
B196: Итого по МО городское поселение пос. Васильевский Мох | C196: =C197 -> 3,012,296.00 | D196: =D197 -> 0.00 | E196: 0.00 | F196: 0.00 | G196: 0.00 | H196: 0.00 | I196: 0.00 | J196: 0.00 | K196: 0 | L196: 0.00 | M196: 0 | N196: 0.00 | O196: 873.00 | P196: 2,793,498.00 | Q196: 0.00 | R196: 0.00 | S196: 0.00 | T196: 0.00 | U196: 0.00 | V196: 0.00 | W196: 0.00 | X196: 218,798.00 | Y196: 0.00
A197: 171 | B197: ул. Почтовая, д. 20а | C197: =D197+N197+P197+R197+T197+V197+X197 -> 3,012,296.00 | D197: =SUM(E197:J197) -> 0.00 | E197: 0.00 | F197: 0.00 | G197: 0.00 | H197: 0.00 | I197: 0.00 | J197: 0.00 | K197: 0 | L197: 0.00 | M197: 0 | N197: 0.00 | O197: 873.00 | P197: 2,793,498.00 | Q197: 0.00 | R197: 0.00 | S197: 0.00 | T197: 0.00 | U197: 0.00 | V197: 0.00 | W197: 0.00 | X197: 218,798.00 | Y197: 0.00
B198: Итого по МО Верхневолжское сельское поселение | C198: =C199+C200 -> 3,043,212.00 | D198: =D199+D200 -> 0.00 | E198: 0.00 | F198: 0.00 | G198: 0.00 | H198: 0.00 | I198: 0.00 | J198: 0.00 | K198: 0 | L198: 0.00 | M198: 0 | N198: 0.00 | O198: 1,120.00 | P198: 2,822,169.00 | Q198: 0.00 | R198: 0.00 | S198: 0.00 | T198: 0.00 | U198: 0.00 | V198: 0.00 | W198: 0.00 | X198: 221,043.00 | Y198: 0.00
A199: 172 | B199: с. Пушкино, д. 2 | C199: =D199+N199+P199+R199+T199+V199+X199 -> 1,032,519.00 | D199: =SUM(E199:J199) -> 0.00 | E199: 0.00 | F199: 0.00 | G199: 0.00 | H199: 0.00 | I199: 0.00 | J199: 0.00 | K199: 0 | L199: 0.00 | M199: 0 | N199: 0.00 | O199: 380.00 | P199: 957,522.00 | Q199: 0.00 | R199: 0.00 | S199: 0.00 | T199: 0.00 | U199: 0.00 | V199: 0.00 | W199: 0.00 | X199: 74,997.00 | Y199: 0.00
A200: 173 | B200: с. Пушкино, д. 6 | C200: =D200+N200+P200+R200+T200+V200+X200 -> 2,010,693.00 | D200: =SUM(E200:J200) -> 0.00 | E200: 0.00 | F200: 0.00 | G200: 0.00 | H200: 0.00 | I200: 0.00 | J200: 0.00 | K200: 0 | L200: 0.00 | M200: 0 | N200: 0.00 | O200: 740.00 | P200: 1,864,647.00 | Q200: 0.00 | R200: 0.00 | S200: 0.00 | T200: 0.00 | U200: 0.00 | V200: 0.00 | W200: 0.00 | X200: 146,046.00 | Y200: 0.00
B201: Итого по МО Заволжское сельское поселение | C201: =C202+C203 -> 6,733,926.09 | D201: =D202+D203 -> 0.00 | E201: 0.00 | F201: 0.00 | G201: 0.00 | H201: 0.00 | I201: 0.00 | J201: 0.00 | K201: 0 | L201: 0.00 | M201: 0 | N201: 0.00 | O201: 1,898.20 | P201: 6,244,808.09 | Q201: 0.00 | R201: 0.00 | S201: 0.00 | T201: 0.00 | U201: 0.00 | V201: 0.00 | W201: 0.00 | X201: 489,118.00 | Y201: 0.00
... 1406 more rows

Sheet 107-117
A1: III. Планируемые показатели выполнения работ по капитальному ремонту многоквартирных домов
A2: № п/п | B2: Наименование муниципального образования Тверской области | C2: Общая площадь МКД, всего | D2: Количество жителей, зарегистрированных в МКД на дату утверждения краткосрочного плана | E2: Количество МКД | F2: Стоимость капитального ремонта
C4: кв. м | D4: чел. | E4: ед. | F4: руб.
A5: 1 | B5: 2 | C5: 3 | D5: 4 | E5: 5 | F5: 6
A6: Всего по Тверской области
B7: Всего по Тверской области | C7: =C9+C90+C154+C223 -> 3,064,739.87 | D7: =D9+D90+D154+D223 -> 106,999 | E7: =E9+E90+E154+E223 -> 1307 | F7: =F9+F90+F154+F223 -> 4,504,126,137.66
A8: Начало проведения капитального ремонта – 2020 год
B9: Итого по Тверской области | C9: =C10+C11+C12+C13+C14+C15+C17+C18+C21+C22+C24+C25+C35+C37+C38+C43+C50+C51+C53+C54+C59+C60+C62+C63+C64+C65+C66+C68+C72+C73+C74+C75+C77+C80+C82+C84+C85 -> 780,115.05 | D9: =D10+D11+D12+D13+D14+D15+D17+D18+D21+D22+D24+D25+D35+D37+D38+D43+D50+D51+D53+D54+D59+D60+D62+D63+D64+D65+D66+D68+D72+D73+D74+D75+D77+D80+D82+D84+D85 -> 27,404 | E9: 347 | F9: 1,074,302,820.32
A10: 1 | B10: Итого по МО город Тверь | C10: 315,331.46 | D10: 11023 | E10: 85 | F10: 365,931,476.27
A11: 2 | B11: Итого по МО Вышневолоцкий городской округ | C11: ='2-60'!H96 -> 34,314.01 | D11: ='2-60'!K96 -> 1272 | E11: 34 | F11: ='2-60'!L96 -> 77,767,080.44
A12: 3 | B12: Итого по МО город Торжок | C12: ='2-60'!H131 -> 13,747.90 | D12: ='2-60'!K131 -> 501 | E12: 10 | F12: ='2-60'!L131 -> 17,889,512.89
A13: 4 | B13: Итого по МО ЗАТО Озерный | C13: ='2-60'!H142 -> 16,929.60 | D13: ='2-60'!K142 -> 501 | E13: 3 | F13: ='2-60'!L142 -> 13,178,092.40
A14: 5 | B14: Андреапольский муниципальный округ | C14: ='2-60'!H146 -> 937.30 | D14: ='2-60'!K146 -> 19 | E14: 2 | F14: ='2-60'!L146 -> 3,858,446.00
B15: Бежецкий район | C15: =C16 -> 27,358.90 | D15: =D16 -> 1054 | E15: 18 | F15: 50,217,234.58
A16: 6 | B16: Итого по МО городское поселение город Бежецк | C16: ='2-60'!H150 -> 27,358.90 | D16: ='2-60'!K150 -> 1054 | E16: 18 | F16: ='2-60'!L150 -> 50,217,234.58
A17: 7 | B17: Бельский муниципальный округ | C17: ='2-60'!H169 -> 2,562.10 | D17: ='2-60'!K169 -> 77 | E17: 4 | F17: ='2-60'!L169 -> 1,597,686.43
B18: Бологовский район | C18: =C19+C20 -> 15,784.30 | D18: =D19+D20 -> 431 | E18: 8 | F18: 25,585,661.47
A19: 8 | B19: Итого по МО городское поселение город Бологое | C19: ='2-60'!H175 -> 13,511.40 | D19: ='2-60'!K175 -> 355 | E19: 7 | F19: ='2-60'!L175 -> 23,251,937.47
A20: 9 | B20: Итого по МО Выползовское сельское поселение | C20: ='2-60'!H183 -> 2,272.90 | D20: ='2-60'!K183 -> 76 | E20: 1 | F20: ='2-60'!L183 -> 2,333,724.00
A21: 10 | B21: Весьегонский муниципальный округ | C21: ='2-60'!H185 -> 1,993.00 | D21: ='2-60'!K185 -> 39 | E21: 2 | F21: ='2-60'!L185 -> 3,350,144.00
B22: Жарковский район | C22: =C23 -> 571.10 | D22: =D23 -> 23 | E22: 1 | F22: 1,688,916.00
A23: 11 | B23: Итого по МО городское поселение поселок Жарковский | C23: ='2-60'!H189 -> 571.10 | D23: ='2-60'!K189 -> 23 | E23: 1 | F23: ='2-60'!L189 -> 1,688,916.00
A24: 12 | B24: Западнодвинский муниципальный округ | C24: ='2-60'!H191 -> 1,789.90 | D24: ='2-60'!K191 -> 43 | E24: 3 | F24: ='2-60'!L191 -> 6,549,572.00
B25: Калининский район | C25: =C29+C31+C27+C32+C33+C34+C28+C26+C30 -> 19,259.12 | D25: =D29+D31+D27+D32+D33+D34+D28+D26+D30 -> 906 | E25: 15 | F25: 36,080,625.13
A26: 13 | B26: Итого по МО городское поселение поселок Васильевский Мох | C26: ='2-60'!H196 -> 976.70 | D26: ='2-60'!K196 -> 29 | E26: 1 | F26: ='2-60'!L196 -> 3,012,296.00
A27: 14 | B27: Итого по МО Верхневолжское сельское поселение | C27: ='2-60'!H198 -> 1,996.80 | D27: ='2-60'!K198 -> 82 | E27: 2 | F27: ='2-60'!L198 -> 3,043,212.00
A28: 15 | B28: Итого по МО Заволжское сельское поселение | C28: ='2-60'!H201 -> 5,273.40 | D28: ='2-60'!K201 -> 253 | E28: 2 | F28: ='2-60'!L201 -> 6,733,926.09
A29: 16 | B29: Итого по МО Красногорское сельское поселение | C29: ='2-60'!H204 -> 1,451.82 | D29: ='2-60'!K204 -> 78 | E29: 1 | F29: ='2-60'!L204 -> 3,143,546.00
A30: 17 | B30: Итого по МО Никулинское сельское поселение | C30: ='2-60'!H206 -> 2,407.20 | D30: ='2-60'!K206 -> 159 | E30: 2 | F30: ='2-60'!L206 -> 4,827,660.26
A31: 18 | B31: Итого по МО городское поселение поселок Орша | C31: ='2-60'!H209 -> 2,332.10 | D31: ='2-60'!K209 -> 95 | E31: 3 | F31: ='2-60'!L209 -> 7,623,339.51
A32: 19 | B32: Итого по МО Славновское сельское поселение | C32: ='2-60'!H213 -> 1,237.50 | D32: ='2-60'!K213 -> 58 | E32: 1 | F32: ='2-60'!L213 -> 2,788,912.00
A33: 20 | B33: Итого по МО Щербининское сельское поселение | C33: ='2-60'!H215 -> 864.20 | D33: ='2-60'!K215 -> 32 | E33: 1 | F33: ='2-60'!L215 -> 1,723,365.00
A34: 21 | B34: Итого по МО Эммаусское сельское поселение | C34: ='2-60'!H217 -> 2,719.40 | D34: ='2-60'!K217 -> 120 | E34: 2 | F34: ='2-60'!L217 -> 3,184,368.27
B35: Калязинский район | C35: =C36 -> 29,928.08 | D35: =D36 -> 992 | E35: =E36 -> 8 | F35: =F36 -> 23,576,771.00
A36: 22 | B36: Итого по МО городское поселение город Калязин | C36: ='2-60'!H221 -> 29,928.08 | D36: ='2-60'!K221 -> 992 | E36: 8 | F36: ='2-60'!L221 -> 23,576,771.00
A37: 23 | B37: Итого по МО Кашинский городской округ | C37: ='2-60'!H230 -> 14,819.10 | D37: ='2-60'!K230 -> 522 | E37: 8 | F37: ='2-60'!L230 -> 16,702,023.25
B38: Кимрский муниципальный округ | C38: =C39+C40+C41+C42 -> 8,245.70 | D38: =D39+D40+D41+D42 -> 312 | E38: 10 | F38: 21,372,185.59
A39: 24 | B39: Итого по МО город Кимры | C39: ='2-60'!H240 -> 2,414.60 | D39: ='2-60'!K240 -> 115 | E39: 5 | F39: ='2-60'!L240 -> 5,981,829.00
A40: 25 | B40: Итого по МО городское поселение поселок Белый Городок | C40: ='2-60'!H246 -> 3,482.20 | D40: ='2-60'!K246 -> 107 | E40: 3 | F40: ='2-60'!L246 -> 7,653,085.39
A41: 26 | B41: Итого по МО Приволжское сельское поселение | C41: ='2-60'!H250 -> 529.90 | D41: ='2-60'!K250 -> 9 | E41: 1 | F41: ='2-60'!L250 -> 3,246,439.14
A42: 27 | B42: Итого по МО Титовское сельское поселение | C42: ='2-60'!H252 -> 1,819.00 | D42: ='2-60'!K252 -> 81 | E42: 1 | F42: ='2-60'!L252 -> 4,490,832.06
B43: Конаковский район | C43: =SUM(C44:C49) -> 72,112.10 | D43: =SUM(D44:D49) -> 2260 | E43: 20 | F43: 105,654,341.29
A44: 28 | B44: Итого по МО городское поселение город Конаково | C44: 49,848.10 | D44: 1490 | E44: 10 | F44: 80,820,537.29
A45: 29 | B45: Итого по МО городское поселение поселок Изоплит | C45: ='2-60'!H262 -> 1,430.00 | D45: ='2-60'!K262 -> 48 | E45: 2 | F45: ='2-60'!L262 -> 5,964,228.00
A46: 30 | B46: Итого по МО городское поселение поселок Козлово | C46: ='2-60'!H265 -> 758.90 | D46: ='2-60'!K265 -> 19 | E46: 1 | F46: ='2-60'!L265 -> 1,668,609.00
A47: 31 | B47: Итого по МО Первомайское сельское поселение | C47: ='2-60'!H267 -> 1,531.10 | D47: ='2-60'!K267 -> 56 | E47: 1 | F47: ='2-60'!L267 -> 2,119,380.00
A48: 32 | B48: Итого по МО городское поселение поселок Радченко | C48: ='2-60'!H269 -> 432.60 | D48: ='2-60'!K269 -> 9 | E48: 1 | F48: ='2-60'!L269 -> 255,847.00
A49: 33 | B49: Итого по МО городское поселение поселок Редкино | C49: ='2-60'!H271 -> 18,111.40 | D49: ='2-60'!K271 -> 638 | E49: 5 | F49: ='2-60'!L271 -> 14,825,740.00
A50: 34 | B50: Краснохолмский муниципальный округ | C50: ='2-60'!H277 -> 1,162.20 | D50: ='2-60'!K277 -> 44 | E50: 3 | F50: ='2-60'!L277 -> 6,973,264.08
B51: Кувшиновский район | C51: =C52 -> 1,415.10 | D51: =D52 -> 49 | E51: 1 | F51: 2,914,163.00
A52: 35 | B52: Итого по МО городское поселение город Кувшиново | C52: ='2-60'!H282 -> 1,415.10 | D52: ='2-60'!K282 -> 49 | E52: 1 | F52: ='2-60'!L282 -> 2,914,163.00
A53: 36 | B53: Лесной муниципальный округ | C53: ='2-60'!H284 -> 814.60 | D53: ='2-60'!K284 -> 38 | E53: 2 | F53: ='2-60'!L284 -> 2,447,067.00
B54: Лихославльский муниципальный округ | C54: =SUM(C55:C58) -> 25,906.50 | D54: =SUM(D55:D58) -> 1014 | E54: 19 | F54: 54,054,963.46
A55: 37 | B55: Итого по МО городское поселение город Лихославль | C55: ='2-60'!H288 -> 16,289.70 | D55: ='2-60'!K288 -> 629 | E55: 13 | F55: ='2-60'!L288 -> 46,056,738.46
A56: 38 | B56: Итого по МО городское поселение пос. Калашниково | C56: ='2-60'!H302 -> 5,121.10 | D56: ='2-60'!K302 -> 177 | E56: 3 | F56: ='61-106'!C306 -> 4,455,042.00
A57: 39 | B57: Итого по МО Вескинское сельское поселение | C57: ='2-60'!H306 -> 3,109.00 | D57: ='2-60'!K306 -> 135 | E57: 2 | F57: ='2-60'!L306 -> 3,059,516.00
A58: 40 | B58: Итого по МО Сосновицкое сельское поселение | C58: ='2-60'!H309 -> 1,386.70 | D58: ='2-60'!K309 -> 73 | E58: 1 | F58: ='2-60'!L309 -> 483,667.00
A59: 41 | B59: Максатихинский муниципальный округ | C59: ='2-60'!H311 -> 12,754.00 | D59: ='2-60'!K311 -> 352 | E59: 6 | F59: ='2-60'!L311 -> 20,227,099.00
B60: Молоковский муниципальный округ | C60: =C61 -> 845.64 | D60: =D61 -> 30 | E60: 1 | F60: 2,106,783.25
A61: 42 | B61: Итого по МО городское поселение поселок Молоково | C61: ='2-60'!H319 -> 845.64 | D61: ='2-60'!K319 -> 30 | E61: 1 | F61: ='2-60'!L319 -> 2,106,783.25
A62: 43 | B62: Итого по МО Нелидовский городской округ | C62: ='2-60'!H321 -> 2,540.70 | D62: ='2-60'!K321 -> 78 | E62: 3 | F62: ='2-60'!L321 -> 6,684,613.00
A63: 44 | B63: Оленинский муниципальный округ | C63: ='2-60'!H419 -> 13,479.70 | D63: ='2-60'!K419 -> 512 | E63: 16 | F63: ='2-60'!L419 -> 2,744,879.00
A64: 45 | B64: Итого по МО Осташковский городской округ | C64: ='2-60'!H325 -> 26,605.25 | D64: ='2-60'!K325 -> 989 | E64: 8 | F64: ='2-60'!L325 -> 33,753,455.00
A65: 46 | B65: Пеновский муниципальный округ | C65: ='2-60'!H334 -> 413.70 | D65: ='2-60'!K334 -> 20 | E65: 1 | F65: ='2-60'!L334 -> 4,069,317.00
B66: Рамешковский муниципальный округ | C66: =C67 -> 1,710.70 | D66: =D67 -> 77 | E66: =E67 -> 2 | F66: =F67 -> 4,302,891.02
A67: 47 | B67: Итого по МО городское поселение поселок Рамешки | C67: ='2-60'!H337 -> 1,710.70 | D67: ='2-60'!K337 -> 77 | E67: 2 | F67: ='2-60'!L337 -> 4,302,891.02
B68: Ржевский муниципальный округ | C68: =C69+C70+C71 -> 51,910.80 | D68: =D69+D70+D71 -> 1,745 | E68: 24 | F68: 78,205,882.54
A69: 48 | B69: Итого по МО город Ржев | C69: ='2-60'!H341 -> 50,121.10 | D69: ='2-60'!K341 -> 1674 | E69: 21 | F69: ='2-60'!L341 -> 70,617,731.54
A70: 49 | B70: Итого по МО сельское поселение «Победа» | C70: ='2-60'!H363 -> 726.20 | D70: ='2-60'!K363 -> 26 | E70: 1 | F70: ='2-60'!L363 -> 1,420,529.00
A71: 50 | B71: Итого по МО сельское поселение «Хорошево» | C71: ='2-60'!H365 -> 1,063.50 | D71: ='2-60'!K365 -> 45 | E71: 2 | F71: ='2-60'!L365 -> 6,167,622.00
A72: 51 | B72: Сандовский муниципальный округ | C72: ='2-60'!H368 -> 345.20 | D72: ='2-60'!K368 -> 9 | E72: 1 | F72: ='2-60'!L368 -> 1,252,303.00
A73: 52 | B73: Селижаровский муниципальный округ | C73: ='2-60'!H370 -> 1,495.60 | D73: ='2-60'!K370 -> 63 | E73: 2 | F73: ='2-60'!L370 -> 4,399,305.00
A74: 53 | B74: Сонковский муниципальный округ | C74: ='2-60'!H373 -> 583.30 | D74: ='2-60'!K373 -> 24 | E74: 1 | F74: ='2-60'!L373 -> 1,932,241.86
A75: 54 | B75: Спировский муниципальный округ | C75: =C76 -> 3,901.00 | D75: =D76 -> 110 | E75: 2 | F75: 4,151,691.00
B76: Итого по МО городское поселение поселок Спирово | C76: ='2-60'!H376 -> 3,901.00 | D76: ='2-60'!K376 -> 110 | E76: 2 | F76: ='2-60'!L376 -> 4,151,691.00
B77: Старицкий муниципальный округ | C77: =C78+C79 -> 11,702.09 | D77: =D78+D79 -> 419 | E77: 9 | F77: 28,620,753.96
A78: 55 | B78: Итого по МО городское поселение город Старица | C78: ='2-60'!H380 -> 7,201.99 | D78: ='2-60'!K380 -> 258 | E78: 5 | F78: ='61-106'!C395 -> 18,050,502.96
A79: 56 | B79: Итого по МО Берновское сельское поселение | C79: ='2-60'!H386 -> 4,500.10 | D79: ='2-60'!K386 -> 161 | E79: 4 | F79: ='2-60'!L386 -> 10,570,251.00
B80: Торжокский район | C80: =C81 -> 1,161.10 | D80: =D81 -> 48 | E80: 2 | F80: 3,337,271.52
A81: 57 | B81: Итого по МО Будовское сельское поселение | C81: ='2-60'!H392 -> 1,161.10 | D81: ='2-60'!K392 -> 48 | E81: 2 | F81: ='2-60'!L392 -> 3,337,271.52
B82: Торопецкий район | C82: =C83 -> 1,128.90 | D82: =D83 -> 45 | E82: 2 | F82: 3,342,802.00
A83: 58 | B83: Итого по МО городское поселение город Торопец | C83: ='2-60'!H396 -> 1,128.90 | D83: ='2-60'!K396 -> 45 | E83: 2 | F83: ='2-60'!L396 -> 3,342,802.00
A84: 59 | B84: Итого по МО Удомельский городской округ | C84: ='2-60'!H399 -> 37,943.80 | D84: ='2-60'!K399 -> 1530 | E84: 6 | F84: ='2-60'!L399 -> 30,817,012.00
B85: Фировский район | C85: =C87+C88+C86 -> 6,611.50 | D85: =D87+D88+D86 -> 233 | E85: 5 | F85: 6,965,293.89
A86: 60 | B86: Итого по МО городское поселение поселок Фирово | C86: ='2-60'!H407 -> 1,488.60 | D86: ='2-60'!K407 -> 44 | E86: 1 | F86: ='2-60'!L407 -> 1,695,504.00
A87: 61 | B87: Итого по МО Великооктябрьское городское поселение | C87: ='2-60'!H409 -> 4,037.00 | D87: ='2-60'!K409 -> 153 | E87: 2 | F87: ='2-60'!L409 -> 4,249,593.14
A88: 62 | B88: Итого по МО Рождественское сельское поселение | C88: ='2-60'!H412 -> 1,085.90 | D88: ='2-60'!K412 -> 36 | E88: 2 | F88: ='2-60'!L412 -> 1,020,196.75
A89: Начало проведения капитального ремонта – 2021 год
B90: Итого по Тверской области | C90: =C91+C92+C93+C94+C95+C96+C97+C99+C100+C102+C103+C105+C107+C114+C116+C117+C120+C127+C128+C130+C134+C135+C137+C138+C139+C141+C142+C143+C145+C148+C150+C151+C136+C106 -> 584,525.11 | D90: =D91+D92+D93+D94+D95+D96+D97+D99+D100+D102+D103+D105+D107+D114+D116+D117+D120+D127+D128+D130+D134+D135+D137+D138+D139+D141+D142+D143+D145+D148+D150+D151+D136+D106 -> 20,237 | E90: 242 | F90: 889,620,559.30
A91: 1 | B91: Итого по МО город Тверь | C91: 252,444.80 | D91: 9277 | E91: 75 | F91: 417,755,998.96
A92: 2 | B92: Итого по МО Вышневолоцкий городской округ | C92: ='2-60'!H518 -> 33,501.00 | D92: ='2-60'!K518 -> 1315 | E92: 20 | F92: ='2-60'!L518 -> 45,394,745.07
A93: 3 | B93: Итого по МО Ржевский муниципальный округ | C93: ='2-60'!H539 -> 17,500.30 | D93: ='2-60'!K539 -> 472 | E93: 7 | F93: ='2-60'!L539 -> 35,413,065.21
A94: 4 | B94: Итого по МО город Торжок | C94: ='2-60'!H547 -> 24,056.80 | D94: ='2-60'!K547 -> 818 | E94: 14 | F94: ='61-106'!C543 -> 28,363,925.05
A95: 5 | B95: Итого по МО ЗАТО Озерный | C95: ='2-60'!H562 -> 20,992.20 | D95: ='2-60'!K562 -> 599 | E95: 5 | F95: ='2-60'!L562 -> 19,207,237.27
A96: 6 | B96: Андреапольский муниципальный округ | C96: ='2-60'!H568 -> 1,804.00 | D96: ='2-60'!K568 -> 43 | E96: 2 | F96: ='2-60'!L568 -> 4,041,216.00
B97: Бежецкий район | C97: =C98 -> 21,975.60 | D97: =D98 -> 782 | E97: 6 | F97: 42,589,491.95
A98: 7 | B98: Итого по МО городское поселение город Бежецк | C98: ='2-60'!H572 -> 21,975.60 | D98: ='2-60'!K572 -> 782 | E98: 6 | F98: ='2-60'!L572 -> 42,589,491.95
A99: 8 | B99: Бельский муниципальный округ | C99: ='2-60'!H579 -> 260.10 | D99: ='2-60'!K579 -> 8 | E99: 1 | F99: ='2-60'!L579 -> 1,988,195.41
B100: Бологовский район | C100: =C101 -> 11,211.90 | D100: =D101 -> 317 | E100: 6 | F100: 22,250,988.48
A101: 9 | B101: Итого по МО городское поселение город Бологое | C101: ='2-60'!H582 -> 11,211.90 | D101: ='2-60'!K582 -> 317 | E101: 6 | F101: ='2-60'!L582 -> 22,250,988.48
A102: 10 | B102: Весьегонский муниципальный округ | C102: ='2-60'!H589 -> 1,023.60 | D102: ='2-60'!K589 -> 24 | E102: 2 | F102: ='2-60'!L589 -> 3,063,338.69
B103: Жарковский район | C103: =C104 -> 1,493.30 | D103: =D104 -> 31 | E103: 1 | F103: 1,603,120.00
A104: 11 | B104: Итого по МО городское поселение поселок Жарковский | C104: ='2-60'!H593 -> 1,493.30 | D104: ='2-60'!K593 -> 31 | E104: 1 | F104: ='2-60'!L593 -> 1,603,120.00
A105: 12 | B105: Западнодвинский муниципальный округ | C105: ='2-60'!H597 -> 1,385.60 | D105: ='2-60'!K597 -> 42 | E105: 2 | F105: ='2-60'!L597 -> 4,817,776.92
A106: 13 | B106: Зубцовский муниципальный округ | C106: ='2-60'!H595 -> 3,160.40 | D106: ='2-60'!K595 -> 108 | E106: 1 | F106: ='2-60'!L595 -> 2,638,258.00
B107: Калининский район | C107: =C109+C112+C108+C113+C110+C111 -> 5,623.30 | D107: =D109+D112+D108+D113+D110+D111 -> 205 | E107: =E109+E112+E108+E113+E110+E111 -> 7 | F107: =F109+F112+F108+F113+F110+F111 -> 14,284,465.00
A108: 14 | B108: Итого по МО городское поселение поселок Васильевский Мох | C108: ='2-60'!H601 -> 956.50 | D108: ='2-60'!K601 -> 40 | E108: 1 | F108: ='2-60'!L601 -> 2,953,066.00
A109: 15 | B109: Итого по МО Верхневолжское сельское поселение | C109: ='2-60'!H603 -> 572.30 | D109: ='2-60'!K603 -> 25 | E109: 1 | F109: ='2-60'!L603 -> 2,389,620.00
A110: 16 | B110: Итого по МО Каблуковское сельское поселение | C110: ='2-60'!H605 -> 1,287.10 | D110: ='2-60'!K605 -> 19 | E110: 1 | F110: ='2-60'!L605 -> 1,952,139.00
A111: 17 | B111: Итого по МО Медновское сельское поселение | C111: ='2-60'!H607 -> 705.80 | D111: ='2-60'!K607 -> 50 | E111: 2 | F111: ='2-60'!L607 -> 2,933,548.00
A112: 18 | B112: Итого по МО городское поселение поселок Орша | C112: ='2-60'!H610 -> 721.00 | D112: ='2-60'!K610 -> 26 | E112: 1 | F112: ='2-60'!L610 -> 2,118,761.00
A113: 19 | B113: Итого по МО Щербининское сельское поселение | C113: ='2-60'!H612 -> 1,380.60 | D113: ='2-60'!K612 -> 45 | E113: 1 | F113: ='2-60'!L612 -> 1,937,331.00
B114: Калязинский район | C114: =C115 -> 14,524.50 | D114: =D115 -> 501 | E114: =E115 -> 4 | F114: =F115 -> 12,056,009.00
A115: 20 | B115: Итого по МО городское поселение город Калязин | C115: ='2-60'!H615 -> 14,524.50 | D115: ='2-60'!K615 -> 501 | E115: 4 | F115: ='61-106'!C611 -> 12,056,009.00
A116: 21 | B116: Итого по МО Кашинский городской округ | C116: ='2-60'!H620 -> 21,509.00 | D116: ='2-60'!K620 -> 660 | E116: 6 | F116: ='2-60'!L620 -> 15,755,369.00
B117: Кимрский муниципальный округ | C117: =C118+C119 -> 1,199.50 | D117: =D118+D119 -> 31 | E117: 2 | F117: 4,709,023.15
A118: 22 | B118: Итого по МО город Кимры | C118: ='2-60'!H628 -> 494.90 | D118: ='2-60'!K628 -> 17 | E118: 1 | F118: ='2-60'!L628 -> 1,253,323.00
A119: 23 | B119: Итого по МО городское поселение поселок Белый Городок | C119: ='2-60'!H630 -> 704.60 | D119: ='2-60'!K630 -> 14 | E119: 1 | F119: ='2-60'!L630 -> 3,455,700.15
B120: Конаковский район | C120: =C121+C122+C123+C125+C126+C124 -> 63,954.90 | D120: =D121+D122+D123+D125+D126+D124 -> 1,823.00 | E120: 19 | F120: 75,144,785.29
A121: 24 | B121: Итого по МО городское поселение город Конаково | C121: ='2-60'!H633+'2-60'!H742 -> 47,736.80 | D121: ='2-60'!K739+'2-60'!K633 -> 1315 | E121: 9 | F121: ='2-60'!L633+'2-60'!L739 -> 46,415,518.34
A122: 25 | B122: Итого по МО городское поселение поселок Изоплит | C122: ='2-60'!H641 -> 632.30 | D122: ='2-60'!K641 -> 17 | E122: 1 | F122: ='2-60'!L641 -> 4,080,205.00
A123: 26 | B123: Итого по МО городское поселение поселок Козлово | C123: ='2-60'!H643 -> 1,179.10 | D123: ='2-60'!K643 -> 43 | E123: 2 | F123: ='2-60'!L643 -> 3,195,064.00
A124: 27 | B124: Итого по МО городское поселение поселок Новозавидовский | C124: ='2-60'!H646 -> 2,096.60 | D124: ='2-60'!K646 -> 87 | E124: 2 | F124: ='2-60'!L646 -> 7,899,748.95
A125: 28 | B125: Итого по МО городское поселение поселок Радченко | C125: ='2-60'!H649 -> 2,804.20 | D125: ='2-60'!K649 -> 75 | E125: 1 | F125: ='2-60'!L649 -> 2,540,404.00
A126: 29 | B126: Итого по МО городское поселение поселок Редкино | C126: ='2-60'!H651 -> 9,505.90 | D126: ='2-60'!K651 -> 286 | E126: 4 | F126: ='2-60'!L651 -> 11,013,845.00
A127: 30 | B127: Краснохолмский муниципальный округ | C127: ='2-60'!H656 -> 818.30 | D127: ='2-60'!K656 -> 33 | E127: 2 | F127: ='2-60'!L656 -> 4,711,789.20
B128: Кувшиновский район | C128: =C129 -> 3,079.80 | D128: =D129 -> 116 | E128: 1 | F128: 4,304,423.00
A129: 31 | B129: Итого по МО городское поселение город Кувшиново | C129: ='2-60'!H660 -> 3,079.80 | D129: ='2-60'!K660 -> 116 | E129: 1 | F129: ='2-60'!L660 -> 4,304,423.00
B130: Лихославльский муниципальный округ | C130: =C132+C133+C131 -> 4,015.40 | D130: =D132+D133+D131 -> 157 | E130: 4 | F130: 11,563,936.06
A131: 32 | B131: Итого по город Лихославль | C131: ='2-60'!H663 -> 1,822.20 | D131: ='2-60'!K663 -> 66 | E131: 2 | F131: ='2-60'!L663 -> 8,573,045.06
A132: 33 | B132: Итого по МО городское поселение поселок Калашниково | C132: ='2-60'!H666 -> 642.00 | D132: ='2-60'!K666 -> 23 | E132: 1 | F132: ='61-106'!C664 -> 1,461,133.00
A133: 34 | B133: Итого по Вескинское сельское поселение | C133: ='2-60'!H668 -> 1,551.20 | D133: ='2-60'!K668 -> 68 | E133: 1 | F133: ='2-60'!L668 -> 1,529,758.00
A134: 35 | B134: Максатихинский муниципальный округ | C134: ='2-60'!H670 -> 4,426.00 | D134: ='2-60'!K670 -> 113 | E134: 4 | F134: ='2-60'!L670 -> 8,642,732.00
A135: 36 | B135: Итого по МО Нелидовский городской округ | C135: ='2-60'!H675 -> 2,606.69 | D135: ='2-60'!K675 -> 82 | E135: 3 | F135: ='2-60'!L675 -> 7,595,351.37
A136: 37 | B136: Итого по МО Оленинский муниципальный округ | C136: ='2-60'!H742 -> 15,827.90 | D136: ='2-60'!K742 -> 627 | E136: 20 | F136: ='2-60'!L742 -> 6,212,616.00
A137: 38 | B137: Итого по МО Осташковский городской округ | C137: ='2-60'!H679 -> 18,897.40 | D137: ='2-60'!K679 -> 732 | E137: 8 | F137: ='2-60'!L679 -> 29,250,322.59
A138: 39 | B138: Пеновский муниципальный округ | C138: ='2-60'!H688 -> 830.80 | D138: ='2-60'!K688 -> 23 | E138: 1 | F138: ='2-60'!L688 -> 6,692,193.00
B139: Рамешковский муниципальный округ | C139: =C140 -> 810.30 | D139: =D140 -> 40 | E139: 1 | F139: 1,442,222.50
A140: 40 | B140: Итого по МО городское поселение поселок Рамешки | C140: ='2-60'!H691 -> 810.30 | D140: ='2-60'!K691 -> 40 | E140: 1 | F140: ='2-60'!L691 -> 1,442,222.50
A141: 41 | B141: Сандовский муниципальный округ | C141: ='2-60'!H693 -> 1,514.20 | D141: ='2-60'!K693 -> 38 | E141: 2 | F141: ='2-60'!L693 -> 2,063,504.20
A142: 42 | B142: Селижаровский муниципальный округ | C142: ='2-60'!H696 -> 1,643.80 | D142: ='2-60'!K696 -> 69 | E142: 3 | F142: ='2-60'!L696 -> 4,281,862.00
A143: 43 | B143: Спировский муниципальный округ | C143: =C144 -> 479.70 | D143: =D144 -> 11 | E143: 1 | F143: 1,918,583.73
B144: Итого по МО городское поселение поселок Спирово | C144: ='2-60'!H710 -> 479.70 | D144: ='2-60'!K709 -> 11 | E144: 1 | F144: ='2-60'!L710 -> 1,918,583.73
B145: Старицкий муниципальный округ | C145: =C146+C147 -> 4,177.30 | D145: =D146+D147 -> 149 | E145: 6 | F145: 12,291,643.20
A146: 44 | B146: Итого по МО городское поселение город Старица | C146: ='2-60'!H701 -> 3,624.40 | D146: ='2-60'!K701 -> 129 | E146: 5 | F146: ='2-60'!L701 -> 10,300,664.91
A147: 45 | B147: Итого по МО Емельяновское сельское поселение | C147: ='2-60'!H707 -> 552.90 | D147: ='2-60'!K707 -> 20 | E147: 1 | F147: ='2-60'!L707 -> 1,990,978.29
B148: Торопецкий район | C148: =C149 -> 501.40 | D148: =D149 -> 13 | E148: 1 | F148: 1,523,071.00
A149: 46 | B149: Итого по МО городское поселение город Торопец | C149: ='2-60'!H713 -> 501.40 | D149: ='2-60'!K713 -> 13 | E149: 1 | F149: ='2-60'!L713 -> 1,523,071.00
A150: 47 | B150: Итого по МО Удомельский городской округ | C150: ='2-60'!H715 -> 23,746.32 | D150: ='2-60'!K715 -> 879 | E150: 4 | F150: ='2-60'!L715 -> 33,565,442.00
B151: Фировский район | C151: =C152 -> 3,529.00 | D151: =D152 -> 99 | E151: 1 | F151: 2,483,859.00
A152: 48 | B152: Итого по МО Великооктябрьское городское поселение | C152: ='2-60'!H721 -> 3,529.00 | D152: ='2-60'!K721 -> 99 | E152: 1 | F152: ='2-60'!L721 -> 2,483,859.00
A153: Начало проведения капитального ремонта – 2022 год
B154: Итого по Тверской области | C154: =C155+C156+C158+C159+C161+C162+C165+C166+C168+C169+C171+C173+C181+C183+C184+C192+C193+C195+C200+C201+C203+C204+C205+C207+C208+C209+C210+C212+C217+C219+C220+C202+C215+C160+C172+C157 -> 462,056.99 | D154: =D155+D156+D158+D159+D161+D162+D165+D166+D168+D169+D171+D173+D181+D183+D184+D192+D193+D195+D200+D201+D203+D204+D205+D207+D208+D209+D210+D212+D217+D219+D220+D202+D215+D160+D172+D157 -> 16,580 | E154: =E155+E156+E158+E159+E161+E162+E165+E166+E168+E169+E171+E173+E181+E183+E184+E192+E193+E195+E200+E201+E203+E204+E205+E207+E208+E209+E210+E212+E217+E219+E220+E202+E215+E160+E172+E157 -> 212 | F154: =F155+F156+F158+F159+F161+F162+F165+F166+F168+F169+F171+F173+F181+F183+F184+F192+F193+F195+F200+F201+F203+F204+F205+F207+F208+F209+F210+F212+F217+F219+F220+F202+F215+F160+F172+F157 -> 1,012,300,911.75
A155: 1 | B155: Итого по МО город Тверь | C155: ='2-60'!H766 -> 110,826.50 | D155: ='2-60'!K766 -> 4142 | E155: 30 | F155: ='2-60'!L766 -> 419,146,020.49
A156: 2 | B156: Итого по МО Вышневолоцкий городской округ | C156: ='2-60'!H797 -> 27,708.89 | D156: ='2-60'!K797 -> 1126 | E156: 18 | F156: ='2-60'!L797 -> 46,355,676.60
A157: 3 | B157: Итого по МО Ржевский муниципальный округ | C157: ='2-60'!H816 -> 11,486.80 | D157: ='2-60'!K816 -> 378 | E157: 5 | F157: ='2-60'!L816 -> 42,663,587.09
A158: 4 | B158: Итого по МО город Торжок | C158: ='2-60'!H822 -> 10,789.40 | D158: ='2-60'!K822 -> 329 | E158: 13 | F158: ='2-60'!L822 -> 25,636,485.39
A159: 5 | B159: Итого по МО ЗАТО Озерный | C159: ='2-60'!H836 -> 9,704.96 | D159: ='2-60'!K836 -> 229 | E159: 3 | F159: ='2-60'!L836 -> 14,315,386.51
A160: 6 | B160: Итого по МО ЗАТО Солнечный | C160: ='2-60'!H840 -> 2,739.40 | D160: ='2-60'!K840 -> 82 | E160: 1 | F160: ='2-60'!L840 -> 11,459,859.27
A161: 7 | B161: Андреапольский муниципальный округ | C161: ='2-60'!H842 -> 1,303.70 | D161: ='2-60'!K842 -> 34 | E161: 2 | F161: ='2-60'!L842 -> 3,519,986.00
B162: Бежецкий район | C162: =C163+C164 -> 15,155.36 | D162: =D163+D164 -> 687 | E162: 11 | F162: 51,535,617.82
A163: 8 | B163: Итого по МО городское поселение город Бежецк | C163: ='2-60'!H846 -> 14,091.46 | D163: ='2-60'!K846 -> 638 | E163: 10 | F163: ='2-60'!L846 -> 48,842,910.82
A164: 9 | B164: Итого по МО Фралевское сельское поселение | C164: ='2-60'!H857 -> 1,063.90 | D164: ='2-60'!K857 -> 49 | E164: 1 | F164: ='2-60'!L857 -> 2,692,707.00
A165: 10 | B165: Бельский муниципальный округ | C165: ='2-60'!H859 -> 732.90 | D165: ='2-60'!K859 -> 33 | E165: 2 | F165: ='2-60'!L859 -> 431,415.74
B166: Бологовский район | C166: =C167 -> 13,975.14 | D166: =D167 -> 440 | E166: 10 | F166: 18,668,404.00
